Workbook

Sheet Control
B2: Please select type of organisation: | C2: Community Service Providers | G2: =IF(Dropdown="NHS Ambulance Service Providers",3,FALSE) -> FALSE | I2: Publishing Approval Reference: 000719
B3: Click button to format the workbook | I3: 1
B5: Core Standards | C5: Total standards applicable | D5: Fully compliant | E5: Partially compliant | F5: Non compliant | H5: Overall assessment: | I5: =IF(AND(D17=0,E17=0,F17=0),"Self-assessment not started",IF(D17=C38,B38,IF(D17>=C39,B39,IF(D17>=C40,B40,B41)))) -> Non compliant
B6: Governance | C6: =COUNTIF('EPRR Core Standards'!$D:$D,$B6) -> 6 | D6: =COUNTIFS('EPRR Core Standards'!$D:$D,$B6,'EPRR Core Standards'!$I:$I,Control!D$5) -> 4 | E6: =COUNTIFS('EPRR Core Standards'!$D:$D,$B6,'EPRR Core Standards'!$I:$I,Control!E$5) -> 2 | F6: =COUNTIFS('EPRR Core Standards'!$D:$D,$B6,'EPRR Core Standards'!$I:$I,Control!F$5) -> 0
B7: Duty to risk assess | C7: =COUNTIF('EPRR Core Standards'!$D:$D,$B7) -> 2 | D7: =COUNTIFS('EPRR Core Standards'!$D:$D,$B7,'EPRR Core Standards'!$I:$I,Control!D$5) -> 2 | E7: =COUNTIFS('EPRR Core Standards'!$D:$D,$B7,'EPRR Core Standards'!$I:$I,Control!E$5) -> 0 | F7: =COUNTIFS('EPRR Core Standards'!$D:$D,$B7,'EPRR Core Standards'!$I:$I,Control!F$5) -> 0 | H7: Interoperable capabilities: | I7: =IF(AND(D32=0,E32=0,F32=0),"Self-assessment not started",IF(D32=D38,B38,IF(D32>=D39,B39,IF(D32>=D40,B40,B41)))) -> Self-assessment not started
B8: Duty to maintain plans | C8: =COUNTIF('EPRR Core Standards'!$D:$D,$B8) -> 11 | D8: =COUNTIFS('EPRR Core Standards'!$D:$D,$B8,'EPRR Core Standards'!$I:$I,Control!D$5) -> 3 | E8: =COUNTIFS('EPRR Core Standards'!$D:$D,$B8,'EPRR Core Standards'!$I:$I,Control!E$5) -> 8 | F8: =COUNTIFS('EPRR Core Standards'!$D:$D,$B8,'EPRR Core Standards'!$I:$I,Control!F$5) -> 0
B9: Command and control | C9: =COUNTIF('EPRR Core Standards'!$D:$D,$B9) -> 2 | D9: =COUNTIFS('EPRR Core Standards'!$D:$D,$B9,'EPRR Core Standards'!$I:$I,Control!D$5) -> 2 | E9: =COUNTIFS('EPRR Core Standards'!$D:$D,$B9,'EPRR Core Standards'!$I:$I,Control!E$5) -> 0 | F9: =COUNTIFS('EPRR Core Standards'!$D:$D,$B9,'EPRR Core Standards'!$I:$I,Control!F$5) -> 0
B10: Training and exercising | C10: =COUNTIF('EPRR Core Standards'!$D:$D,$B10) -> 4 | D10: =COUNTIFS('EPRR Core Standards'!$D:$D,$B10,'EPRR Core Standards'!$I:$I,Control!D$5) -> 0 | E10: =COUNTIFS('EPRR Core Standards'!$D:$D,$B10,'EPRR Core Standards'!$I:$I,Control!E$5) -> 4 | F10: =COUNTIFS('EPRR Core Standards'!$D:$D,$B10,'EPRR Core Standards'!$I:$I,Control!F$5) -> 0
B11: Response | C11: =COUNTIF('EPRR Core Standards'!$D:$D,$B11) -> 5 | D11: =COUNTIFS('EPRR Core Standards'!$D:$D,$B11,'EPRR Core Standards'!$I:$I,Control!D$5) -> 3 | E11: =COUNTIFS('EPRR Core Standards'!$D:$D,$B11,'EPRR Core Standards'!$I:$I,Control!E$5) -> 2 | F11: =COUNTIFS('EPRR Core Standards'!$D:$D,$B11,'EPRR Core Standards'!$I:$I,Control!F$5) -> 0 | H11: Instructions:
B12: Warning and informing | C12: =COUNTIF('EPRR Core Standards'!$D:$D,$B12) -> 4 | D12: =COUNTIFS('EPRR Core Standards'!$D:$D,$B12,'EPRR Core Standards'!$I:$I,Control!D$5) -> 0 | E12: =COUNTIFS('EPRR Core Standards'!$D:$D,$B12,'EPRR Core Standards'!$I:$I,Control!E$5) -> 4 | F12: =COUNTIFS('EPRR Core Standards'!$D:$D,$B12,'EPRR Core Standards'!$I:$I,Control!F$5) -> 0 | H12: Step 1: If you see a yellow ribbon at the top of the page and a button asking you to 'Enable Content' please do so.
B13: Cooperation | C13: =COUNTIF('EPRR Core Standards'!$D:$D,$B13) -> 4 | D13: =COUNTIFS('EPRR Core Standards'!$D:$D,$B13,'EPRR Core Standards'!$I:$I,Control!D$5) -> 3 | E13: =COUNTIFS('EPRR Core Standards'!$D:$D,$B13,'EPRR Core Standards'!$I:$I,Control!E$5) -> 1 | F13: =COUNTIFS('EPRR Core Standards'!$D:$D,$B13,'EPRR Core Standards'!$I:$I,Control!F$5) -> 0 | H13: Step 2: Select the type of organisation from the drop-down at the top of this page
B14: Business Continuity | C14: =COUNTIF('EPRR Core Standards'!$D:$D,$B14) -> 10 | D14: =COUNTIFS('EPRR Core Standards'!$D:$D,$B14,'EPRR Core Standards'!$I:$I,Control!D$5) -> 2 | E14: =COUNTIFS('EPRR Core Standards'!$D:$D,$B14,'EPRR Core Standards'!$I:$I,Control!E$5) -> 8 | F14: =COUNTIFS('EPRR Core Standards'!$D:$D,$B14,'EPRR Core Standards'!$I:$I,Control!F$5) -> 0 | H14: Step 3: Click on the 'Format Workbook' button.
B15: Hazmat/CBRN | C15: =COUNTIF('EPRR Core Standards'!$D:$D,$B15) -> 10 | D15: =COUNTIFS('EPRR Core Standards'!$D:$D,$B15,'EPRR Core Standards'!$I:$I,Control!D$5) -> 8 | E15: =COUNTIFS('EPRR Core Standards'!$D:$D,$B15,'EPRR Core Standards'!$I:$I,Control!E$5) -> 2 | F15: =COUNTIFS('EPRR Core Standards'!$D:$D,$B15,'EPRR Core Standards'!$I:$I,Control!F$5) -> 0 | H15: Step 4: Complete the Self-Assessment RAG in the 'EPRR Core Standards' tab
B16: CBRN Support to acute Trusts | C16: =COUNTIF('EPRR Core Standards'!$D:$D,$B16) -> 0 | D16: =COUNTIFS('EPRR Core Standards'!$D:$D,$B16,'EPRR Core Standards'!$I:$I,Control!D$5) -> 0 | E16: =COUNTIFS('EPRR Core Standards'!$D:$D,$B16,'EPRR Core Standards'!$I:$I,Control!E$5) -> 0 | F16: =COUNTIFS('EPRR Core Standards'!$D:$D,$B16,'EPRR Core Standards'!$I:$I,Control!F$5) -> 0 | H16: Step 5: Complete the Self-Assessment RAG in the 'Deep dive' tab
B17: Total | C17: =SUM(C6:C16) -> 58 | D17: =SUM(D6:D16) -> 27 | E17: 31 | F17: 0 | H17: Step 6: Ambulance providers only: Complete the Self-Assessment in the 'Interoperable capabilities' tab
H18: Step 7: In the Action Plan tab, click on the 'Format Action Plan' button.
B19: Deep Dive | C19: Total standards applicable | D19: Fully compliant | E19: Partially compliant | F19: Non compliant
A20: Deep Dive Cyber Security | B20: Cyber Security | C20: =COUNTIF('Deep Dive Investigation'!$D:$D,Control!$A20) -> 11 | D20: =COUNTIFS('Deep Dive Investigation'!$D:$D,Control!$A20,'Deep Dive Investigation'!$I:$I,Control!D$19) -> 8 | E20: =COUNTIFS('Deep Dive Investigation'!$D:$D,Control!$A20,'Deep Dive Investigation'!$I:$I,Control!E$19) -> 3 | F20: =COUNTIFS('Deep Dive Investigation'!$D:$D,Control!$A20,'Deep Dive Investigation'!$I:$I,Control!F$19) -> 0
B23: Total | C23: =SUM(C20:C20) -> 11 | D23: =SUM(D20:D20) -> 8 | E23: 3 | F23: 0
B25: Interoperable capabilities | C25: Total standards applicable | D25: Fully compliant | E25: Partially compliant | F25: Non compliant
B26: HART | C26: =COUNTIF('Interoperable Capabilities'!$B:$B,Control!$B26) -> 32 | D26: =COUNTIFS('Interoperable Capabilities'!$B:$B,Control!$B26,'Interoperable Capabilities'!$F:$F,Control!D$25) -> 0 | E26: =COUNTIFS('Interoperable Capabilities'!$B:$B,Control!$B26,'Interoperable Capabilities'!$F:$F,Control!E$25) -> 0 | F26: =COUNTIFS('Interoperable Capabilities'!$B:$B,Control!$B26,'Interoperable Capabilities'!$F:$F,Control!F$25) -> 0
B27: SORT | C27: =COUNTIF('Interoperable Capabilities'!$B:$B,Control!$B27) -> 40 | D27: =COUNTIFS('Interoperable Capabilities'!$B:$B,Control!$B27,'Interoperable Capabilities'!$F:$F,Control!D$25) -> 0 | E27: =COUNTIFS('Interoperable Capabilities'!$B:$B,Control!$B27,'Interoperable Capabilities'!$F:$F,Control!E$25) -> 0 | F27: =COUNTIFS('Interoperable Capabilities'!$B:$B,Control!$B27,'Interoperable Capabilities'!$F:$F,Control!F$25) -> 0
B28: MassCas | C28: =COUNTIF('Interoperable Capabilities'!$B:$B,Control!$B28) -> 14 | D28: =COUNTIFS('Interoperable Capabilities'!$B:$B,Control!$B28,'Interoperable Capabilities'!$F:$F,Control!D$25) -> 0 | E28: =COUNTIFS('Interoperable Capabilities'!$B:$B,Control!$B28,'Interoperable Capabilities'!$F:$F,Control!E$25) -> 0 | F28: =COUNTIFS('Interoperable Capabilities'!$B:$B,Control!$B28,'Interoperable Capabilities'!$F:$F,Control!F$25) -> 0
B29: C2 | C29: =COUNTIF('Interoperable Capabilities'!$B:$B,Control!$B29) -> 36 | D29: =COUNTIFS('Interoperable Capabilities'!$B:$B,Control!$B29,'Interoperable Capabilities'!$F:$F,Control!D$25) -> 0 | E29: =COUNTIFS('Interoperable Capabilities'!$B:$B,Control!$B29,'Interoperable Capabilities'!$F:$F,Control!E$25) -> 0 | F29: =COUNTIFS('Interoperable Capabilities'!$B:$B,Control!$B29,'Interoperable Capabilities'!$F:$F,Control!F$25) -> 0
B30: JESIP | C30: =COUNTIF('Interoperable Capabilities'!$B:$B,Control!$B30) -> 13 | D30: =COUNTIFS('Interoperable Capabilities'!$B:$B,Control!$B30,'Interoperable Capabilities'!$F:$F,Control!D$25) -> 0 | E30: =COUNTIFS('Interoperable Capabilities'!$B:$B,Control!$B30,'Interoperable Capabilities'!$F:$F,Control!E$25) -> 0 | F30: =COUNTIFS('Interoperable Capabilities'!$B:$B,Control!$B30,'Interoperable Capabilities'!$F:$F,Control!F$25) -> 0
B32: Total | C32: =SUM(C26:C30) -> 135 | D32: =SUM(D26:D30) -> 0 | E32: =SUM(E26:E30) -> 0 | F32: =SUM(F26:F30) -> 0
C37: Core standards | D37: Interoperable capabilities
B38: Fully compliant | C38: =100%*C17 -> 58 | D38: =100%*C32 -> 135
B39: Substantially compliant | C39: =ROUND(89%*C17,0) -> 52 | D39: =ROUND(89%*C32,0) -> 120
B40: Partially compliant | C40: =ROUND(77%*C17,0) -> 45 | D40: =ROUND(77%*C32,0) -> 104
B41: Non compliant

Sheet EPRR Core Standards
A1: Action Plan | B1: Lookup | C1: Ref | D1: Domain | E1: Standard name | F1: Standard Detail | G1: Supporting Information - including examples of evidence | H1: Organisational Evidence | I1: Self assessment RAG Red (not compliant) = Not compliant with the core standard. The organisation’s work programme shows compliance will not be reached within the next 12 months. Amber (partially compliant) = Not compliant with core standard. However, the organisation’s work programme demonstrates sufficient evidence of progress and an action plan to achieve full compliance within the next 12 months. Green (fully compliant) = Fully compliant with core standard. | J1: Action to be taken | K1: Lead | L1: Timescale | M1: Comments
A2: =IF(OR(LEFT($C2,6)="Domain",$I2=LookUp!$A$3,$I2=LookUp!$A$4),MAX('EPRR Core Standards'!A$1:A1)+1,"") -> 1 | B2: 1 | C2: =IF($B2="","",IF(VLOOKUP($B2,'Core Criteria'!$C:$V,2,FALSE)="","",VLOOKUP($B2,'Core Criteria'!$C:$V,2,FALSE))) -> Domain 1 - Governance | D2: =IF($B2="","",IF(VLOOKUP($B2,'Core Criteria'!$C:$V,3,FALSE)="","",VLOOKUP($B2,'Core Criteria'!$C:$V,3,FALSE))) ->  | E2: =IF($B2="","",IF(VLOOKUP($B2,'Core Criteria'!$C:$V,4,FALSE)="","",VLOOKUP($B2,'Core Criteria'!$C:$V,4,FALSE))) ->  | F2: =IF($B2="","",IF(VLOOKUP($B2,'Core Criteria'!$C:$V,5,FALSE)="","",VLOOKUP($B2,'Core Criteria'!$C:$V,5,FALSE))) ->  | G2: =IF($B2="","",IF(VLOOKUP($B2,'Core Criteria'!$C:$V,20,FALSE)="","",VLOOKUP($B2,'Core Criteria'!$C:$V,20,FALSE))) -> 
A3: =IF(OR(LEFT($C3,6)="Domain",$I3=LookUp!$A$3,$I3=LookUp!$A$4),MAX('EPRR Core Standards'!A$1:A2)+1,"") ->  | B3: =IFERROR(IF(B2+1>MAX('Core Criteria'!$C:$C),"",B2+1),"") -> 2 | C3: =IF($B3="","",IF(VLOOKUP($B3,'Core Criteria'!$C:$V,2,FALSE)="","",VLOOKUP($B3,'Core Criteria'!$C:$V,2,FALSE))) -> 1 | D3: =IF($B3="","",IF(VLOOKUP($B3,'Core Criteria'!$C:$V,3,FALSE)="","",VLOOKUP($B3,'Core Criteria'!$C:$V,3,FALSE))) -> Governance | E3: =IF($B3="","",IF(VLOOKUP($B3,'Core Criteria'!$C:$V,4,FALSE)="","",VLOOKUP($B3,'Core Criteria'!$C:$V,4,FALSE))) -> Senior Leadership | F3: =IF($B3="","",IF(VLOOKUP($B3,'Core Criteria'!$C:$V,5,FALSE)="","",VLOOKUP($B3,'Core Criteria'!$C:$V,5,FALSE))) -> The organisation has appointed an Accountable Emergency Officer (AEO) responsible for Emergency Preparedness Resilience and Response (EPRR). This individual should be a board level director within their individual organisation, and have the appropriate authority, resources and budget to direct the EPRR portfolio. | G3: =IF($B3="","",IF(VLOOKUP($B3,'Core Criteria'!$C:$V,20,FALSE)="","",VLOOKUP($B3,'Core Criteria'!$C:$V,20,FALSE))) -> Evidence • Name and role of appointed individual • AEO responsibilities included in role/job description | H3: AEO job description - Exec Director of Ops. EPRR policy references responsibilities. Deputy AEO agreed. Executive/ Senior leaders organigram. Senior leadership team portfolios. Board and Committee structure. Draft SLT terms of reference. | I3: Fully compliant
A4: =IF(OR(LEFT($C4,6)="Domain",$I4=LookUp!$A$3,$I4=LookUp!$A$4),MAX('EPRR Core Standards'!A$1:A3)+1,"") -> 2 | B4: =IFERROR(IF(B3+1>MAX('Core Criteria'!$C:$C),"",B3+1),"") -> 3 | C4: =IF($B4="","",IF(VLOOKUP($B4,'Core Criteria'!$C:$V,2,FALSE)="","",VLOOKUP($B4,'Core Criteria'!$C:$V,2,FALSE))) -> 2 | D4: =IF($B4="","",IF(VLOOKUP($B4,'Core Criteria'!$C:$V,3,FALSE)="","",VLOOKUP($B4,'Core Criteria'!$C:$V,3,FALSE))) -> Governance | E4: =IF($B4="","",IF(VLOOKUP($B4,'Core Criteria'!$C:$V,4,FALSE)="","",VLOOKUP($B4,'Core Criteria'!$C:$V,4,FALSE))) -> EPRR Policy Statement | F4: =IF($B4="","",IF(VLOOKUP($B4,'Core Criteria'!$C:$V,5,FALSE)="","",VLOOKUP($B4,'Core Criteria'!$C:$V,5,FALSE))) -> The organisation has an overarching EPRR policy or statement of intent. This should take into account the organisation’s: • Business objectives and processes • Key suppliers and contractual arrangements • Risk assessment(s) • Functions and / or organisation, structural and staff changes. | G4: =IF($B4="","",IF(VLOOKUP($B4,'Core Criteria'!$C:$V,20,FALSE)="","",VLOOKUP($B4,'Core Criteria'!$C:$V,20,FALSE))) -> The policy should: • Have a review schedule and version control • Use unambiguous terminology • Identify those responsible for ensuring policies and arrangements are updated, distributed and regularly tested and exercised • Include references to other sources of information and supporting documentation. Evidence Up to date EPRR policy or statement of intent that includes: • Resourcing commitment • Access to funds • Commitment to Emergency Planning, Business Continuity, Training, Exercising etc. | H4: EPRR policy statement final. | I4: Partially compliant | J4: Final draft to be reviewed and sent to business committee | K4: EPRR Manager | L4: 2024-10-01
A5: =IF(OR(LEFT($C5,6)="Domain",$I5=LookUp!$A$3,$I5=LookUp!$A$4),MAX('EPRR Core Standards'!A$1:A4)+1,"") ->  | B5: =IFERROR(IF(B4+1>MAX('Core Criteria'!$C:$C),"",B4+1),"") -> 4 | C5: =IF($B5="","",IF(VLOOKUP($B5,'Core Criteria'!$C:$V,2,FALSE)="","",VLOOKUP($B5,'Core Criteria'!$C:$V,2,FALSE))) -> 3 | D5: =IF($B5="","",IF(VLOOKUP($B5,'Core Criteria'!$C:$V,3,FALSE)="","",VLOOKUP($B5,'Core Criteria'!$C:$V,3,FALSE))) -> Governance | E5: =IF($B5="","",IF(VLOOKUP($B5,'Core Criteria'!$C:$V,4,FALSE)="","",VLOOKUP($B5,'Core Criteria'!$C:$V,4,FALSE))) -> EPRR board reports | F5: =IF($B5="","",IF(VLOOKUP($B5,'Core Criteria'!$C:$V,5,FALSE)="","",VLOOKUP($B5,'Core Criteria'!$C:$V,5,FALSE))) -> The Chief Executive Officer ensures that the Accountable Emergency Officer discharges their responsibilities to provide EPRR reports to the Board, no less than annually. The organisation publicly states its readiness and preparedness activities in annual reports within the organisation's own regulatory reporting requirements | G5: =IF($B5="","",IF(VLOOKUP($B5,'Core Criteria'!$C:$V,20,FALSE)="","",VLOOKUP($B5,'Core Criteria'!$C:$V,20,FALSE))) -> These reports should be taken to a public board, and as a minimum, include an overview on: • training and exercises undertaken by the organisation • summary of any business continuity, critical incidents and major incidents experienced by the organisation • lessons identified and learning undertaken from incidents and exercises • the organisation's compliance position in relation to the latest NHS England EPRR assurance process. Evidence • Public Board meeting minutes • Evidence of presenting the results of the annual EPRR assurance process to the Public Board • For those organisations that do not have a public board, a public statement of readiness and preparedness activities. | H5: EPRR annual report to Public Board. Business Committee updates. Trust annual report. Business committee terms of reference. | I5: Fully compliant
A6: =IF(OR(LEFT($C6,6)="Domain",$I6=LookUp!$A$3,$I6=LookUp!$A$4),MAX('EPRR Core Standards'!A$1:A5)+1,"") ->  | B6: =IFERROR(IF(B5+1>MAX('Core Criteria'!$C:$C),"",B5+1),"") -> 5 | C6: =IF($B6="","",IF(VLOOKUP($B6,'Core Criteria'!$C:$V,2,FALSE)="","",VLOOKUP($B6,'Core Criteria'!$C:$V,2,FALSE))) -> 4 | D6: =IF($B6="","",IF(VLOOKUP($B6,'Core Criteria'!$C:$V,3,FALSE)="","",VLOOKUP($B6,'Core Criteria'!$C:$V,3,FALSE))) -> Governance | E6: =IF($B6="","",IF(VLOOKUP($B6,'Core Criteria'!$C:$V,4,FALSE)="","",VLOOKUP($B6,'Core Criteria'!$C:$V,4,FALSE))) -> EPRR work programme | F6: =IF($B6="","",IF(VLOOKUP($B6,'Core Criteria'!$C:$V,5,FALSE)="","",VLOOKUP($B6,'Core Criteria'!$C:$V,5,FALSE))) -> The organisation has an annual EPRR work programme, informed by: • current guidance and good practice • lessons identified from incidents and exercises • identified risks • outcomes of any assurance and audit processes The work programme should be regularly reported upon and shared with partners where appropriate. | G6: =IF($B6="","",IF(VLOOKUP($B6,'Core Criteria'!$C:$V,20,FALSE)="","",VLOOKUP($B6,'Core Criteria'!$C:$V,20,FALSE))) -> Evidence • Reporting process explicitly described within the EPRR policy statement • Annual work plan | H6: EPRR Improvement plan. Work plan.EPRR policy statement incorporates the reporting process. West Yorkshire LHRP forward planner. | I6: Fully compliant
A7: =IF(OR(LEFT($C7,6)="Domain",$I7=LookUp!$A$3,$I7=LookUp!$A$4),MAX('EPRR Core Standards'!A$1:A6)+1,"") -> 3 | B7: =IFERROR(IF(B6+1>MAX('Core Criteria'!$C:$C),"",B6+1),"") -> 6 | C7: =IF($B7="","",IF(VLOOKUP($B7,'Core Criteria'!$C:$V,2,FALSE)="","",VLOOKUP($B7,'Core Criteria'!$C:$V,2,FALSE))) -> 5 | D7: =IF($B7="","",IF(VLOOKUP($B7,'Core Criteria'!$C:$V,3,FALSE)="","",VLOOKUP($B7,'Core Criteria'!$C:$V,3,FALSE))) -> Governance | E7: =IF($B7="","",IF(VLOOKUP($B7,'Core Criteria'!$C:$V,4,FALSE)="","",VLOOKUP($B7,'Core Criteria'!$C:$V,4,FALSE))) -> EPRR Resource | F7: =IF($B7="","",IF(VLOOKUP($B7,'Core Criteria'!$C:$V,5,FALSE)="","",VLOOKUP($B7,'Core Criteria'!$C:$V,5,FALSE))) -> The Board / Governing Body is satisfied that the organisation has sufficient and appropriate resource to ensure it can fully discharge its EPRR duties. | G7: =IF($B7="","",IF(VLOOKUP($B7,'Core Criteria'!$C:$V,20,FALSE)="","",VLOOKUP($B7,'Core Criteria'!$C:$V,20,FALSE))) -> Evidence • EPRR Policy identifies resources required to fulfil EPRR function; policy has been signed off by the organisation's Board • Assessment of role / resources • Role description of EPRR Staff/ staff who undertake the EPRR responsibilities • Organisation structure chart • Internal Governance process chart including EPRR group | H7: Job description of EPRR manager. EPRR policy | I7: Partially compliant | J7: Governance structure. Terms of reference for Senior leadeership team group. Terms of reference for EPRR Exercise and Learning Group. Improvement plan showing resources required. | K7: EPRR Manager | L7: 2024-11-01
A8: =IF(OR(LEFT($C8,6)="Domain",$I8=LookUp!$A$3,$I8=LookUp!$A$4),MAX('EPRR Core Standards'!A$1:A7)+1,"") ->  | B8: =IFERROR(IF(B7+1>MAX('Core Criteria'!$C:$C),"",B7+1),"") -> 7 | C8: =IF($B8="","",IF(VLOOKUP($B8,'Core Criteria'!$C:$V,2,FALSE)="","",VLOOKUP($B8,'Core Criteria'!$C:$V,2,FALSE))) -> 6 | D8: =IF($B8="","",IF(VLOOKUP($B8,'Core Criteria'!$C:$V,3,FALSE)="","",VLOOKUP($B8,'Core Criteria'!$C:$V,3,FALSE))) -> Governance | E8: =IF($B8="","",IF(VLOOKUP($B8,'Core Criteria'!$C:$V,4,FALSE)="","",VLOOKUP($B8,'Core Criteria'!$C:$V,4,FALSE))) -> Continuous improvement | F8: =IF($B8="","",IF(VLOOKUP($B8,'Core Criteria'!$C:$V,5,FALSE)="","",VLOOKUP($B8,'Core Criteria'!$C:$V,5,FALSE))) -> The organisation has clearly defined processes for capturing learning from incidents and exercises to inform the review and embed into EPRR arrangements. | G8: =IF($B8="","",IF(VLOOKUP($B8,'Core Criteria'!$C:$V,20,FALSE)="","",VLOOKUP($B8,'Core Criteria'!$C:$V,20,FALSE))) -> Evidence • Process explicitly described within the EPRR policy statement • Reporting those lessons to the Board/ governing body and where the improvements to plans were made • participation within a regional process for sharing lessons with partner organisations | H8: Debriefs. Reports to Board/ Business Committee. ToR Business Committee Participation regionally - attendance list. Updated fuel plan. | I8: Fully compliant
A9: =IF(OR(LEFT($C9,6)="Domain",$I9=LookUp!$A$3,$I9=LookUp!$A$4),MAX('EPRR Core Standards'!A$1:A8)+1,"") -> 4 | B9: =IFERROR(IF(B8+1>MAX('Core Criteria'!$C:$C),"",B8+1),"") -> 8 | C9: =IF($B9="","",IF(VLOOKUP($B9,'Core Criteria'!$C:$V,2,FALSE)="","",VLOOKUP($B9,'Core Criteria'!$C:$V,2,FALSE))) -> Domain 2 - Duty to risk assess | D9: =IF($B9="","",IF(VLOOKUP($B9,'Core Criteria'!$C:$V,3,FALSE)="","",VLOOKUP($B9,'Core Criteria'!$C:$V,3,FALSE))) ->  | E9: =IF($B9="","",IF(VLOOKUP($B9,'Core Criteria'!$C:$V,4,FALSE)="","",VLOOKUP($B9,'Core Criteria'!$C:$V,4,FALSE))) ->  | F9: =IF($B9="","",IF(VLOOKUP($B9,'Core Criteria'!$C:$V,5,FALSE)="","",VLOOKUP($B9,'Core Criteria'!$C:$V,5,FALSE))) ->  | G9: =IF($B9="","",IF(VLOOKUP($B9,'Core Criteria'!$C:$V,20,FALSE)="","",VLOOKUP($B9,'Core Criteria'!$C:$V,20,FALSE))) -> 
A10: =IF(OR(LEFT($C10,6)="Domain",$I10=LookUp!$A$3,$I10=LookUp!$A$4),MAX('EPRR Core Standards'!A$1:A9)+1,"") ->  | B10: =IFERROR(IF(B9+1>MAX('Core Criteria'!$C:$C),"",B9+1),"") -> 9 | C10: =IF($B10="","",IF(VLOOKUP($B10,'Core Criteria'!$C:$V,2,FALSE)="","",VLOOKUP($B10,'Core Criteria'!$C:$V,2,FALSE))) -> 7 | D10: =IF($B10="","",IF(VLOOKUP($B10,'Core Criteria'!$C:$V,3,FALSE)="","",VLOOKUP($B10,'Core Criteria'!$C:$V,3,FALSE))) -> Duty to risk assess | E10: =IF($B10="","",IF(VLOOKUP($B10,'Core Criteria'!$C:$V,4,FALSE)="","",VLOOKUP($B10,'Core Criteria'!$C:$V,4,FALSE))) -> Risk assessment | F10: =IF($B10="","",IF(VLOOKUP($B10,'Core Criteria'!$C:$V,5,FALSE)="","",VLOOKUP($B10,'Core Criteria'!$C:$V,5,FALSE))) -> The organisation has a process in place to regularly assess the risks to the population it serves. This process should consider all relevant risk registers including community and national risk registers. | G10: =IF($B10="","",IF(VLOOKUP($B10,'Core Criteria'!$C:$V,20,FALSE)="","",VLOOKUP($B10,'Core Criteria'!$C:$V,20,FALSE))) -> • Evidence that EPRR risks are regularly considered and recorded • Evidence that EPRR risks are represented and recorded on the organisations corporate risk register • Risk assessments to consider community risk registers and as a core component, include reasonable worst-case scenarios and extreme events for adverse weather | H10: 4 x risks registered so far Datix screen shots. WY LHRP risk register. National risk register. | I10: Fully compliant
A11: =IF(OR(LEFT($C11,6)="Domain",$I11=LookUp!$A$3,$I11=LookUp!$A$4),MAX('EPRR Core Standards'!A$1:A10)+1,"") ->  | B11: =IFERROR(IF(B10+1>MAX('Core Criteria'!$C:$C),"",B10+1),"") -> 10 | C11: =IF($B11="","",IF(VLOOKUP($B11,'Core Criteria'!$C:$V,2,FALSE)="","",VLOOKUP($B11,'Core Criteria'!$C:$V,2,FALSE))) -> 8 | D11: =IF($B11="","",IF(VLOOKUP($B11,'Core Criteria'!$C:$V,3,FALSE)="","",VLOOKUP($B11,'Core Criteria'!$C:$V,3,FALSE))) -> Duty to risk assess | E11: =IF($B11="","",IF(VLOOKUP($B11,'Core Criteria'!$C:$V,4,FALSE)="","",VLOOKUP($B11,'Core Criteria'!$C:$V,4,FALSE))) -> Risk Management | F11: =IF($B11="","",IF(VLOOKUP($B11,'Core Criteria'!$C:$V,5,FALSE)="","",VLOOKUP($B11,'Core Criteria'!$C:$V,5,FALSE))) -> The organisation has a robust method of reporting, recording, monitoring, communicating, and escalating EPRR risks internally and externally | G11: =IF($B11="","",IF(VLOOKUP($B11,'Core Criteria'!$C:$V,20,FALSE)="","",VLOOKUP($B11,'Core Criteria'!$C:$V,20,FALSE))) -> Evidence • EPRR risks are considered in the organisation's risk management policy • Reference to EPRR risk management in the organisation's EPRR policy document | H11: EPRR policy. Risk management policy. | I11: Fully compliant
A12: =IF(OR(LEFT($C12,6)="Domain",$I12=LookUp!$A$3,$I12=LookUp!$A$4),MAX('EPRR Core Standards'!A$1:A11)+1,"") -> 5 | B12: =IFERROR(IF(B11+1>MAX('Core Criteria'!$C:$C),"",B11+1),"") -> 11 | C12: =IF($B12="","",IF(VLOOKUP($B12,'Core Criteria'!$C:$V,2,FALSE)="","",VLOOKUP($B12,'Core Criteria'!$C:$V,2,FALSE))) -> Domain 3 - Duty to maintain Plans | D12: =IF($B12="","",IF(VLOOKUP($B12,'Core Criteria'!$C:$V,3,FALSE)="","",VLOOKUP($B12,'Core Criteria'!$C:$V,3,FALSE))) ->  | E12: =IF($B12="","",IF(VLOOKUP($B12,'Core Criteria'!$C:$V,4,FALSE)="","",VLOOKUP($B12,'Core Criteria'!$C:$V,4,FALSE))) ->  | F12: =IF($B12="","",IF(VLOOKUP($B12,'Core Criteria'!$C:$V,5,FALSE)="","",VLOOKUP($B12,'Core Criteria'!$C:$V,5,FALSE))) ->  | G12: =IF($B12="","",IF(VLOOKUP($B12,'Core Criteria'!$C:$V,20,FALSE)="","",VLOOKUP($B12,'Core Criteria'!$C:$V,20,FALSE))) -> 
A13: =IF(OR(LEFT($C13,6)="Domain",$I13=LookUp!$A$3,$I13=LookUp!$A$4),MAX('EPRR Core Standards'!A$1:A12)+1,"") -> 6 | B13: =IFERROR(IF(B12+1>MAX('Core Criteria'!$C:$C),"",B12+1),"") -> 12 | C13: =IF($B13="","",IF(VLOOKUP($B13,'Core Criteria'!$C:$V,2,FALSE)="","",VLOOKUP($B13,'Core Criteria'!$C:$V,2,FALSE))) -> 9 | D13: =IF($B13="","",IF(VLOOKUP($B13,'Core Criteria'!$C:$V,3,FALSE)="","",VLOOKUP($B13,'Core Criteria'!$C:$V,3,FALSE))) -> Duty to maintain plans | E13: =IF($B13="","",IF(VLOOKUP($B13,'Core Criteria'!$C:$V,4,FALSE)="","",VLOOKUP($B13,'Core Criteria'!$C:$V,4,FALSE))) -> Collaborative planning | F13: =IF($B13="","",IF(VLOOKUP($B13,'Core Criteria'!$C:$V,5,FALSE)="","",VLOOKUP($B13,'Core Criteria'!$C:$V,5,FALSE))) -> Plans and arrangements have been developed in collaboration with relevant stakeholders including emergency services and health partners to enhance joint working arrangements and to ensure the whole patient pathway is considered. | G13: =IF($B13="","",IF(VLOOKUP($B13,'Core Criteria'!$C:$V,20,FALSE)="","",VLOOKUP($B13,'Core Criteria'!$C:$V,20,FALSE))) -> Partner organisations collaborated with as part of the planning process are in planning arrangements Evidence • Consultation process in place for plans and arrangements • Changes to arrangements as a result of consultation are recorded | H13: Attendance at partnerhip groups. Sharing and plans and policies. Attendance at partner exercises. | I13: Partially compliant | J13: LCH to share plans on the WY ICB EPRR MS Teams channel for wider partner consultation | K13: EPRR Manager | L13: 2024-11-01
A14: =IF(OR(LEFT($C14,6)="Domain",$I14=LookUp!$A$3,$I14=LookUp!$A$4),MAX('EPRR Core Standards'!A$1:A13)+1,"") ->  | B14: =IFERROR(IF(B13+1>MAX('Core Criteria'!$C:$C),"",B13+1),"") -> 13 | C14: =IF($B14="","",IF(VLOOKUP($B14,'Core Criteria'!$C:$V,2,FALSE)="","",VLOOKUP($B14,'Core Criteria'!$C:$V,2,FALSE))) -> 10 | D14: =IF($B14="","",IF(VLOOKUP($B14,'Core Criteria'!$C:$V,3,FALSE)="","",VLOOKUP($B14,'Core Criteria'!$C:$V,3,FALSE))) -> Duty to maintain plans | E14: =IF($B14="","",IF(VLOOKUP($B14,'Core Criteria'!$C:$V,4,FALSE)="","",VLOOKUP($B14,'Core Criteria'!$C:$V,4,FALSE))) -> Incident Response | F14: =IF($B14="","",IF(VLOOKUP($B14,'Core Criteria'!$C:$V,5,FALSE)="","",VLOOKUP($B14,'Core Criteria'!$C:$V,5,FALSE))) -> In line with current guidance and legislation, the organisation has effective arrangements in place to define and respond to Critical and Major incidents as defined within the EPRR Framework. | G14: =IF($B14="","",IF(VLOOKUP($B14,'Core Criteria'!$C:$V,20,FALSE)="","",VLOOKUP($B14,'Core Criteria'!$C:$V,20,FALSE))) -> Arrangements should be: • current (reviewed in the last 12 months) • in line with current national guidance • in line with risk assessment • tested regularly • signed off by the appropriate mechanism • shared appropriately with those required to use them • outline any equipment requirements • outline any staff training required | H14: Incident Response Plan | I14: Fully compliant
A15: =IF(OR(LEFT($C15,6)="Domain",$I15=LookUp!$A$3,$I15=LookUp!$A$4),MAX('EPRR Core Standards'!A$1:A14)+1,"") -> 7 | B15: =IFERROR(IF(B14+1>MAX('Core Criteria'!$C:$C),"",B14+1),"") -> 14 | C15: =IF($B15="","",IF(VLOOKUP($B15,'Core Criteria'!$C:$V,2,FALSE)="","",VLOOKUP($B15,'Core Criteria'!$C:$V,2,FALSE))) -> 11 | D15: =IF($B15="","",IF(VLOOKUP($B15,'Core Criteria'!$C:$V,3,FALSE)="","",VLOOKUP($B15,'Core Criteria'!$C:$V,3,FALSE))) -> Duty to maintain plans | E15: =IF($B15="","",IF(VLOOKUP($B15,'Core Criteria'!$C:$V,4,FALSE)="","",VLOOKUP($B15,'Core Criteria'!$C:$V,4,FALSE))) -> Adverse Weather | F15: =IF($B15="","",IF(VLOOKUP($B15,'Core Criteria'!$C:$V,5,FALSE)="","",VLOOKUP($B15,'Core Criteria'!$C:$V,5,FALSE))) -> In line with current guidance and legislation, the organisation has effective arrangements in place for adverse weather events. | G15: =IF($B15="","",IF(VLOOKUP($B15,'Core Criteria'!$C:$V,20,FALSE)="","",VLOOKUP($B15,'Core Criteria'!$C:$V,20,FALSE))) -> Arrangements should be: • current • in line with current national UK Health Security Agency (UKHSA) & NHS guidance and Met Office or Environment Agency alerts • in line with risk assessment • tested regularly • signed off by the appropriate mechanism • shared appropriately with those required to use them • outline any equipment requirements • outline any staff training required • reflective of climate change risk assessments • cognisant of extreme events e.g. drought, storms (including dust storms), wildfire. | H15: Adverse Weather Plan. Special leave policy. UKHSA adverse weather plan. West Yorks severe weather plan. | I15: Partially compliant | J15: Comms to provide evidence of cascade process for severe weather alerts | K15: Communications | L15: 2024-12-01
A16: =IF(OR(LEFT($C16,6)="Domain",$I16=LookUp!$A$3,$I16=LookUp!$A$4),MAX('EPRR Core Standards'!A$1:A15)+1,"") -> 8 | B16: =IFERROR(IF(B15+1>MAX('Core Criteria'!$C:$C),"",B15+1),"") -> 15 | C16: =IF($B16="","",IF(VLOOKUP($B16,'Core Criteria'!$C:$V,2,FALSE)="","",VLOOKUP($B16,'Core Criteria'!$C:$V,2,FALSE))) -> 12 | D16: =IF($B16="","",IF(VLOOKUP($B16,'Core Criteria'!$C:$V,3,FALSE)="","",VLOOKUP($B16,'Core Criteria'!$C:$V,3,FALSE))) -> Duty to maintain plans | E16: =IF($B16="","",IF(VLOOKUP($B16,'Core Criteria'!$C:$V,4,FALSE)="","",VLOOKUP($B16,'Core Criteria'!$C:$V,4,FALSE))) -> Infectious disease | F16: =IF($B16="","",IF(VLOOKUP($B16,'Core Criteria'!$C:$V,5,FALSE)="","",VLOOKUP($B16,'Core Criteria'!$C:$V,5,FALSE))) -> In line with current guidance and legislation, the organisation has arrangements in place to respond to an infectious disease outbreak within the organisation or the community it serves, covering a range of diseases including High Consequence Infectious Diseases. | G16: =IF($B16="","",IF(VLOOKUP($B16,'Core Criteria'!$C:$V,20,FALSE)="","",VLOOKUP($B16,'Core Criteria'!$C:$V,20,FALSE))) -> Arrangements should be: • current • in line with current national guidance • in line with risk assessment • tested regularly • signed off by the appropriate mechanism • shared appropriately with those required to use them • outline any equipment requirements • outline any staff training required Acute providers should ensure their arrangements reflect the guidance issued by DHSC in relation to FFP3 Resilience in Acute setting incorporating the FFP3 resilience principles. https://www.england.nhs.uk/coronavirus/secondary-care/infection-control/ppe/ffp3-fit-testing/ffp3-resilience-principles-in-acute-settings/ | H16: Current plan is out of date. | I16: Partially compliant | J16: Local plan to be written alongside Leeds infectious diseases plan. | K16: IPC | L16: 2025-06-01
A17: =IF(OR(LEFT($C17,6)="Domain",$I17=LookUp!$A$3,$I17=LookUp!$A$4),MAX('EPRR Core Standards'!A$1:A16)+1,"") -> 9 | B17: =IFERROR(IF(B16+1>MAX('Core Criteria'!$C:$C),"",B16+1),"") -> 16 | C17: =IF($B17="","",IF(VLOOKUP($B17,'Core Criteria'!$C:$V,2,FALSE)="","",VLOOKUP($B17,'Core Criteria'!$C:$V,2,FALSE))) -> 13 | D17: =IF($B17="","",IF(VLOOKUP($B17,'Core Criteria'!$C:$V,3,FALSE)="","",VLOOKUP($B17,'Core Criteria'!$C:$V,3,FALSE))) -> Duty to maintain plans | E17: =IF($B17="","",IF(VLOOKUP($B17,'Core Criteria'!$C:$V,4,FALSE)="","",VLOOKUP($B17,'Core Criteria'!$C:$V,4,FALSE))) -> New and emerging pandemics | F17: =IF($B17="","",IF(VLOOKUP($B17,'Core Criteria'!$C:$V,5,FALSE)="","",VLOOKUP($B17,'Core Criteria'!$C:$V,5,FALSE))) -> In line with current guidance and legislation and reflecting recent lessons identified, the organisation has arrangements in place to respond to a new and emerging pandemic | G17: =IF($B17="","",IF(VLOOKUP($B17,'Core Criteria'!$C:$V,20,FALSE)="","",VLOOKUP($B17,'Core Criteria'!$C:$V,20,FALSE))) -> Arrangements should be: • current • in line with current national guidance • in line with risk assessment • tested regularly • signed off by the appropriate mechanism • shared appropriately with those required to use them • outline any equipment requirements • outline any staff training required | H17: West Yorks HCID - PPE email. Current plan is out of date. | I17: Partially compliant | J17: First draft plan circulated - need to work with IPC and clinical leads on amendments | K17: EPRR\IPC | L17: 2025-06-01
A18: =IF(OR(LEFT($C18,6)="Domain",$I18=LookUp!$A$3,$I18=LookUp!$A$4),MAX('EPRR Core Standards'!A$1:A17)+1,"") -> 10 | B18: =IFERROR(IF(B17+1>MAX('Core Criteria'!$C:$C),"",B17+1),"") -> 17 | C18: =IF($B18="","",IF(VLOOKUP($B18,'Core Criteria'!$C:$V,2,FALSE)="","",VLOOKUP($B18,'Core Criteria'!$C:$V,2,FALSE))) -> 14 | D18: =IF($B18="","",IF(VLOOKUP($B18,'Core Criteria'!$C:$V,3,FALSE)="","",VLOOKUP($B18,'Core Criteria'!$C:$V,3,FALSE))) -> Duty to maintain plans | E18: =IF($B18="","",IF(VLOOKUP($B18,'Core Criteria'!$C:$V,4,FALSE)="","",VLOOKUP($B18,'Core Criteria'!$C:$V,4,FALSE))) -> Countermeasures | F18: =IF($B18="","",IF(VLOOKUP($B18,'Core Criteria'!$C:$V,5,FALSE)="","",VLOOKUP($B18,'Core Criteria'!$C:$V,5,FALSE))) -> In line with current guidance and legislation, the organisation has arrangements in place to support an incident requiring countermeasures or a mass countermeasure deployment | G18: =IF($B18="","",IF(VLOOKUP($B18,'Core Criteria'!$C:$V,20,FALSE)="","",VLOOKUP($B18,'Core Criteria'!$C:$V,20,FALSE))) -> Arrangements should be: • current • in line with current national guidance • in line with risk assessment • tested regularly • signed off by the appropriate mechanism • shared appropriately with those required to use them • outline any equipment requirements • outline any staff training required Mass Countermeasure arrangements should include arrangements for administration, reception and distribution of mass prophylaxis and mass vaccination. There may be a requirement for Specialist providers, Community Service Providers, Mental Health and Primary Care services to develop or support Mass Countermeasure distribution arrangements. Organisations should have plans to support patients in their care during activation of mass countermeasure arrangements. Commissioners may be required to commission new services to support mass countermeasure distribution locally, this will be dependant on the incident. | H18: Current plan is out of date. | I18: Partially compliant | J18: Trust plan to be produced/ updated alongside Leeds plan. New group formed Sept 24. | K18: IPC | L18: 2024-06-01
A19: =IF(OR(LEFT($C19,6)="Domain",$I19=LookUp!$A$3,$I19=LookUp!$A$4),MAX('EPRR Core Standards'!A$1:A18)+1,"") ->  | B19: =IFERROR(IF(B18+1>MAX('Core Criteria'!$C:$C),"",B18+1),"") -> 18 | C19: =IF($B19="","",IF(VLOOKUP($B19,'Core Criteria'!$C:$V,2,FALSE)="","",VLOOKUP($B19,'Core Criteria'!$C:$V,2,FALSE))) -> 15 | D19: =IF($B19="","",IF(VLOOKUP($B19,'Core Criteria'!$C:$V,3,FALSE)="","",VLOOKUP($B19,'Core Criteria'!$C:$V,3,FALSE))) -> Duty to maintain plans | E19: =IF($B19="","",IF(VLOOKUP($B19,'Core Criteria'!$C:$V,4,FALSE)="","",VLOOKUP($B19,'Core Criteria'!$C:$V,4,FALSE))) -> Mass Casualty | F19: =IF($B19="","",IF(VLOOKUP($B19,'Core Criteria'!$C:$V,5,FALSE)="","",VLOOKUP($B19,'Core Criteria'!$C:$V,5,FALSE))) -> In line with current guidance and legislation, the organisation has effective arrangements in place to respond to incidents with mass casualties. | G19: =IF($B19="","",IF(VLOOKUP($B19,'Core Criteria'!$C:$V,20,FALSE)="","",VLOOKUP($B19,'Core Criteria'!$C:$V,20,FALSE))) -> Arrangements should be: • current • in line with current national guidance • in line with risk assessment • tested regularly • signed off by the appropriate mechanism • shared appropriately with those required to use them • outline any equipment requirements • outline any staff training required Receiving organisations should also include a safe identification system for unidentified patients in an emergency/mass casualty incident where necessary. | H19: ICB Mass Casualty Plan. Mass casualty framework. Mass casualty workstream modelling presentation. LCH On-call Manual | I19: Fully compliant | J19: Additional LCH Annex to be developed outlining LCH responsibilities during mass casualty events. | K19: Service Leads \ EPRR Manager | L19: 2025-02-01
A20: =IF(OR(LEFT($C20,6)="Domain",$I20=LookUp!$A$3,$I20=LookUp!$A$4),MAX('EPRR Core Standards'!A$1:A19)+1,"") -> 11 | B20: =IFERROR(IF(B19+1>MAX('Core Criteria'!$C:$C),"",B19+1),"") -> 19 | C20: =IF($B20="","",IF(VLOOKUP($B20,'Core Criteria'!$C:$V,2,FALSE)="","",VLOOKUP($B20,'Core Criteria'!$C:$V,2,FALSE))) -> 16 | D20: =IF($B20="","",IF(VLOOKUP($B20,'Core Criteria'!$C:$V,3,FALSE)="","",VLOOKUP($B20,'Core Criteria'!$C:$V,3,FALSE))) -> Duty to maintain plans | E20: =IF($B20="","",IF(VLOOKUP($B20,'Core Criteria'!$C:$V,4,FALSE)="","",VLOOKUP($B20,'Core Criteria'!$C:$V,4,FALSE))) -> Evacuation and shelter | F20: =IF($B20="","",IF(VLOOKUP($B20,'Core Criteria'!$C:$V,5,FALSE)="","",VLOOKUP($B20,'Core Criteria'!$C:$V,5,FALSE))) -> In line with current guidance and legislation, the organisation has arrangements in place to evacuate and shelter patients, staff and visitors. | G20: =IF($B20="","",IF(VLOOKUP($B20,'Core Criteria'!$C:$V,20,FALSE)="","",VLOOKUP($B20,'Core Criteria'!$C:$V,20,FALSE))) -> Arrangements should be: • current • in line with current national guidance • in line with risk assessment • tested regularly • signed off by the appropriate mechanism • shared appropriately with those required to use them • outline any equipment requirements • outline any staff training required | H20: Draft document prepared. MOU tobe agreed with LTHT | I20: Partially compliant | J20: Final draft to be produced (action cards), circulated and approved. Discussions around MOU. | K20: EPRR Manager | L20: 2024-11-01
A21: =IF(OR(LEFT($C21,6)="Domain",$I21=LookUp!$A$3,$I21=LookUp!$A$4),MAX('EPRR Core Standards'!A$1:A20)+1,"") -> 12 | B21: =IFERROR(IF(B20+1>MAX('Core Criteria'!$C:$C),"",B20+1),"") -> 20 | C21: =IF($B21="","",IF(VLOOKUP($B21,'Core Criteria'!$C:$V,2,FALSE)="","",VLOOKUP($B21,'Core Criteria'!$C:$V,2,FALSE))) -> 17 | D21: =IF($B21="","",IF(VLOOKUP($B21,'Core Criteria'!$C:$V,3,FALSE)="","",VLOOKUP($B21,'Core Criteria'!$C:$V,3,FALSE))) -> Duty to maintain plans | E21: =IF($B21="","",IF(VLOOKUP($B21,'Core Criteria'!$C:$V,4,FALSE)="","",VLOOKUP($B21,'Core Criteria'!$C:$V,4,FALSE))) -> Lockdown | F21: =IF($B21="","",IF(VLOOKUP($B21,'Core Criteria'!$C:$V,5,FALSE)="","",VLOOKUP($B21,'Core Criteria'!$C:$V,5,FALSE))) -> In line with current guidance, regulation and legislation, the organisation has arrangements in place to control access and egress for patients, staff and visitors to and from the organisation's premises and key assets in an incident. | G21: =IF($B21="","",IF(VLOOKUP($B21,'Core Criteria'!$C:$V,20,FALSE)="","",VLOOKUP($B21,'Core Criteria'!$C:$V,20,FALSE))) -> Arrangements should be: • current • in line with current national guidance • in line with risk assessment • tested regularly • signed off by the appropriate mechanism • shared appropriately with those required to use them • outline any equipment requirements • outline any staff training required | H21: Draft lockdown plan. Draft security policy. | I21: Partially compliant | J21: Clarification on responder roles to be agreed - paper to Trust Leadership Team. Site risk assessments/ profiles to be completed. | K21: EPRR Facilities | L21: 2025-03-01
A22: =IF(OR(LEFT($C22,6)="Domain",$I22=LookUp!$A$3,$I22=LookUp!$A$4),MAX('EPRR Core Standards'!A$1:A21)+1,"") -> 13 | B22: =IFERROR(IF(B21+1>MAX('Core Criteria'!$C:$C),"",B21+1),"") -> 21 | C22: =IF($B22="","",IF(VLOOKUP($B22,'Core Criteria'!$C:$V,2,FALSE)="","",VLOOKUP($B22,'Core Criteria'!$C:$V,2,FALSE))) -> 18 | D22: =IF($B22="","",IF(VLOOKUP($B22,'Core Criteria'!$C:$V,3,FALSE)="","",VLOOKUP($B22,'Core Criteria'!$C:$V,3,FALSE))) -> Duty to maintain plans | E22: =IF($B22="","",IF(VLOOKUP($B22,'Core Criteria'!$C:$V,4,FALSE)="","",VLOOKUP($B22,'Core Criteria'!$C:$V,4,FALSE))) -> Protected individuals | F22: =IF($B22="","",IF(VLOOKUP($B22,'Core Criteria'!$C:$V,5,FALSE)="","",VLOOKUP($B22,'Core Criteria'!$C:$V,5,FALSE))) -> In line with current guidance and legislation, the organisation has arrangements in place to respond and manage 'protected individuals' including Very Important Persons (VIPs),high profile patients and visitors to the site. | G22: =IF($B22="","",IF(VLOOKUP($B22,'Core Criteria'!$C:$V,20,FALSE)="","",VLOOKUP($B22,'Core Criteria'!$C:$V,20,FALSE))) -> Arrangements should be: • current • in line with current national guidance • in line with risk assessment • tested regularly • signed off by the appropriate mechanism • shared appropriately with those required to use them • outline any equipment requirements • outline any staff training required | H22: Protected individual plan. | I22: Partially compliant | J22: Existing plan to be updated | K22: Communications | L22: 2024-10-01
A23: =IF(OR(LEFT($C23,6)="Domain",$I23=LookUp!$A$3,$I23=LookUp!$A$4),MAX('EPRR Core Standards'!A$1:A22)+1,"") ->  | B23: =IFERROR(IF(B22+1>MAX('Core Criteria'!$C:$C),"",B22+1),"") -> 22 | C23: =IF($B23="","",IF(VLOOKUP($B23,'Core Criteria'!$C:$V,2,FALSE)="","",VLOOKUP($B23,'Core Criteria'!$C:$V,2,FALSE))) -> 19 | D23: =IF($B23="","",IF(VLOOKUP($B23,'Core Criteria'!$C:$V,3,FALSE)="","",VLOOKUP($B23,'Core Criteria'!$C:$V,3,FALSE))) -> Duty to maintain plans | E23: =IF($B23="","",IF(VLOOKUP($B23,'Core Criteria'!$C:$V,4,FALSE)="","",VLOOKUP($B23,'Core Criteria'!$C:$V,4,FALSE))) -> Excess fatalities | F23: =IF($B23="","",IF(VLOOKUP($B23,'Core Criteria'!$C:$V,5,FALSE)="","",VLOOKUP($B23,'Core Criteria'!$C:$V,5,FALSE))) -> The organisation has contributed to, and understands, its role in the multiagency arrangements for excess deaths and mass fatalities, including mortuary arrangements. This includes arrangements for rising tide and sudden onset events. | G23: =IF($B23="","",IF(VLOOKUP($B23,'Core Criteria'!$C:$V,20,FALSE)="","",VLOOKUP($B23,'Core Criteria'!$C:$V,20,FALSE))) -> Arrangements should be: • current • in line with current national guidance in line with DVI processes • in line with risk assessment • tested regularly • signed off by the appropriate mechanism • shared appropriately with those required to use them • outline any equipment requirements • outline any staff training required | H23: WYRF Excess Deaths Plan (V2) WYRF Mass Fatalities Plan (V7.9) FINAL LCH On-call Manual | I23: Fully compliant
A24: =IF(OR(LEFT($C24,6)="Domain",$I24=LookUp!$A$3,$I24=LookUp!$A$4),MAX('EPRR Core Standards'!A$1:A23)+1,"") -> 14 | B24: =IFERROR(IF(B23+1>MAX('Core Criteria'!$C:$C),"",B23+1),"") -> 23 | C24: =IF($B24="","",IF(VLOOKUP($B24,'Core Criteria'!$C:$V,2,FALSE)="","",VLOOKUP($B24,'Core Criteria'!$C:$V,2,FALSE))) -> Domain 4 - Command and control | D24: =IF($B24="","",IF(VLOOKUP($B24,'Core Criteria'!$C:$V,3,FALSE)="","",VLOOKUP($B24,'Core Criteria'!$C:$V,3,FALSE))) ->  | E24: =IF($B24="","",IF(VLOOKUP($B24,'Core Criteria'!$C:$V,4,FALSE)="","",VLOOKUP($B24,'Core Criteria'!$C:$V,4,FALSE))) ->  | F24: =IF($B24="","",IF(VLOOKUP($B24,'Core Criteria'!$C:$V,5,FALSE)="","",VLOOKUP($B24,'Core Criteria'!$C:$V,5,FALSE))) ->  | G24: =IF($B24="","",IF(VLOOKUP($B24,'Core Criteria'!$C:$V,20,FALSE)="","",VLOOKUP($B24,'Core Criteria'!$C:$V,20,FALSE))) -> 
A25: =IF(OR(LEFT($C25,6)="Domain",$I25=LookUp!$A$3,$I25=LookUp!$A$4),MAX('EPRR Core Standards'!A$1:A24)+1,"") ->  | B25: =IFERROR(IF(B24+1>MAX('Core Criteria'!$C:$C),"",B24+1),"") -> 24 | C25: =IF($B25="","",IF(VLOOKUP($B25,'Core Criteria'!$C:$V,2,FALSE)="","",VLOOKUP($B25,'Core Criteria'!$C:$V,2,FALSE))) -> 20 | D25: =IF($B25="","",IF(VLOOKUP($B25,'Core Criteria'!$C:$V,3,FALSE)="","",VLOOKUP($B25,'Core Criteria'!$C:$V,3,FALSE))) -> Command and control | E25: =IF($B25="","",IF(VLOOKUP($B25,'Core Criteria'!$C:$V,4,FALSE)="","",VLOOKUP($B25,'Core Criteria'!$C:$V,4,FALSE))) -> On-call mechanism | F25: =IF($B25="","",IF(VLOOKUP($B25,'Core Criteria'!$C:$V,5,FALSE)="","",VLOOKUP($B25,'Core Criteria'!$C:$V,5,FALSE))) -> The organisation has resilient and dedicated mechanisms and structures to enable 24/7 receipt and action of incident notifications, internal or external. This should provide the facility to respond to or escalate notifications to an executive level. | G25: =IF($B25="","",IF(VLOOKUP($B25,'Core Criteria'!$C:$V,20,FALSE)="","",VLOOKUP($B25,'Core Criteria'!$C:$V,20,FALSE))) -> • Process explicitly described within the EPRR policy statement • On call Standards and expectations are set out • Add on call processes/handbook available to staff on call • Include 24 hour arrangements for alerting managers and other key staff. • CSUs where they are delivering OOHs business critical services for providers and commissioners | H25: EPRR policy. On call manual. 24 hour - on call rota and log. | I25: Fully compliant
A26: =IF(OR(LEFT($C26,6)="Domain",$I26=LookUp!$A$3,$I26=LookUp!$A$4),MAX('EPRR Core Standards'!A$1:A25)+1,"") ->  | B26: =IFERROR(IF(B25+1>MAX('Core Criteria'!$C:$C),"",B25+1),"") -> 25 | C26: =IF($B26="","",IF(VLOOKUP($B26,'Core Criteria'!$C:$V,2,FALSE)="","",VLOOKUP($B26,'Core Criteria'!$C:$V,2,FALSE))) -> 21 | D26: =IF($B26="","",IF(VLOOKUP($B26,'Core Criteria'!$C:$V,3,FALSE)="","",VLOOKUP($B26,'Core Criteria'!$C:$V,3,FALSE))) -> Command and control | E26: =IF($B26="","",IF(VLOOKUP($B26,'Core Criteria'!$C:$V,4,FALSE)="","",VLOOKUP($B26,'Core Criteria'!$C:$V,4,FALSE))) -> Trained on-call staff | F26: =IF($B26="","",IF(VLOOKUP($B26,'Core Criteria'!$C:$V,5,FALSE)="","",VLOOKUP($B26,'Core Criteria'!$C:$V,5,FALSE))) -> Trained and up to date staff are available 24/7 to manage escalations, make decisions and identify key actions | G26: =IF($B26="","",IF(VLOOKUP($B26,'Core Criteria'!$C:$V,20,FALSE)="","",VLOOKUP($B26,'Core Criteria'!$C:$V,20,FALSE))) -> • Process explicitly described within the EPRR policy or statement of intent The identified individual: • Should be trained according to the NHS England EPRR competencies (National Minimum Occupational Standards) • Has a specific process to adopt during the decision making • Is aware who should be consulted and informed during decision making • Should ensure appropriate records are maintained throughout. • Trained in accordance with the TNA identified frequency. | H26: On call training resources/ sheets. 2nd on call have done strategic/ tactical (100%). Top 10 tips for on call managers. | I26: Fully compliant
A27: =IF(OR(LEFT($C27,6)="Domain",$I27=LookUp!$A$3,$I27=LookUp!$A$4),MAX('EPRR Core Standards'!A$1:A26)+1,"") -> 15 | B27: =IFERROR(IF(B26+1>MAX('Core Criteria'!$C:$C),"",B26+1),"") -> 26 | C27: =IF($B27="","",IF(VLOOKUP($B27,'Core Criteria'!$C:$V,2,FALSE)="","",VLOOKUP($B27,'Core Criteria'!$C:$V,2,FALSE))) -> Domain 5 - Training and exercising | D27: =IF($B27="","",IF(VLOOKUP($B27,'Core Criteria'!$C:$V,3,FALSE)="","",VLOOKUP($B27,'Core Criteria'!$C:$V,3,FALSE))) ->  | E27: =IF($B27="","",IF(VLOOKUP($B27,'Core Criteria'!$C:$V,4,FALSE)="","",VLOOKUP($B27,'Core Criteria'!$C:$V,4,FALSE))) ->  | F27: =IF($B27="","",IF(VLOOKUP($B27,'Core Criteria'!$C:$V,5,FALSE)="","",VLOOKUP($B27,'Core Criteria'!$C:$V,5,FALSE))) ->  | G27: =IF($B27="","",IF(VLOOKUP($B27,'Core Criteria'!$C:$V,20,FALSE)="","",VLOOKUP($B27,'Core Criteria'!$C:$V,20,FALSE))) -> 
A28: =IF(OR(LEFT($C28,6)="Domain",$I28=LookUp!$A$3,$I28=LookUp!$A$4),MAX('EPRR Core Standards'!A$1:A27)+1,"") -> 16 | B28: =IFERROR(IF(B27+1>MAX('Core Criteria'!$C:$C),"",B27+1),"") -> 27 | C28: =IF($B28="","",IF(VLOOKUP($B28,'Core Criteria'!$C:$V,2,FALSE)="","",VLOOKUP($B28,'Core Criteria'!$C:$V,2,FALSE))) -> 22 | D28: =IF($B28="","",IF(VLOOKUP($B28,'Core Criteria'!$C:$V,3,FALSE)="","",VLOOKUP($B28,'Core Criteria'!$C:$V,3,FALSE))) -> Training and exercising | E28: =IF($B28="","",IF(VLOOKUP($B28,'Core Criteria'!$C:$V,4,FALSE)="","",VLOOKUP($B28,'Core Criteria'!$C:$V,4,FALSE))) -> EPRR Training | F28: =IF($B28="","",IF(VLOOKUP($B28,'Core Criteria'!$C:$V,5,FALSE)="","",VLOOKUP($B28,'Core Criteria'!$C:$V,5,FALSE))) -> The organisation carries out training in line with a training needs analysis to ensure staff are current in their response role. | G28: =IF($B28="","",IF(VLOOKUP($B28,'Core Criteria'!$C:$V,20,FALSE)="","",VLOOKUP($B28,'Core Criteria'!$C:$V,20,FALSE))) -> Evidence • Process explicitly described within the EPRR policy or statement of intent • Evidence of a training needs analysis • Training records for all staff on call and those performing a role within the ICC • Training materials • Evidence of personal training and exercising portfolios for key staff | H28: EPRR policy. Training spreadsheet. | I28: Partially compliant | J28: LCH to review and adapt WY ICB TNA. Clarification sought on scope of responder training in the Trust, the methodology around offering/ capturing training events, the review of portfolios, how competences can be tested and the general availability of training. | K28: AEO | L28: 2025-02-01
A29: =IF(OR(LEFT($C29,6)="Domain",$I29=LookUp!$A$3,$I29=LookUp!$A$4),MAX('EPRR Core Standards'!A$1:A28)+1,"") -> 17 | B29: =IFERROR(IF(B28+1>MAX('Core Criteria'!$C:$C),"",B28+1),"") -> 28 | C29: =IF($B29="","",IF(VLOOKUP($B29,'Core Criteria'!$C:$V,2,FALSE)="","",VLOOKUP($B29,'Core Criteria'!$C:$V,2,FALSE))) -> 23 | D29: =IF($B29="","",IF(VLOOKUP($B29,'Core Criteria'!$C:$V,3,FALSE)="","",VLOOKUP($B29,'Core Criteria'!$C:$V,3,FALSE))) -> Training and exercising | E29: =IF($B29="","",IF(VLOOKUP($B29,'Core Criteria'!$C:$V,4,FALSE)="","",VLOOKUP($B29,'Core Criteria'!$C:$V,4,FALSE))) -> EPRR exercising and testing programme | F29: =IF($B29="","",IF(VLOOKUP($B29,'Core Criteria'!$C:$V,5,FALSE)="","",VLOOKUP($B29,'Core Criteria'!$C:$V,5,FALSE))) -> In accordance with the minimum requirements, in line with current guidance, the organisation has an exercising and testing programme to safely* test incident response arrangements, (*no undue risk to exercise players or participants, or those patients in your care) | G29: =IF($B29="","",IF(VLOOKUP($B29,'Core Criteria'!$C:$V,20,FALSE)="","",VLOOKUP($B29,'Core Criteria'!$C:$V,20,FALSE))) -> Organisations should meet the following exercising and testing requirements: • a six-monthly communications test • annual table top exercise • live exercise at least once every three years • command post exercise every three years. The exercising programme must: • identify exercises relevant to local risks • meet the needs of the organisation type and stakeholders • ensure warning and informing arrangements are effective. Lessons identified must be captured, recorded and acted upon as part of continuous improvement. Evidence • Exercising Schedule which includes as a minimum one Business Continuity exercise • Post exercise reports and embedding learning | H29: Communications Exercises Annual Trust Exercise Incident Response Plan. NHS England 3 year testing programme. EPRR policy. | I29: Partially compliant | J29: Establish learning and exercising Group Write Terms of Reference Develop testing programme | K29: EPRR Manager | L29: 2025-01-01
A30: =IF(OR(LEFT($C30,6)="Domain",$I30=LookUp!$A$3,$I30=LookUp!$A$4),MAX('EPRR Core Standards'!A$1:A29)+1,"") -> 18 | B30: =IFERROR(IF(B29+1>MAX('Core Criteria'!$C:$C),"",B29+1),"") -> 29 | C30: =IF($B30="","",IF(VLOOKUP($B30,'Core Criteria'!$C:$V,2,FALSE)="","",VLOOKUP($B30,'Core Criteria'!$C:$V,2,FALSE))) -> 24 | D30: =IF($B30="","",IF(VLOOKUP($B30,'Core Criteria'!$C:$V,3,FALSE)="","",VLOOKUP($B30,'Core Criteria'!$C:$V,3,FALSE))) -> Training and exercising | E30: =IF($B30="","",IF(VLOOKUP($B30,'Core Criteria'!$C:$V,4,FALSE)="","",VLOOKUP($B30,'Core Criteria'!$C:$V,4,FALSE))) -> Responder training | F30: =IF($B30="","",IF(VLOOKUP($B30,'Core Criteria'!$C:$V,5,FALSE)="","",VLOOKUP($B30,'Core Criteria'!$C:$V,5,FALSE))) -> The organisation has the ability to maintain training records and exercise attendance of all staff with key roles for response in accordance with the Minimum Occupational Standards. Individual responders and key decision makers should be supported to maintain a continuous personal development portfolio including involvement in exercising and incident response as well as any training undertaken to fulfil their role | G30: =IF($B30="","",IF(VLOOKUP($B30,'Core Criteria'!$C:$V,20,FALSE)="","",VLOOKUP($B30,'Core Criteria'!$C:$V,20,FALSE))) -> Evidence • Training records • Evidence of personal training and exercising portfolios for key staff | H30: Responder training record | I30: Partially compliant | J30: Clarification sought on scope of responder training in the Trust, the methodology around offering/ capturing training events, the review of portfoilios, how competences can be tested and the general availability of training. | K30: AEO | L30: 2025-02-01
A31: =IF(OR(LEFT($C31,6)="Domain",$I31=LookUp!$A$3,$I31=LookUp!$A$4),MAX('EPRR Core Standards'!A$1:A30)+1,"") -> 19 | B31: =IFERROR(IF(B30+1>MAX('Core Criteria'!$C:$C),"",B30+1),"") -> 30 | C31: =IF($B31="","",IF(VLOOKUP($B31,'Core Criteria'!$C:$V,2,FALSE)="","",VLOOKUP($B31,'Core Criteria'!$C:$V,2,FALSE))) -> 25 | D31: =IF($B31="","",IF(VLOOKUP($B31,'Core Criteria'!$C:$V,3,FALSE)="","",VLOOKUP($B31,'Core Criteria'!$C:$V,3,FALSE))) -> Training and exercising | E31: =IF($B31="","",IF(VLOOKUP($B31,'Core Criteria'!$C:$V,4,FALSE)="","",VLOOKUP($B31,'Core Criteria'!$C:$V,4,FALSE))) -> Staff Awareness & Training | F31: =IF($B31="","",IF(VLOOKUP($B31,'Core Criteria'!$C:$V,5,FALSE)="","",VLOOKUP($B31,'Core Criteria'!$C:$V,5,FALSE))) -> There are mechanisms in place to ensure staff are aware of their role in an incident and where to find plans relevant to their area of work or department. | G31: =IF($B31="","",IF(VLOOKUP($B31,'Core Criteria'!$C:$V,20,FALSE)="","",VLOOKUP($B31,'Core Criteria'!$C:$V,20,FALSE))) -> As part of mandatory training Exercise and Training attendance records reported to Board | H31: Business continuity plans. | I31: Partially compliant | J31: Yorkshire and Humber Community and Mental Health group reviewing this standard. | K31: EPRR Manager | L31: 2025-02-01
A32: =IF(OR(LEFT($C32,6)="Domain",$I32=LookUp!$A$3,$I32=LookUp!$A$4),MAX('EPRR Core Standards'!A$1:A31)+1,"") -> 20 | B32: =IFERROR(IF(B31+1>MAX('Core Criteria'!$C:$C),"",B31+1),"") -> 31 | C32: =IF($B32="","",IF(VLOOKUP($B32,'Core Criteria'!$C:$V,2,FALSE)="","",VLOOKUP($B32,'Core Criteria'!$C:$V,2,FALSE))) -> Domain 6 - Response | D32: =IF($B32="","",IF(VLOOKUP($B32,'Core Criteria'!$C:$V,3,FALSE)="","",VLOOKUP($B32,'Core Criteria'!$C:$V,3,FALSE))) ->  | E32: =IF($B32="","",IF(VLOOKUP($B32,'Core Criteria'!$C:$V,4,FALSE)="","",VLOOKUP($B32,'Core Criteria'!$C:$V,4,FALSE))) ->  | F32: =IF($B32="","",IF(VLOOKUP($B32,'Core Criteria'!$C:$V,5,FALSE)="","",VLOOKUP($B32,'Core Criteria'!$C:$V,5,FALSE))) ->  | G32: =IF($B32="","",IF(VLOOKUP($B32,'Core Criteria'!$C:$V,20,FALSE)="","",VLOOKUP($B32,'Core Criteria'!$C:$V,20,FALSE))) -> 
A33: =IF(OR(LEFT($C33,6)="Domain",$I33=LookUp!$A$3,$I33=LookUp!$A$4),MAX('EPRR Core Standards'!A$1:A32)+1,"") ->  | B33: =IFERROR(IF(B32+1>MAX('Core Criteria'!$C:$C),"",B32+1),"") -> 32 | C33: =IF($B33="","",IF(VLOOKUP($B33,'Core Criteria'!$C:$V,2,FALSE)="","",VLOOKUP($B33,'Core Criteria'!$C:$V,2,FALSE))) -> 26 | D33: =IF($B33="","",IF(VLOOKUP($B33,'Core Criteria'!$C:$V,3,FALSE)="","",VLOOKUP($B33,'Core Criteria'!$C:$V,3,FALSE))) -> Response | E33: =IF($B33="","",IF(VLOOKUP($B33,'Core Criteria'!$C:$V,4,FALSE)="","",VLOOKUP($B33,'Core Criteria'!$C:$V,4,FALSE))) -> Incident Co-ordination Centre (ICC) | F33: =IF($B33="","",IF(VLOOKUP($B33,'Core Criteria'!$C:$V,5,FALSE)="","",VLOOKUP($B33,'Core Criteria'!$C:$V,5,FALSE))) -> The organisation has in place suitable and sufficient arrangements to effectively coordinate the response to an incident in line with national guidance. ICC arrangements need to be flexible and scalable to cope with a range of incidents and hours of operation required. An ICC must have dedicated business continuity arrangements in place and must be resilient to loss of utilities, including telecommunications, and to external hazards. ICC equipment should be tested in line with national guidance or after a major infrastructure change to ensure functionality and in a state of organisational readiness. Arrangements should be supported with access to documentation for its activation and operation. | G33: =IF($B33="","",IF(VLOOKUP($B33,'Core Criteria'!$C:$V,20,FALSE)="","",VLOOKUP($B33,'Core Criteria'!$C:$V,20,FALSE))) -> • Documented processes for identifying the location and establishing an ICC • Maps and diagrams • A testing schedule • A training schedule • Pre identified roles and responsibilities, with action cards • Demonstration ICC location is resilient to loss of utilities, including telecommunications, and external hazards • Arrangements might include virtual arrangements in addition to physical facilities but must be resilient with alternative contingency solutions. | H33: Incident Response Plan. On call manual. | I33: Fully compliant | J33: Incident response plan covers all areas - including backup ECC. Plan tested 02/10/24
A34: =IF(OR(LEFT($C34,6)="Domain",$I34=LookUp!$A$3,$I34=LookUp!$A$4),MAX('EPRR Core Standards'!A$1:A33)+1,"") -> 21 | B34: =IFERROR(IF(B33+1>MAX('Core Criteria'!$C:$C),"",B33+1),"") -> 33 | C34: =IF($B34="","",IF(VLOOKUP($B34,'Core Criteria'!$C:$V,2,FALSE)="","",VLOOKUP($B34,'Core Criteria'!$C:$V,2,FALSE))) -> 27 | D34: =IF($B34="","",IF(VLOOKUP($B34,'Core Criteria'!$C:$V,3,FALSE)="","",VLOOKUP($B34,'Core Criteria'!$C:$V,3,FALSE))) -> Response | E34: =IF($B34="","",IF(VLOOKUP($B34,'Core Criteria'!$C:$V,4,FALSE)="","",VLOOKUP($B34,'Core Criteria'!$C:$V,4,FALSE))) -> Access to planning arrangements | F34: =IF($B34="","",IF(VLOOKUP($B34,'Core Criteria'!$C:$V,5,FALSE)="","",VLOOKUP($B34,'Core Criteria'!$C:$V,5,FALSE))) -> Version controlled current response documents are available to relevant staff at all times. Staff should be aware of where they are stored and should be easily accessible. | G34: =IF($B34="","",IF(VLOOKUP($B34,'Core Criteria'!$C:$V,20,FALSE)="","",VLOOKUP($B34,'Core Criteria'!$C:$V,20,FALSE))) -> Planning arrangements are easily accessible - both electronically and local copies | H34: EPRR library - digital and hard copy. Incident response plans. | I34: Partially compliant | J34: Hard copies to be made available. Sequential numbering to be put in place. | K34: EPRR Manager | L34: TBC
A35: =IF(OR(LEFT($C35,6)="Domain",$I35=LookUp!$A$3,$I35=LookUp!$A$4),MAX('EPRR Core Standards'!A$1:A34)+1,"") ->  | B35: =IFERROR(IF(B34+1>MAX('Core Criteria'!$C:$C),"",B34+1),"") -> 34 | C35: =IF($B35="","",IF(VLOOKUP($B35,'Core Criteria'!$C:$V,2,FALSE)="","",VLOOKUP($B35,'Core Criteria'!$C:$V,2,FALSE))) -> 28 | D35: =IF($B35="","",IF(VLOOKUP($B35,'Core Criteria'!$C:$V,3,FALSE)="","",VLOOKUP($B35,'Core Criteria'!$C:$V,3,FALSE))) -> Response | E35: =IF($B35="","",IF(VLOOKUP($B35,'Core Criteria'!$C:$V,4,FALSE)="","",VLOOKUP($B35,'Core Criteria'!$C:$V,4,FALSE))) -> Management of business continuity incidents | F35: =IF($B35="","",IF(VLOOKUP($B35,'Core Criteria'!$C:$V,5,FALSE)="","",VLOOKUP($B35,'Core Criteria'!$C:$V,5,FALSE))) -> In line with current guidance and legislation, the organisation has effective arrangements in place to respond to a business continuity incident (as defined within the EPRR Framework). | G35: =IF($B35="","",IF(VLOOKUP($B35,'Core Criteria'!$C:$V,20,FALSE)="","",VLOOKUP($B35,'Core Criteria'!$C:$V,20,FALSE))) -> • Business Continuity Response plans • Arrangements in place that mitigate escalation to business continuity incident • Escalation processes | H35: All services have a BCP. Draft BCP policy. | I35: Fully compliant
A36: =IF(OR(LEFT($C36,6)="Domain",$I36=LookUp!$A$3,$I36=LookUp!$A$4),MAX('EPRR Core Standards'!A$1:A35)+1,"") -> 22 | B36: =IFERROR(IF(B35+1>MAX('Core Criteria'!$C:$C),"",B35+1),"") -> 35 | C36: =IF($B36="","",IF(VLOOKUP($B36,'Core Criteria'!$C:$V,2,FALSE)="","",VLOOKUP($B36,'Core Criteria'!$C:$V,2,FALSE))) -> 29 | D36: =IF($B36="","",IF(VLOOKUP($B36,'Core Criteria'!$C:$V,3,FALSE)="","",VLOOKUP($B36,'Core Criteria'!$C:$V,3,FALSE))) -> Response | E36: =IF($B36="","",IF(VLOOKUP($B36,'Core Criteria'!$C:$V,4,FALSE)="","",VLOOKUP($B36,'Core Criteria'!$C:$V,4,FALSE))) -> Decision Logging | F36: =IF($B36="","",IF(VLOOKUP($B36,'Core Criteria'!$C:$V,5,FALSE)="","",VLOOKUP($B36,'Core Criteria'!$C:$V,5,FALSE))) -> To ensure decisions are recorded during business continuity, critical and major incidents, the organisation must ensure: 1. Key response staff are aware of the need for creating their own personal records and decision logs to the required standards and storing them in accordance with the organisations' records management policy. 2. has 24 hour access to a trained loggist(s) to ensure support to the decision maker | G36: =IF($B36="","",IF(VLOOKUP($B36,'Core Criteria'!$C:$V,20,FALSE)="","",VLOOKUP($B36,'Core Criteria'!$C:$V,20,FALSE))) -> • Documented processes for accessing and utilising loggists • Training records | H36: Incident response plans. Loggist not 24 hour, but 1st on call carry out that role. | I36: Partially compliant | J36: Check the loggist list. Paper on reimbursement/ honorarium for out of hours loggists. | K36: EPRR Manager/ Ops support manager | L36: 2024-11-01
A37: =IF(OR(LEFT($C37,6)="Domain",$I37=LookUp!$A$3,$I37=LookUp!$A$4),MAX('EPRR Core Standards'!A$1:A36)+1,"") ->  | B37: =IFERROR(IF(B36+1>MAX('Core Criteria'!$C:$C),"",B36+1),"") -> 36 | C37: =IF($B37="","",IF(VLOOKUP($B37,'Core Criteria'!$C:$V,2,FALSE)="","",VLOOKUP($B37,'Core Criteria'!$C:$V,2,FALSE))) -> 30 | D37: =IF($B37="","",IF(VLOOKUP($B37,'Core Criteria'!$C:$V,3,FALSE)="","",VLOOKUP($B37,'Core Criteria'!$C:$V,3,FALSE))) -> Response | E37: =IF($B37="","",IF(VLOOKUP($B37,'Core Criteria'!$C:$V,4,FALSE)="","",VLOOKUP($B37,'Core Criteria'!$C:$V,4,FALSE))) -> Situation Reports | F37: =IF($B37="","",IF(VLOOKUP($B37,'Core Criteria'!$C:$V,5,FALSE)="","",VLOOKUP($B37,'Core Criteria'!$C:$V,5,FALSE))) -> The organisation has processes in place for receiving, completing, authorising and submitting situation reports (SitReps) and briefings during the response to incidents including bespoke or incident dependent formats. | G37: =IF($B37="","",IF(VLOOKUP($B37,'Core Criteria'!$C:$V,20,FALSE)="","",VLOOKUP($B37,'Core Criteria'!$C:$V,20,FALSE))) -> • Documented processes for completing, quality assuring, signing off and submitting SitReps • Evidence of testing and exercising • The organisation has access to the standard SitRep Template | H37: National Sitrep template Incident Response Plan | I37: Fully compliant
A38: =IF(OR(LEFT($C38,6)="Domain",$I38=LookUp!$A$3,$I38=LookUp!$A$4),MAX('EPRR Core Standards'!A$1:A37)+1,"") -> 23 | B38: =IFERROR(IF(B37+1>MAX('Core Criteria'!$C:$C),"",B37+1),"") -> 37 | C38: =IF($B38="","",IF(VLOOKUP($B38,'Core Criteria'!$C:$V,2,FALSE)="","",VLOOKUP($B38,'Core Criteria'!$C:$V,2,FALSE))) -> Domain 7 - Warning and informing | D38: =IF($B38="","",IF(VLOOKUP($B38,'Core Criteria'!$C:$V,3,FALSE)="","",VLOOKUP($B38,'Core Criteria'!$C:$V,3,FALSE))) ->  | E38: =IF($B38="","",IF(VLOOKUP($B38,'Core Criteria'!$C:$V,4,FALSE)="","",VLOOKUP($B38,'Core Criteria'!$C:$V,4,FALSE))) ->  | F38: =IF($B38="","",IF(VLOOKUP($B38,'Core Criteria'!$C:$V,5,FALSE)="","",VLOOKUP($B38,'Core Criteria'!$C:$V,5,FALSE))) ->  | G38: =IF($B38="","",IF(VLOOKUP($B38,'Core Criteria'!$C:$V,20,FALSE)="","",VLOOKUP($B38,'Core Criteria'!$C:$V,20,FALSE))) -> 
A39: =IF(OR(LEFT($C39,6)="Domain",$I39=LookUp!$A$3,$I39=LookUp!$A$4),MAX('EPRR Core Standards'!A$1:A38)+1,"") -> 24 | B39: =IFERROR(IF(B38+1>MAX('Core Criteria'!$C:$C),"",B38+1),"") -> 38 | C39: =IF($B39="","",IF(VLOOKUP($B39,'Core Criteria'!$C:$V,2,FALSE)="","",VLOOKUP($B39,'Core Criteria'!$C:$V,2,FALSE))) -> 33 | D39: =IF($B39="","",IF(VLOOKUP($B39,'Core Criteria'!$C:$V,3,FALSE)="","",VLOOKUP($B39,'Core Criteria'!$C:$V,3,FALSE))) -> Warning and informing | E39: =IF($B39="","",IF(VLOOKUP($B39,'Core Criteria'!$C:$V,4,FALSE)="","",VLOOKUP($B39,'Core Criteria'!$C:$V,4,FALSE))) -> Warning and informing | F39: =IF($B39="","",IF(VLOOKUP($B39,'Core Criteria'!$C:$V,5,FALSE)="","",VLOOKUP($B39,'Core Criteria'!$C:$V,5,FALSE))) -> The organisation aligns communications planning and activity with the organisation’s EPRR planning and activity. | G39: =IF($B39="","",IF(VLOOKUP($B39,'Core Criteria'!$C:$V,20,FALSE)="","",VLOOKUP($B39,'Core Criteria'!$C:$V,20,FALSE))) -> • Awareness within communications team of the organisation’s EPRR plan, and how to report potential incidents. • Measures are in place to ensure incidents are appropriately described and declared in line with the NHS EPRR Framework. • Out of hours communication system (24/7, year-round) is in place to allow access to trained comms support for senior leaders during an incident. This should include on call arrangements. • Having a process for being able to log incoming requests, track responses to these requests and to ensure that information related to incidents is stored effectively. This will allow organisations to provide evidence should it be required for an inquiry. | H39: EPRR policy. On call manual covers out of hours communication arrangements. | I39: Partially compliant | J39: Update comms pack to include a formal warning plan. | K39: Communications | L39: 2025-03-01
A40: =IF(OR(LEFT($C40,6)="Domain",$I40=LookUp!$A$3,$I40=LookUp!$A$4),MAX('EPRR Core Standards'!A$1:A39)+1,"") -> 25 | B40: =IFERROR(IF(B39+1>MAX('Core Criteria'!$C:$C),"",B39+1),"") -> 39 | C40: =IF($B40="","",IF(VLOOKUP($B40,'Core Criteria'!$C:$V,2,FALSE)="","",VLOOKUP($B40,'Core Criteria'!$C:$V,2,FALSE))) -> 34 | D40: =IF($B40="","",IF(VLOOKUP($B40,'Core Criteria'!$C:$V,3,FALSE)="","",VLOOKUP($B40,'Core Criteria'!$C:$V,3,FALSE))) -> Warning and informing | E40: =IF($B40="","",IF(VLOOKUP($B40,'Core Criteria'!$C:$V,4,FALSE)="","",VLOOKUP($B40,'Core Criteria'!$C:$V,4,FALSE))) -> Incident Communication Plan | F40: =IF($B40="","",IF(VLOOKUP($B40,'Core Criteria'!$C:$V,5,FALSE)="","",VLOOKUP($B40,'Core Criteria'!$C:$V,5,FALSE))) -> The organisation has a plan in place for communicating during an incident which can be enacted. | G40: =IF($B40="","",IF(VLOOKUP($B40,'Core Criteria'!$C:$V,20,FALSE)="","",VLOOKUP($B40,'Core Criteria'!$C:$V,20,FALSE))) -> • An incident communications plan has been developed and is available to on call communications staff • The incident communications plan has been tested both in and out of hours • Action cards have been developed for communications roles • A requirement for briefing NHS England regional communications team has been established • The plan has been tested, both in and out of hours as part of an exercise. • Clarity on sign off for communications is included in the plan, noting the need to ensure communications are signed off by incident leads, as well as NHSE (if appropriate). | H40: Comms action cards/ pack | I40: Partially compliant | J40: Update Comms Pack | K40: Communications | L40: 2025-03-01
A41: =IF(OR(LEFT($C41,6)="Domain",$I41=LookUp!$A$3,$I41=LookUp!$A$4),MAX('EPRR Core Standards'!A$1:A40)+1,"") -> 26 | B41: =IFERROR(IF(B40+1>MAX('Core Criteria'!$C:$C),"",B40+1),"") -> 40 | C41: =IF($B41="","",IF(VLOOKUP($B41,'Core Criteria'!$C:$V,2,FALSE)="","",VLOOKUP($B41,'Core Criteria'!$C:$V,2,FALSE))) -> 35 | D41: =IF($B41="","",IF(VLOOKUP($B41,'Core Criteria'!$C:$V,3,FALSE)="","",VLOOKUP($B41,'Core Criteria'!$C:$V,3,FALSE))) -> Warning and informing | E41: =IF($B41="","",IF(VLOOKUP($B41,'Core Criteria'!$C:$V,4,FALSE)="","",VLOOKUP($B41,'Core Criteria'!$C:$V,4,FALSE))) -> Communication with partners and stakeholders | F41: =IF($B41="","",IF(VLOOKUP($B41,'Core Criteria'!$C:$V,5,FALSE)="","",VLOOKUP($B41,'Core Criteria'!$C:$V,5,FALSE))) -> The organisation has arrangements in place to communicate with patients, staff, partner organisations, stakeholders, and the public before, during and after a major incident, critical incident or business continuity incident. | G41: =IF($B41="","",IF(VLOOKUP($B41,'Core Criteria'!$C:$V,20,FALSE)="","",VLOOKUP($B41,'Core Criteria'!$C:$V,20,FALSE))) -> • Established means of communicating with staff, at both short notice and for the duration of the incident, including out of hours communications • A developed list of contacts in partner organisations who are key to service delivery (local Council, LRF partners, neighbouring NHS organisations etc) and a means of warning and informing these organisations about an incident as well as sharing communications information with partner organisations to create consistent messages at a local, regional and national level. • A developed list of key local stakeholders (such as local elected officials, unions etc) and an established a process by which to brief local stakeholders during an incident • Appropriate channels for communicating with members of the public that can be used 24/7 if required • Identified sites within the organisation for displaying of important public information (such as main points of access) • Have in place a means of communicating with patients who have appointments booked or are receiving treatment. • Have in place a plan to communicate with inpatients and their families or care givers. • The organisation publicly states its readiness and preparedness activities in annual reports within the organisations own regulatory reporting requirements | H41: Comms action cards/ pack. Incident response plan. | I41: Partially compliant | J41: Update Comms Pack | K41: Communications | L41: 2025-03-01
A42: =IF(OR(LEFT($C42,6)="Domain",$I42=LookUp!$A$3,$I42=LookUp!$A$4),MAX('EPRR Core Standards'!A$1:A41)+1,"") -> 27 | B42: =IFERROR(IF(B41+1>MAX('Core Criteria'!$C:$C),"",B41+1),"") -> 41 | C42: =IF($B42="","",IF(VLOOKUP($B42,'Core Criteria'!$C:$V,2,FALSE)="","",VLOOKUP($B42,'Core Criteria'!$C:$V,2,FALSE))) -> 36 | D42: =IF($B42="","",IF(VLOOKUP($B42,'Core Criteria'!$C:$V,3,FALSE)="","",VLOOKUP($B42,'Core Criteria'!$C:$V,3,FALSE))) -> Warning and informing | E42: =IF($B42="","",IF(VLOOKUP($B42,'Core Criteria'!$C:$V,4,FALSE)="","",VLOOKUP($B42,'Core Criteria'!$C:$V,4,FALSE))) -> Media strategy | F42: =IF($B42="","",IF(VLOOKUP($B42,'Core Criteria'!$C:$V,5,FALSE)="","",VLOOKUP($B42,'Core Criteria'!$C:$V,5,FALSE))) -> The organisation has arrangements in place to enable rapid and structured communication via the media and social media | G42: =IF($B42="","",IF(VLOOKUP($B42,'Core Criteria'!$C:$V,20,FALSE)="","",VLOOKUP($B42,'Core Criteria'!$C:$V,20,FALSE))) -> • Having an agreed media strategy and a plan for how this will be enacted during an incident. This will allow for timely distribution of information to warn and inform the media • Develop a pool of media spokespeople able to represent the organisation to the media at all times. • Social Media policy and monitoring in place to identify and track information on social media relating to incidents. • Setting up protocols for using social media to warn and inform • Specifying advice to senior staff to effectively use social media accounts whilst the organisation is in incident response | H42: Comms action cards/ pack. West Yorks comms and media guidance. | I42: Partially compliant | J42: Update comms pack | K42: Communications | L42: 2025-03-01
A43: =IF(OR(LEFT($C43,6)="Domain",$I43=LookUp!$A$3,$I43=LookUp!$A$4),MAX('EPRR Core Standards'!A$1:A42)+1,"") -> 28 | B43: =IFERROR(IF(B42+1>MAX('Core Criteria'!$C:$C),"",B42+1),"") -> 42 | C43: =IF($B43="","",IF(VLOOKUP($B43,'Core Criteria'!$C:$V,2,FALSE)="","",VLOOKUP($B43,'Core Criteria'!$C:$V,2,FALSE))) -> Domain 8 - Cooperation | D43: =IF($B43="","",IF(VLOOKUP($B43,'Core Criteria'!$C:$V,3,FALSE)="","",VLOOKUP($B43,'Core Criteria'!$C:$V,3,FALSE))) ->  | E43: =IF($B43="","",IF(VLOOKUP($B43,'Core Criteria'!$C:$V,4,FALSE)="","",VLOOKUP($B43,'Core Criteria'!$C:$V,4,FALSE))) ->  | F43: =IF($B43="","",IF(VLOOKUP($B43,'Core Criteria'!$C:$V,5,FALSE)="","",VLOOKUP($B43,'Core Criteria'!$C:$V,5,FALSE))) ->  | G43: =IF($B43="","",IF(VLOOKUP($B43,'Core Criteria'!$C:$V,20,FALSE)="","",VLOOKUP($B43,'Core Criteria'!$C:$V,20,FALSE))) -> 
A44: =IF(OR(LEFT($C44,6)="Domain",$I44=LookUp!$A$3,$I44=LookUp!$A$4),MAX('EPRR Core Standards'!A$1:A43)+1,"") ->  | B44: =IFERROR(IF(B43+1>MAX('Core Criteria'!$C:$C),"",B43+1),"") -> 43 | C44: =IF($B44="","",IF(VLOOKUP($B44,'Core Criteria'!$C:$V,2,FALSE)="","",VLOOKUP($B44,'Core Criteria'!$C:$V,2,FALSE))) -> 37 | D44: =IF($B44="","",IF(VLOOKUP($B44,'Core Criteria'!$C:$V,3,FALSE)="","",VLOOKUP($B44,'Core Criteria'!$C:$V,3,FALSE))) -> Cooperation | E44: =IF($B44="","",IF(VLOOKUP($B44,'Core Criteria'!$C:$V,4,FALSE)="","",VLOOKUP($B44,'Core Criteria'!$C:$V,4,FALSE))) -> LHRP Engagement | F44: =IF($B44="","",IF(VLOOKUP($B44,'Core Criteria'!$C:$V,5,FALSE)="","",VLOOKUP($B44,'Core Criteria'!$C:$V,5,FALSE))) -> The Accountable Emergency Officer, or a director level representative with delegated authority (to authorise plans and commit resources on behalf of their organisation) attends Local Health Resilience Partnership (LHRP) meetings. | G44: =IF($B44="","",IF(VLOOKUP($B44,'Core Criteria'!$C:$V,20,FALSE)="","",VLOOKUP($B44,'Core Criteria'!$C:$V,20,FALSE))) -> • Minutes of meetings • Individual members of the LHRP must be authorised by their employing organisation to act in accordance with their organisational governance arrangements and their statutory status and responsibilities. | H44: Attendance lists/ minutes. | I44: Fully compliant
A45: =IF(OR(LEFT($C45,6)="Domain",$I45=LookUp!$A$3,$I45=LookUp!$A$4),MAX('EPRR Core Standards'!A$1:A44)+1,"") ->  | B45: =IFERROR(IF(B44+1>MAX('Core Criteria'!$C:$C),"",B44+1),"") -> 44 | C45: =IF($B45="","",IF(VLOOKUP($B45,'Core Criteria'!$C:$V,2,FALSE)="","",VLOOKUP($B45,'Core Criteria'!$C:$V,2,FALSE))) -> 38 | D45: =IF($B45="","",IF(VLOOKUP($B45,'Core Criteria'!$C:$V,3,FALSE)="","",VLOOKUP($B45,'Core Criteria'!$C:$V,3,FALSE))) -> Cooperation | E45: =IF($B45="","",IF(VLOOKUP($B45,'Core Criteria'!$C:$V,4,FALSE)="","",VLOOKUP($B45,'Core Criteria'!$C:$V,4,FALSE))) -> LRF / BRF Engagement | F45: =IF($B45="","",IF(VLOOKUP($B45,'Core Criteria'!$C:$V,5,FALSE)="","",VLOOKUP($B45,'Core Criteria'!$C:$V,5,FALSE))) -> The organisation participates in, contributes to or is adequately represented at Local Resilience Forum (LRF) or Borough Resilience Forum (BRF), demonstrating engagement and co-operation with partner responders. | G45: =IF($B45="","",IF(VLOOKUP($B45,'Core Criteria'!$C:$V,20,FALSE)="","",VLOOKUP($B45,'Core Criteria'!$C:$V,20,FALSE))) -> • Minutes of meetings • A governance agreement is in place if the organisation is represented and feeds back across the system | H45: Attendance lists/ minutes. | I45: Fully compliant
A46: =IF(OR(LEFT($C46,6)="Domain",$I46=LookUp!$A$3,$I46=LookUp!$A$4),MAX('EPRR Core Standards'!A$1:A45)+1,"") -> 29 | B46: =IFERROR(IF(B45+1>MAX('Core Criteria'!$C:$C),"",B45+1),"") -> 45 | C46: =IF($B46="","",IF(VLOOKUP($B46,'Core Criteria'!$C:$V,2,FALSE)="","",VLOOKUP($B46,'Core Criteria'!$C:$V,2,FALSE))) -> 39 | D46: =IF($B46="","",IF(VLOOKUP($B46,'Core Criteria'!$C:$V,3,FALSE)="","",VLOOKUP($B46,'Core Criteria'!$C:$V,3,FALSE))) -> Cooperation | E46: =IF($B46="","",IF(VLOOKUP($B46,'Core Criteria'!$C:$V,4,FALSE)="","",VLOOKUP($B46,'Core Criteria'!$C:$V,4,FALSE))) -> Mutual aid arrangements | F46: =IF($B46="","",IF(VLOOKUP($B46,'Core Criteria'!$C:$V,5,FALSE)="","",VLOOKUP($B46,'Core Criteria'!$C:$V,5,FALSE))) -> The organisation has agreed mutual aid arrangements in place outlining the process for requesting, coordinating and maintaining mutual aid resources. These arrangements may include staff, equipment, services and supplies. In line with current NHS guidance, these arrangements may be formal and should include the process for requesting Military Aid to Civil Authorities (MACA) via NHS England. | G46: =IF($B46="","",IF(VLOOKUP($B46,'Core Criteria'!$C:$V,20,FALSE)="","",VLOOKUP($B46,'Core Criteria'!$C:$V,20,FALSE))) -> • Detailed documentation on the process for requesting, receiving and managing mutual aid requests • Templates and other required documentation is available in ICC or as appendices to IRP • Signed mutual aid agreements where appropriate | H46: MOU for EPRR advice. | I46: Partially compliant | J46: Advice required around the coordination and agreement of ICS and Place plans. Framework being developed by ICB. | K46: ICB | L46: TBC
A47: =IF(OR(LEFT($C47,6)="Domain",$I47=LookUp!$A$3,$I47=LookUp!$A$4),MAX('EPRR Core Standards'!A$1:A46)+1,"") ->  | B47: =IFERROR(IF(B46+1>MAX('Core Criteria'!$C:$C),"",B46+1),"") -> 46 | C47: =IF($B47="","",IF(VLOOKUP($B47,'Core Criteria'!$C:$V,2,FALSE)="","",VLOOKUP($B47,'Core Criteria'!$C:$V,2,FALSE))) -> 43 | D47: =IF($B47="","",IF(VLOOKUP($B47,'Core Criteria'!$C:$V,3,FALSE)="","",VLOOKUP($B47,'Core Criteria'!$C:$V,3,FALSE))) -> Cooperation | E47: =IF($B47="","",IF(VLOOKUP($B47,'Core Criteria'!$C:$V,4,FALSE)="","",VLOOKUP($B47,'Core Criteria'!$C:$V,4,FALSE))) -> Information sharing | F47: =IF($B47="","",IF(VLOOKUP($B47,'Core Criteria'!$C:$V,5,FALSE)="","",VLOOKUP($B47,'Core Criteria'!$C:$V,5,FALSE))) -> The organisation has an agreed protocol(s) for sharing appropriate information pertinent to the response with stakeholders and partners, during incidents. | G47: =IF($B47="","",IF(VLOOKUP($B47,'Core Criteria'!$C:$V,20,FALSE)="","",VLOOKUP($B47,'Core Criteria'!$C:$V,20,FALSE))) -> • Documented and signed information sharing protocol • Evidence relevant guidance has been considered, e.g. Freedom of Information Act 2000, General Data Protection Regulation 2016, Caldicott Principles, Safeguarding requirements and the Civil Contingencies Act 2004 | H47: WY Information Sharing Protocol - Jun 2020 LCH On-call Manual | I47: Fully compliant | J47: Further information sharing agreements to be scoped, agreed and signed. | K47: Leeds EPRR Managers across Leeds | L47: 2025-06-01
A48: =IF(OR(LEFT($C48,6)="Domain",$I48=LookUp!$A$3,$I48=LookUp!$A$4),MAX('EPRR Core Standards'!A$1:A47)+1,"") -> 30 | B48: =IFERROR(IF(B47+1>MAX('Core Criteria'!$C:$C),"",B47+1),"") -> 47 | C48: =IF($B48="","",IF(VLOOKUP($B48,'Core Criteria'!$C:$V,2,FALSE)="","",VLOOKUP($B48,'Core Criteria'!$C:$V,2,FALSE))) -> Domain 9 - Business Continuity | D48: =IF($B48="","",IF(VLOOKUP($B48,'Core Criteria'!$C:$V,3,FALSE)="","",VLOOKUP($B48,'Core Criteria'!$C:$V,3,FALSE))) ->  | E48: =IF($B48="","",IF(VLOOKUP($B48,'Core Criteria'!$C:$V,4,FALSE)="","",VLOOKUP($B48,'Core Criteria'!$C:$V,4,FALSE))) ->  | F48: =IF($B48="","",IF(VLOOKUP($B48,'Core Criteria'!$C:$V,5,FALSE)="","",VLOOKUP($B48,'Core Criteria'!$C:$V,5,FALSE))) ->  | G48: =IF($B48="","",IF(VLOOKUP($B48,'Core Criteria'!$C:$V,20,FALSE)="","",VLOOKUP($B48,'Core Criteria'!$C:$V,20,FALSE))) -> 
A49: =IF(OR(LEFT($C49,6)="Domain",$I49=LookUp!$A$3,$I49=LookUp!$A$4),MAX('EPRR Core Standards'!A$1:A48)+1,"") -> 31 | B49: =IFERROR(IF(B48+1>MAX('Core Criteria'!$C:$C),"",B48+1),"") -> 48 | C49: =IF($B49="","",IF(VLOOKUP($B49,'Core Criteria'!$C:$V,2,FALSE)="","",VLOOKUP($B49,'Core Criteria'!$C:$V,2,FALSE))) -> 44 | D49: =IF($B49="","",IF(VLOOKUP($B49,'Core Criteria'!$C:$V,3,FALSE)="","",VLOOKUP($B49,'Core Criteria'!$C:$V,3,FALSE))) -> Business Continuity | E49: =IF($B49="","",IF(VLOOKUP($B49,'Core Criteria'!$C:$V,4,FALSE)="","",VLOOKUP($B49,'Core Criteria'!$C:$V,4,FALSE))) -> BC policy statement | F49: =IF($B49="","",IF(VLOOKUP($B49,'Core Criteria'!$C:$V,5,FALSE)="","",VLOOKUP($B49,'Core Criteria'!$C:$V,5,FALSE))) -> The organisation has in place a policy which includes a statement of intent to undertake business continuity. This includes the commitment to a Business Continuity Management System (BCMS) that aligns to the ISO standard 22301. | G49: =IF($B49="","",IF(VLOOKUP($B49,'Core Criteria'!$C:$V,20,FALSE)="","",VLOOKUP($B49,'Core Criteria'!$C:$V,20,FALSE))) -> The organisation has in place a policy which includes intentions and direction as formally expressed by its top management. The BC Policy should: • Provide the strategic direction from which the business continuity programme is delivered. • Define the way in which the organisation will approach business continuity. • Show evidence of being supported, approved and owned by top management. • Be reflective of the organisation in terms of size, complexity and type of organisation. • Document any standards or guidelines that are used as a benchmark for the BC programme. • Consider short term and long term impacts on the organisation including climate change adaption planning | H49: Draft BCMS policy | I49: Partially compliant | J49: Final draft to be circulated and reviewed prior to BC approval | L49: 2024-11-01
A50: =IF(OR(LEFT($C50,6)="Domain",$I50=LookUp!$A$3,$I50=LookUp!$A$4),MAX('EPRR Core Standards'!A$1:A49)+1,"") -> 32 | B50: =IFERROR(IF(B49+1>MAX('Core Criteria'!$C:$C),"",B49+1),"") -> 49 | C50: =IF($B50="","",IF(VLOOKUP($B50,'Core Criteria'!$C:$V,2,FALSE)="","",VLOOKUP($B50,'Core Criteria'!$C:$V,2,FALSE))) -> 45 | D50: =IF($B50="","",IF(VLOOKUP($B50,'Core Criteria'!$C:$V,3,FALSE)="","",VLOOKUP($B50,'Core Criteria'!$C:$V,3,FALSE))) -> Business Continuity | E50: =IF($B50="","",IF(VLOOKUP($B50,'Core Criteria'!$C:$V,4,FALSE)="","",VLOOKUP($B50,'Core Criteria'!$C:$V,4,FALSE))) -> Business Continuity Management Systems (BCMS) scope and objectives | F50: =IF($B50="","",IF(VLOOKUP($B50,'Core Criteria'!$C:$V,5,FALSE)="","",VLOOKUP($B50,'Core Criteria'!$C:$V,5,FALSE))) -> The organisation has established the scope and objectives of the BCMS in relation to the organisation, specifying the risk management process and how this will be documented. A definition of the scope of the programme ensures a clear understanding of which areas of the organisation are in and out of scope of the BC programme. | G50: =IF($B50="","",IF(VLOOKUP($B50,'Core Criteria'!$C:$V,20,FALSE)="","",VLOOKUP($B50,'Core Criteria'!$C:$V,20,FALSE))) -> BCMS should detail: • Scope e.g. key products and services within the scope and exclusions from the scope • Objectives of the system • The requirement to undertake BC e.g. Statutory, Regulatory and contractual duties • Specific roles within the BCMS including responsibilities, competencies and authorities. • The risk management processes for the organisation i.e. how risk will be assessed and documented (e.g. Risk Register), the acceptable level of risk and risk review and monitoring process • Resource requirements • Communications strategy with all staff to ensure they are aware of their roles • alignment to the organisations strategy, objectives, operating environment and approach to risk. • the outsourced activities and suppliers of products and suppliers. • how the understanding of BC will be increased in the organisation | H50: Draft BCMS policy | I50: Partially compliant | J50: Final draft to be circulated and reviewed prior to BC approval | K50: EPRR Manager | L50: 2024-11-01
A51: =IF(OR(LEFT($C51,6)="Domain",$I51=LookUp!$A$3,$I51=LookUp!$A$4),MAX('EPRR Core Standards'!A$1:A50)+1,"") -> 33 | B51: =IFERROR(IF(B50+1>MAX('Core Criteria'!$C:$C),"",B50+1),"") -> 50 | C51: =IF($B51="","",IF(VLOOKUP($B51,'Core Criteria'!$C:$V,2,FALSE)="","",VLOOKUP($B51,'Core Criteria'!$C:$V,2,FALSE))) -> 46 | D51: =IF($B51="","",IF(VLOOKUP($B51,'Core Criteria'!$C:$V,3,FALSE)="","",VLOOKUP($B51,'Core Criteria'!$C:$V,3,FALSE))) -> Business Continuity | E51: =IF($B51="","",IF(VLOOKUP($B51,'Core Criteria'!$C:$V,4,FALSE)="","",VLOOKUP($B51,'Core Criteria'!$C:$V,4,FALSE))) -> Business Impact Analysis/Assessment (BIA) | F51: =IF($B51="","",IF(VLOOKUP($B51,'Core Criteria'!$C:$V,5,FALSE)="","",VLOOKUP($B51,'Core Criteria'!$C:$V,5,FALSE))) -> The organisation annually assesses and documents the impact of disruption to its services through Business Impact Analysis(es). | G51: =IF($B51="","",IF(VLOOKUP($B51,'Core Criteria'!$C:$V,20,FALSE)="","",VLOOKUP($B51,'Core Criteria'!$C:$V,20,FALSE))) -> The organisation has identified prioritised activities by undertaking a strategic Business Impact Analysis/Assessments. Business Impact Analysis/Assessment is the key first stage in the development of a BCMS and is therefore critical to a business continuity programme. Documented process on how BIA will be conducted, including: • the method to be used • the frequency of review • how the information will be used to inform planning • how RA is used to support. The organisation should undertake a review of its critical function using a Business Impact Analysis/assessment. Without a Business Impact Analysis organisations are not able to assess/assure compliance without it. The following points should be considered when undertaking a BIA: • Determining impacts over time should demonstrate to top management how quickly the organisation needs to respond to a disruption. • A consistent approach to performing the BIA should be used throughout the organisation. • BIA method used should be robust enough to ensure the information is collected consistently and impartially. | H51: LCH BIA template | I51: Partially compliant | J51: Final draft to be circulated and reviewed prior to BC approval | K51: EPRR Manager | L51: 2024-11-01
A52: =IF(OR(LEFT($C52,6)="Domain",$I52=LookUp!$A$3,$I52=LookUp!$A$4),MAX('EPRR Core Standards'!A$1:A51)+1,"") ->  | B52: =IFERROR(IF(B51+1>MAX('Core Criteria'!$C:$C),"",B51+1),"") -> 51 | C52: =IF($B52="","",IF(VLOOKUP($B52,'Core Criteria'!$C:$V,2,FALSE)="","",VLOOKUP($B52,'Core Criteria'!$C:$V,2,FALSE))) -> 47 | D52: =IF($B52="","",IF(VLOOKUP($B52,'Core Criteria'!$C:$V,3,FALSE)="","",VLOOKUP($B52,'Core Criteria'!$C:$V,3,FALSE))) -> Business Continuity | E52: =IF($B52="","",IF(VLOOKUP($B52,'Core Criteria'!$C:$V,4,FALSE)="","",VLOOKUP($B52,'Core Criteria'!$C:$V,4,FALSE))) -> Business Continuity Plans (BCP) | F52: =IF($B52="","",IF(VLOOKUP($B52,'Core Criteria'!$C:$V,5,FALSE)="","",VLOOKUP($B52,'Core Criteria'!$C:$V,5,FALSE))) -> The organisation has business continuity plans for the management of incidents. Detailing how it will respond, recover and manage its services during disruptions to: • people • information and data • premises • suppliers and contractors • IT and infrastructure | G52: =IF($B52="","",IF(VLOOKUP($B52,'Core Criteria'!$C:$V,20,FALSE)="","",VLOOKUP($B52,'Core Criteria'!$C:$V,20,FALSE))) -> Documented evidence that as a minimum the BCP checklist is covered by the various plans of the organisation. Ensure BCPS are Developed using the ISO 22301 and the NHS Toolkit. BC Planning is undertaken by an adequately trained person and contain the following: • Purpose and Scope • Objectives and assumptions • Escalation & Response Structure which is specific to your organisation. • Plan activation criteria, procedures and authorisation. • Response teams roles and responsibilities. • Individual responsibilities and authorities of team members. • Prompts for immediate action and any specific decisions the team may need to make. • Communication requirements and procedures with relevant interested parties. • Internal and external interdependencies. • Summary Information of the organisations prioritised activities. • Decision support checklists • Details of meeting locations • Appendix/Appendices | H52: BCPs following International standard / ISO | I52: Fully compliant
A53: =IF(OR(LEFT($C53,6)="Domain",$I53=LookUp!$A$3,$I53=LookUp!$A$4),MAX('EPRR Core Standards'!A$1:A52)+1,"") -> 34 | B53: =IFERROR(IF(B52+1>MAX('Core Criteria'!$C:$C),"",B52+1),"") -> 52 | C53: =IF($B53="","",IF(VLOOKUP($B53,'Core Criteria'!$C:$V,2,FALSE)="","",VLOOKUP($B53,'Core Criteria'!$C:$V,2,FALSE))) -> 48 | D53: =IF($B53="","",IF(VLOOKUP($B53,'Core Criteria'!$C:$V,3,FALSE)="","",VLOOKUP($B53,'Core Criteria'!$C:$V,3,FALSE))) -> Business Continuity | E53: =IF($B53="","",IF(VLOOKUP($B53,'Core Criteria'!$C:$V,4,FALSE)="","",VLOOKUP($B53,'Core Criteria'!$C:$V,4,FALSE))) -> Testing and Exercising | F53: =IF($B53="","",IF(VLOOKUP($B53,'Core Criteria'!$C:$V,5,FALSE)="","",VLOOKUP($B53,'Core Criteria'!$C:$V,5,FALSE))) -> The organisation has in place a procedure whereby testing and exercising of Business Continuity plans is undertaken on a yearly basis as a minimum, following organisational change or as a result of learning from other business continuity incidents. | G53: =IF($B53="","",IF(VLOOKUP($B53,'Core Criteria'!$C:$V,20,FALSE)="","",VLOOKUP($B53,'Core Criteria'!$C:$V,20,FALSE))) -> Confirm the type of exercise the organisation has undertaken to meet this sub standard: • Discussion based exercise • Scenario Exercises • Simulation Exercises • Live exercise • Test • Undertake a debrief Evidence Post exercise/ testing reports and action plans | H53: Annual exercise | I53: Partially compliant | J53: Internal audit review of service business continuity plans | K53: Internal Audit | L53: 2025-01-01
A54: =IF(OR(LEFT($C54,6)="Domain",$I54=LookUp!$A$3,$I54=LookUp!$A$4),MAX('EPRR Core Standards'!A$1:A53)+1,"") ->  | B54: =IFERROR(IF(B53+1>MAX('Core Criteria'!$C:$C),"",B53+1),"") -> 53 | C54: =IF($B54="","",IF(VLOOKUP($B54,'Core Criteria'!$C:$V,2,FALSE)="","",VLOOKUP($B54,'Core Criteria'!$C:$V,2,FALSE))) -> 49 | D54: =IF($B54="","",IF(VLOOKUP($B54,'Core Criteria'!$C:$V,3,FALSE)="","",VLOOKUP($B54,'Core Criteria'!$C:$V,3,FALSE))) -> Business Continuity | E54: =IF($B54="","",IF(VLOOKUP($B54,'Core Criteria'!$C:$V,4,FALSE)="","",VLOOKUP($B54,'Core Criteria'!$C:$V,4,FALSE))) -> Data Protection and Security Toolkit | F54: =IF($B54="","",IF(VLOOKUP($B54,'Core Criteria'!$C:$V,5,FALSE)="","",VLOOKUP($B54,'Core Criteria'!$C:$V,5,FALSE))) -> Organisation's Information Technology department certify that they are compliant with the Data Protection and Security Toolkit on an annual basis. | G54: =IF($B54="","",IF(VLOOKUP($B54,'Core Criteria'!$C:$V,20,FALSE)="","",VLOOKUP($B54,'Core Criteria'!$C:$V,20,FALSE))) -> Evidence • Statement of compliance • Action plan to obtain compliance if not achieved | H54: Statement of compliance Certificate | I54: Fully compliant
A55: =IF(OR(LEFT($C55,6)="Domain",$I55=LookUp!$A$3,$I55=LookUp!$A$4),MAX('EPRR Core Standards'!A$1:A54)+1,"") -> 35 | B55: =IFERROR(IF(B54+1>MAX('Core Criteria'!$C:$C),"",B54+1),"") -> 54 | C55: =IF($B55="","",IF(VLOOKUP($B55,'Core Criteria'!$C:$V,2,FALSE)="","",VLOOKUP($B55,'Core Criteria'!$C:$V,2,FALSE))) -> 50 | D55: =IF($B55="","",IF(VLOOKUP($B55,'Core Criteria'!$C:$V,3,FALSE)="","",VLOOKUP($B55,'Core Criteria'!$C:$V,3,FALSE))) -> Business Continuity | E55: =IF($B55="","",IF(VLOOKUP($B55,'Core Criteria'!$C:$V,4,FALSE)="","",VLOOKUP($B55,'Core Criteria'!$C:$V,4,FALSE))) -> BCMS monitoring and evaluation | F55: =IF($B55="","",IF(VLOOKUP($B55,'Core Criteria'!$C:$V,5,FALSE)="","",VLOOKUP($B55,'Core Criteria'!$C:$V,5,FALSE))) -> The organisation's BCMS is monitored, measured and evaluated against established Key Performance Indicators. Reports on these and the outcome of any exercises, and status of any corrective action are annually reported to the board. | G55: =IF($B55="","",IF(VLOOKUP($B55,'Core Criteria'!$C:$V,20,FALSE)="","",VLOOKUP($B55,'Core Criteria'!$C:$V,20,FALSE))) -> • Business continuity policy • BCMS • performance reporting • Board papers | H55: BCMS policy | I55: Partially compliant | J55: System to monitor performance/ kpi's and report to Board | K55: EPRR/ Business intelligence | L55: 2025-06-01
A56: =IF(OR(LEFT($C56,6)="Domain",$I56=LookUp!$A$3,$I56=LookUp!$A$4),MAX('EPRR Core Standards'!A$1:A55)+1,"") -> 36 | B56: =IFERROR(IF(B55+1>MAX('Core Criteria'!$C:$C),"",B55+1),"") -> 55 | C56: =IF($B56="","",IF(VLOOKUP($B56,'Core Criteria'!$C:$V,2,FALSE)="","",VLOOKUP($B56,'Core Criteria'!$C:$V,2,FALSE))) -> 51 | D56: =IF($B56="","",IF(VLOOKUP($B56,'Core Criteria'!$C:$V,3,FALSE)="","",VLOOKUP($B56,'Core Criteria'!$C:$V,3,FALSE))) -> Business Continuity | E56: =IF($B56="","",IF(VLOOKUP($B56,'Core Criteria'!$C:$V,4,FALSE)="","",VLOOKUP($B56,'Core Criteria'!$C:$V,4,FALSE))) -> BC audit | F56: =IF($B56="","",IF(VLOOKUP($B56,'Core Criteria'!$C:$V,5,FALSE)="","",VLOOKUP($B56,'Core Criteria'!$C:$V,5,FALSE))) -> The organisation has a process for internal audit, and outcomes are included in the report to the board. The organisation has conducted audits at planned intervals to confirm they are conforming with its own business continuity programme. | G56: =IF($B56="","",IF(VLOOKUP($B56,'Core Criteria'!$C:$V,20,FALSE)="","",VLOOKUP($B56,'Core Criteria'!$C:$V,20,FALSE))) -> • process documented in EPRR policy/Business continuity policy or BCMS aligned to the audit programme for the organisation • Board papers • Audit reports • Remedial action plan that is agreed by top management. • An independent business continuity management audit report. • Internal audits should be undertaken as agreed by the organisation's audit planning schedule on a rolling cycle. • External audits should be undertaken in alignment with the organisations audit programme | H56: Internal audit review planned for January. Audit spreadshheet. | I56: Partially compliant | J56: Audit overdue | K56: EPRR manager/ internal audit | L56: 2025-01-01
A57: =IF(OR(LEFT($C57,6)="Domain",$I57=LookUp!$A$3,$I57=LookUp!$A$4),MAX('EPRR Core Standards'!A$1:A56)+1,"") -> 37 | B57: =IFERROR(IF(B56+1>MAX('Core Criteria'!$C:$C),"",B56+1),"") -> 56 | C57: =IF($B57="","",IF(VLOOKUP($B57,'Core Criteria'!$C:$V,2,FALSE)="","",VLOOKUP($B57,'Core Criteria'!$C:$V,2,FALSE))) -> 52 | D57: =IF($B57="","",IF(VLOOKUP($B57,'Core Criteria'!$C:$V,3,FALSE)="","",VLOOKUP($B57,'Core Criteria'!$C:$V,3,FALSE))) -> Business Continuity | E57: =IF($B57="","",IF(VLOOKUP($B57,'Core Criteria'!$C:$V,4,FALSE)="","",VLOOKUP($B57,'Core Criteria'!$C:$V,4,FALSE))) -> BCMS continuous improvement process | F57: =IF($B57="","",IF(VLOOKUP($B57,'Core Criteria'!$C:$V,5,FALSE)="","",VLOOKUP($B57,'Core Criteria'!$C:$V,5,FALSE))) -> There is a process in place to assess the effectiveness of the BCMS and take corrective action to ensure continual improvement to the BCMS. | G57: =IF($B57="","",IF(VLOOKUP($B57,'Core Criteria'!$C:$V,20,FALSE)="","",VLOOKUP($B57,'Core Criteria'!$C:$V,20,FALSE))) -> • process documented in the EPRR policy/Business continuity policy or BCMS • Board papers showing evidence of improvement • Action plans following exercising, training and incidents • Improvement plans following internal or external auditing •Changes to suppliers or contracts following assessment of suitability Continuous Improvement can be identified via the following routes: • Lessons learned through exercising. • Changes to the organisations structure, products and services, infrastructure, processes or activities. • Changes to the environment in which the organisation operates. • A review or audit. • Changes or updates to the business continuity management lifecycle, such as the BIA or continuity solutions. • Self assessment • Quality assurance • Performance appraisal • Supplier performance • Management review • Debriefs • After action reviews • Lessons learned through exercising or live incidents | H57: Debriefs from exercises. Improvement plan. BCMS. | I57: Partially compliant | J57: Establish learning and exercising Group Write Terms of Reference Develop testing programme | K57: EPRR Manager | L57: 2025-01-01
A58: =IF(OR(LEFT($C58,6)="Domain",$I58=LookUp!$A$3,$I58=LookUp!$A$4),MAX('EPRR Core Standards'!A$1:A57)+1,"") -> 38 | B58: =IFERROR(IF(B57+1>MAX('Core Criteria'!$C:$C),"",B57+1),"") -> 57 | C58: =IF($B58="","",IF(VLOOKUP($B58,'Core Criteria'!$C:$V,2,FALSE)="","",VLOOKUP($B58,'Core Criteria'!$C:$V,2,FALSE))) -> 53 | D58: =IF($B58="","",IF(VLOOKUP($B58,'Core Criteria'!$C:$V,3,FALSE)="","",VLOOKUP($B58,'Core Criteria'!$C:$V,3,FALSE))) -> Business Continuity | E58: =IF($B58="","",IF(VLOOKUP($B58,'Core Criteria'!$C:$V,4,FALSE)="","",VLOOKUP($B58,'Core Criteria'!$C:$V,4,FALSE))) -> Assurance of commissioned providers / suppliers BCPs | F58: =IF($B58="","",IF(VLOOKUP($B58,'Core Criteria'!$C:$V,5,FALSE)="","",VLOOKUP($B58,'Core Criteria'!$C:$V,5,FALSE))) -> The organisation has in place a system to assess the business continuity plans of commissioned providers or suppliers; and are assured that these providers business continuity arrangements align and are interoperable with their own. | G58: =IF($B58="","",IF(VLOOKUP($B58,'Core Criteria'!$C:$V,20,FALSE)="","",VLOOKUP($B58,'Core Criteria'!$C:$V,20,FALSE))) -> • EPRR policy/Business continuity policy or BCMS outlines the process to be used and how suppliers will be identified for assurance • Provider/supplier assurance framework • Provider/supplier business continuity arrangements This may be supported by the organisations procurement or commercial teams (where trained in BC) at tender phase and at set intervals for critical and/or high value suppliers | H58: IT supplier assurance | I58: Partially compliant | J58: Agreement on what level of assurance is required from suppliers | K58: Senior Leadership Team | L58: 2025-01-01
A59: =IF(OR(LEFT($C59,6)="Domain",$I59=LookUp!$A$3,$I59=LookUp!$A$4),MAX('EPRR Core Standards'!A$1:A58)+1,"") -> 39 | B59: =IFERROR(IF(B58+1>MAX('Core Criteria'!$C:$C),"",B58+1),"") -> 58 | C59: =IF($B59="","",IF(VLOOKUP($B59,'Core Criteria'!$C:$V,2,FALSE)="","",VLOOKUP($B59,'Core Criteria'!$C:$V,2,FALSE))) -> Domain 10 - CBRN | D59: =IF($B59="","",IF(VLOOKUP($B59,'Core Criteria'!$C:$V,3,FALSE)="","",VLOOKUP($B59,'Core Criteria'!$C:$V,3,FALSE))) ->  | E59: =IF($B59="","",IF(VLOOKUP($B59,'Core Criteria'!$C:$V,4,FALSE)="","",VLOOKUP($B59,'Core Criteria'!$C:$V,4,FALSE))) ->  | F59: =IF($B59="","",IF(VLOOKUP($B59,'Core Criteria'!$C:$V,5,FALSE)="","",VLOOKUP($B59,'Core Criteria'!$C:$V,5,FALSE))) ->  | G59: =IF($B59="","",IF(VLOOKUP($B59,'Core Criteria'!$C:$V,20,FALSE)="","",VLOOKUP($B59,'Core Criteria'!$C:$V,20,FALSE))) -> 
A60: =IF(OR(LEFT($C60,6)="Domain",$I60=LookUp!$A$3,$I60=LookUp!$A$4),MAX('EPRR Core Standards'!A$1:A59)+1,"") ->  | B60: =IFERROR(IF(B59+1>MAX('Core Criteria'!$C:$C),"",B59+1),"") -> 59 | C60: =IF($B60="","",IF(VLOOKUP($B60,'Core Criteria'!$C:$V,2,FALSE)="","",VLOOKUP($B60,'Core Criteria'!$C:$V,2,FALSE))) -> 55 | D60: =IF($B60="","",IF(VLOOKUP($B60,'Core Criteria'!$C:$V,3,FALSE)="","",VLOOKUP($B60,'Core Criteria'!$C:$V,3,FALSE))) -> Hazmat/CBRN | E60: =IF($B60="","",IF(VLOOKUP($B60,'Core Criteria'!$C:$V,4,FALSE)="","",VLOOKUP($B60,'Core Criteria'!$C:$V,4,FALSE))) -> Governance | F60: =IF($B60="","",IF(VLOOKUP($B60,'Core Criteria'!$C:$V,5,FALSE)="","",VLOOKUP($B60,'Core Criteria'!$C:$V,5,FALSE))) -> The organisation has identified responsible roles/people for the following elements of Hazmat/CBRN: - Accountability - via the AEO - Planning - Training - Equipment checks and maintenance Which should be clearly documented | G60: =IF($B60="","",IF(VLOOKUP($B60,'Core Criteria'!$C:$V,20,FALSE)="","",VLOOKUP($B60,'Core Criteria'!$C:$V,20,FALSE))) -> Details of accountability/responsibility are clearly documented in the organisation's Hazmat/CBRN plan and/or Emergency Planning policy as related to the identified risk and role of the organisation | H60: Hazmat/ CBRN plan | I60: Fully compliant
A61: =IF(OR(LEFT($C61,6)="Domain",$I61=LookUp!$A$3,$I61=LookUp!$A$4),MAX('EPRR Core Standards'!A$1:A60)+1,"") ->  | B61: =IFERROR(IF(B60+1>MAX('Core Criteria'!$C:$C),"",B60+1),"") -> 60 | C61: =IF($B61="","",IF(VLOOKUP($B61,'Core Criteria'!$C:$V,2,FALSE)="","",VLOOKUP($B61,'Core Criteria'!$C:$V,2,FALSE))) -> 56 | D61: =IF($B61="","",IF(VLOOKUP($B61,'Core Criteria'!$C:$V,3,FALSE)="","",VLOOKUP($B61,'Core Criteria'!$C:$V,3,FALSE))) -> Hazmat/CBRN | E61: =IF($B61="","",IF(VLOOKUP($B61,'Core Criteria'!$C:$V,4,FALSE)="","",VLOOKUP($B61,'Core Criteria'!$C:$V,4,FALSE))) -> Hazmat/CBRN risk assessments | F61: =IF($B61="","",IF(VLOOKUP($B61,'Core Criteria'!$C:$V,5,FALSE)="","",VLOOKUP($B61,'Core Criteria'!$C:$V,5,FALSE))) -> Hazmat/CBRN risk assessments are in place which are appropriate to the organisation type | G61: =IF($B61="","",IF(VLOOKUP($B61,'Core Criteria'!$C:$V,20,FALSE)="","",VLOOKUP($B61,'Core Criteria'!$C:$V,20,FALSE))) -> Evidence of the risk assessment process undertaken - including - i) governance for risk assessment process ii) assessment of impacts on staff iii) impact assessment(s) on estates and infrastructure - including access and egress iv) management of potentially hazardous waste v) impact assessments of Hazmat/CBRN decontamination on critical facilities and services | H61: Hazmat/ CBRN risk assessment | I61: Fully compliant
A62: =IF(OR(LEFT($C62,6)="Domain",$I62=LookUp!$A$3,$I62=LookUp!$A$4),MAX('EPRR Core Standards'!A$1:A61)+1,"") ->  | B62: =IFERROR(IF(B61+1>MAX('Core Criteria'!$C:$C),"",B61+1),"") -> 61 | C62: =IF($B62="","",IF(VLOOKUP($B62,'Core Criteria'!$C:$V,2,FALSE)="","",VLOOKUP($B62,'Core Criteria'!$C:$V,2,FALSE))) -> 57 | D62: =IF($B62="","",IF(VLOOKUP($B62,'Core Criteria'!$C:$V,3,FALSE)="","",VLOOKUP($B62,'Core Criteria'!$C:$V,3,FALSE))) -> Hazmat/CBRN | E62: =IF($B62="","",IF(VLOOKUP($B62,'Core Criteria'!$C:$V,4,FALSE)="","",VLOOKUP($B62,'Core Criteria'!$C:$V,4,FALSE))) -> Specialist advice for Hazmat/CBRN exposure | F62: =IF($B62="","",IF(VLOOKUP($B62,'Core Criteria'!$C:$V,5,FALSE)="","",VLOOKUP($B62,'Core Criteria'!$C:$V,5,FALSE))) -> Organisations have signposted key clinical staff on how to access appropriate and timely specialist advice for managing patients involved in Hazmat/CBRN incidents | G62: =IF($B62="","",IF(VLOOKUP($B62,'Core Criteria'!$C:$V,20,FALSE)="","",VLOOKUP($B62,'Core Criteria'!$C:$V,20,FALSE))) -> Staff are aware of the number / process to gain access to advice through appropriate planning arrangements. These should include ECOSA, TOXBASE, NPIS, UKHSA Arrangements should include how clinicians would access specialist clinical advice for the on-going treatment of a patient | H62: Hazmat/ CBRN plan. No clinical staff at LCH involved in response. | I62: Fully compliant
A63: =IF(OR(LEFT($C63,6)="Domain",$I63=LookUp!$A$3,$I63=LookUp!$A$4),MAX('EPRR Core Standards'!A$1:A62)+1,"") ->  | B63: =IFERROR(IF(B62+1>MAX('Core Criteria'!$C:$C),"",B62+1),"") -> 62 | C63: =IF($B63="","",IF(VLOOKUP($B63,'Core Criteria'!$C:$V,2,FALSE)="","",VLOOKUP($B63,'Core Criteria'!$C:$V,2,FALSE))) -> 58 | D63: =IF($B63="","",IF(VLOOKUP($B63,'Core Criteria'!$C:$V,3,FALSE)="","",VLOOKUP($B63,'Core Criteria'!$C:$V,3,FALSE))) -> Hazmat/CBRN | E63: =IF($B63="","",IF(VLOOKUP($B63,'Core Criteria'!$C:$V,4,FALSE)="","",VLOOKUP($B63,'Core Criteria'!$C:$V,4,FALSE))) -> Hazmat/CBRN planning arrangements | F63: =IF($B63="","",IF(VLOOKUP($B63,'Core Criteria'!$C:$V,5,FALSE)="","",VLOOKUP($B63,'Core Criteria'!$C:$V,5,FALSE))) -> The organisation has up to date specific Hazmat/CBRN plans and response arrangements aligned to the risk assessment, extending beyond IOR arrangements, and which are supported by a programme of regular training and exercising within the organisation and in conjunction with external stakeholders | G63: =IF($B63="","",IF(VLOOKUP($B63,'Core Criteria'!$C:$V,20,FALSE)="","",VLOOKUP($B63,'Core Criteria'!$C:$V,20,FALSE))) -> Documented plans include evidence of the following: • command and control structures • Collaboration with the NHS Ambulance Trust to ensure Hazmat/CBRN plans and procedures are consistent with the Ambulance Trust’s Hazmat/CBRN capability • Procedures to manage and coordinate communications with other key stakeholders and other responders • Effective and tested processes for activating and deploying Hazmat/CBRN staff and Clinical Decontamination Units (CDUs) (or equivalent) • Pre-determined decontamination locations with a clear distinction between clean and dirty areas and demarcation of safe clean access for patients, including for the off-loading of non-decontaminated patients from ambulances, and safe cordon control • Distinction between dry and wet decontamination and the decision making process for the appropriate deployment • Identification of lockdown/isolation procedures for patients waiting for decontamination • Management and decontamination processes for contaminated patients and fatalities in line with the latest guidance • Arrangements for staff decontamination and access to staff welfare • Business continuity plans that ensure the trust can continue to accept patients not related/affected by the Hazmat/CBRN incident, whilst simultaneously providing the decontamination capability, through designated clean entry routes • Plans for the management of hazardous waste • Hazmat/CBRN plans and procedures include sufficient provisions to manage the stand-down and transition from response to recovery and a return to business as usual activities • Description of process for obtaining replacement PPE/PRPS - both during a protracted incident and in the aftermath of an incident | H63: Hazmat/ CBRN plan and risk assessment | I63: Fully compliant
A64: =IF(OR(LEFT($C64,6)="Domain",$I64=LookUp!$A$3,$I64=LookUp!$A$4),MAX('EPRR Core Standards'!A$1:A63)+1,"") ->  | B64: =IFERROR(IF(B63+1>MAX('Core Criteria'!$C:$C),"",B63+1),"") -> 63 | C64: =IF($B64="","",IF(VLOOKUP($B64,'Core Criteria'!$C:$V,2,FALSE)="","",VLOOKUP($B64,'Core Criteria'!$C:$V,2,FALSE))) -> 60 | D64: =IF($B64="","",IF(VLOOKUP($B64,'Core Criteria'!$C:$V,3,FALSE)="","",VLOOKUP($B64,'Core Criteria'!$C:$V,3,FALSE))) -> Hazmat/CBRN | E64: =IF($B64="","",IF(VLOOKUP($B64,'Core Criteria'!$C:$V,4,FALSE)="","",VLOOKUP($B64,'Core Criteria'!$C:$V,4,FALSE))) -> Equipment and supplies | F64: =IF($B64="","",IF(VLOOKUP($B64,'Core Criteria'!$C:$V,5,FALSE)="","",VLOOKUP($B64,'Core Criteria'!$C:$V,5,FALSE))) -> The organisation holds appropriate equipment to ensure safe decontamination of patients and protection of staff. There is an accurate inventory of equipment required for decontaminating patients. Equipment is proportionate with the organisation's risk assessment of requirement - such as for the management of non-ambulant or collapsed patients • Acute providers - see Equipment checklist: https://www.england.nhs.uk/wp-content/uploads/2018/07/eprr-decontamination-equipment-check-list.xlsx • Community, Mental Health and Specialist service providers - see guidance 'Planning for the management of self-presenting patients in healthcare setting': https://webarchive.nationalarchives.gov.uk/20161104231146/https://www.england.nhs.uk/wp-content/uploads/2015/04/eprr-chemical-incidents.pdf | G64: =IF($B64="","",IF(VLOOKUP($B64,'Core Criteria'!$C:$V,20,FALSE)="","",VLOOKUP($B64,'Core Criteria'!$C:$V,20,FALSE))) -> This inventory should include individual asset identification, any applicable servicing or maintenance activity, any identified defects or faults, the expected replacement date and any applicable statutory or regulatory requirements (including any other records which must be maintained for that item of equipment). There are appropriate risk assessments and SOPs for any specialist equipment Acute and ambulance trusts must maintain the minimum number of PRPS suits specified by NHS England (24/240). These suits must be maintained in accordance with the manufacturer’s guidance. NHS Ambulance Trusts can provide support and advice on the maintenance of PRPS suits as required. Designated hospitals must ensure they have a financial replacement plan in place to ensure that they are able to adequately account for depreciation in the life of equipment and ensure funding is available for replacement at the end of its shelf life. This includes for PPE/PRPS suits, decontamination facilities etc. | H64: Hazmat/ CBRN plan/ audit sheet | I64: Fully compliant
A65: =IF(OR(LEFT($C65,6)="Domain",$I65=LookUp!$A$3,$I65=LookUp!$A$4),MAX('EPRR Core Standards'!A$1:A64)+1,"") ->  | B65: =IFERROR(IF(B64+1>MAX('Core Criteria'!$C:$C),"",B64+1),"") -> 64 | C65: =IF($B65="","",IF(VLOOKUP($B65,'Core Criteria'!$C:$V,2,FALSE)="","",VLOOKUP($B65,'Core Criteria'!$C:$V,2,FALSE))) -> 61 | D65: =IF($B65="","",IF(VLOOKUP($B65,'Core Criteria'!$C:$V,3,FALSE)="","",VLOOKUP($B65,'Core Criteria'!$C:$V,3,FALSE))) -> Hazmat/CBRN | E65: =IF($B65="","",IF(VLOOKUP($B65,'Core Criteria'!$C:$V,4,FALSE)="","",VLOOKUP($B65,'Core Criteria'!$C:$V,4,FALSE))) -> Equipment - Preventative Programme of Maintenance | F65: =IF($B65="","",IF(VLOOKUP($B65,'Core Criteria'!$C:$V,5,FALSE)="","",VLOOKUP($B65,'Core Criteria'!$C:$V,5,FALSE))) -> There is a preventative programme of maintenance (PPM) in place, including routine checks for the maintenance, repair, calibration (where necessary) and replacement of out of date decontamination equipment to ensure that equipment is always available to respond to a Hazmat/CBRN incident. Equipment is maintained according to applicable industry standards and in line with manufacturer’s recommendations The PPM should include where applicable: - PRPS Suits - Decontamination structures - Disrobe and rerobe structures - Water outlets - Shower tray pump - RAM GENE (radiation monitor) - calibration not required - Other decontamination equipment as identified by your local risk assessment e.g. IOR Rapid Response boxes There is a named individual (or role) responsible for completing these checks | G65: =IF($B65="","",IF(VLOOKUP($B65,'Core Criteria'!$C:$V,20,FALSE)="","",VLOOKUP($B65,'Core Criteria'!$C:$V,20,FALSE))) -> Documented process for equipment maintenance checks included within organisational Hazmat/CBRN plan - including frequency required proportionate to the risk assessment • Record of regular equipment checks, including date completed and by whom • Report of any missing equipment Organisations using PPE and specialist equipment should document the method for it's disposal when required Process for oversight of equipment in place for EPRR committee in multisite organisations/central register available to EPRR Organisation Business Continuity arrangements to ensure the continuation of the decontamination services in the event of use or damage to primary equipment Records of maintenance and annual servicing Third party providers of PPM must provide the organisations with assurance of their own Business Continuity arrangements as a commissioned supplier/provider under Core Standard 53 | H65: Hazmat/ CBRN plan/ audit sheet | I65: Fully compliant
A66: =IF(OR(LEFT($C66,6)="Domain",$I66=LookUp!$A$3,$I66=LookUp!$A$4),MAX('EPRR Core Standards'!A$1:A65)+1,"") -> 40 | B66: =IFERROR(IF(B65+1>MAX('Core Criteria'!$C:$C),"",B65+1),"") -> 65 | C66: =IF($B66="","",IF(VLOOKUP($B66,'Core Criteria'!$C:$V,2,FALSE)="","",VLOOKUP($B66,'Core Criteria'!$C:$V,2,FALSE))) -> 63 | D66: =IF($B66="","",IF(VLOOKUP($B66,'Core Criteria'!$C:$V,3,FALSE)="","",VLOOKUP($B66,'Core Criteria'!$C:$V,3,FALSE))) -> Hazmat/CBRN | E66: =IF($B66="","",IF(VLOOKUP($B66,'Core Criteria'!$C:$V,4,FALSE)="","",VLOOKUP($B66,'Core Criteria'!$C:$V,4,FALSE))) -> Hazmat/CBRN training resource | F66: =IF($B66="","",IF(VLOOKUP($B66,'Core Criteria'!$C:$V,5,FALSE)="","",VLOOKUP($B66,'Core Criteria'!$C:$V,5,FALSE))) -> The organisation must have an adequate training resource to deliver Hazmat/CBRN training which is aligned to the organisational Hazmat/CBRN plan and associated risk assessments | G66: =IF($B66="","",IF(VLOOKUP($B66,'Core Criteria'!$C:$V,20,FALSE)="","",VLOOKUP($B66,'Core Criteria'!$C:$V,20,FALSE))) -> Identified minimum training standards within the organisation's Hazmat/CBRN plans (or EPRR training policy) Staff training needs analysis (TNA) appropriate to the organisation type - related to the need for decontamination Documented evidence of training records for Hazmat/CBRN training - including for: - trust trainers - with dates of their attendance at an appropriate 'train the trainer' session (or update) - trust staff - with dates of the training that that they have undertaken Developed training programme to deliver capability against the risk assessment | H66: Hazmat/ CBRN plan/ IOR resource/ guidance | I66: Partially compliant | J66: Train the Trainer courses being run by YAS to be rolled out | K66: EPRR Manager | L66: 2025-01-01
A67: =IF(OR(LEFT($C67,6)="Domain",$I67=LookUp!$A$3,$I67=LookUp!$A$4),MAX('EPRR Core Standards'!A$1:A66)+1,"") -> 41 | B67: =IFERROR(IF(B66+1>MAX('Core Criteria'!$C:$C),"",B66+1),"") -> 66 | C67: =IF($B67="","",IF(VLOOKUP($B67,'Core Criteria'!$C:$V,2,FALSE)="","",VLOOKUP($B67,'Core Criteria'!$C:$V,2,FALSE))) -> 64 | D67: =IF($B67="","",IF(VLOOKUP($B67,'Core Criteria'!$C:$V,3,FALSE)="","",VLOOKUP($B67,'Core Criteria'!$C:$V,3,FALSE))) -> Hazmat/CBRN | E67: =IF($B67="","",IF(VLOOKUP($B67,'Core Criteria'!$C:$V,4,FALSE)="","",VLOOKUP($B67,'Core Criteria'!$C:$V,4,FALSE))) -> Staff training - recognition and decontamination | F67: =IF($B67="","",IF(VLOOKUP($B67,'Core Criteria'!$C:$V,5,FALSE)="","",VLOOKUP($B67,'Core Criteria'!$C:$V,5,FALSE))) -> The organisation undertakes training for all staff who are most likely to come into contact with potentially contaminated patients and patients requiring decontamination. Staff that may make contact with a potentially contaminated patients, whether in person or over the phone, are sufficiently trained in Initial Operational Response (IOR) principles and isolation when necessary. (This includes (but is not limited to) acute, community, mental health and primary care settings such as minor injury units and urgent treatment centres) Staff undertaking patient decontamination are sufficiently trained to ensure a safe system of work can be implemented | G67: =IF($B67="","",IF(VLOOKUP($B67,'Core Criteria'!$C:$V,20,FALSE)="","",VLOOKUP($B67,'Core Criteria'!$C:$V,20,FALSE))) -> Evidence of trust training slides/programme and designated audience Evidence that the trust training includes reference to the relevant current guidance (where necessary) Staff competency records | H67: Training records | I67: Partially compliant | J67: EPRR to receive training records from Front of House | K67: EPRR Manager \ Admin Team Leaders | L67: 2025-01-01
A68: =IF(OR(LEFT($C68,6)="Domain",$I68=LookUp!$A$3,$I68=LookUp!$A$4),MAX('EPRR Core Standards'!A$1:A67)+1,"") ->  | B68: =IFERROR(IF(B67+1>MAX('Core Criteria'!$C:$C),"",B67+1),"") -> 67 | C68: =IF($B68="","",IF(VLOOKUP($B68,'Core Criteria'!$C:$V,2,FALSE)="","",VLOOKUP($B68,'Core Criteria'!$C:$V,2,FALSE))) -> 65 | D68: =IF($B68="","",IF(VLOOKUP($B68,'Core Criteria'!$C:$V,3,FALSE)="","",VLOOKUP($B68,'Core Criteria'!$C:$V,3,FALSE))) -> Hazmat/CBRN | E68: =IF($B68="","",IF(VLOOKUP($B68,'Core Criteria'!$C:$V,4,FALSE)="","",VLOOKUP($B68,'Core Criteria'!$C:$V,4,FALSE))) -> PPE Access | F68: =IF($B68="","",IF(VLOOKUP($B68,'Core Criteria'!$C:$V,5,FALSE)="","",VLOOKUP($B68,'Core Criteria'!$C:$V,5,FALSE))) -> Organisations must ensure that staff who come in to contact with patients requiring wet decontamination and patients with confirmed respiratory contamination have access to, and are trained to use, appropriate PPE. This includes maintaining the expected number of operational PRPS available for immediate deployment to safely undertake wet decontamination and/or access to FFP3 (or equivalent) 24/7 | G68: =IF($B68="","",IF(VLOOKUP($B68,'Core Criteria'!$C:$V,20,FALSE)="","",VLOOKUP($B68,'Core Criteria'!$C:$V,20,FALSE))) -> Completed equipment inventories; including completion date Fit testing schedule and records should be maintained for all staff who may come into contact with confirmed respiratory contamination Emergency Departments at Acute Trusts are required to maintain 24 Operational PRPS | H68: FOH monthly audit of Hazmat grab bags Recorded by EPRR | I68: Fully compliant
A69: =IF(OR(LEFT($C69,6)="Domain",$I69=LookUp!$A$3,$I69=LookUp!$A$4),MAX('EPRR Core Standards'!A$1:A68)+1,"") ->  | B69: =IFERROR(IF(B68+1>MAX('Core Criteria'!$C:$C),"",B68+1),"") -> 68 | C69: =IF($B69="","",IF(VLOOKUP($B69,'Core Criteria'!$C:$V,2,FALSE)="","",VLOOKUP($B69,'Core Criteria'!$C:$V,2,FALSE))) -> 66 | D69: =IF($B69="","",IF(VLOOKUP($B69,'Core Criteria'!$C:$V,3,FALSE)="","",VLOOKUP($B69,'Core Criteria'!$C:$V,3,FALSE))) -> Hazmat/CBRN | E69: =IF($B69="","",IF(VLOOKUP($B69,'Core Criteria'!$C:$V,4,FALSE)="","",VLOOKUP($B69,'Core Criteria'!$C:$V,4,FALSE))) -> Exercising | F69: =IF($B69="","",IF(VLOOKUP($B69,'Core Criteria'!$C:$V,5,FALSE)="","",VLOOKUP($B69,'Core Criteria'!$C:$V,5,FALSE))) -> Organisations must ensure that the exercising of Hazmat/CBRN plans and arrangements are incorporated in the organisations EPRR exercising and testing programme | G69: =IF($B69="","",IF(VLOOKUP($B69,'Core Criteria'!$C:$V,20,FALSE)="","",VLOOKUP($B69,'Core Criteria'!$C:$V,20,FALSE))) -> Evidence • Exercising Schedule which includes Hazmat/CBRN exercise • Post exercise reports and embedding learning | H69: Leeds based CBRN exercise 2022. LYPFT Exercise 2023 including hot and cold debriefs/ lessons learnt. NHSE national exercise schedule | I69: Fully compliant
A70: =IF(OR(LEFT($C70,6)="Domain",$I70=LookUp!$A$3,$I70=LookUp!$A$4),MAX('EPRR Core Standards'!A$1:A69)+1,"") ->  | B70: =IFERROR(IF(B69+1>MAX('Core Criteria'!$C:$C),"",B69+1),"") ->  | C70: =IF($B70="","",IF(VLOOKUP($B70,'Core Criteria'!$C:$V,2,FALSE)="","",VLOOKUP($B70,'Core Criteria'!$C:$V,2,FALSE))) ->  | D70: =IF($B70="","",IF(VLOOKUP($B70,'Core Criteria'!$C:$V,3,FALSE)="","",VLOOKUP($B70,'Core Criteria'!$C:$V,3,FALSE))) ->  | E70: =IF($B70="","",IF(VLOOKUP($B70,'Core Criteria'!$C:$V,4,FALSE)="","",VLOOKUP($B70,'Core Criteria'!$C:$V,4,FALSE))) ->  | F70: =IF($B70="","",IF(VLOOKUP($B70,'Core Criteria'!$C:$V,5,FALSE)="","",VLOOKUP($B70,'Core Criteria'!$C:$V,5,FALSE))) ->  | G70: =IF($B70="","",IF(VLOOKUP($B70,'Core Criteria'!$C:$V,20,FALSE)="","",VLOOKUP($B70,'Core Criteria'!$C:$V,20,FALSE))) -> 
A71: =IF(OR(LEFT($C71,6)="Domain",$I71=LookUp!$A$3,$I71=LookUp!$A$4),MAX('EPRR Core Standards'!A$1:A70)+1,"") ->  | B71: =IFERROR(IF(B70+1>MAX('Core Criteria'!$C:$C),"",B70+1),"") ->  | C71: =IF($B71="","",IF(VLOOKUP($B71,'Core Criteria'!$C:$V,2,FALSE)="","",VLOOKUP($B71,'Core Criteria'!$C:$V,2,FALSE))) ->  | D71: =IF($B71="","",IF(VLOOKUP($B71,'Core Criteria'!$C:$V,3,FALSE)="","",VLOOKUP($B71,'Core Criteria'!$C:$V,3,FALSE))) ->  | E71: =IF($B71="","",IF(VLOOKUP($B71,'Core Criteria'!$C:$V,4,FALSE)="","",VLOOKUP($B71,'Core Criteria'!$C:$V,4,FALSE))) ->  | F71: =IF($B71="","",IF(VLOOKUP($B71,'Core Criteria'!$C:$V,5,FALSE)="","",VLOOKUP($B71,'Core Criteria'!$C:$V,5,FALSE))) ->  | G71: =IF($B71="","",IF(VLOOKUP($B71,'Core Criteria'!$C:$V,20,FALSE)="","",VLOOKUP($B71,'Core Criteria'!$C:$V,20,FALSE))) -> 
A72: =IF(OR(LEFT($C72,6)="Domain",$I72=LookUp!$A$3,$I72=LookUp!$A$4),MAX('EPRR Core Standards'!A$1:A71)+1,"") ->  | B72: =IFERROR(IF(B71+1>MAX('Core Criteria'!$C:$C),"",B71+1),"") ->  | C72: =IF($B72="","",IF(VLOOKUP($B72,'Core Criteria'!$C:$V,2,FALSE)="","",VLOOKUP($B72,'Core Criteria'!$C:$V,2,FALSE))) ->  | D72: =IF($B72="","",IF(VLOOKUP($B72,'Core Criteria'!$C:$V,3,FALSE)="","",VLOOKUP($B72,'Core Criteria'!$C:$V,3,FALSE))) ->  | E72: =IF($B72="","",IF(VLOOKUP($B72,'Core Criteria'!$C:$V,4,FALSE)="","",VLOOKUP($B72,'Core Criteria'!$C:$V,4,FALSE))) ->  | F72: =IF($B72="","",IF(VLOOKUP($B72,'Core Criteria'!$C:$V,5,FALSE)="","",VLOOKUP($B72,'Core Criteria'!$C:$V,5,FALSE))) ->  | G72: =IF($B72="","",IF(VLOOKUP($B72,'Core Criteria'!$C:$V,20,FALSE)="","",VLOOKUP($B72,'Core Criteria'!$C:$V,20,FALSE))) -> 
A73: =IF(OR(LEFT($C73,6)="Domain",$I73=LookUp!$A$3,$I73=LookUp!$A$4),MAX('EPRR Core Standards'!A$1:A72)+1,"") ->  | B73: =IFERROR(IF(B72+1>MAX('Core Criteria'!$C:$C),"",B72+1),"") ->  | C73: =IF($B73="","",IF(VLOOKUP($B73,'Core Criteria'!$C:$V,2,FALSE)="","",VLOOKUP($B73,'Core Criteria'!$C:$V,2,FALSE))) ->  | D73: =IF($B73="","",IF(VLOOKUP($B73,'Core Criteria'!$C:$V,3,FALSE)="","",VLOOKUP($B73,'Core Criteria'!$C:$V,3,FALSE))) ->  | E73: =IF($B73="","",IF(VLOOKUP($B73,'Core Criteria'!$C:$V,4,FALSE)="","",VLOOKUP($B73,'Core Criteria'!$C:$V,4,FALSE))) ->  | F73: =IF($B73="","",IF(VLOOKUP($B73,'Core Criteria'!$C:$V,5,FALSE)="","",VLOOKUP($B73,'Core Criteria'!$C:$V,5,FALSE))) ->  | G73: =IF($B73="","",IF(VLOOKUP($B73,'Core Criteria'!$C:$V,20,FALSE)="","",VLOOKUP($B73,'Core Criteria'!$C:$V,20,FALSE))) -> 
A74: =IF(OR(LEFT($C74,6)="Domain",$I74=LookUp!$A$3,$I74=LookUp!$A$4),MAX('EPRR Core Standards'!A$1:A73)+1,"") ->  | B74: =IFERROR(IF(B73+1>MAX('Core Criteria'!$C:$C),"",B73+1),"") ->  | C74: =IF($B74="","",IF(VLOOKUP($B74,'Core Criteria'!$C:$V,2,FALSE)="","",VLOOKUP($B74,'Core Criteria'!$C:$V,2,FALSE))) ->  | D74: =IF($B74="","",IF(VLOOKUP($B74,'Core Criteria'!$C:$V,3,FALSE)="","",VLOOKUP($B74,'Core Criteria'!$C:$V,3,FALSE))) ->  | E74: =IF($B74="","",IF(VLOOKUP($B74,'Core Criteria'!$C:$V,4,FALSE)="","",VLOOKUP($B74,'Core Criteria'!$C:$V,4,FALSE))) ->  | F74: =IF($B74="","",IF(VLOOKUP($B74,'Core Criteria'!$C:$V,5,FALSE)="","",VLOOKUP($B74,'Core Criteria'!$C:$V,5,FALSE))) ->  | G74: =IF($B74="","",IF(VLOOKUP($B74,'Core Criteria'!$C:$V,20,FALSE)="","",VLOOKUP($B74,'Core Criteria'!$C:$V,20,FALSE))) -> 
A75: =IF(OR(LEFT($C75,6)="Domain",$I75=LookUp!$A$3,$I75=LookUp!$A$4),MAX('EPRR Core Standards'!A$1:A74)+1,"") ->  | B75: =IFERROR(IF(B74+1>MAX('Core Criteria'!$C:$C),"",B74+1),"") ->  | C75: =IF($B75="","",IF(VLOOKUP($B75,'Core Criteria'!$C:$V,2,FALSE)="","",VLOOKUP($B75,'Core Criteria'!$C:$V,2,FALSE))) ->  | D75: =IF($B75="","",IF(VLOOKUP($B75,'Core Criteria'!$C:$V,3,FALSE)="","",VLOOKUP($B75,'Core Criteria'!$C:$V,3,FALSE))) ->  | E75: =IF($B75="","",IF(VLOOKUP($B75,'Core Criteria'!$C:$V,4,FALSE)="","",VLOOKUP($B75,'Core Criteria'!$C:$V,4,FALSE))) ->  | F75: =IF($B75="","",IF(VLOOKUP($B75,'Core Criteria'!$C:$V,5,FALSE)="","",VLOOKUP($B75,'Core Criteria'!$C:$V,5,FALSE))) ->  | G75: =IF($B75="","",IF(VLOOKUP($B75,'Core Criteria'!$C:$V,20,FALSE)="","",VLOOKUP($B75,'Core Criteria'!$C:$V,20,FALSE))) -> 
A76: =IF(OR(LEFT($C76,6)="Domain",$I76=LookUp!$A$3,$I76=LookUp!$A$4),MAX('EPRR Core Standards'!A$1:A75)+1,"") ->  | B76: =IFERROR(IF(B75+1>MAX('Core Criteria'!$C:$C),"",B75+1),"") ->  | C76: =IF($B76="","",IF(VLOOKUP($B76,'Core Criteria'!$C:$V,2,FALSE)="","",VLOOKUP($B76,'Core Criteria'!$C:$V,2,FALSE))) ->  | D76: =IF($B76="","",IF(VLOOKUP($B76,'Core Criteria'!$C:$V,3,FALSE)="","",VLOOKUP($B76,'Core Criteria'!$C:$V,3,FALSE))) ->  | E76: =IF($B76="","",IF(VLOOKUP($B76,'Core Criteria'!$C:$V,4,FALSE)="","",VLOOKUP($B76,'Core Criteria'!$C:$V,4,FALSE))) ->  | F76: =IF($B76="","",IF(VLOOKUP($B76,'Core Criteria'!$C:$V,5,FALSE)="","",VLOOKUP($B76,'Core Criteria'!$C:$V,5,FALSE))) ->  | G76: =IF($B76="","",IF(VLOOKUP($B76,'Core Criteria'!$C:$V,20,FALSE)="","",VLOOKUP($B76,'Core Criteria'!$C:$V,20,FALSE))) -> 
A77: =IF(OR(LEFT($C77,6)="Domain",$I77=LookUp!$A$3,$I77=LookUp!$A$4),MAX('EPRR Core Standards'!A$1:A76)+1,"") ->  | B77: =IFERROR(IF(B76+1>MAX('Core Criteria'!$C:$C),"",B76+1),"") ->  | C77: =IF($B77="","",IF(VLOOKUP($B77,'Core Criteria'!$C:$V,2,FALSE)="","",VLOOKUP($B77,'Core Criteria'!$C:$V,2,FALSE))) ->  | D77: =IF($B77="","",IF(VLOOKUP($B77,'Core Criteria'!$C:$V,3,FALSE)="","",VLOOKUP($B77,'Core Criteria'!$C:$V,3,FALSE))) ->  | E77: =IF($B77="","",IF(VLOOKUP($B77,'Core Criteria'!$C:$V,4,FALSE)="","",VLOOKUP($B77,'Core Criteria'!$C:$V,4,FALSE))) ->  | F77: =IF($B77="","",IF(VLOOKUP($B77,'Core Criteria'!$C:$V,5,FALSE)="","",VLOOKUP($B77,'Core Criteria'!$C:$V,5,FALSE))) ->  | G77: =IF($B77="","",IF(VLOOKUP($B77,'Core Criteria'!$C:$V,20,FALSE)="","",VLOOKUP($B77,'Core Criteria'!$C:$V,20,FALSE))) -> 
A78: =IF(OR(LEFT($C78,6)="Domain",$I78=LookUp!$A$3,$I78=LookUp!$A$4),MAX('EPRR Core Standards'!A$1:A77)+1,"") ->  | B78: =IFERROR(IF(B77+1>MAX('Core Criteria'!$C:$C),"",B77+1),"") ->  | C78: =IF($B78="","",IF(VLOOKUP($B78,'Core Criteria'!$C:$V,2,FALSE)="","",VLOOKUP($B78,'Core Criteria'!$C:$V,2,FALSE))) ->  | D78: =IF($B78="","",IF(VLOOKUP($B78,'Core Criteria'!$C:$V,3,FALSE)="","",VLOOKUP($B78,'Core Criteria'!$C:$V,3,FALSE))) ->  | E78: =IF($B78="","",IF(VLOOKUP($B78,'Core Criteria'!$C:$V,4,FALSE)="","",VLOOKUP($B78,'Core Criteria'!$C:$V,4,FALSE))) ->  | F78: =IF($B78="","",IF(VLOOKUP($B78,'Core Criteria'!$C:$V,5,FALSE)="","",VLOOKUP($B78,'Core Criteria'!$C:$V,5,FALSE))) ->  | G78: =IF($B78="","",IF(VLOOKUP($B78,'Core Criteria'!$C:$V,20,FALSE)="","",VLOOKUP($B78,'Core Criteria'!$C:$V,20,FALSE))) -> 
A79: =IF(OR(LEFT($C79,6)="Domain",$I79=LookUp!$A$3,$I79=LookUp!$A$4),MAX('EPRR Core Standards'!A$1:A78)+1,"") ->  | B79: =IFERROR(IF(B78+1>MAX('Core Criteria'!$C:$C),"",B78+1),"") ->  | C79: =IF($B79="","",IF(VLOOKUP($B79,'Core Criteria'!$C:$V,2,FALSE)="","",VLOOKUP($B79,'Core Criteria'!$C:$V,2,FALSE))) ->  | D79: =IF($B79="","",IF(VLOOKUP($B79,'Core Criteria'!$C:$V,3,FALSE)="","",VLOOKUP($B79,'Core Criteria'!$C:$V,3,FALSE))) ->  | E79: =IF($B79="","",IF(VLOOKUP($B79,'Core Criteria'!$C:$V,4,FALSE)="","",VLOOKUP($B79,'Core Criteria'!$C:$V,4,FALSE))) ->  | F79: =IF($B79="","",IF(VLOOKUP($B79,'Core Criteria'!$C:$V,5,FALSE)="","",VLOOKUP($B79,'Core Criteria'!$C:$V,5,FALSE))) ->  | G79: =IF($B79="","",IF(VLOOKUP($B79,'Core Criteria'!$C:$V,20,FALSE)="","",VLOOKUP($B79,'Core Criteria'!$C:$V,20,FALSE))) -> 
A80: =IF(OR(LEFT($C80,6)="Domain",$I80=LookUp!$A$3,$I80=LookUp!$A$4),MAX('EPRR Core Standards'!A$1:A79)+1,"") ->  | B80: =IFERROR(IF(B79+1>MAX('Core Criteria'!$C:$C),"",B79+1),"") ->  | C80: =IF($B80="","",IF(VLOOKUP($B80,'Core Criteria'!$C:$V,2,FALSE)="","",VLOOKUP($B80,'Core Criteria'!$C:$V,2,FALSE))) ->  | D80: =IF($B80="","",IF(VLOOKUP($B80,'Core Criteria'!$C:$V,3,FALSE)="","",VLOOKUP($B80,'Core Criteria'!$C:$V,3,FALSE))) ->  | E80: =IF($B80="","",IF(VLOOKUP($B80,'Core Criteria'!$C:$V,4,FALSE)="","",VLOOKUP($B80,'Core Criteria'!$C:$V,4,FALSE))) ->  | F80: =IF($B80="","",IF(VLOOKUP($B80,'Core Criteria'!$C:$V,5,FALSE)="","",VLOOKUP($B80,'Core Criteria'!$C:$V,5,FALSE))) ->  | G80: =IF($B80="","",IF(VLOOKUP($B80,'Core Criteria'!$C:$V,20,FALSE)="","",VLOOKUP($B80,'Core Criteria'!$C:$V,20,FALSE))) -> 
A81: =IF(OR(LEFT($C81,6)="Domain",$I81=LookUp!$A$3,$I81=LookUp!$A$4),MAX('EPRR Core Standards'!A$1:A80)+1,"") ->  | B81: =IFERROR(IF(B80+1>MAX('Core Criteria'!$C:$C),"",B80+1),"") ->  | C81: =IF($B81="","",IF(VLOOKUP($B81,'Core Criteria'!$C:$V,2,FALSE)="","",VLOOKUP($B81,'Core Criteria'!$C:$V,2,FALSE))) ->  | D81: =IF($B81="","",IF(VLOOKUP($B81,'Core Criteria'!$C:$V,3,FALSE)="","",VLOOKUP($B81,'Core Criteria'!$C:$V,3,FALSE))) ->  | E81: =IF($B81="","",IF(VLOOKUP($B81,'Core Criteria'!$C:$V,4,FALSE)="","",VLOOKUP($B81,'Core Criteria'!$C:$V,4,FALSE))) ->  | F81: =IF($B81="","",IF(VLOOKUP($B81,'Core Criteria'!$C:$V,5,FALSE)="","",VLOOKUP($B81,'Core Criteria'!$C:$V,5,FALSE))) ->  | G81: =IF($B81="","",IF(VLOOKUP($B81,'Core Criteria'!$C:$V,20,FALSE)="","",VLOOKUP($B81,'Core Criteria'!$C:$V,20,FALSE))) -> 
A82: =IF(OR(LEFT($C82,6)="Domain",$I82=LookUp!$A$3,$I82=LookUp!$A$4),MAX('EPRR Core Standards'!A$1:A81)+1,"") ->  | B82: =IFERROR(IF(B81+1>MAX('Core Criteria'!$C:$C),"",B81+1),"") ->  | C82: =IF($B82="","",IF(VLOOKUP($B82,'Core Criteria'!$C:$V,2,FALSE)="","",VLOOKUP($B82,'Core Criteria'!$C:$V,2,FALSE))) ->  | D82: =IF($B82="","",IF(VLOOKUP($B82,'Core Criteria'!$C:$V,3,FALSE)="","",VLOOKUP($B82,'Core Criteria'!$C:$V,3,FALSE))) ->  | E82: =IF($B82="","",IF(VLOOKUP($B82,'Core Criteria'!$C:$V,4,FALSE)="","",VLOOKUP($B82,'Core Criteria'!$C:$V,4,FALSE))) ->  | F82: =IF($B82="","",IF(VLOOKUP($B82,'Core Criteria'!$C:$V,5,FALSE)="","",VLOOKUP($B82,'Core Criteria'!$C:$V,5,FALSE))) ->  | G82: =IF($B82="","",IF(VLOOKUP($B82,'Core Criteria'!$C:$V,20,FALSE)="","",VLOOKUP($B82,'Core Criteria'!$C:$V,20,FALSE))) -> 
A83: =IF(OR(LEFT($C83,6)="Domain",$I83=LookUp!$A$3,$I83=LookUp!$A$4),MAX('EPRR Core Standards'!A$1:A82)+1,"") ->  | B83: =IFERROR(IF(B82+1>MAX('Core Criteria'!$C:$C),"",B82+1),"") ->  | C83: =IF($B83="","",IF(VLOOKUP($B83,'Core Criteria'!$C:$V,2,FALSE)="","",VLOOKUP($B83,'Core Criteria'!$C:$V,2,FALSE))) ->  | D83: =IF($B83="","",IF(VLOOKUP($B83,'Core Criteria'!$C:$V,3,FALSE)="","",VLOOKUP($B83,'Core Criteria'!$C:$V,3,FALSE))) ->  | E83: =IF($B83="","",IF(VLOOKUP($B83,'Core Criteria'!$C:$V,4,FALSE)="","",VLOOKUP($B83,'Core Criteria'!$C:$V,4,FALSE))) ->  | F83: =IF($B83="","",IF(VLOOKUP($B83,'Core Criteria'!$C:$V,5,FALSE)="","",VLOOKUP($B83,'Core Criteria'!$C:$V,5,FALSE))) ->  | G83: =IF($B83="","",IF(VLOOKUP($B83,'Core Criteria'!$C:$V,20,FALSE)="","",VLOOKUP($B83,'Core Criteria'!$C:$V,20,FALSE))) -> 
A84: =IF(OR(LEFT($C84,6)="Domain",$I84=LookUp!$A$3,$I84=LookUp!$A$4),MAX('EPRR Core Standards'!A$1:A83)+1,"") ->  | B84: =IFERROR(IF(B83+1>MAX('Core Criteria'!$C:$C),"",B83+1),"") ->  | C84: =IF($B84="","",IF(VLOOKUP($B84,'Core Criteria'!$C:$V,2,FALSE)="","",VLOOKUP($B84,'Core Criteria'!$C:$V,2,FALSE))) ->  | D84: =IF($B84="","",IF(VLOOKUP($B84,'Core Criteria'!$C:$V,3,FALSE)="","",VLOOKUP($B84,'Core Criteria'!$C:$V,3,FALSE))) ->  | E84: =IF($B84="","",IF(VLOOKUP($B84,'Core Criteria'!$C:$V,4,FALSE)="","",VLOOKUP($B84,'Core Criteria'!$C:$V,4,FALSE))) ->  | F84: =IF($B84="","",IF(VLOOKUP($B84,'Core Criteria'!$C:$V,5,FALSE)="","",VLOOKUP($B84,'Core Criteria'!$C:$V,5,FALSE))) ->  | G84: =IF($B84="","",IF(VLOOKUP($B84,'Core Criteria'!$C:$V,20,FALSE)="","",VLOOKUP($B84,'Core Criteria'!$C:$V,20,FALSE))) -> 

Sheet Deep Dive Investigation
B1: Lookup | C1: Ref | D1: Domain | E1: Standard | F1: Deep Dive question | G1: Supporting evidence- including examples of evidence | H1: Organisational Evidence - Please provide details of arrangements in order to capture areas of good practice or further development. (Use comment column if required) | I1: Self assessment RAG Red (not compliant) = Not evidenced in EPRR arrangements. Amber (partially compliant) = Not evidenced in EPRR arrangements but have plans in place to include in the next 12 months. Green (fully compliant) = Evidenced in plans or EPRR arrangements and are tested/exercised as effective. | J1: Action to be taken | K1: Lead | L1: Timescale | M1: Comments
A2: =MAX('EPRR Core Standards'!A:A)+1 -> 42 | B2: 1 | C2: =IF($B2="","",IF(VLOOKUP($B2,'Deep Dive Criteria'!$C:$V,2,FALSE)="","",VLOOKUP($B2,'Deep Dive Criteria'!$C:$V,2,FALSE))) -> Deep Dive - Cyber Security and IT related incident response (NOT INCLUDED WITHIN THE ORGANISATION'S OVERALL EPRR ASSURANCE RATING)
A3: =IF(OR($I3=LookUp!$A$3,$I3=LookUp!$A$4),MAX(A$1:A2)+1,"") ->  | B3: =IFERROR(IF(B2+1>MAX('Deep Dive Criteria'!$C:$C),"",B2+1),"") -> 2 | C3: =IF($B3="","",IF(VLOOKUP($B3,'Deep Dive Criteria'!$C:$V,2,FALSE)="","",VLOOKUP($B3,'Deep Dive Criteria'!$C:$V,2,FALSE))) -> DD1 | D3: =IF($B3="","",IF(VLOOKUP($B3,'Deep Dive Criteria'!$C:$V,3,FALSE)="","",VLOOKUP($B3,'Deep Dive Criteria'!$C:$V,3,FALSE))) -> Deep Dive Cyber Security | E3: =IF($B3="","",IF(VLOOKUP($B3,'Deep Dive Criteria'!$C:$V,4,FALSE)="","",VLOOKUP($B3,'Deep Dive Criteria'!$C:$V,4,FALSE))) -> Cyber Security & IT related incident preparedness | F3: =IF($B3="","",IF(VLOOKUP($B3,'Deep Dive Criteria'!$C:$V,5,FALSE)="","",VLOOKUP($B3,'Deep Dive Criteria'!$C:$V,5,FALSE))) -> Cyber security and IT teams support the organisation's EPRR activity including delivery of the EPRR work programme to achieve business objectives outlined in organisational EPRR policy. | G3: =IF($B3="","",IF(VLOOKUP($B3,'Deep Dive Criteria'!$C:$V,6,FALSE)="","",VLOOKUP($B3,'Deep Dive Criteria'!$C:$V,6,FALSE))) -> -Cyber security and IT teams engaged with EPRR governance arrangement and are represented on EPRR committee membership (TOR and minutes) - Shared understanding of risks to the organisation and the population it serves with regards to EPRR - organisational risk assessments and risk registers -Plans and arrangements demonstrate a common understanding of incidents in line with EPRR framework and cyber security requirements. -EPRR work programme -Organisational EPRR policy | H3: Good engagement between EPRR and Informatics Team Emergency Planning Manager takes part in IT Annual Exercise Inclusion in EPRR Policy Joint consultation on Trust IRP and IT Cyber Incident Response Plan IT focus for 2024 Annual Trust Exercise - 02.10.24 - joint planning | I3: Fully compliant
A4: =IF(OR($I4=LookUp!$A$3,$I4=LookUp!$A$4),MAX(A$1:A3)+1,"") ->  | B4: =IFERROR(IF(B3+1>MAX('Deep Dive Criteria'!$C:$C),"",B3+1),"") -> 3 | C4: =IF($B4="","",IF(VLOOKUP($B4,'Deep Dive Criteria'!$C:$V,2,FALSE)="","",VLOOKUP($B4,'Deep Dive Criteria'!$C:$V,2,FALSE))) -> DD2 | D4: =IF($B4="","",IF(VLOOKUP($B4,'Deep Dive Criteria'!$C:$V,3,FALSE)="","",VLOOKUP($B4,'Deep Dive Criteria'!$C:$V,3,FALSE))) -> Deep Dive Cyber Security | E4: =IF($B4="","",IF(VLOOKUP($B4,'Deep Dive Criteria'!$C:$V,4,FALSE)="","",VLOOKUP($B4,'Deep Dive Criteria'!$C:$V,4,FALSE))) -> Cyber Security & IT related incident response arrangements | F4: =IF($B4="","",IF(VLOOKUP($B4,'Deep Dive Criteria'!$C:$V,5,FALSE)="","",VLOOKUP($B4,'Deep Dive Criteria'!$C:$V,5,FALSE))) -> The organisation has developed threat specific cyber security and IT related incident response arrangements with regard to relevant risk assessments and that dovetail with generic organisational response plans. | G4: =IF($B4="","",IF(VLOOKUP($B4,'Deep Dive Criteria'!$C:$V,6,FALSE)="","",VLOOKUP($B4,'Deep Dive Criteria'!$C:$V,6,FALSE))) -> Arrangements should: -consider the operational impact of such incidents -be current and include a routine review schedule -be tested regularly -be approved and signed off by the appropriate governance mechanisms -include clearly identified response roles and responsibilities -be shared appropriately with those required to use them -outline any equipment requirements -outline any staff training needs -include use of unambiguous language -demonstrate a common understanding of terminology used during incidents in line with the EPRR framework and cybersecurity requirements.' | H4: Cyber Incident Response Plan Clearly identified roles and responsibilities Annual Exercise Sits alongside Trust IRP re Command and Control arrangements Unambiguous Language | I4: Fully compliant
A5: =IF(OR($I5=LookUp!$A$3,$I5=LookUp!$A$4),MAX(A$1:A4)+1,"") -> 43 | B5: =IFERROR(IF(B4+1>MAX('Deep Dive Criteria'!$C:$C),"",B4+1),"") -> 4 | C5: =IF($B5="","",IF(VLOOKUP($B5,'Deep Dive Criteria'!$C:$V,2,FALSE)="","",VLOOKUP($B5,'Deep Dive Criteria'!$C:$V,2,FALSE))) -> DD3 | D5: =IF($B5="","",IF(VLOOKUP($B5,'Deep Dive Criteria'!$C:$V,3,FALSE)="","",VLOOKUP($B5,'Deep Dive Criteria'!$C:$V,3,FALSE))) -> Deep Dive Cyber Security | E5: =IF($B5="","",IF(VLOOKUP($B5,'Deep Dive Criteria'!$C:$V,4,FALSE)="","",VLOOKUP($B5,'Deep Dive Criteria'!$C:$V,4,FALSE))) -> Resilient Communication during Cyber Security & IT related incidents | F5: =IF($B5="","",IF(VLOOKUP($B5,'Deep Dive Criteria'!$C:$V,5,FALSE)="","",VLOOKUP($B5,'Deep Dive Criteria'!$C:$V,5,FALSE))) -> The organisation has arrangements in place for communicating with partners and stakeholders during cyber security and IT related incidents. | G5: =IF($B5="","",IF(VLOOKUP($B5,'Deep Dive Criteria'!$C:$V,6,FALSE)="","",VLOOKUP($B5,'Deep Dive Criteria'!$C:$V,6,FALSE))) -> Arrangements should consider the generic principles for enhancing communications resilience: 1. look beyond the technical solutions at processes and organisational arrangements 2. identify and review the critical communication activities that underpin your response arrangements 3. ensure diversity of technical solutions 4. adopt layered fall-back arrangements 5. plan for appropriate interoperability https://www.england.nhs.uk/wp-content/uploads/2019/03/national-resilient-telecommunications-guidance.pdf | H5: Cyber Incident Response Plan references Stakeholders ie TPP\NHSD\NHS Cyber Trust IRP contains EPRR contact details for partner organisations\Trusts Comms Action Cards | I5: Partially compliant | J5: Update Comms Pack | K5: Communications | L5: 2024-10-01
A6: =IF(OR($I6=LookUp!$A$3,$I6=LookUp!$A$4),MAX(A$1:A5)+1,"") -> 44 | B6: =IFERROR(IF(B5+1>MAX('Deep Dive Criteria'!$C:$C),"",B5+1),"") -> 5 | C6: =IF($B6="","",IF(VLOOKUP($B6,'Deep Dive Criteria'!$C:$V,2,FALSE)="","",VLOOKUP($B6,'Deep Dive Criteria'!$C:$V,2,FALSE))) -> DD4 | D6: =IF($B6="","",IF(VLOOKUP($B6,'Deep Dive Criteria'!$C:$V,3,FALSE)="","",VLOOKUP($B6,'Deep Dive Criteria'!$C:$V,3,FALSE))) -> Deep Dive Cyber Security | E6: =IF($B6="","",IF(VLOOKUP($B6,'Deep Dive Criteria'!$C:$V,4,FALSE)="","",VLOOKUP($B6,'Deep Dive Criteria'!$C:$V,4,FALSE))) -> Media Strategy | F6: =IF($B6="","",IF(VLOOKUP($B6,'Deep Dive Criteria'!$C:$V,5,FALSE)="","",VLOOKUP($B6,'Deep Dive Criteria'!$C:$V,5,FALSE))) -> The organisation has Incident communication plans and media strategies that include arrangements to agree media lines and the use of corporate and personal social media accounts during cyber security and IT related incidents | G6: =IF($B6="","",IF(VLOOKUP($B6,'Deep Dive Criteria'!$C:$V,6,FALSE)="","",VLOOKUP($B6,'Deep Dive Criteria'!$C:$V,6,FALSE))) -> - Incident communications plans and media strategy give consideration to cyber security incidents activities as well as clinical and operational impacts. - Agreed sign off processes for media and press releases in relation to Cyber security and IT related incidents. - Documented process for communications to regional and national teams - Incident communications plan and media strategy provides guidance for staff on providing comment, commentary or advice during an incident or where sensitive information is generated. | H6: Comms Pack \ Action Cards | I6: Partially compliant | J6: Update Comms Pack | K6: Communications | L6: 2024-10-01
A7: =IF(OR($I7=LookUp!$A$3,$I7=LookUp!$A$4),MAX(A$1:A6)+1,"") ->  | B7: =IFERROR(IF(B6+1>MAX('Deep Dive Criteria'!$C:$C),"",B6+1),"") -> 6 | C7: =IF($B7="","",IF(VLOOKUP($B7,'Deep Dive Criteria'!$C:$V,2,FALSE)="","",VLOOKUP($B7,'Deep Dive Criteria'!$C:$V,2,FALSE))) -> DD5 | D7: =IF($B7="","",IF(VLOOKUP($B7,'Deep Dive Criteria'!$C:$V,3,FALSE)="","",VLOOKUP($B7,'Deep Dive Criteria'!$C:$V,3,FALSE))) -> Deep Dive Cyber Security | E7: =IF($B7="","",IF(VLOOKUP($B7,'Deep Dive Criteria'!$C:$V,4,FALSE)="","",VLOOKUP($B7,'Deep Dive Criteria'!$C:$V,4,FALSE))) -> Testing and exercising | F7: =IF($B7="","",IF(VLOOKUP($B7,'Deep Dive Criteria'!$C:$V,5,FALSE)="","",VLOOKUP($B7,'Deep Dive Criteria'!$C:$V,5,FALSE))) -> The exercising and/ or testing of cyber security and IT related incident arrangements are included in the organisations EPRR exercise and testing programme. | G7: =IF($B7="","",IF(VLOOKUP($B7,'Deep Dive Criteria'!$C:$V,6,FALSE)="","",VLOOKUP($B7,'Deep Dive Criteria'!$C:$V,6,FALSE))) -> - Evidence of exercises held in last 12 months including post exercise reports - EPRR exercise and testing programme | H7: Annual Trust Exercise 02/10/2024 - Informatics scenario NHSE National Testing schedule EPRR Policy BCMS Service level BCP | I7: Fully compliant
A8: =IF(OR($I8=LookUp!$A$3,$I8=LookUp!$A$4),MAX(A$1:A7)+1,"") ->  | B8: =IFERROR(IF(B7+1>MAX('Deep Dive Criteria'!$C:$C),"",B7+1),"") -> 7 | C8: =IF($B8="","",IF(VLOOKUP($B8,'Deep Dive Criteria'!$C:$V,2,FALSE)="","",VLOOKUP($B8,'Deep Dive Criteria'!$C:$V,2,FALSE))) -> DD6 | D8: =IF($B8="","",IF(VLOOKUP($B8,'Deep Dive Criteria'!$C:$V,3,FALSE)="","",VLOOKUP($B8,'Deep Dive Criteria'!$C:$V,3,FALSE))) -> Deep Dive Cyber Security | E8: =IF($B8="","",IF(VLOOKUP($B8,'Deep Dive Criteria'!$C:$V,4,FALSE)="","",VLOOKUP($B8,'Deep Dive Criteria'!$C:$V,4,FALSE))) -> Continuous Improvement | F8: =IF($B8="","",IF(VLOOKUP($B8,'Deep Dive Criteria'!$C:$V,5,FALSE)="","",VLOOKUP($B8,'Deep Dive Criteria'!$C:$V,5,FALSE))) -> The organisation's Cyber Security and IT teams have processes in place to implement changes to threat specific response arrangements and embed learning following incidents and exercises | G8: =IF($B8="","",IF(VLOOKUP($B8,'Deep Dive Criteria'!$C:$V,6,FALSE)="","",VLOOKUP($B8,'Deep Dive Criteria'!$C:$V,6,FALSE))) -> - Cyber security and IT colleagues participation in debriefs following live incidents and exercises - lessons identified and implementation plans to address those lessons -agreed processes in place to adopt implementation of lessons identified - Evidence of updated incident plans post-incident/exercise | H8: Debriefs \ learning from incidents Trust EPRR Learning and Exercising Group Testing and learning feedback - DPST Toolkit | I8: Fully compliant
A9: =IF(OR($I9=LookUp!$A$3,$I9=LookUp!$A$4),MAX(A$1:A8)+1,"") -> 45 | B9: =IFERROR(IF(B8+1>MAX('Deep Dive Criteria'!$C:$C),"",B8+1),"") -> 8 | C9: =IF($B9="","",IF(VLOOKUP($B9,'Deep Dive Criteria'!$C:$V,2,FALSE)="","",VLOOKUP($B9,'Deep Dive Criteria'!$C:$V,2,FALSE))) -> DD7 | D9: =IF($B9="","",IF(VLOOKUP($B9,'Deep Dive Criteria'!$C:$V,3,FALSE)="","",VLOOKUP($B9,'Deep Dive Criteria'!$C:$V,3,FALSE))) -> Deep Dive Cyber Security | E9: =IF($B9="","",IF(VLOOKUP($B9,'Deep Dive Criteria'!$C:$V,4,FALSE)="","",VLOOKUP($B9,'Deep Dive Criteria'!$C:$V,4,FALSE))) -> Training Needs Analysis (TNA) | F9: =IF($B9="","",IF(VLOOKUP($B9,'Deep Dive Criteria'!$C:$V,5,FALSE)="","",VLOOKUP($B9,'Deep Dive Criteria'!$C:$V,5,FALSE))) -> Cyber security and IT related incident response roles are included in an organisation's TNA. | G9: =IF($B9="","",IF(VLOOKUP($B9,'Deep Dive Criteria'!$C:$V,6,FALSE)="","",VLOOKUP($B9,'Deep Dive Criteria'!$C:$V,6,FALSE))) -> - TNA includes Cyber security and IT related incident response roles - Attendance/participant lists showing cybersecurity and IT colleagues taking part in incident response training. | I9: Partially compliant | J9: No TNA in place
A10: =IF(OR($I10=LookUp!$A$3,$I10=LookUp!$A$4),MAX(A$1:A9)+1,"") ->  | B10: =IFERROR(IF(B9+1>MAX('Deep Dive Criteria'!$C:$C),"",B9+1),"") -> 9 | C10: =IF($B10="","",IF(VLOOKUP($B10,'Deep Dive Criteria'!$C:$V,2,FALSE)="","",VLOOKUP($B10,'Deep Dive Criteria'!$C:$V,2,FALSE))) -> DD8 | D10: =IF($B10="","",IF(VLOOKUP($B10,'Deep Dive Criteria'!$C:$V,3,FALSE)="","",VLOOKUP($B10,'Deep Dive Criteria'!$C:$V,3,FALSE))) -> Deep Dive Cyber Security | E10: =IF($B10="","",IF(VLOOKUP($B10,'Deep Dive Criteria'!$C:$V,4,FALSE)="","",VLOOKUP($B10,'Deep Dive Criteria'!$C:$V,4,FALSE))) -> EPRR Training | F10: =IF($B10="","",IF(VLOOKUP($B10,'Deep Dive Criteria'!$C:$V,5,FALSE)="","",VLOOKUP($B10,'Deep Dive Criteria'!$C:$V,5,FALSE))) -> The oranisation's EPRR awareness training includes the risk to the organisation of cyber security and IT related incidents and emergencies | G10: =IF($B10="","",IF(VLOOKUP($B10,'Deep Dive Criteria'!$C:$V,6,FALSE)="","",VLOOKUP($B10,'Deep Dive Criteria'!$C:$V,6,FALSE))) -> -Cyber security and IT related incidents and emergencies included in EPRR awareness training package | H10: Stat Man Training for all staff All staff Phishing Exercise - NHSD Data handling \ Info Governance training | I10: Fully compliant
A11: =IF(OR($I11=LookUp!$A$3,$I11=LookUp!$A$4),MAX(A$1:A10)+1,"") ->  | B11: =IFERROR(IF(B10+1>MAX('Deep Dive Criteria'!$C:$C),"",B10+1),"") -> 10 | C11: =IF($B11="","",IF(VLOOKUP($B11,'Deep Dive Criteria'!$C:$V,2,FALSE)="","",VLOOKUP($B11,'Deep Dive Criteria'!$C:$V,2,FALSE))) -> DD9 | D11: =IF($B11="","",IF(VLOOKUP($B11,'Deep Dive Criteria'!$C:$V,3,FALSE)="","",VLOOKUP($B11,'Deep Dive Criteria'!$C:$V,3,FALSE))) -> Deep Dive Cyber Security | E11: =IF($B11="","",IF(VLOOKUP($B11,'Deep Dive Criteria'!$C:$V,4,FALSE)="","",VLOOKUP($B11,'Deep Dive Criteria'!$C:$V,4,FALSE))) -> Business Impact Assessments | F11: =IF($B11="","",IF(VLOOKUP($B11,'Deep Dive Criteria'!$C:$V,5,FALSE)="","",VLOOKUP($B11,'Deep Dive Criteria'!$C:$V,5,FALSE))) -> The Cyber Security and IT teams are aware of the organisations's critical functions and the dependencies on IT core systems and infrastrucure for the safe and effective delivery of these services | G11: =IF($B11="","",IF(VLOOKUP($B11,'Deep Dive Criteria'!$C:$V,6,FALSE)="","",VLOOKUP($B11,'Deep Dive Criteria'!$C:$V,6,FALSE))) -> -robust Business Impact Analysis including core systems -list of the organisations critical services and functions -list of the organisations core IT/Digital systems and prioritisation of system recovery | H11: Information Asset Register Annual return re business critical IT\Digital systems - DPST BIA undertaken prior to development of Informatics BCP | I11: Fully compliant
A12: =IF(OR($I12=LookUp!$A$3,$I12=LookUp!$A$4),MAX(A$1:A11)+1,"") ->  | B12: =IFERROR(IF(B11+1>MAX('Deep Dive Criteria'!$C:$C),"",B11+1),"") -> 11 | C12: =IF($B12="","",IF(VLOOKUP($B12,'Deep Dive Criteria'!$C:$V,2,FALSE)="","",VLOOKUP($B12,'Deep Dive Criteria'!$C:$V,2,FALSE))) -> DD10 | D12: =IF($B12="","",IF(VLOOKUP($B12,'Deep Dive Criteria'!$C:$V,3,FALSE)="","",VLOOKUP($B12,'Deep Dive Criteria'!$C:$V,3,FALSE))) -> Deep Dive Cyber Security | E12: =IF($B12="","",IF(VLOOKUP($B12,'Deep Dive Criteria'!$C:$V,4,FALSE)="","",VLOOKUP($B12,'Deep Dive Criteria'!$C:$V,4,FALSE))) -> Business Continuity Management System | F12: =IF($B12="","",IF(VLOOKUP($B12,'Deep Dive Criteria'!$C:$V,5,FALSE)="","",VLOOKUP($B12,'Deep Dive Criteria'!$C:$V,5,FALSE))) -> Cyber Security and IT systems and infrastructure are considered within the scope and objectives of the organisation's Business Continuity Management System (BCMS) | G12: =IF($B12="","",IF(VLOOKUP($B12,'Deep Dive Criteria'!$C:$V,6,FALSE)="","",VLOOKUP($B12,'Deep Dive Criteria'!$C:$V,6,FALSE))) -> -Reflected in the organisation's Business Continuity Policy -key products and services within the scope of BCMS -Appropriate risk assessments | H12: BCMS EPRR Policy Trust Risk Register | I12: Fully compliant
A13: =IF(OR($I13=LookUp!$A$3,$I13=LookUp!$A$4),MAX(A$1:A12)+1,"") ->  | B13: =IFERROR(IF(B12+1>MAX('Deep Dive Criteria'!$C:$C),"",B12+1),"") -> 12 | C13: =IF($B13="","",IF(VLOOKUP($B13,'Deep Dive Criteria'!$C:$V,2,FALSE)="","",VLOOKUP($B13,'Deep Dive Criteria'!$C:$V,2,FALSE))) -> DD11 | D13: =IF($B13="","",IF(VLOOKUP($B13,'Deep Dive Criteria'!$C:$V,3,FALSE)="","",VLOOKUP($B13,'Deep Dive Criteria'!$C:$V,3,FALSE))) -> Deep Dive Cyber Security | E13: =IF($B13="","",IF(VLOOKUP($B13,'Deep Dive Criteria'!$C:$V,4,FALSE)="","",VLOOKUP($B13,'Deep Dive Criteria'!$C:$V,4,FALSE))) -> Business Continuity Arrangments | F13: =IF($B13="","",IF(VLOOKUP($B13,'Deep Dive Criteria'!$C:$V,5,FALSE)="","",VLOOKUP($B13,'Deep Dive Criteria'!$C:$V,5,FALSE))) -> IT Disaster Recovery arrangements for core IT systems and infrastructure are included with the organisation's Business Continuity arrangements for the safe delivery of critical services identified in the organisation's business impact assessments | G13: =IF($B13="","",IF(VLOOKUP($B13,'Deep Dive Criteria'!$C:$V,6,FALSE)="","",VLOOKUP($B13,'Deep Dive Criteria'!$C:$V,6,FALSE))) -> - Business Continuity Plans for critical services provided by the organisation include core systems -Disaster recovery plans for core systems -Cyber security and IT departments own BCP which includes contacts for key personnel outside of normal working hours | H13: Informatics BCP (not disaster recovery plan) Includes contacts for key personnel outside of normal working hours - 1st and 2nd On-call Manager Core suppliers hold Disaster Recovery Plans IT Disruption included in Trust-wide BCP and service level BCPs | I13: Fully compliant
A14: =IF(OR($I14=LookUp!$A$3,$I14=LookUp!$A$4),MAX(A$1:A13)+1,"") ->  | B14: =IFERROR(IF(B13+1>MAX('Deep Dive Criteria'!$C:$C),"",B13+1),"") -> 
A15: =IF(OR($I15=LookUp!$A$3,$I15=LookUp!$A$4),MAX(A$1:A14)+1,"") ->  | B15: =IFERROR(IF(B14+1>MAX('Deep Dive Criteria'!$C:$C),"",B14+1),"") -> 
A16: =IF(OR($I16=LookUp!$A$3,$I16=LookUp!$A$4),MAX(A$1:A15)+1,"") ->  | B16: =IFERROR(IF(B15+1>MAX('Deep Dive Criteria'!$C:$C),"",B15+1),"") -> 
A17: =IF(OR($I17=LookUp!$A$3,$I17=LookUp!$A$4),MAX(A$1:A16)+1,"") ->  | B17: =IFERROR(IF(B16+1>MAX('Deep Dive Criteria'!$C:$C),"",B16+1),"") -> 
A18: =IF(OR($I18=LookUp!$A$3,$I18=LookUp!$A$4),MAX(A$1:A17)+1,"") ->  | B18: =IFERROR(IF(B17+1>MAX('Deep Dive Criteria'!$C:$C),"",B17+1),"") -> 
A19: =IF(OR($I19=LookUp!$A$3,$I19=LookUp!$A$4),MAX(A$1:A18)+1,"") ->  | B19: =IFERROR(IF(B18+1>MAX('Deep Dive Criteria'!$C:$C),"",B18+1),"") -> 
A20: =IF(OR($I20=LookUp!$A$3,$I20=LookUp!$A$4),MAX(A$1:A19)+1,"") ->  | B20: =IFERROR(IF(B19+1>MAX('Deep Dive Criteria'!$C:$C),"",B19+1),"") -> 

Sheet Action Plan
B1: Overall self assesment rating:
B2: Ref | C2: Domain | D2: Standard name | E2: Standard Detail | F2: Supporting Information - including examples of evidence | G2: Organisational Evidence | H2: Self assessment RAG Red (not compliant) = Not compliant with the core standard. The organisation’s work programme shows compliance will not be reached within the next 12 months. Amber (partially compliant) = Not compliant with core standard. However, the organisation’s work programme demonstrates sufficient evidence of progress and an action plan to achieve full compliance within the next 12 months. Green (fully compliant) = Fully compliant with core standard. | I2: Action to be taken | J2: Lead | K2: Timescale | L2: Comments
A3: 1 | B3: =IFERROR(IFERROR(VLOOKUP($A3,'EPRR Core Standards'!$A$2:$M$84,3,FALSE),VLOOKUP($A3,'Deep Dive Investigation'!$A$2:$M$84,3,FALSE)),"") -> Domain 1 - Governance | C3: =IFERROR(IFERROR(VLOOKUP($A3,'EPRR Core Standards'!$A$2:$M$84,4,FALSE),VLOOKUP($A3,'Deep Dive Investigation'!$A$2:$M$84,4,FALSE)),"") ->  | D3: =IFERROR(IFERROR(VLOOKUP($A3,'EPRR Core Standards'!$A$2:$M$84,5,FALSE),VLOOKUP($A3,'Deep Dive Investigation'!$A$2:$M$84,5,FALSE)),"") ->  | E3: =IFERROR(IFERROR(VLOOKUP($A3,'EPRR Core Standards'!$A$2:$M$84,6,FALSE),VLOOKUP($A3,'Deep Dive Investigation'!$A$2:$M$84,6,FALSE)),"") ->  | F3: =IFERROR(IFERROR(VLOOKUP($A3,'EPRR Core Standards'!$A$2:$M$84,7,FALSE),VLOOKUP($A3,'Deep Dive Investigation'!$A$2:$M$84,7,FALSE)),"") ->  | G3: =IF(ISBLANK(IFERROR(IFERROR(VLOOKUP($A3,'EPRR Core Standards'!$A$2:$M$84,8,FALSE),VLOOKUP($A3,'Deep Dive Investigation'!$A$2:$M$84,8,FALSE)),""))=TRUE,"",IFERROR(IFERROR(VLOOKUP($A3,'EPRR Core Standards'!$A$2:$M$84,8,FALSE),VLOOKUP($A3,'Deep Dive Investigation'!$A$2:$M$84,8,FALSE)),"")) ->  | H3: =IF(ISBLANK(IFERROR(IFERROR(VLOOKUP($A3,'EPRR Core Standards'!$A$2:$M$84,9,FALSE),VLOOKUP($A3,'Deep Dive Investigation'!$A$2:$M$84,9,FALSE)),""))=TRUE,"",IFERROR(IFERROR(VLOOKUP($A3,'EPRR Core Standards'!$A$2:$M$84,9,FALSE),VLOOKUP($A3,'Deep Dive Investigation'!$A$2:$M$84,9,FALSE)),"")) ->  | I3: =IF(ISBLANK(IFERROR(IFERROR(VLOOKUP($A3,'EPRR Core Standards'!$A$2:$M$84,10,FALSE),VLOOKUP($A3,'Deep Dive Investigation'!$A$2:$M$84,10,FALSE)),""))=TRUE,"",IFERROR(IFERROR(VLOOKUP($A3,'EPRR Core Standards'!$A$2:$M$84,10,FALSE),VLOOKUP($A3,'Deep Dive Investigation'!$A$2:$M$84,10,FALSE)),"")) ->  | J3: =IF(ISBLANK(IFERROR(IFERROR(VLOOKUP($A3,'EPRR Core Standards'!$A$2:$M$84,11,FALSE),VLOOKUP($A3,'Deep Dive Investigation'!$A$2:$M$84,11,FALSE)),""))=TRUE,"",IFERROR(IFERROR(VLOOKUP($A3,'EPRR Core Standards'!$A$2:$M$84,11,FALSE),VLOOKUP($A3,'Deep Dive Investigation'!$A$2:$M$84,11,FALSE)),"")) ->  | K3: =IF(ISBLANK(IFERROR(IFERROR(VLOOKUP($A3,'EPRR Core Standards'!$A$2:$M$84,12,FALSE),VLOOKUP($A3,'Deep Dive Investigation'!$A$2:$M$84,12,FALSE)),""))=TRUE,"",IFERROR(IFERROR(VLOOKUP($A3,'EPRR Core Standards'!$A$2:$M$84,12,FALSE),VLOOKUP($A3,'Deep Dive Investigation'!$A$2:$M$84,12,FALSE)),"")) ->  | L3: =IF(ISBLANK(IFERROR(IFERROR(VLOOKUP($A3,'EPRR Core Standards'!$A$2:$M$84,13,FALSE),VLOOKUP($A3,'Deep Dive Investigation'!$A$2:$M$84,13,FALSE)),""))=TRUE,"",IFERROR(IFERROR(VLOOKUP($A3,'EPRR Core Standards'!$A$2:$M$84,13,FALSE),VLOOKUP($A3,'Deep Dive Investigation'!$A$2:$M$84,13,FALSE)),"")) -> 
A4: 2 | B4: =IFERROR(IFERROR(VLOOKUP($A4,'EPRR Core Standards'!$A$2:$M$84,3,FALSE),VLOOKUP($A4,'Deep Dive Investigation'!$A$2:$M$84,3,FALSE)),"") -> 2 | C4: =IFERROR(IFERROR(VLOOKUP($A4,'EPRR Core Standards'!$A$2:$M$84,4,FALSE),VLOOKUP($A4,'Deep Dive Investigation'!$A$2:$M$84,4,FALSE)),"") -> Governance | D4: =IFERROR(IFERROR(VLOOKUP($A4,'EPRR Core Standards'!$A$2:$M$84,5,FALSE),VLOOKUP($A4,'Deep Dive Investigation'!$A$2:$M$84,5,FALSE)),"") -> EPRR Policy Statement | E4: =IFERROR(IFERROR(VLOOKUP($A4,'EPRR Core Standards'!$A$2:$M$84,6,FALSE),VLOOKUP($A4,'Deep Dive Investigation'!$A$2:$M$84,6,FALSE)),"") -> The organisation has an overarching EPRR policy or statement of intent. This should take into account the organisation’s: • Business objectives and processes • Key suppliers and contractual arrangements • Risk assessment(s) • Functions and / or organisation, structural and staff changes. | F4: =IFERROR(IFERROR(VLOOKUP($A4,'EPRR Core Standards'!$A$2:$M$84,7,FALSE),VLOOKUP($A4,'Deep Dive Investigation'!$A$2:$M$84,7,FALSE)),"") -> The policy should: • Have a review schedule and version control • Use unambiguous terminology • Identify those responsible for ensuring policies and arrangements are updated, distributed and regularly tested and exercised • Include references to other sources of information and supporting documentation. Evidence Up to date EPRR policy or statement of intent that includes: • Resourcing commitment • Access to funds • Commitment to Emergency Planning, Business Continuity, Training, Exercising etc. | G4: =IF(ISBLANK(IFERROR(IFERROR(VLOOKUP($A4,'EPRR Core Standards'!$A$2:$M$84,8,FALSE),VLOOKUP($A4,'Deep Dive Investigation'!$A$2:$M$84,8,FALSE)),""))=TRUE,"",IFERROR(IFERROR(VLOOKUP($A4,'EPRR Core Standards'!$A$2:$M$84,8,FALSE),VLOOKUP($A4,'Deep Dive Investigation'!$A$2:$M$84,8,FALSE)),"")) -> EPRR policy statement final. | H4: =IF(ISBLANK(IFERROR(IFERROR(VLOOKUP($A4,'EPRR Core Standards'!$A$2:$M$84,9,FALSE),VLOOKUP($A4,'Deep Dive Investigation'!$A$2:$M$84,9,FALSE)),""))=TRUE,"",IFERROR(IFERROR(VLOOKUP($A4,'EPRR Core Standards'!$A$2:$M$84,9,FALSE),VLOOKUP($A4,'Deep Dive Investigation'!$A$2:$M$84,9,FALSE)),"")) -> Partially compliant | I4: =IF(ISBLANK(IFERROR(IFERROR(VLOOKUP($A4,'EPRR Core Standards'!$A$2:$M$84,10,FALSE),VLOOKUP($A4,'Deep Dive Investigation'!$A$2:$M$84,10,FALSE)),""))=TRUE,"",IFERROR(IFERROR(VLOOKUP($A4,'EPRR Core Standards'!$A$2:$M$84,10,FALSE),VLOOKUP($A4,'Deep Dive Investigation'!$A$2:$M$84,10,FALSE)),"")) -> Final draft to be reviewed and sent to business committee | J4: =IF(ISBLANK(IFERROR(IFERROR(VLOOKUP($A4,'EPRR Core Standards'!$A$2:$M$84,11,FALSE),VLOOKUP($A4,'Deep Dive Investigation'!$A$2:$M$84,11,FALSE)),""))=TRUE,"",IFERROR(IFERROR(VLOOKUP($A4,'EPRR Core Standards'!$A$2:$M$84,11,FALSE),VLOOKUP($A4,'Deep Dive Investigation'!$A$2:$M$84,11,FALSE)),"")) -> EPRR Manager | K4: =IF(ISBLANK(IFERROR(IFERROR(VLOOKUP($A4,'EPRR Core Standards'!$A$2:$M$84,12,FALSE),VLOOKUP($A4,'Deep Dive Investigation'!$A$2:$M$84,12,FALSE)),""))=TRUE,"",IFERROR(IFERROR(VLOOKUP($A4,'EPRR Core Standards'!$A$2:$M$84,12,FALSE),VLOOKUP($A4,'Deep Dive Investigation'!$A$2:$M$84,12,FALSE)),"")) -> 45566 | L4: =IF(ISBLANK(IFERROR(IFERROR(VLOOKUP($A4,'EPRR Core Standards'!$A$2:$M$84,13,FALSE),VLOOKUP($A4,'Deep Dive Investigation'!$A$2:$M$84,13,FALSE)),""))=TRUE,"",IFERROR(IFERROR(VLOOKUP($A4,'EPRR Core Standards'!$A$2:$M$84,13,FALSE),VLOOKUP($A4,'Deep Dive Investigation'!$A$2:$M$84,13,FALSE)),"")) -> 
A5: 3 | B5: =IFERROR(IFERROR(VLOOKUP($A5,'EPRR Core Standards'!$A$2:$M$84,3,FALSE),VLOOKUP($A5,'Deep Dive Investigation'!$A$2:$M$84,3,FALSE)),"") -> 5 | C5: =IFERROR(IFERROR(VLOOKUP($A5,'EPRR Core Standards'!$A$2:$M$84,4,FALSE),VLOOKUP($A5,'Deep Dive Investigation'!$A$2:$M$84,4,FALSE)),"") -> Governance | D5: =IFERROR(IFERROR(VLOOKUP($A5,'EPRR Core Standards'!$A$2:$M$84,5,FALSE),VLOOKUP($A5,'Deep Dive Investigation'!$A$2:$M$84,5,FALSE)),"") -> EPRR Resource | E5: =IFERROR(IFERROR(VLOOKUP($A5,'EPRR Core Standards'!$A$2:$M$84,6,FALSE),VLOOKUP($A5,'Deep Dive Investigation'!$A$2:$M$84,6,FALSE)),"") -> The Board / Governing Body is satisfied that the organisation has sufficient and appropriate resource to ensure it can fully discharge its EPRR duties. | F5: =IFERROR(IFERROR(VLOOKUP($A5,'EPRR Core Standards'!$A$2:$M$84,7,FALSE),VLOOKUP($A5,'Deep Dive Investigation'!$A$2:$M$84,7,FALSE)),"") -> Evidence • EPRR Policy identifies resources required to fulfil EPRR function; policy has been signed off by the organisation's Board • Assessment of role / resources • Role description of EPRR Staff/ staff who undertake the EPRR responsibilities • Organisation structure chart • Internal Governance process chart including EPRR group | G5: =IF(ISBLANK(IFERROR(IFERROR(VLOOKUP($A5,'EPRR Core Standards'!$A$2:$M$84,8,FALSE),VLOOKUP($A5,'Deep Dive Investigation'!$A$2:$M$84,8,FALSE)),""))=TRUE,"",IFERROR(IFERROR(VLOOKUP($A5,'EPRR Core Standards'!$A$2:$M$84,8,FALSE),VLOOKUP($A5,'Deep Dive Investigation'!$A$2:$M$84,8,FALSE)),"")) -> Job description of EPRR manager. EPRR policy | H5: =IF(ISBLANK(IFERROR(IFERROR(VLOOKUP($A5,'EPRR Core Standards'!$A$2:$M$84,9,FALSE),VLOOKUP($A5,'Deep Dive Investigation'!$A$2:$M$84,9,FALSE)),""))=TRUE,"",IFERROR(IFERROR(VLOOKUP($A5,'EPRR Core Standards'!$A$2:$M$84,9,FALSE),VLOOKUP($A5,'Deep Dive Investigation'!$A$2:$M$84,9,FALSE)),"")) -> Partially compliant | I5: =IF(ISBLANK(IFERROR(IFERROR(VLOOKUP($A5,'EPRR Core Standards'!$A$2:$M$84,10,FALSE),VLOOKUP($A5,'Deep Dive Investigation'!$A$2:$M$84,10,FALSE)),""))=TRUE,"",IFERROR(IFERROR(VLOOKUP($A5,'EPRR Core Standards'!$A$2:$M$84,10,FALSE),VLOOKUP($A5,'Deep Dive Investigation'!$A$2:$M$84,10,FALSE)),"")) -> Governance structure. Terms of reference for Senior leadeership team group. Terms of reference for EPRR Exercise and Learning Group. Improvement plan showing resources required. | J5: =IF(ISBLANK(IFERROR(IFERROR(VLOOKUP($A5,'EPRR Core Standards'!$A$2:$M$84,11,FALSE),VLOOKUP($A5,'Deep Dive Investigation'!$A$2:$M$84,11,FALSE)),""))=TRUE,"",IFERROR(IFERROR(VLOOKUP($A5,'EPRR Core Standards'!$A$2:$M$84,11,FALSE),VLOOKUP($A5,'Deep Dive Investigation'!$A$2:$M$84,11,FALSE)),"")) -> EPRR Manager | K5: =IF(ISBLANK(IFERROR(IFERROR(VLOOKUP($A5,'EPRR Core Standards'!$A$2:$M$84,12,FALSE),VLOOKUP($A5,'Deep Dive Investigation'!$A$2:$M$84,12,FALSE)),""))=TRUE,"",IFERROR(IFERROR(VLOOKUP($A5,'EPRR Core Standards'!$A$2:$M$84,12,FALSE),VLOOKUP($A5,'Deep Dive Investigation'!$A$2:$M$84,12,FALSE)),"")) -> 45597 | L5: =IF(ISBLANK(IFERROR(IFERROR(VLOOKUP($A5,'EPRR Core Standards'!$A$2:$M$84,13,FALSE),VLOOKUP($A5,'Deep Dive Investigation'!$A$2:$M$84,13,FALSE)),""))=TRUE,"",IFERROR(IFERROR(VLOOKUP($A5,'EPRR Core Standards'!$A$2:$M$84,13,FALSE),VLOOKUP($A5,'Deep Dive Investigation'!$A$2:$M$84,13,FALSE)),"")) -> 
A6: 4 | B6: =IFERROR(IFERROR(VLOOKUP($A6,'EPRR Core Standards'!$A$2:$M$84,3,FALSE),VLOOKUP($A6,'Deep Dive Investigation'!$A$2:$M$84,3,FALSE)),"") -> Domain 2 - Duty to risk assess | C6: =IFERROR(IFERROR(VLOOKUP($A6,'EPRR Core Standards'!$A$2:$M$84,4,FALSE),VLOOKUP($A6,'Deep Dive Investigation'!$A$2:$M$84,4,FALSE)),"") ->  | D6: =IFERROR(IFERROR(VLOOKUP($A6,'EPRR Core Standards'!$A$2:$M$84,5,FALSE),VLOOKUP($A6,'Deep Dive Investigation'!$A$2:$M$84,5,FALSE)),"") ->  | E6: =IFERROR(IFERROR(VLOOKUP($A6,'EPRR Core Standards'!$A$2:$M$84,6,FALSE),VLOOKUP($A6,'Deep Dive Investigation'!$A$2:$M$84,6,FALSE)),"") ->  | F6: =IFERROR(IFERROR(VLOOKUP($A6,'EPRR Core Standards'!$A$2:$M$84,7,FALSE),VLOOKUP($A6,'Deep Dive Investigation'!$A$2:$M$84,7,FALSE)),"") ->  | G6: =IF(ISBLANK(IFERROR(IFERROR(VLOOKUP($A6,'EPRR Core Standards'!$A$2:$M$84,8,FALSE),VLOOKUP($A6,'Deep Dive Investigation'!$A$2:$M$84,8,FALSE)),""))=TRUE,"",IFERROR(IFERROR(VLOOKUP($A6,'EPRR Core Standards'!$A$2:$M$84,8,FALSE),VLOOKUP($A6,'Deep Dive Investigation'!$A$2:$M$84,8,FALSE)),"")) ->  | H6: =IF(ISBLANK(IFERROR(IFERROR(VLOOKUP($A6,'EPRR Core Standards'!$A$2:$M$84,9,FALSE),VLOOKUP($A6,'Deep Dive Investigation'!$A$2:$M$84,9,FALSE)),""))=TRUE,"",IFERROR(IFERROR(VLOOKUP($A6,'EPRR Core Standards'!$A$2:$M$84,9,FALSE),VLOOKUP($A6,'Deep Dive Investigation'!$A$2:$M$84,9,FALSE)),"")) ->  | I6: =IF(ISBLANK(IFERROR(IFERROR(VLOOKUP($A6,'EPRR Core Standards'!$A$2:$M$84,10,FALSE),VLOOKUP($A6,'Deep Dive Investigation'!$A$2:$M$84,10,FALSE)),""))=TRUE,"",IFERROR(IFERROR(VLOOKUP($A6,'EPRR Core Standards'!$A$2:$M$84,10,FALSE),VLOOKUP($A6,'Deep Dive Investigation'!$A$2:$M$84,10,FALSE)),"")) ->  | J6: =IF(ISBLANK(IFERROR(IFERROR(VLOOKUP($A6,'EPRR Core Standards'!$A$2:$M$84,11,FALSE),VLOOKUP($A6,'Deep Dive Investigation'!$A$2:$M$84,11,FALSE)),""))=TRUE,"",IFERROR(IFERROR(VLOOKUP($A6,'EPRR Core Standards'!$A$2:$M$84,11,FALSE),VLOOKUP($A6,'Deep Dive Investigation'!$A$2:$M$84,11,FALSE)),"")) ->  | K6: =IF(ISBLANK(IFERROR(IFERROR(VLOOKUP($A6,'EPRR Core Standards'!$A$2:$M$84,12,FALSE),VLOOKUP($A6,'Deep Dive Investigation'!$A$2:$M$84,12,FALSE)),""))=TRUE,"",IFERROR(IFERROR(VLOOKUP($A6,'EPRR Core Standards'!$A$2:$M$84,12,FALSE),VLOOKUP($A6,'Deep Dive Investigation'!$A$2:$M$84,12,FALSE)),"")) ->  | L6: =IF(ISBLANK(IFERROR(IFERROR(VLOOKUP($A6,'EPRR Core Standards'!$A$2:$M$84,13,FALSE),VLOOKUP($A6,'Deep Dive Investigation'!$A$2:$M$84,13,FALSE)),""))=TRUE,"",IFERROR(IFERROR(VLOOKUP($A6,'EPRR Core Standards'!$A$2:$M$84,13,FALSE),VLOOKUP($A6,'Deep Dive Investigation'!$A$2:$M$84,13,FALSE)),"")) -> 
A7: 5 | B7: =IFERROR(IFERROR(VLOOKUP($A7,'EPRR Core Standards'!$A$2:$M$84,3,FALSE),VLOOKUP($A7,'Deep Dive Investigation'!$A$2:$M$84,3,FALSE)),"") -> Domain 3 - Duty to maintain Plans | C7: =IFERROR(IFERROR(VLOOKUP($A7,'EPRR Core Standards'!$A$2:$M$84,4,FALSE),VLOOKUP($A7,'Deep Dive Investigation'!$A$2:$M$84,4,FALSE)),"") ->  | D7: =IFERROR(IFERROR(VLOOKUP($A7,'EPRR Core Standards'!$A$2:$M$84,5,FALSE),VLOOKUP($A7,'Deep Dive Investigation'!$A$2:$M$84,5,FALSE)),"") ->  | E7: =IFERROR(IFERROR(VLOOKUP($A7,'EPRR Core Standards'!$A$2:$M$84,6,FALSE),VLOOKUP($A7,'Deep Dive Investigation'!$A$2:$M$84,6,FALSE)),"") ->  | F7: =IFERROR(IFERROR(VLOOKUP($A7,'EPRR Core Standards'!$A$2:$M$84,7,FALSE),VLOOKUP($A7,'Deep Dive Investigation'!$A$2:$M$84,7,FALSE)),"") ->  | G7: =IF(ISBLANK(IFERROR(IFERROR(VLOOKUP($A7,'EPRR Core Standards'!$A$2:$M$84,8,FALSE),VLOOKUP($A7,'Deep Dive Investigation'!$A$2:$M$84,8,FALSE)),""))=TRUE,"",IFERROR(IFERROR(VLOOKUP($A7,'EPRR Core Standards'!$A$2:$M$84,8,FALSE),VLOOKUP($A7,'Deep Dive Investigation'!$A$2:$M$84,8,FALSE)),"")) ->  | H7: =IF(ISBLANK(IFERROR(IFERROR(VLOOKUP($A7,'EPRR Core Standards'!$A$2:$M$84,9,FALSE),VLOOKUP($A7,'Deep Dive Investigation'!$A$2:$M$84,9,FALSE)),""))=TRUE,"",IFERROR(IFERROR(VLOOKUP($A7,'EPRR Core Standards'!$A$2:$M$84,9,FALSE),VLOOKUP($A7,'Deep Dive Investigation'!$A$2:$M$84,9,FALSE)),"")) ->  | I7: =IF(ISBLANK(IFERROR(IFERROR(VLOOKUP($A7,'EPRR Core Standards'!$A$2:$M$84,10,FALSE),VLOOKUP($A7,'Deep Dive Investigation'!$A$2:$M$84,10,FALSE)),""))=TRUE,"",IFERROR(IFERROR(VLOOKUP($A7,'EPRR Core Standards'!$A$2:$M$84,10,FALSE),VLOOKUP($A7,'Deep Dive Investigation'!$A$2:$M$84,10,FALSE)),"")) ->  | J7: =IF(ISBLANK(IFERROR(IFERROR(VLOOKUP($A7,'EPRR Core Standards'!$A$2:$M$84,11,FALSE),VLOOKUP($A7,'Deep Dive Investigation'!$A$2:$M$84,11,FALSE)),""))=TRUE,"",IFERROR(IFERROR(VLOOKUP($A7,'EPRR Core Standards'!$A$2:$M$84,11,FALSE),VLOOKUP($A7,'Deep Dive Investigation'!$A$2:$M$84,11,FALSE)),"")) ->  | K7: =IF(ISBLANK(IFERROR(IFERROR(VLOOKUP($A7,'EPRR Core Standards'!$A$2:$M$84,12,FALSE),VLOOKUP($A7,'Deep Dive Investigation'!$A$2:$M$84,12,FALSE)),""))=TRUE,"",IFERROR(IFERROR(VLOOKUP($A7,'EPRR Core Standards'!$A$2:$M$84,12,FALSE),VLOOKUP($A7,'Deep Dive Investigation'!$A$2:$M$84,12,FALSE)),"")) ->  | L7: =IF(ISBLANK(IFERROR(IFERROR(VLOOKUP($A7,'EPRR Core Standards'!$A$2:$M$84,13,FALSE),VLOOKUP($A7,'Deep Dive Investigation'!$A$2:$M$84,13,FALSE)),""))=TRUE,"",IFERROR(IFERROR(VLOOKUP($A7,'EPRR Core Standards'!$A$2:$M$84,13,FALSE),VLOOKUP($A7,'Deep Dive Investigation'!$A$2:$M$84,13,FALSE)),"")) -> 
A8: 6 | B8: =IFERROR(IFERROR(VLOOKUP($A8,'EPRR Core Standards'!$A$2:$M$84,3,FALSE),VLOOKUP($A8,'Deep Dive Investigation'!$A$2:$M$84,3,FALSE)),"") -> 9 | C8: =IFERROR(IFERROR(VLOOKUP($A8,'EPRR Core Standards'!$A$2:$M$84,4,FALSE),VLOOKUP($A8,'Deep Dive Investigation'!$A$2:$M$84,4,FALSE)),"") -> Duty to maintain plans | D8: =IFERROR(IFERROR(VLOOKUP($A8,'EPRR Core Standards'!$A$2:$M$84,5,FALSE),VLOOKUP($A8,'Deep Dive Investigation'!$A$2:$M$84,5,FALSE)),"") -> Collaborative planning | E8: =IFERROR(IFERROR(VLOOKUP($A8,'EPRR Core Standards'!$A$2:$M$84,6,FALSE),VLOOKUP($A8,'Deep Dive Investigation'!$A$2:$M$84,6,FALSE)),"") -> Plans and arrangements have been developed in collaboration with relevant stakeholders including emergency services and health partners to enhance joint working arrangements and to ensure the whole patient pathway is considered. | F8: =IFERROR(IFERROR(VLOOKUP($A8,'EPRR Core Standards'!$A$2:$M$84,7,FALSE),VLOOKUP($A8,'Deep Dive Investigation'!$A$2:$M$84,7,FALSE)),"") -> Partner organisations collaborated with as part of the planning process are in planning arrangements Evidence • Consultation process in place for plans and arrangements • Changes to arrangements as a result of consultation are recorded | G8: =IF(ISBLANK(IFERROR(IFERROR(VLOOKUP($A8,'EPRR Core Standards'!$A$2:$M$84,8,FALSE),VLOOKUP($A8,'Deep Dive Investigation'!$A$2:$M$84,8,FALSE)),""))=TRUE,"",IFERROR(IFERROR(VLOOKUP($A8,'EPRR Core Standards'!$A$2:$M$84,8,FALSE),VLOOKUP($A8,'Deep Dive Investigation'!$A$2:$M$84,8,FALSE)),"")) -> Attendance at partnerhip groups. Sharing and plans and policies. Attendance at partner exercises. | H8: =IF(ISBLANK(IFERROR(IFERROR(VLOOKUP($A8,'EPRR Core Standards'!$A$2:$M$84,9,FALSE),VLOOKUP($A8,'Deep Dive Investigation'!$A$2:$M$84,9,FALSE)),""))=TRUE,"",IFERROR(IFERROR(VLOOKUP($A8,'EPRR Core Standards'!$A$2:$M$84,9,FALSE),VLOOKUP($A8,'Deep Dive Investigation'!$A$2:$M$84,9,FALSE)),"")) -> Partially compliant | I8: =IF(ISBLANK(IFERROR(IFERROR(VLOOKUP($A8,'EPRR Core Standards'!$A$2:$M$84,10,FALSE),VLOOKUP($A8,'Deep Dive Investigation'!$A$2:$M$84,10,FALSE)),""))=TRUE,"",IFERROR(IFERROR(VLOOKUP($A8,'EPRR Core Standards'!$A$2:$M$84,10,FALSE),VLOOKUP($A8,'Deep Dive Investigation'!$A$2:$M$84,10,FALSE)),"")) -> LCH to share plans on the WY ICB EPRR MS Teams channel for wider partner consultation | J8: =IF(ISBLANK(IFERROR(IFERROR(VLOOKUP($A8,'EPRR Core Standards'!$A$2:$M$84,11,FALSE),VLOOKUP($A8,'Deep Dive Investigation'!$A$2:$M$84,11,FALSE)),""))=TRUE,"",IFERROR(IFERROR(VLOOKUP($A8,'EPRR Core Standards'!$A$2:$M$84,11,FALSE),VLOOKUP($A8,'Deep Dive Investigation'!$A$2:$M$84,11,FALSE)),"")) -> EPRR Manager | K8: =IF(ISBLANK(IFERROR(IFERROR(VLOOKUP($A8,'EPRR Core Standards'!$A$2:$M$84,12,FALSE),VLOOKUP($A8,'Deep Dive Investigation'!$A$2:$M$84,12,FALSE)),""))=TRUE,"",IFERROR(IFERROR(VLOOKUP($A8,'EPRR Core Standards'!$A$2:$M$84,12,FALSE),VLOOKUP($A8,'Deep Dive Investigation'!$A$2:$M$84,12,FALSE)),"")) -> 45597 | L8: =IF(ISBLANK(IFERROR(IFERROR(VLOOKUP($A8,'EPRR Core Standards'!$A$2:$M$84,13,FALSE),VLOOKUP($A8,'Deep Dive Investigation'!$A$2:$M$84,13,FALSE)),""))=TRUE,"",IFERROR(IFERROR(VLOOKUP($A8,'EPRR Core Standards'!$A$2:$M$84,13,FALSE),VLOOKUP($A8,'Deep Dive Investigation'!$A$2:$M$84,13,FALSE)),"")) -> 
A9: 7 | B9: =IFERROR(IFERROR(VLOOKUP($A9,'EPRR Core Standards'!$A$2:$M$84,3,FALSE),VLOOKUP($A9,'Deep Dive Investigation'!$A$2:$M$84,3,FALSE)),"") -> 11 | C9: =IFERROR(IFERROR(VLOOKUP($A9,'EPRR Core Standards'!$A$2:$M$84,4,FALSE),VLOOKUP($A9,'Deep Dive Investigation'!$A$2:$M$84,4,FALSE)),"") -> Duty to maintain plans | D9: =IFERROR(IFERROR(VLOOKUP($A9,'EPRR Core Standards'!$A$2:$M$84,5,FALSE),VLOOKUP($A9,'Deep Dive Investigation'!$A$2:$M$84,5,FALSE)),"") -> Adverse Weather | E9: =IFERROR(IFERROR(VLOOKUP($A9,'EPRR Core Standards'!$A$2:$M$84,6,FALSE),VLOOKUP($A9,'Deep Dive Investigation'!$A$2:$M$84,6,FALSE)),"") -> In line with current guidance and legislation, the organisation has effective arrangements in place for adverse weather events. | F9: =IFERROR(IFERROR(VLOOKUP($A9,'EPRR Core Standards'!$A$2:$M$84,7,FALSE),VLOOKUP($A9,'Deep Dive Investigation'!$A$2:$M$84,7,FALSE)),"") -> Arrangements should be: • current • in line with current national UK Health Security Agency (UKHSA) & NHS guidance and Met Office or Environment Agency alerts • in line with risk assessment • tested regularly • signed off by the appropriate mechanism • shared appropriately with those required to use them • outline any equipment requirements • outline any staff training required • reflective of climate change risk assessments • cognisant of extreme events e.g. drought, storms (including dust storms), wildfire. | G9: =IF(ISBLANK(IFERROR(IFERROR(VLOOKUP($A9,'EPRR Core Standards'!$A$2:$M$84,8,FALSE),VLOOKUP($A9,'Deep Dive Investigation'!$A$2:$M$84,8,FALSE)),""))=TRUE,"",IFERROR(IFERROR(VLOOKUP($A9,'EPRR Core Standards'!$A$2:$M$84,8,FALSE),VLOOKUP($A9,'Deep Dive Investigation'!$A$2:$M$84,8,FALSE)),"")) -> Adverse Weather Plan. Special leave policy. UKHSA adverse weather plan. West Yorks severe weather plan. | H9: =IF(ISBLANK(IFERROR(IFERROR(VLOOKUP($A9,'EPRR Core Standards'!$A$2:$M$84,9,FALSE),VLOOKUP($A9,'Deep Dive Investigation'!$A$2:$M$84,9,FALSE)),""))=TRUE,"",IFERROR(IFERROR(VLOOKUP($A9,'EPRR Core Standards'!$A$2:$M$84,9,FALSE),VLOOKUP($A9,'Deep Dive Investigation'!$A$2:$M$84,9,FALSE)),"")) -> Partially compliant | I9: =IF(ISBLANK(IFERROR(IFERROR(VLOOKUP($A9,'EPRR Core Standards'!$A$2:$M$84,10,FALSE),VLOOKUP($A9,'Deep Dive Investigation'!$A$2:$M$84,10,FALSE)),""))=TRUE,"",IFERROR(IFERROR(VLOOKUP($A9,'EPRR Core Standards'!$A$2:$M$84,10,FALSE),VLOOKUP($A9,'Deep Dive Investigation'!$A$2:$M$84,10,FALSE)),"")) -> Comms to provide evidence of cascade process for severe weather alerts | J9: =IF(ISBLANK(IFERROR(IFERROR(VLOOKUP($A9,'EPRR Core Standards'!$A$2:$M$84,11,FALSE),VLOOKUP($A9,'Deep Dive Investigation'!$A$2:$M$84,11,FALSE)),""))=TRUE,"",IFERROR(IFERROR(VLOOKUP($A9,'EPRR Core Standards'!$A$2:$M$84,11,FALSE),VLOOKUP($A9,'Deep Dive Investigation'!$A$2:$M$84,11,FALSE)),"")) -> Communications | K9: =IF(ISBLANK(IFERROR(IFERROR(VLOOKUP($A9,'EPRR Core Standards'!$A$2:$M$84,12,FALSE),VLOOKUP($A9,'Deep Dive Investigation'!$A$2:$M$84,12,FALSE)),""))=TRUE,"",IFERROR(IFERROR(VLOOKUP($A9,'EPRR Core Standards'!$A$2:$M$84,12,FALSE),VLOOKUP($A9,'Deep Dive Investigation'!$A$2:$M$84,12,FALSE)),"")) -> 45627 | L9: =IF(ISBLANK(IFERROR(IFERROR(VLOOKUP($A9,'EPRR Core Standards'!$A$2:$M$84,13,FALSE),VLOOKUP($A9,'Deep Dive Investigation'!$A$2:$M$84,13,FALSE)),""))=TRUE,"",IFERROR(IFERROR(VLOOKUP($A9,'EPRR Core Standards'!$A$2:$M$84,13,FALSE),VLOOKUP($A9,'Deep Dive Investigation'!$A$2:$M$84,13,FALSE)),"")) -> 
A10: 8 | B10: =IFERROR(IFERROR(VLOOKUP($A10,'EPRR Core Standards'!$A$2:$M$84,3,FALSE),VLOOKUP($A10,'Deep Dive Investigation'!$A$2:$M$84,3,FALSE)),"") -> 12 | C10: =IFERROR(IFERROR(VLOOKUP($A10,'EPRR Core Standards'!$A$2:$M$84,4,FALSE),VLOOKUP($A10,'Deep Dive Investigation'!$A$2:$M$84,4,FALSE)),"") -> Duty to maintain plans | D10: =IFERROR(IFERROR(VLOOKUP($A10,'EPRR Core Standards'!$A$2:$M$84,5,FALSE),VLOOKUP($A10,'Deep Dive Investigation'!$A$2:$M$84,5,FALSE)),"") -> Infectious disease | E10: =IFERROR(IFERROR(VLOOKUP($A10,'EPRR Core Standards'!$A$2:$M$84,6,FALSE),VLOOKUP($A10,'Deep Dive Investigation'!$A$2:$M$84,6,FALSE)),"") -> In line with current guidance and legislation, the organisation has arrangements in place to respond to an infectious disease outbreak within the organisation or the community it serves, covering a range of diseases including High Consequence Infectious Diseases. | F10: =IFERROR(IFERROR(VLOOKUP($A10,'EPRR Core Standards'!$A$2:$M$84,7,FALSE),VLOOKUP($A10,'Deep Dive Investigation'!$A$2:$M$84,7,FALSE)),"") -> Arrangements should be: • current • in line with current national guidance • in line with risk assessment • tested regularly • signed off by the appropriate mechanism • shared appropriately with those required to use them • outline any equipment requirements • outline any staff training required Acute providers should ensure their arrangements reflect the guidance issued by DHSC in relation to FFP3 Resilience in Acute setting incorporating the FFP3 resilience principles. https://www.england.nhs.uk/coronavirus/secondary-care/infection-control/ppe/ffp3-fit-testing/ffp3-resilience-principles-in-acute-settings/ | G10: =IF(ISBLANK(IFERROR(IFERROR(VLOOKUP($A10,'EPRR Core Standards'!$A$2:$M$84,8,FALSE),VLOOKUP($A10,'Deep Dive Investigation'!$A$2:$M$84,8,FALSE)),""))=TRUE,"",IFERROR(IFERROR(VLOOKUP($A10,'EPRR Core Standards'!$A$2:$M$84,8,FALSE),VLOOKUP($A10,'Deep Dive Investigation'!$A$2:$M$84,8,FALSE)),"")) -> Current plan is out of date. | H10: =IF(ISBLANK(IFERROR(IFERROR(VLOOKUP($A10,'EPRR Core Standards'!$A$2:$M$84,9,FALSE),VLOOKUP($A10,'Deep Dive Investigation'!$A$2:$M$84,9,FALSE)),""))=TRUE,"",IFERROR(IFERROR(VLOOKUP($A10,'EPRR Core Standards'!$A$2:$M$84,9,FALSE),VLOOKUP($A10,'Deep Dive Investigation'!$A$2:$M$84,9,FALSE)),"")) -> Partially compliant | I10: =IF(ISBLANK(IFERROR(IFERROR(VLOOKUP($A10,'EPRR Core Standards'!$A$2:$M$84,10,FALSE),VLOOKUP($A10,'Deep Dive Investigation'!$A$2:$M$84,10,FALSE)),""))=TRUE,"",IFERROR(IFERROR(VLOOKUP($A10,'EPRR Core Standards'!$A$2:$M$84,10,FALSE),VLOOKUP($A10,'Deep Dive Investigation'!$A$2:$M$84,10,FALSE)),"")) -> Local plan to be written alongside Leeds infectious diseases plan. | J10: =IF(ISBLANK(IFERROR(IFERROR(VLOOKUP($A10,'EPRR Core Standards'!$A$2:$M$84,11,FALSE),VLOOKUP($A10,'Deep Dive Investigation'!$A$2:$M$84,11,FALSE)),""))=TRUE,"",IFERROR(IFERROR(VLOOKUP($A10,'EPRR Core Standards'!$A$2:$M$84,11,FALSE),VLOOKUP($A10,'Deep Dive Investigation'!$A$2:$M$84,11,FALSE)),"")) -> IPC | K10: =IF(ISBLANK(IFERROR(IFERROR(VLOOKUP($A10,'EPRR Core Standards'!$A$2:$M$84,12,FALSE),VLOOKUP($A10,'Deep Dive Investigation'!$A$2:$M$84,12,FALSE)),""))=TRUE,"",IFERROR(IFERROR(VLOOKUP($A10,'EPRR Core Standards'!$A$2:$M$84,12,FALSE),VLOOKUP($A10,'Deep Dive Investigation'!$A$2:$M$84,12,FALSE)),"")) -> 45809 | L10: =IF(ISBLANK(IFERROR(IFERROR(VLOOKUP($A10,'EPRR Core Standards'!$A$2:$M$84,13,FALSE),VLOOKUP($A10,'Deep Dive Investigation'!$A$2:$M$84,13,FALSE)),""))=TRUE,"",IFERROR(IFERROR(VLOOKUP($A10,'EPRR Core Standards'!$A$2:$M$84,13,FALSE),VLOOKUP($A10,'Deep Dive Investigation'!$A$2:$M$84,13,FALSE)),"")) -> 
A11: 9 | B11: =IFERROR(IFERROR(VLOOKUP($A11,'EPRR Core Standards'!$A$2:$M$84,3,FALSE),VLOOKUP($A11,'Deep Dive Investigation'!$A$2:$M$84,3,FALSE)),"") -> 13 | C11: =IFERROR(IFERROR(VLOOKUP($A11,'EPRR Core Standards'!$A$2:$M$84,4,FALSE),VLOOKUP($A11,'Deep Dive Investigation'!$A$2:$M$84,4,FALSE)),"") -> Duty to maintain plans | D11: =IFERROR(IFERROR(VLOOKUP($A11,'EPRR Core Standards'!$A$2:$M$84,5,FALSE),VLOOKUP($A11,'Deep Dive Investigation'!$A$2:$M$84,5,FALSE)),"") -> New and emerging pandemics | E11: =IFERROR(IFERROR(VLOOKUP($A11,'EPRR Core Standards'!$A$2:$M$84,6,FALSE),VLOOKUP($A11,'Deep Dive Investigation'!$A$2:$M$84,6,FALSE)),"") -> In line with current guidance and legislation and reflecting recent lessons identified, the organisation has arrangements in place to respond to a new and emerging pandemic | F11: =IFERROR(IFERROR(VLOOKUP($A11,'EPRR Core Standards'!$A$2:$M$84,7,FALSE),VLOOKUP($A11,'Deep Dive Investigation'!$A$2:$M$84,7,FALSE)),"") -> Arrangements should be: • current • in line with current national guidance • in line with risk assessment • tested regularly • signed off by the appropriate mechanism • shared appropriately with those required to use them • outline any equipment requirements • outline any staff training required | G11: =IF(ISBLANK(IFERROR(IFERROR(VLOOKUP($A11,'EPRR Core Standards'!$A$2:$M$84,8,FALSE),VLOOKUP($A11,'Deep Dive Investigation'!$A$2:$M$84,8,FALSE)),""))=TRUE,"",IFERROR(IFERROR(VLOOKUP($A11,'EPRR Core Standards'!$A$2:$M$84,8,FALSE),VLOOKUP($A11,'Deep Dive Investigation'!$A$2:$M$84,8,FALSE)),"")) -> West Yorks HCID - PPE email. Current plan is out of date. | H11: =IF(ISBLANK(IFERROR(IFERROR(VLOOKUP($A11,'EPRR Core Standards'!$A$2:$M$84,9,FALSE),VLOOKUP($A11,'Deep Dive Investigation'!$A$2:$M$84,9,FALSE)),""))=TRUE,"",IFERROR(IFERROR(VLOOKUP($A11,'EPRR Core Standards'!$A$2:$M$84,9,FALSE),VLOOKUP($A11,'Deep Dive Investigation'!$A$2:$M$84,9,FALSE)),"")) -> Partially compliant | I11: =IF(ISBLANK(IFERROR(IFERROR(VLOOKUP($A11,'EPRR Core Standards'!$A$2:$M$84,10,FALSE),VLOOKUP($A11,'Deep Dive Investigation'!$A$2:$M$84,10,FALSE)),""))=TRUE,"",IFERROR(IFERROR(VLOOKUP($A11,'EPRR Core Standards'!$A$2:$M$84,10,FALSE),VLOOKUP($A11,'Deep Dive Investigation'!$A$2:$M$84,10,FALSE)),"")) -> First draft plan circulated - need to work with IPC and clinical leads on amendments | J11: =IF(ISBLANK(IFERROR(IFERROR(VLOOKUP($A11,'EPRR Core Standards'!$A$2:$M$84,11,FALSE),VLOOKUP($A11,'Deep Dive Investigation'!$A$2:$M$84,11,FALSE)),""))=TRUE,"",IFERROR(IFERROR(VLOOKUP($A11,'EPRR Core Standards'!$A$2:$M$84,11,FALSE),VLOOKUP($A11,'Deep Dive Investigation'!$A$2:$M$84,11,FALSE)),"")) -> EPRR\IPC | K11: =IF(ISBLANK(IFERROR(IFERROR(VLOOKUP($A11,'EPRR Core Standards'!$A$2:$M$84,12,FALSE),VLOOKUP($A11,'Deep Dive Investigation'!$A$2:$M$84,12,FALSE)),""))=TRUE,"",IFERROR(IFERROR(VLOOKUP($A11,'EPRR Core Standards'!$A$2:$M$84,12,FALSE),VLOOKUP($A11,'Deep Dive Investigation'!$A$2:$M$84,12,FALSE)),"")) -> 45809 | L11: =IF(ISBLANK(IFERROR(IFERROR(VLOOKUP($A11,'EPRR Core Standards'!$A$2:$M$84,13,FALSE),VLOOKUP($A11,'Deep Dive Investigation'!$A$2:$M$84,13,FALSE)),""))=TRUE,"",IFERROR(IFERROR(VLOOKUP($A11,'EPRR Core Standards'!$A$2:$M$84,13,FALSE),VLOOKUP($A11,'Deep Dive Investigation'!$A$2:$M$84,13,FALSE)),"")) -> 
A12: 10 | B12: =IFERROR(IFERROR(VLOOKUP($A12,'EPRR Core Standards'!$A$2:$M$84,3,FALSE),VLOOKUP($A12,'Deep Dive Investigation'!$A$2:$M$84,3,FALSE)),"") -> 14 | C12: =IFERROR(IFERROR(VLOOKUP($A12,'EPRR Core Standards'!$A$2:$M$84,4,FALSE),VLOOKUP($A12,'Deep Dive Investigation'!$A$2:$M$84,4,FALSE)),"") -> Duty to maintain plans | D12: =IFERROR(IFERROR(VLOOKUP($A12,'EPRR Core Standards'!$A$2:$M$84,5,FALSE),VLOOKUP($A12,'Deep Dive Investigation'!$A$2:$M$84,5,FALSE)),"") -> Countermeasures | E12: =IFERROR(IFERROR(VLOOKUP($A12,'EPRR Core Standards'!$A$2:$M$84,6,FALSE),VLOOKUP($A12,'Deep Dive Investigation'!$A$2:$M$84,6,FALSE)),"") -> In line with current guidance and legislation, the organisation has arrangements in place to support an incident requiring countermeasures or a mass countermeasure deployment | F12: =IFERROR(IFERROR(VLOOKUP($A12,'EPRR Core Standards'!$A$2:$M$84,7,FALSE),VLOOKUP($A12,'Deep Dive Investigation'!$A$2:$M$84,7,FALSE)),"") -> Arrangements should be: • current • in line with current national guidance • in line with risk assessment • tested regularly • signed off by the appropriate mechanism • shared appropriately with those required to use them • outline any equipment requirements • outline any staff training required Mass Countermeasure arrangements should include arrangements for administration, reception and distribution of mass prophylaxis and mass vaccination. There may be a requirement for Specialist providers, Community Service Providers, Mental Health and Primary Care services to develop or support Mass Countermeasure distribution arrangements. Organisations should have plans to support patients in their care during activation of mass countermeasure arrangements. Commissioners may be required to commission new services to support mass countermeasure distribution locally, this will be dependant on the incident. | G12: =IF(ISBLANK(IFERROR(IFERROR(VLOOKUP($A12,'EPRR Core Standards'!$A$2:$M$84,8,FALSE),VLOOKUP($A12,'Deep Dive Investigation'!$A$2:$M$84,8,FALSE)),""))=TRUE,"",IFERROR(IFERROR(VLOOKUP($A12,'EPRR Core Standards'!$A$2:$M$84,8,FALSE),VLOOKUP($A12,'Deep Dive Investigation'!$A$2:$M$84,8,FALSE)),"")) -> Current plan is out of date. | H12: =IF(ISBLANK(IFERROR(IFERROR(VLOOKUP($A12,'EPRR Core Standards'!$A$2:$M$84,9,FALSE),VLOOKUP($A12,'Deep Dive Investigation'!$A$2:$M$84,9,FALSE)),""))=TRUE,"",IFERROR(IFERROR(VLOOKUP($A12,'EPRR Core Standards'!$A$2:$M$84,9,FALSE),VLOOKUP($A12,'Deep Dive Investigation'!$A$2:$M$84,9,FALSE)),"")) -> Partially compliant | I12: =IF(ISBLANK(IFERROR(IFERROR(VLOOKUP($A12,'EPRR Core Standards'!$A$2:$M$84,10,FALSE),VLOOKUP($A12,'Deep Dive Investigation'!$A$2:$M$84,10,FALSE)),""))=TRUE,"",IFERROR(IFERROR(VLOOKUP($A12,'EPRR Core Standards'!$A$2:$M$84,10,FALSE),VLOOKUP($A12,'Deep Dive Investigation'!$A$2:$M$84,10,FALSE)),"")) -> Trust plan to be produced/ updated alongside Leeds plan. New group formed Sept 24. | J12: =IF(ISBLANK(IFERROR(IFERROR(VLOOKUP($A12,'EPRR Core Standards'!$A$2:$M$84,11,FALSE),VLOOKUP($A12,'Deep Dive Investigation'!$A$2:$M$84,11,FALSE)),""))=TRUE,"",IFERROR(IFERROR(VLOOKUP($A12,'EPRR Core Standards'!$A$2:$M$84,11,FALSE),VLOOKUP($A12,'Deep Dive Investigation'!$A$2:$M$84,11,FALSE)),"")) -> IPC | K12: =IF(ISBLANK(IFERROR(IFERROR(VLOOKUP($A12,'EPRR Core Standards'!$A$2:$M$84,12,FALSE),VLOOKUP($A12,'Deep Dive Investigation'!$A$2:$M$84,12,FALSE)),""))=TRUE,"",IFERROR(IFERROR(VLOOKUP($A12,'EPRR Core Standards'!$A$2:$M$84,12,FALSE),VLOOKUP($A12,'Deep Dive Investigation'!$A$2:$M$84,12,FALSE)),"")) -> 45444 | L12: =IF(ISBLANK(IFERROR(IFERROR(VLOOKUP($A12,'EPRR Core Standards'!$A$2:$M$84,13,FALSE),VLOOKUP($A12,'Deep Dive Investigation'!$A$2:$M$84,13,FALSE)),""))=TRUE,"",IFERROR(IFERROR(VLOOKUP($A12,'EPRR Core Standards'!$A$2:$M$84,13,FALSE),VLOOKUP($A12,'Deep Dive Investigation'!$A$2:$M$84,13,FALSE)),"")) -> 
A13: 11 | B13: =IFERROR(IFERROR(VLOOKUP($A13,'EPRR Core Standards'!$A$2:$M$84,3,FALSE),VLOOKUP($A13,'Deep Dive Investigation'!$A$2:$M$84,3,FALSE)),"") -> 16 | C13: =IF(IFERROR(IFERROR(VLOOKUP($A13,'EPRR Core Standards'!$A$2:$M$84,4,FALSE),VLOOKUP($A13,'Deep Dive Investigation'!$A$2:$M$84,4,FALSE)),"")=0,"",IFERROR(IFERROR(VLOOKUP($A13,'EPRR Core Standards'!$A$2:$M$84,4,FALSE),VLOOKUP($A13,'Deep Dive Investigation'!$A$2:$M$84,4,FALSE)),"")) -> Duty to maintain plans | D13: =IF(IFERROR(IFERROR(VLOOKUP($A13,'EPRR Core Standards'!$A$2:$M$84,5,FALSE),VLOOKUP($A13,'Deep Dive Investigation'!$A$2:$M$84,5,FALSE)),"")=0,"",IFERROR(IFERROR(VLOOKUP($A13,'EPRR Core Standards'!$A$2:$M$84,5,FALSE),VLOOKUP($A13,'Deep Dive Investigation'!$A$2:$M$84,5,FALSE)),"")) -> Evacuation and shelter | E13: =IF(IFERROR(IFERROR(VLOOKUP($A13,'EPRR Core Standards'!$A$2:$M$84,6,FALSE),VLOOKUP($A13,'Deep Dive Investigation'!$A$2:$M$84,6,FALSE)),"")=0,"",IFERROR(IFERROR(VLOOKUP($A13,'EPRR Core Standards'!$A$2:$M$84,6,FALSE),VLOOKUP($A13,'Deep Dive Investigation'!$A$2:$M$84,6,FALSE)),"")) -> In line with current guidance and legislation, the organisation has arrangements in place to evacuate and shelter patients, staff and visitors. | F13: =IF(IFERROR(IFERROR(VLOOKUP($A13,'EPRR Core Standards'!$A$2:$M$84,7,FALSE),VLOOKUP($A13,'Deep Dive Investigation'!$A$2:$M$84,7,FALSE)),"")=0,"",IFERROR(IFERROR(VLOOKUP($A13,'EPRR Core Standards'!$A$2:$M$84,7,FALSE),VLOOKUP($A13,'Deep Dive Investigation'!$A$2:$M$84,7,FALSE)),"")) -> Arrangements should be: • current • in line with current national guidance • in line with risk assessment • tested regularly • signed off by the appropriate mechanism • shared appropriately with those required to use them • outline any equipment requirements • outline any staff training required | G13: =IF(IFERROR(IFERROR(VLOOKUP($A13,'EPRR Core Standards'!$A$2:$M$84,8,FALSE),VLOOKUP($A13,'Deep Dive Investigation'!$A$2:$M$84,8,FALSE)),"")=0,"",IFERROR(IFERROR(VLOOKUP($A13,'EPRR Core Standards'!$A$2:$M$84,8,FALSE),VLOOKUP($A13,'Deep Dive Investigation'!$A$2:$M$84,8,FALSE)),"")) -> Draft document prepared. MOU tobe agreed with LTHT | H13: =IF(IFERROR(IFERROR(VLOOKUP($A13,'EPRR Core Standards'!$A$2:$M$84,9,FALSE),VLOOKUP($A13,'Deep Dive Investigation'!$A$2:$M$84,9,FALSE)),"")=0,"",IFERROR(IFERROR(VLOOKUP($A13,'EPRR Core Standards'!$A$2:$M$84,9,FALSE),VLOOKUP($A13,'Deep Dive Investigation'!$A$2:$M$84,9,FALSE)),"")) -> Partially compliant | I13: =IF(IFERROR(IFERROR(VLOOKUP($A13,'EPRR Core Standards'!$A$2:$M$84,10,FALSE),VLOOKUP($A13,'Deep Dive Investigation'!$A$2:$M$84,10,FALSE)),"")=0,"",IFERROR(IFERROR(VLOOKUP($A13,'EPRR Core Standards'!$A$2:$M$84,10,FALSE),VLOOKUP($A13,'Deep Dive Investigation'!$A$2:$M$84,10,FALSE)),"")) -> Final draft to be produced (action cards), circulated and approved. Discussions around MOU. | J13: =IF(IFERROR(IFERROR(VLOOKUP($A13,'EPRR Core Standards'!$A$2:$M$84,11,FALSE),VLOOKUP($A13,'Deep Dive Investigation'!$A$2:$M$84,11,FALSE)),"")=0,"",IFERROR(IFERROR(VLOOKUP($A13,'EPRR Core Standards'!$A$2:$M$84,11,FALSE),VLOOKUP($A13,'Deep Dive Investigation'!$A$2:$M$84,11,FALSE)),"")) -> EPRR Manager | K13: =IF(IFERROR(IFERROR(VLOOKUP($A13,'EPRR Core Standards'!$A$2:$M$84,12,FALSE),VLOOKUP($A13,'Deep Dive Investigation'!$A$2:$M$84,12,FALSE)),"")=0,"",IFERROR(IFERROR(VLOOKUP($A13,'EPRR Core Standards'!$A$2:$M$84,12,FALSE),VLOOKUP($A13,'Deep Dive Investigation'!$A$2:$M$84,12,FALSE)),"")) -> 45597 | L13: =IF(IFERROR(IFERROR(VLOOKUP($A13,'EPRR Core Standards'!$A$2:$M$84,13,FALSE),VLOOKUP($A13,'Deep Dive Investigation'!$A$2:$M$84,13,FALSE)),"")=0,"",IFERROR(IFERROR(VLOOKUP($A13,'EPRR Core Standards'!$A$2:$M$84,13,FALSE),VLOOKUP($A13,'Deep Dive Investigation'!$A$2:$M$84,13,FALSE)),"")) -> 
A14: 12 | B14: =IFERROR(IFERROR(VLOOKUP($A14,'EPRR Core Standards'!$A$2:$M$84,3,FALSE),VLOOKUP($A14,'Deep Dive Investigation'!$A$2:$M$84,3,FALSE)),"") -> 17 | C14: =IFERROR(IFERROR(VLOOKUP($A14,'EPRR Core Standards'!$A$2:$M$84,4,FALSE),VLOOKUP($A14,'Deep Dive Investigation'!$A$2:$M$84,4,FALSE)),"") -> Duty to maintain plans | D14: =IFERROR(IFERROR(VLOOKUP($A14,'EPRR Core Standards'!$A$2:$M$84,5,FALSE),VLOOKUP($A14,'Deep Dive Investigation'!$A$2:$M$84,5,FALSE)),"") -> Lockdown | E14: =IFERROR(IFERROR(VLOOKUP($A14,'EPRR Core Standards'!$A$2:$M$84,6,FALSE),VLOOKUP($A14,'Deep Dive Investigation'!$A$2:$M$84,6,FALSE)),"") -> In line with current guidance, regulation and legislation, the organisation has arrangements in place to control access and egress for patients, staff and visitors to and from the organisation's premises and key assets in an incident. | F14: =IFERROR(IFERROR(VLOOKUP($A14,'EPRR Core Standards'!$A$2:$M$84,7,FALSE),VLOOKUP($A14,'Deep Dive Investigation'!$A$2:$M$84,7,FALSE)),"") -> Arrangements should be: • current • in line with current national guidance • in line with risk assessment • tested regularly • signed off by the appropriate mechanism • shared appropriately with those required to use them • outline any equipment requirements • outline any staff training required | G14: =IF(ISBLANK(IFERROR(IFERROR(VLOOKUP($A14,'EPRR Core Standards'!$A$2:$M$84,8,FALSE),VLOOKUP($A14,'Deep Dive Investigation'!$A$2:$M$84,8,FALSE)),""))=TRUE,"",IFERROR(IFERROR(VLOOKUP($A14,'EPRR Core Standards'!$A$2:$M$84,8,FALSE),VLOOKUP($A14,'Deep Dive Investigation'!$A$2:$M$84,8,FALSE)),"")) -> Draft lockdown plan. Draft security policy. | H14: =IF(ISBLANK(IFERROR(IFERROR(VLOOKUP($A14,'EPRR Core Standards'!$A$2:$M$84,9,FALSE),VLOOKUP($A14,'Deep Dive Investigation'!$A$2:$M$84,9,FALSE)),""))=TRUE,"",IFERROR(IFERROR(VLOOKUP($A14,'EPRR Core Standards'!$A$2:$M$84,9,FALSE),VLOOKUP($A14,'Deep Dive Investigation'!$A$2:$M$84,9,FALSE)),"")) -> Partially compliant | I14: =IF(ISBLANK(IFERROR(IFERROR(VLOOKUP($A14,'EPRR Core Standards'!$A$2:$M$84,10,FALSE),VLOOKUP($A14,'Deep Dive Investigation'!$A$2:$M$84,10,FALSE)),""))=TRUE,"",IFERROR(IFERROR(VLOOKUP($A14,'EPRR Core Standards'!$A$2:$M$84,10,FALSE),VLOOKUP($A14,'Deep Dive Investigation'!$A$2:$M$84,10,FALSE)),"")) -> Clarification on responder roles to be agreed - paper to Trust Leadership Team. Site risk assessments/ profiles to be completed. | J14: =IF(ISBLANK(IFERROR(IFERROR(VLOOKUP($A14,'EPRR Core Standards'!$A$2:$M$84,11,FALSE),VLOOKUP($A14,'Deep Dive Investigation'!$A$2:$M$84,11,FALSE)),""))=TRUE,"",IFERROR(IFERROR(VLOOKUP($A14,'EPRR Core Standards'!$A$2:$M$84,11,FALSE),VLOOKUP($A14,'Deep Dive Investigation'!$A$2:$M$84,11,FALSE)),"")) -> EPRR Facilities | K14: =IF(ISBLANK(IFERROR(IFERROR(VLOOKUP($A14,'EPRR Core Standards'!$A$2:$M$84,12,FALSE),VLOOKUP($A14,'Deep Dive Investigation'!$A$2:$M$84,12,FALSE)),""))=TRUE,"",IFERROR(IFERROR(VLOOKUP($A14,'EPRR Core Standards'!$A$2:$M$84,12,FALSE),VLOOKUP($A14,'Deep Dive Investigation'!$A$2:$M$84,12,FALSE)),"")) -> 45717 | L14: =IF(ISBLANK(IFERROR(IFERROR(VLOOKUP($A14,'EPRR Core Standards'!$A$2:$M$84,13,FALSE),VLOOKUP($A14,'Deep Dive Investigation'!$A$2:$M$84,13,FALSE)),""))=TRUE,"",IFERROR(IFERROR(VLOOKUP($A14,'EPRR Core Standards'!$A$2:$M$84,13,FALSE),VLOOKUP($A14,'Deep Dive Investigation'!$A$2:$M$84,13,FALSE)),"")) -> 
A15: 13 | B15: =IFERROR(IFERROR(VLOOKUP($A15,'EPRR Core Standards'!$A$2:$M$84,3,FALSE),VLOOKUP($A15,'Deep Dive Investigation'!$A$2:$M$84,3,FALSE)),"") -> 18 | C15: =IFERROR(IFERROR(VLOOKUP($A15,'EPRR Core Standards'!$A$2:$M$84,4,FALSE),VLOOKUP($A15,'Deep Dive Investigation'!$A$2:$M$84,4,FALSE)),"") -> Duty to maintain plans | D15: =IFERROR(IFERROR(VLOOKUP($A15,'EPRR Core Standards'!$A$2:$M$84,5,FALSE),VLOOKUP($A15,'Deep Dive Investigation'!$A$2:$M$84,5,FALSE)),"") -> Protected individuals | E15: =IFERROR(IFERROR(VLOOKUP($A15,'EPRR Core Standards'!$A$2:$M$84,6,FALSE),VLOOKUP($A15,'Deep Dive Investigation'!$A$2:$M$84,6,FALSE)),"") -> In line with current guidance and legislation, the organisation has arrangements in place to respond and manage 'protected individuals' including Very Important Persons (VIPs),high profile patients and visitors to the site. | F15: =IFERROR(IFERROR(VLOOKUP($A15,'EPRR Core Standards'!$A$2:$M$84,7,FALSE),VLOOKUP($A15,'Deep Dive Investigation'!$A$2:$M$84,7,FALSE)),"") -> Arrangements should be: • current • in line with current national guidance • in line with risk assessment • tested regularly • signed off by the appropriate mechanism • shared appropriately with those required to use them • outline any equipment requirements • outline any staff training required | G15: =IF(ISBLANK(IFERROR(IFERROR(VLOOKUP($A15,'EPRR Core Standards'!$A$2:$M$84,8,FALSE),VLOOKUP($A15,'Deep Dive Investigation'!$A$2:$M$84,8,FALSE)),""))=TRUE,"",IFERROR(IFERROR(VLOOKUP($A15,'EPRR Core Standards'!$A$2:$M$84,8,FALSE),VLOOKUP($A15,'Deep Dive Investigation'!$A$2:$M$84,8,FALSE)),"")) -> Protected individual plan. | H15: =IF(ISBLANK(IFERROR(IFERROR(VLOOKUP($A15,'EPRR Core Standards'!$A$2:$M$84,9,FALSE),VLOOKUP($A15,'Deep Dive Investigation'!$A$2:$M$84,9,FALSE)),""))=TRUE,"",IFERROR(IFERROR(VLOOKUP($A15,'EPRR Core Standards'!$A$2:$M$84,9,FALSE),VLOOKUP($A15,'Deep Dive Investigation'!$A$2:$M$84,9,FALSE)),"")) -> Partially compliant | I15: =IF(ISBLANK(IFERROR(IFERROR(VLOOKUP($A15,'EPRR Core Standards'!$A$2:$M$84,10,FALSE),VLOOKUP($A15,'Deep Dive Investigation'!$A$2:$M$84,10,FALSE)),""))=TRUE,"",IFERROR(IFERROR(VLOOKUP($A15,'EPRR Core Standards'!$A$2:$M$84,10,FALSE),VLOOKUP($A15,'Deep Dive Investigation'!$A$2:$M$84,10,FALSE)),"")) -> Existing plan to be updated | J15: =IF(ISBLANK(IFERROR(IFERROR(VLOOKUP($A15,'EPRR Core Standards'!$A$2:$M$84,11,FALSE),VLOOKUP($A15,'Deep Dive Investigation'!$A$2:$M$84,11,FALSE)),""))=TRUE,"",IFERROR(IFERROR(VLOOKUP($A15,'EPRR Core Standards'!$A$2:$M$84,11,FALSE),VLOOKUP($A15,'Deep Dive Investigation'!$A$2:$M$84,11,FALSE)),"")) -> Communications | K15: =IF(ISBLANK(IFERROR(IFERROR(VLOOKUP($A15,'EPRR Core Standards'!$A$2:$M$84,12,FALSE),VLOOKUP($A15,'Deep Dive Investigation'!$A$2:$M$84,12,FALSE)),""))=TRUE,"",IFERROR(IFERROR(VLOOKUP($A15,'EPRR Core Standards'!$A$2:$M$84,12,FALSE),VLOOKUP($A15,'Deep Dive Investigation'!$A$2:$M$84,12,FALSE)),"")) -> 45566 | L15: =IF(ISBLANK(IFERROR(IFERROR(VLOOKUP($A15,'EPRR Core Standards'!$A$2:$M$84,13,FALSE),VLOOKUP($A15,'Deep Dive Investigation'!$A$2:$M$84,13,FALSE)),""))=TRUE,"",IFERROR(IFERROR(VLOOKUP($A15,'EPRR Core Standards'!$A$2:$M$84,13,FALSE),VLOOKUP($A15,'Deep Dive Investigation'!$A$2:$M$84,13,FALSE)),"")) -> 
A16: 14 | B16: =IFERROR(IFERROR(VLOOKUP($A16,'EPRR Core Standards'!$A$2:$M$84,3,FALSE),VLOOKUP($A16,'Deep Dive Investigation'!$A$2:$M$84,3,FALSE)),"") -> Domain 4 - Command and control | C16: =IFERROR(IFERROR(VLOOKUP($A16,'EPRR Core Standards'!$A$2:$M$84,4,FALSE),VLOOKUP($A16,'Deep Dive Investigation'!$A$2:$M$84,4,FALSE)),"") ->  | D16: =IFERROR(IFERROR(VLOOKUP($A16,'EPRR Core Standards'!$A$2:$M$84,5,FALSE),VLOOKUP($A16,'Deep Dive Investigation'!$A$2:$M$84,5,FALSE)),"") ->  | E16: =IFERROR(IFERROR(VLOOKUP($A16,'EPRR Core Standards'!$A$2:$M$84,6,FALSE),VLOOKUP($A16,'Deep Dive Investigation'!$A$2:$M$84,6,FALSE)),"") ->  | F16: =IFERROR(IFERROR(VLOOKUP($A16,'EPRR Core Standards'!$A$2:$M$84,7,FALSE),VLOOKUP($A16,'Deep Dive Investigation'!$A$2:$M$84,7,FALSE)),"") ->  | G16: =IF(ISBLANK(IFERROR(IFERROR(VLOOKUP($A16,'EPRR Core Standards'!$A$2:$M$84,8,FALSE),VLOOKUP($A16,'Deep Dive Investigation'!$A$2:$M$84,8,FALSE)),""))=TRUE,"",IFERROR(IFERROR(VLOOKUP($A16,'EPRR Core Standards'!$A$2:$M$84,8,FALSE),VLOOKUP($A16,'Deep Dive Investigation'!$A$2:$M$84,8,FALSE)),"")) ->  | H16: =IF(ISBLANK(IFERROR(IFERROR(VLOOKUP($A16,'EPRR Core Standards'!$A$2:$M$84,9,FALSE),VLOOKUP($A16,'Deep Dive Investigation'!$A$2:$M$84,9,FALSE)),""))=TRUE,"",IFERROR(IFERROR(VLOOKUP($A16,'EPRR Core Standards'!$A$2:$M$84,9,FALSE),VLOOKUP($A16,'Deep Dive Investigation'!$A$2:$M$84,9,FALSE)),"")) ->  | I16: =IF(ISBLANK(IFERROR(IFERROR(VLOOKUP($A16,'EPRR Core Standards'!$A$2:$M$84,10,FALSE),VLOOKUP($A16,'Deep Dive Investigation'!$A$2:$M$84,10,FALSE)),""))=TRUE,"",IFERROR(IFERROR(VLOOKUP($A16,'EPRR Core Standards'!$A$2:$M$84,10,FALSE),VLOOKUP($A16,'Deep Dive Investigation'!$A$2:$M$84,10,FALSE)),"")) ->  | J16: =IF(ISBLANK(IFERROR(IFERROR(VLOOKUP($A16,'EPRR Core Standards'!$A$2:$M$84,11,FALSE),VLOOKUP($A16,'Deep Dive Investigation'!$A$2:$M$84,11,FALSE)),""))=TRUE,"",IFERROR(IFERROR(VLOOKUP($A16,'EPRR Core Standards'!$A$2:$M$84,11,FALSE),VLOOKUP($A16,'Deep Dive Investigation'!$A$2:$M$84,11,FALSE)),"")) ->  | K16: =IF(ISBLANK(IFERROR(IFERROR(VLOOKUP($A16,'EPRR Core Standards'!$A$2:$M$84,12,FALSE),VLOOKUP($A16,'Deep Dive Investigation'!$A$2:$M$84,12,FALSE)),""))=TRUE,"",IFERROR(IFERROR(VLOOKUP($A16,'EPRR Core Standards'!$A$2:$M$84,12,FALSE),VLOOKUP($A16,'Deep Dive Investigation'!$A$2:$M$84,12,FALSE)),"")) ->  | L16: =IF(ISBLANK(IFERROR(IFERROR(VLOOKUP($A16,'EPRR Core Standards'!$A$2:$M$84,13,FALSE),VLOOKUP($A16,'Deep Dive Investigation'!$A$2:$M$84,13,FALSE)),""))=TRUE,"",IFERROR(IFERROR(VLOOKUP($A16,'EPRR Core Standards'!$A$2:$M$84,13,FALSE),VLOOKUP($A16,'Deep Dive Investigation'!$A$2:$M$84,13,FALSE)),"")) -> 
A17: 15 | B17: =IFERROR(IFERROR(VLOOKUP($A17,'EPRR Core Standards'!$A$2:$M$84,3,FALSE),VLOOKUP($A17,'Deep Dive Investigation'!$A$2:$M$84,3,FALSE)),"") -> Domain 5 - Training and exercising | C17: =IFERROR(IFERROR(VLOOKUP($A17,'EPRR Core Standards'!$A$2:$M$84,4,FALSE),VLOOKUP($A17,'Deep Dive Investigation'!$A$2:$M$84,4,FALSE)),"") ->  | D17: =IFERROR(IFERROR(VLOOKUP($A17,'EPRR Core Standards'!$A$2:$M$84,5,FALSE),VLOOKUP($A17,'Deep Dive Investigation'!$A$2:$M$84,5,FALSE)),"") ->  | E17: =IFERROR(IFERROR(VLOOKUP($A17,'EPRR Core Standards'!$A$2:$M$84,6,FALSE),VLOOKUP($A17,'Deep Dive Investigation'!$A$2:$M$84,6,FALSE)),"") ->  | F17: =IFERROR(IFERROR(VLOOKUP($A17,'EPRR Core Standards'!$A$2:$M$84,7,FALSE),VLOOKUP($A17,'Deep Dive Investigation'!$A$2:$M$84,7,FALSE)),"") ->  | G17: =IF(ISBLANK(IFERROR(IFERROR(VLOOKUP($A17,'EPRR Core Standards'!$A$2:$M$84,8,FALSE),VLOOKUP($A17,'Deep Dive Investigation'!$A$2:$M$84,8,FALSE)),""))=TRUE,"",IFERROR(IFERROR(VLOOKUP($A17,'EPRR Core Standards'!$A$2:$M$84,8,FALSE),VLOOKUP($A17,'Deep Dive Investigation'!$A$2:$M$84,8,FALSE)),"")) ->  | H17: =IF(ISBLANK(IFERROR(IFERROR(VLOOKUP($A17,'EPRR Core Standards'!$A$2:$M$84,9,FALSE),VLOOKUP($A17,'Deep Dive Investigation'!$A$2:$M$84,9,FALSE)),""))=TRUE,"",IFERROR(IFERROR(VLOOKUP($A17,'EPRR Core Standards'!$A$2:$M$84,9,FALSE),VLOOKUP($A17,'Deep Dive Investigation'!$A$2:$M$84,9,FALSE)),"")) ->  | I17: =IF(ISBLANK(IFERROR(IFERROR(VLOOKUP($A17,'EPRR Core Standards'!$A$2:$M$84,10,FALSE),VLOOKUP($A17,'Deep Dive Investigation'!$A$2:$M$84,10,FALSE)),""))=TRUE,"",IFERROR(IFERROR(VLOOKUP($A17,'EPRR Core Standards'!$A$2:$M$84,10,FALSE),VLOOKUP($A17,'Deep Dive Investigation'!$A$2:$M$84,10,FALSE)),"")) ->  | J17: =IF(ISBLANK(IFERROR(IFERROR(VLOOKUP($A17,'EPRR Core Standards'!$A$2:$M$84,11,FALSE),VLOOKUP($A17,'Deep Dive Investigation'!$A$2:$M$84,11,FALSE)),""))=TRUE,"",IFERROR(IFERROR(VLOOKUP($A17,'EPRR Core Standards'!$A$2:$M$84,11,FALSE),VLOOKUP($A17,'Deep Dive Investigation'!$A$2:$M$84,11,FALSE)),"")) ->  | K17: =IF(ISBLANK(IFERROR(IFERROR(VLOOKUP($A17,'EPRR Core Standards'!$A$2:$M$84,12,FALSE),VLOOKUP($A17,'Deep Dive Investigation'!$A$2:$M$84,12,FALSE)),""))=TRUE,"",IFERROR(IFERROR(VLOOKUP($A17,'EPRR Core Standards'!$A$2:$M$84,12,FALSE),VLOOKUP($A17,'Deep Dive Investigation'!$A$2:$M$84,12,FALSE)),"")) ->  | L17: =IF(ISBLANK(IFERROR(IFERROR(VLOOKUP($A17,'EPRR Core Standards'!$A$2:$M$84,13,FALSE),VLOOKUP($A17,'Deep Dive Investigation'!$A$2:$M$84,13,FALSE)),""))=TRUE,"",IFERROR(IFERROR(VLOOKUP($A17,'EPRR Core Standards'!$A$2:$M$84,13,FALSE),VLOOKUP($A17,'Deep Dive Investigation'!$A$2:$M$84,13,FALSE)),"")) -> 
A18: 16 | B18: =IFERROR(IFERROR(VLOOKUP($A18,'EPRR Core Standards'!$A$2:$M$84,3,FALSE),VLOOKUP($A18,'Deep Dive Investigation'!$A$2:$M$84,3,FALSE)),"") -> 22 | C18: =IFERROR(IFERROR(VLOOKUP($A18,'EPRR Core Standards'!$A$2:$M$84,4,FALSE),VLOOKUP($A18,'Deep Dive Investigation'!$A$2:$M$84,4,FALSE)),"") -> Training and exercising | D18: =IFERROR(IFERROR(VLOOKUP($A18,'EPRR Core Standards'!$A$2:$M$84,5,FALSE),VLOOKUP($A18,'Deep Dive Investigation'!$A$2:$M$84,5,FALSE)),"") -> EPRR Training | E18: =IFERROR(IFERROR(VLOOKUP($A18,'EPRR Core Standards'!$A$2:$M$84,6,FALSE),VLOOKUP($A18,'Deep Dive Investigation'!$A$2:$M$84,6,FALSE)),"") -> The organisation carries out training in line with a training needs analysis to ensure staff are current in their response role. | F18: =IFERROR(IFERROR(VLOOKUP($A18,'EPRR Core Standards'!$A$2:$M$84,7,FALSE),VLOOKUP($A18,'Deep Dive Investigation'!$A$2:$M$84,7,FALSE)),"") -> Evidence • Process explicitly described within the EPRR policy or statement of intent • Evidence of a training needs analysis • Training records for all staff on call and those performing a role within the ICC • Training materials • Evidence of personal training and exercising portfolios for key staff | G18: =IF(ISBLANK(IFERROR(IFERROR(VLOOKUP($A18,'EPRR Core Standards'!$A$2:$M$84,8,FALSE),VLOOKUP($A18,'Deep Dive Investigation'!$A$2:$M$84,8,FALSE)),""))=TRUE,"",IFERROR(IFERROR(VLOOKUP($A18,'EPRR Core Standards'!$A$2:$M$84,8,FALSE),VLOOKUP($A18,'Deep Dive Investigation'!$A$2:$M$84,8,FALSE)),"")) -> EPRR policy. Training spreadsheet. | H18: =IF(ISBLANK(IFERROR(IFERROR(VLOOKUP($A18,'EPRR Core Standards'!$A$2:$M$84,9,FALSE),VLOOKUP($A18,'Deep Dive Investigation'!$A$2:$M$84,9,FALSE)),""))=TRUE,"",IFERROR(IFERROR(VLOOKUP($A18,'EPRR Core Standards'!$A$2:$M$84,9,FALSE),VLOOKUP($A18,'Deep Dive Investigation'!$A$2:$M$84,9,FALSE)),"")) -> Partially compliant | I18: =IF(ISBLANK(IFERROR(IFERROR(VLOOKUP($A18,'EPRR Core Standards'!$A$2:$M$84,10,FALSE),VLOOKUP($A18,'Deep Dive Investigation'!$A$2:$M$84,10,FALSE)),""))=TRUE,"",IFERROR(IFERROR(VLOOKUP($A18,'EPRR Core Standards'!$A$2:$M$84,10,FALSE),VLOOKUP($A18,'Deep Dive Investigation'!$A$2:$M$84,10,FALSE)),"")) -> LCH to review and adapt WY ICB TNA. Clarification sought on scope of responder training in the Trust, the methodology around offering/ capturing training events, the review of portfolios, how competences can be tested and the general availability of training. | J18: =IF(ISBLANK(IFERROR(IFERROR(VLOOKUP($A18,'EPRR Core Standards'!$A$2:$M$84,11,FALSE),VLOOKUP($A18,'Deep Dive Investigation'!$A$2:$M$84,11,FALSE)),""))=TRUE,"",IFERROR(IFERROR(VLOOKUP($A18,'EPRR Core Standards'!$A$2:$M$84,11,FALSE),VLOOKUP($A18,'Deep Dive Investigation'!$A$2:$M$84,11,FALSE)),"")) -> AEO | K18: =IF(ISBLANK(IFERROR(IFERROR(VLOOKUP($A18,'EPRR Core Standards'!$A$2:$M$84,12,FALSE),VLOOKUP($A18,'Deep Dive Investigation'!$A$2:$M$84,12,FALSE)),""))=TRUE,"",IFERROR(IFERROR(VLOOKUP($A18,'EPRR Core Standards'!$A$2:$M$84,12,FALSE),VLOOKUP($A18,'Deep Dive Investigation'!$A$2:$M$84,12,FALSE)),"")) -> 45689 | L18: =IF(ISBLANK(IFERROR(IFERROR(VLOOKUP($A18,'EPRR Core Standards'!$A$2:$M$84,13,FALSE),VLOOKUP($A18,'Deep Dive Investigation'!$A$2:$M$84,13,FALSE)),""))=TRUE,"",IFERROR(IFERROR(VLOOKUP($A18,'EPRR Core Standards'!$A$2:$M$84,13,FALSE),VLOOKUP($A18,'Deep Dive Investigation'!$A$2:$M$84,13,FALSE)),"")) -> 
A19: 17 | B19: =IFERROR(IFERROR(VLOOKUP($A19,'EPRR Core Standards'!$A$2:$M$84,3,FALSE),VLOOKUP($A19,'Deep Dive Investigation'!$A$2:$M$84,3,FALSE)),"") -> 23 | C19: =IFERROR(IFERROR(VLOOKUP($A19,'EPRR Core Standards'!$A$2:$M$84,4,FALSE),VLOOKUP($A19,'Deep Dive Investigation'!$A$2:$M$84,4,FALSE)),"") -> Training and exercising | D19: =IFERROR(IFERROR(VLOOKUP($A19,'EPRR Core Standards'!$A$2:$M$84,5,FALSE),VLOOKUP($A19,'Deep Dive Investigation'!$A$2:$M$84,5,FALSE)),"") -> EPRR exercising and testing programme | E19: =IFERROR(IFERROR(VLOOKUP($A19,'EPRR Core Standards'!$A$2:$M$84,6,FALSE),VLOOKUP($A19,'Deep Dive Investigation'!$A$2:$M$84,6,FALSE)),"") -> In accordance with the minimum requirements, in line with current guidance, the organisation has an exercising and testing programme to safely* test incident response arrangements, (*no undue risk to exercise players or participants, or those patients in your care) | F19: =IFERROR(IFERROR(VLOOKUP($A19,'EPRR Core Standards'!$A$2:$M$84,7,FALSE),VLOOKUP($A19,'Deep Dive Investigation'!$A$2:$M$84,7,FALSE)),"") -> Organisations should meet the following exercising and testing requirements: • a six-monthly communications test • annual table top exercise • live exercise at least once every three years • command post exercise every three years. The exercising programme must: • identify exercises relevant to local risks • meet the needs of the organisation type and stakeholders • ensure warning and informing arrangements are effective. Lessons identified must be captured, recorded and acted upon as part of continuous improvement. Evidence • Exercising Schedule which includes as a minimum one Business Continuity exercise • Post exercise reports and embedding learning | G19: =IF(ISBLANK(IFERROR(IFERROR(VLOOKUP($A19,'EPRR Core Standards'!$A$2:$M$84,8,FALSE),VLOOKUP($A19,'Deep Dive Investigation'!$A$2:$M$84,8,FALSE)),""))=TRUE,"",IFERROR(IFERROR(VLOOKUP($A19,'EPRR Core Standards'!$A$2:$M$84,8,FALSE),VLOOKUP($A19,'Deep Dive Investigation'!$A$2:$M$84,8,FALSE)),"")) -> Communications Exercises Annual Trust Exercise Incident Response Plan. NHS England 3 year testing programme. EPRR policy. | H19: =IF(ISBLANK(IFERROR(IFERROR(VLOOKUP($A19,'EPRR Core Standards'!$A$2:$M$84,9,FALSE),VLOOKUP($A19,'Deep Dive Investigation'!$A$2:$M$84,9,FALSE)),""))=TRUE,"",IFERROR(IFERROR(VLOOKUP($A19,'EPRR Core Standards'!$A$2:$M$84,9,FALSE),VLOOKUP($A19,'Deep Dive Investigation'!$A$2:$M$84,9,FALSE)),"")) -> Partially compliant | I19: =IF(ISBLANK(IFERROR(IFERROR(VLOOKUP($A19,'EPRR Core Standards'!$A$2:$M$84,10,FALSE),VLOOKUP($A19,'Deep Dive Investigation'!$A$2:$M$84,10,FALSE)),""))=TRUE,"",IFERROR(IFERROR(VLOOKUP($A19,'EPRR Core Standards'!$A$2:$M$84,10,FALSE),VLOOKUP($A19,'Deep Dive Investigation'!$A$2:$M$84,10,FALSE)),"")) -> Establish learning and exercising Group Write Terms of Reference Develop testing programme | J19: =IF(ISBLANK(IFERROR(IFERROR(VLOOKUP($A19,'EPRR Core Standards'!$A$2:$M$84,11,FALSE),VLOOKUP($A19,'Deep Dive Investigation'!$A$2:$M$84,11,FALSE)),""))=TRUE,"",IFERROR(IFERROR(VLOOKUP($A19,'EPRR Core Standards'!$A$2:$M$84,11,FALSE),VLOOKUP($A19,'Deep Dive Investigation'!$A$2:$M$84,11,FALSE)),"")) -> EPRR Manager | K19: =IF(ISBLANK(IFERROR(IFERROR(VLOOKUP($A19,'EPRR Core Standards'!$A$2:$M$84,12,FALSE),VLOOKUP($A19,'Deep Dive Investigation'!$A$2:$M$84,12,FALSE)),""))=TRUE,"",IFERROR(IFERROR(VLOOKUP($A19,'EPRR Core Standards'!$A$2:$M$84,12,FALSE),VLOOKUP($A19,'Deep Dive Investigation'!$A$2:$M$84,12,FALSE)),"")) -> 45658 | L19: =IF(ISBLANK(IFERROR(IFERROR(VLOOKUP($A19,'EPRR Core Standards'!$A$2:$M$84,13,FALSE),VLOOKUP($A19,'Deep Dive Investigation'!$A$2:$M$84,13,FALSE)),""))=TRUE,"",IFERROR(IFERROR(VLOOKUP($A19,'EPRR Core Standards'!$A$2:$M$84,13,FALSE),VLOOKUP($A19,'Deep Dive Investigation'!$A$2:$M$84,13,FALSE)),"")) -> 
A20: 18 | B20: =IFERROR(IFERROR(VLOOKUP($A20,'EPRR Core Standards'!$A$2:$M$84,3,FALSE),VLOOKUP($A20,'Deep Dive Investigation'!$A$2:$M$84,3,FALSE)),"") -> 24 | C20: =IFERROR(IFERROR(VLOOKUP($A20,'EPRR Core Standards'!$A$2:$M$84,4,FALSE),VLOOKUP($A20,'Deep Dive Investigation'!$A$2:$M$84,4,FALSE)),"") -> Training and exercising | D20: =IFERROR(IFERROR(VLOOKUP($A20,'EPRR Core Standards'!$A$2:$M$84,5,FALSE),VLOOKUP($A20,'Deep Dive Investigation'!$A$2:$M$84,5,FALSE)),"") -> Responder training | E20: =IFERROR(IFERROR(VLOOKUP($A20,'EPRR Core Standards'!$A$2:$M$84,6,FALSE),VLOOKUP($A20,'Deep Dive Investigation'!$A$2:$M$84,6,FALSE)),"") -> The organisation has the ability to maintain training records and exercise attendance of all staff with key roles for response in accordance with the Minimum Occupational Standards. Individual responders and key decision makers should be supported to maintain a continuous personal development portfolio including involvement in exercising and incident response as well as any training undertaken to fulfil their role | F20: =IFERROR(IFERROR(VLOOKUP($A20,'EPRR Core Standards'!$A$2:$M$84,7,FALSE),VLOOKUP($A20,'Deep Dive Investigation'!$A$2:$M$84,7,FALSE)),"") -> Evidence • Training records • Evidence of personal training and exercising portfolios for key staff | G20: =IF(ISBLANK(IFERROR(IFERROR(VLOOKUP($A20,'EPRR Core Standards'!$A$2:$M$84,8,FALSE),VLOOKUP($A20,'Deep Dive Investigation'!$A$2:$M$84,8,FALSE)),""))=TRUE,"",IFERROR(IFERROR(VLOOKUP($A20,'EPRR Core Standards'!$A$2:$M$84,8,FALSE),VLOOKUP($A20,'Deep Dive Investigation'!$A$2:$M$84,8,FALSE)),"")) -> Responder training record | H20: =IF(ISBLANK(IFERROR(IFERROR(VLOOKUP($A20,'EPRR Core Standards'!$A$2:$M$84,9,FALSE),VLOOKUP($A20,'Deep Dive Investigation'!$A$2:$M$84,9,FALSE)),""))=TRUE,"",IFERROR(IFERROR(VLOOKUP($A20,'EPRR Core Standards'!$A$2:$M$84,9,FALSE),VLOOKUP($A20,'Deep Dive Investigation'!$A$2:$M$84,9,FALSE)),"")) -> Partially compliant | I20: =IF(ISBLANK(IFERROR(IFERROR(VLOOKUP($A20,'EPRR Core Standards'!$A$2:$M$84,10,FALSE),VLOOKUP($A20,'Deep Dive Investigation'!$A$2:$M$84,10,FALSE)),""))=TRUE,"",IFERROR(IFERROR(VLOOKUP($A20,'EPRR Core Standards'!$A$2:$M$84,10,FALSE),VLOOKUP($A20,'Deep Dive Investigation'!$A$2:$M$84,10,FALSE)),"")) -> Clarification sought on scope of responder training in the Trust, the methodology around offering/ capturing training events, the review of portfoilios, how competences can be tested and the general availability of training. | J20: =IF(ISBLANK(IFERROR(IFERROR(VLOOKUP($A20,'EPRR Core Standards'!$A$2:$M$84,11,FALSE),VLOOKUP($A20,'Deep Dive Investigation'!$A$2:$M$84,11,FALSE)),""))=TRUE,"",IFERROR(IFERROR(VLOOKUP($A20,'EPRR Core Standards'!$A$2:$M$84,11,FALSE),VLOOKUP($A20,'Deep Dive Investigation'!$A$2:$M$84,11,FALSE)),"")) -> AEO | K20: =IF(ISBLANK(IFERROR(IFERROR(VLOOKUP($A20,'EPRR Core Standards'!$A$2:$M$84,12,FALSE),VLOOKUP($A20,'Deep Dive Investigation'!$A$2:$M$84,12,FALSE)),""))=TRUE,"",IFERROR(IFERROR(VLOOKUP($A20,'EPRR Core Standards'!$A$2:$M$84,12,FALSE),VLOOKUP($A20,'Deep Dive Investigation'!$A$2:$M$84,12,FALSE)),"")) -> 45689 | L20: =IF(ISBLANK(IFERROR(IFERROR(VLOOKUP($A20,'EPRR Core Standards'!$A$2:$M$84,13,FALSE),VLOOKUP($A20,'Deep Dive Investigation'!$A$2:$M$84,13,FALSE)),""))=TRUE,"",IFERROR(IFERROR(VLOOKUP($A20,'EPRR Core Standards'!$A$2:$M$84,13,FALSE),VLOOKUP($A20,'Deep Dive Investigation'!$A$2:$M$84,13,FALSE)),"")) -> 
A21: 19 | B21: =IFERROR(IFERROR(VLOOKUP($A21,'EPRR Core Standards'!$A$2:$M$84,3,FALSE),VLOOKUP($A21,'Deep Dive Investigation'!$A$2:$M$84,3,FALSE)),"") -> 25 | C21: =IFERROR(IFERROR(VLOOKUP($A21,'EPRR Core Standards'!$A$2:$M$84,4,FALSE),VLOOKUP($A21,'Deep Dive Investigation'!$A$2:$M$84,4,FALSE)),"") -> Training and exercising | D21: =IFERROR(IFERROR(VLOOKUP($A21,'EPRR Core Standards'!$A$2:$M$84,5,FALSE),VLOOKUP($A21,'Deep Dive Investigation'!$A$2:$M$84,5,FALSE)),"") -> Staff Awareness & Training | E21: =IFERROR(IFERROR(VLOOKUP($A21,'EPRR Core Standards'!$A$2:$M$84,6,FALSE),VLOOKUP($A21,'Deep Dive Investigation'!$A$2:$M$84,6,FALSE)),"") -> There are mechanisms in place to ensure staff are aware of their role in an incident and where to find plans relevant to their area of work or department. | F21: =IFERROR(IFERROR(VLOOKUP($A21,'EPRR Core Standards'!$A$2:$M$84,7,FALSE),VLOOKUP($A21,'Deep Dive Investigation'!$A$2:$M$84,7,FALSE)),"") -> As part of mandatory training Exercise and Training attendance records reported to Board | G21: =IF(ISBLANK(IFERROR(IFERROR(VLOOKUP($A21,'EPRR Core Standards'!$A$2:$M$84,8,FALSE),VLOOKUP($A21,'Deep Dive Investigation'!$A$2:$M$84,8,FALSE)),""))=TRUE,"",IFERROR(IFERROR(VLOOKUP($A21,'EPRR Core Standards'!$A$2:$M$84,8,FALSE),VLOOKUP($A21,'Deep Dive Investigation'!$A$2:$M$84,8,FALSE)),"")) -> Business continuity plans. | H21: =IF(ISBLANK(IFERROR(IFERROR(VLOOKUP($A21,'EPRR Core Standards'!$A$2:$M$84,9,FALSE),VLOOKUP($A21,'Deep Dive Investigation'!$A$2:$M$84,9,FALSE)),""))=TRUE,"",IFERROR(IFERROR(VLOOKUP($A21,'EPRR Core Standards'!$A$2:$M$84,9,FALSE),VLOOKUP($A21,'Deep Dive Investigation'!$A$2:$M$84,9,FALSE)),"")) -> Partially compliant | I21: =IF(ISBLANK(IFERROR(IFERROR(VLOOKUP($A21,'EPRR Core Standards'!$A$2:$M$84,10,FALSE),VLOOKUP($A21,'Deep Dive Investigation'!$A$2:$M$84,10,FALSE)),""))=TRUE,"",IFERROR(IFERROR(VLOOKUP($A21,'EPRR Core Standards'!$A$2:$M$84,10,FALSE),VLOOKUP($A21,'Deep Dive Investigation'!$A$2:$M$84,10,FALSE)),"")) -> Yorkshire and Humber Community and Mental Health group reviewing this standard. | J21: =IF(ISBLANK(IFERROR(IFERROR(VLOOKUP($A21,'EPRR Core Standards'!$A$2:$M$84,11,FALSE),VLOOKUP($A21,'Deep Dive Investigation'!$A$2:$M$84,11,FALSE)),""))=TRUE,"",IFERROR(IFERROR(VLOOKUP($A21,'EPRR Core Standards'!$A$2:$M$84,11,FALSE),VLOOKUP($A21,'Deep Dive Investigation'!$A$2:$M$84,11,FALSE)),"")) -> EPRR Manager | K21: =IF(ISBLANK(IFERROR(IFERROR(VLOOKUP($A21,'EPRR Core Standards'!$A$2:$M$84,12,FALSE),VLOOKUP($A21,'Deep Dive Investigation'!$A$2:$M$84,12,FALSE)),""))=TRUE,"",IFERROR(IFERROR(VLOOKUP($A21,'EPRR Core Standards'!$A$2:$M$84,12,FALSE),VLOOKUP($A21,'Deep Dive Investigation'!$A$2:$M$84,12,FALSE)),"")) -> 45689 | L21: =IF(ISBLANK(IFERROR(IFERROR(VLOOKUP($A21,'EPRR Core Standards'!$A$2:$M$84,13,FALSE),VLOOKUP($A21,'Deep Dive Investigation'!$A$2:$M$84,13,FALSE)),""))=TRUE,"",IFERROR(IFERROR(VLOOKUP($A21,'EPRR Core Standards'!$A$2:$M$84,13,FALSE),VLOOKUP($A21,'Deep Dive Investigation'!$A$2:$M$84,13,FALSE)),"")) -> 
A22: 20 | B22: =IFERROR(IFERROR(VLOOKUP($A22,'EPRR Core Standards'!$A$2:$M$84,3,FALSE),VLOOKUP($A22,'Deep Dive Investigation'!$A$2:$M$84,3,FALSE)),"") -> Domain 6 - Response | C22: =IFERROR(IFERROR(VLOOKUP($A22,'EPRR Core Standards'!$A$2:$M$84,4,FALSE),VLOOKUP($A22,'Deep Dive Investigation'!$A$2:$M$84,4,FALSE)),"") ->  | D22: =IFERROR(IFERROR(VLOOKUP($A22,'EPRR Core Standards'!$A$2:$M$84,5,FALSE),VLOOKUP($A22,'Deep Dive Investigation'!$A$2:$M$84,5,FALSE)),"") ->  | E22: =IFERROR(IFERROR(VLOOKUP($A22,'EPRR Core Standards'!$A$2:$M$84,6,FALSE),VLOOKUP($A22,'Deep Dive Investigation'!$A$2:$M$84,6,FALSE)),"") ->  | F22: =IFERROR(IFERROR(VLOOKUP($A22,'EPRR Core Standards'!$A$2:$M$84,7,FALSE),VLOOKUP($A22,'Deep Dive Investigation'!$A$2:$M$84,7,FALSE)),"") ->  | G22: =IF(ISBLANK(IFERROR(IFERROR(VLOOKUP($A22,'EPRR Core Standards'!$A$2:$M$84,8,FALSE),VLOOKUP($A22,'Deep Dive Investigation'!$A$2:$M$84,8,FALSE)),""))=TRUE,"",IFERROR(IFERROR(VLOOKUP($A22,'EPRR Core Standards'!$A$2:$M$84,8,FALSE),VLOOKUP($A22,'Deep Dive Investigation'!$A$2:$M$84,8,FALSE)),"")) ->  | H22: =IF(ISBLANK(IFERROR(IFERROR(VLOOKUP($A22,'EPRR Core Standards'!$A$2:$M$84,9,FALSE),VLOOKUP($A22,'Deep Dive Investigation'!$A$2:$M$84,9,FALSE)),""))=TRUE,"",IFERROR(IFERROR(VLOOKUP($A22,'EPRR Core Standards'!$A$2:$M$84,9,FALSE),VLOOKUP($A22,'Deep Dive Investigation'!$A$2:$M$84,9,FALSE)),"")) ->  | I22: =IF(ISBLANK(IFERROR(IFERROR(VLOOKUP($A22,'EPRR Core Standards'!$A$2:$M$84,10,FALSE),VLOOKUP($A22,'Deep Dive Investigation'!$A$2:$M$84,10,FALSE)),""))=TRUE,"",IFERROR(IFERROR(VLOOKUP($A22,'EPRR Core Standards'!$A$2:$M$84,10,FALSE),VLOOKUP($A22,'Deep Dive Investigation'!$A$2:$M$84,10,FALSE)),"")) ->  | J22: =IF(ISBLANK(IFERROR(IFERROR(VLOOKUP($A22,'EPRR Core Standards'!$A$2:$M$84,11,FALSE),VLOOKUP($A22,'Deep Dive Investigation'!$A$2:$M$84,11,FALSE)),""))=TRUE,"",IFERROR(IFERROR(VLOOKUP($A22,'EPRR Core Standards'!$A$2:$M$84,11,FALSE),VLOOKUP($A22,'Deep Dive Investigation'!$A$2:$M$84,11,FALSE)),"")) ->  | K22: =IF(ISBLANK(IFERROR(IFERROR(VLOOKUP($A22,'EPRR Core Standards'!$A$2:$M$84,12,FALSE),VLOOKUP($A22,'Deep Dive Investigation'!$A$2:$M$84,12,FALSE)),""))=TRUE,"",IFERROR(IFERROR(VLOOKUP($A22,'EPRR Core Standards'!$A$2:$M$84,12,FALSE),VLOOKUP($A22,'Deep Dive Investigation'!$A$2:$M$84,12,FALSE)),"")) ->  | L22: =IF(ISBLANK(IFERROR(IFERROR(VLOOKUP($A22,'EPRR Core Standards'!$A$2:$M$84,13,FALSE),VLOOKUP($A22,'Deep Dive Investigation'!$A$2:$M$84,13,FALSE)),""))=TRUE,"",IFERROR(IFERROR(VLOOKUP($A22,'EPRR Core Standards'!$A$2:$M$84,13,FALSE),VLOOKUP($A22,'Deep Dive Investigation'!$A$2:$M$84,13,FALSE)),"")) -> 
A23: 21 | B23: =IFERROR(IFERROR(VLOOKUP($A23,'EPRR Core Standards'!$A$2:$M$84,3,FALSE),VLOOKUP($A23,'Deep Dive Investigation'!$A$2:$M$84,3,FALSE)),"") -> 27 | C23: =IFERROR(IFERROR(VLOOKUP($A23,'EPRR Core Standards'!$A$2:$M$84,4,FALSE),VLOOKUP($A23,'Deep Dive Investigation'!$A$2:$M$84,4,FALSE)),"") -> Response | D23: =IFERROR(IFERROR(VLOOKUP($A23,'EPRR Core Standards'!$A$2:$M$84,5,FALSE),VLOOKUP($A23,'Deep Dive Investigation'!$A$2:$M$84,5,FALSE)),"") -> Access to planning arrangements | E23: =IFERROR(IFERROR(VLOOKUP($A23,'EPRR Core Standards'!$A$2:$M$84,6,FALSE),VLOOKUP($A23,'Deep Dive Investigation'!$A$2:$M$84,6,FALSE)),"") -> Version controlled current response documents are available to relevant staff at all times. Staff should be aware of where they are stored and should be easily accessible. | F23: =IFERROR(IFERROR(VLOOKUP($A23,'EPRR Core Standards'!$A$2:$M$84,7,FALSE),VLOOKUP($A23,'Deep Dive Investigation'!$A$2:$M$84,7,FALSE)),"") -> Planning arrangements are easily accessible - both electronically and local copies | G23: =IF(ISBLANK(IFERROR(IFERROR(VLOOKUP($A23,'EPRR Core Standards'!$A$2:$M$84,8,FALSE),VLOOKUP($A23,'Deep Dive Investigation'!$A$2:$M$84,8,FALSE)),""))=TRUE,"",IFERROR(IFERROR(VLOOKUP($A23,'EPRR Core Standards'!$A$2:$M$84,8,FALSE),VLOOKUP($A23,'Deep Dive Investigation'!$A$2:$M$84,8,FALSE)),"")) -> EPRR library - digital and hard copy. Incident response plans. | H23: =IF(ISBLANK(IFERROR(IFERROR(VLOOKUP($A23,'EPRR Core Standards'!$A$2:$M$84,9,FALSE),VLOOKUP($A23,'Deep Dive Investigation'!$A$2:$M$84,9,FALSE)),""))=TRUE,"",IFERROR(IFERROR(VLOOKUP($A23,'EPRR Core Standards'!$A$2:$M$84,9,FALSE),VLOOKUP($A23,'Deep Dive Investigation'!$A$2:$M$84,9,FALSE)),"")) -> Partially compliant | I23: =IF(ISBLANK(IFERROR(IFERROR(VLOOKUP($A23,'EPRR Core Standards'!$A$2:$M$84,10,FALSE),VLOOKUP($A23,'Deep Dive Investigation'!$A$2:$M$84,10,FALSE)),""))=TRUE,"",IFERROR(IFERROR(VLOOKUP($A23,'EPRR Core Standards'!$A$2:$M$84,10,FALSE),VLOOKUP($A23,'Deep Dive Investigation'!$A$2:$M$84,10,FALSE)),"")) -> Hard copies to be made available. Sequential numbering to be put in place. | J23: =IF(ISBLANK(IFERROR(IFERROR(VLOOKUP($A23,'EPRR Core Standards'!$A$2:$M$84,11,FALSE),VLOOKUP($A23,'Deep Dive Investigation'!$A$2:$M$84,11,FALSE)),""))=TRUE,"",IFERROR(IFERROR(VLOOKUP($A23,'EPRR Core Standards'!$A$2:$M$84,11,FALSE),VLOOKUP($A23,'Deep Dive Investigation'!$A$2:$M$84,11,FALSE)),"")) -> EPRR Manager | K23: =IF(ISBLANK(IFERROR(IFERROR(VLOOKUP($A23,'EPRR Core Standards'!$A$2:$M$84,12,FALSE),VLOOKUP($A23,'Deep Dive Investigation'!$A$2:$M$84,12,FALSE)),""))=TRUE,"",IFERROR(IFERROR(VLOOKUP($A23,'EPRR Core Standards'!$A$2:$M$84,12,FALSE),VLOOKUP($A23,'Deep Dive Investigation'!$A$2:$M$84,12,FALSE)),"")) -> TBC | L23: =IF(ISBLANK(IFERROR(IFERROR(VLOOKUP($A23,'EPRR Core Standards'!$A$2:$M$84,13,FALSE),VLOOKUP($A23,'Deep Dive Investigation'!$A$2:$M$84,13,FALSE)),""))=TRUE,"",IFERROR(IFERROR(VLOOKUP($A23,'EPRR Core Standards'!$A$2:$M$84,13,FALSE),VLOOKUP($A23,'Deep Dive Investigation'!$A$2:$M$84,13,FALSE)),"")) -> 
A24: 22 | B24: =IFERROR(IFERROR(VLOOKUP($A24,'EPRR Core Standards'!$A$2:$M$84,3,FALSE),VLOOKUP($A24,'Deep Dive Investigation'!$A$2:$M$84,3,FALSE)),"") -> 29 | C24: =IFERROR(IFERROR(VLOOKUP($A24,'EPRR Core Standards'!$A$2:$M$84,4,FALSE),VLOOKUP($A24,'Deep Dive Investigation'!$A$2:$M$84,4,FALSE)),"") -> Response | D24: =IFERROR(IFERROR(VLOOKUP($A24,'EPRR Core Standards'!$A$2:$M$84,5,FALSE),VLOOKUP($A24,'Deep Dive Investigation'!$A$2:$M$84,5,FALSE)),"") -> Decision Logging | E24: =IFERROR(IFERROR(VLOOKUP($A24,'EPRR Core Standards'!$A$2:$M$84,6,FALSE),VLOOKUP($A24,'Deep Dive Investigation'!$A$2:$M$84,6,FALSE)),"") -> To ensure decisions are recorded during business continuity, critical and major incidents, the organisation must ensure: 1. Key response staff are aware of the need for creating their own personal records and decision logs to the required standards and storing them in accordance with the organisations' records management policy. 2. has 24 hour access to a trained loggist(s) to ensure support to the decision maker | F24: =IFERROR(IFERROR(VLOOKUP($A24,'EPRR Core Standards'!$A$2:$M$84,7,FALSE),VLOOKUP($A24,'Deep Dive Investigation'!$A$2:$M$84,7,FALSE)),"") -> • Documented processes for accessing and utilising loggists • Training records | G24: =IF(ISBLANK(IFERROR(IFERROR(VLOOKUP($A24,'EPRR Core Standards'!$A$2:$M$84,8,FALSE),VLOOKUP($A24,'Deep Dive Investigation'!$A$2:$M$84,8,FALSE)),""))=TRUE,"",IFERROR(IFERROR(VLOOKUP($A24,'EPRR Core Standards'!$A$2:$M$84,8,FALSE),VLOOKUP($A24,'Deep Dive Investigation'!$A$2:$M$84,8,FALSE)),"")) -> Incident response plans. Loggist not 24 hour, but 1st on call carry out that role. | H24: =IF(ISBLANK(IFERROR(IFERROR(VLOOKUP($A24,'EPRR Core Standards'!$A$2:$M$84,9,FALSE),VLOOKUP($A24,'Deep Dive Investigation'!$A$2:$M$84,9,FALSE)),""))=TRUE,"",IFERROR(IFERROR(VLOOKUP($A24,'EPRR Core Standards'!$A$2:$M$84,9,FALSE),VLOOKUP($A24,'Deep Dive Investigation'!$A$2:$M$84,9,FALSE)),"")) -> Partially compliant | I24: =IF(ISBLANK(IFERROR(IFERROR(VLOOKUP($A24,'EPRR Core Standards'!$A$2:$M$84,10,FALSE),VLOOKUP($A24,'Deep Dive Investigation'!$A$2:$M$84,10,FALSE)),""))=TRUE,"",IFERROR(IFERROR(VLOOKUP($A24,'EPRR Core Standards'!$A$2:$M$84,10,FALSE),VLOOKUP($A24,'Deep Dive Investigation'!$A$2:$M$84,10,FALSE)),"")) -> Check the loggist list. Paper on reimbursement/ honorarium for out of hours loggists. | J24: =IF(ISBLANK(IFERROR(IFERROR(VLOOKUP($A24,'EPRR Core Standards'!$A$2:$M$84,11,FALSE),VLOOKUP($A24,'Deep Dive Investigation'!$A$2:$M$84,11,FALSE)),""))=TRUE,"",IFERROR(IFERROR(VLOOKUP($A24,'EPRR Core Standards'!$A$2:$M$84,11,FALSE),VLOOKUP($A24,'Deep Dive Investigation'!$A$2:$M$84,11,FALSE)),"")) -> EPRR Manager/ Ops support manager | K24: =IF(ISBLANK(IFERROR(IFERROR(VLOOKUP($A24,'EPRR Core Standards'!$A$2:$M$84,12,FALSE),VLOOKUP($A24,'Deep Dive Investigation'!$A$2:$M$84,12,FALSE)),""))=TRUE,"",IFERROR(IFERROR(VLOOKUP($A24,'EPRR Core Standards'!$A$2:$M$84,12,FALSE),VLOOKUP($A24,'Deep Dive Investigation'!$A$2:$M$84,12,FALSE)),"")) -> 45597 | L24: =IF(ISBLANK(IFERROR(IFERROR(VLOOKUP($A24,'EPRR Core Standards'!$A$2:$M$84,13,FALSE),VLOOKUP($A24,'Deep Dive Investigation'!$A$2:$M$84,13,FALSE)),""))=TRUE,"",IFERROR(IFERROR(VLOOKUP($A24,'EPRR Core Standards'!$A$2:$M$84,13,FALSE),VLOOKUP($A24,'Deep Dive Investigation'!$A$2:$M$84,13,FALSE)),"")) -> 
A25: 23 | B25: =IFERROR(IFERROR(VLOOKUP($A25,'EPRR Core Standards'!$A$2:$M$84,3,FALSE),VLOOKUP($A25,'Deep Dive Investigation'!$A$2:$M$84,3,FALSE)),"") -> Domain 7 - Warning and informing | C25: =IFERROR(IFERROR(VLOOKUP($A25,'EPRR Core Standards'!$A$2:$M$84,4,FALSE),VLOOKUP($A25,'Deep Dive Investigation'!$A$2:$M$84,4,FALSE)),"") ->  | D25: =IFERROR(IFERROR(VLOOKUP($A25,'EPRR Core Standards'!$A$2:$M$84,5,FALSE),VLOOKUP($A25,'Deep Dive Investigation'!$A$2:$M$84,5,FALSE)),"") ->  | E25: =IFERROR(IFERROR(VLOOKUP($A25,'EPRR Core Standards'!$A$2:$M$84,6,FALSE),VLOOKUP($A25,'Deep Dive Investigation'!$A$2:$M$84,6,FALSE)),"") ->  | F25: =IFERROR(IFERROR(VLOOKUP($A25,'EPRR Core Standards'!$A$2:$M$84,7,FALSE),VLOOKUP($A25,'Deep Dive Investigation'!$A$2:$M$84,7,FALSE)),"") ->  | G25: =IF(ISBLANK(IFERROR(IFERROR(VLOOKUP($A25,'EPRR Core Standards'!$A$2:$M$84,8,FALSE),VLOOKUP($A25,'Deep Dive Investigation'!$A$2:$M$84,8,FALSE)),""))=TRUE,"",IFERROR(IFERROR(VLOOKUP($A25,'EPRR Core Standards'!$A$2:$M$84,8,FALSE),VLOOKUP($A25,'Deep Dive Investigation'!$A$2:$M$84,8,FALSE)),"")) ->  | H25: =IF(ISBLANK(IFERROR(IFERROR(VLOOKUP($A25,'EPRR Core Standards'!$A$2:$M$84,9,FALSE),VLOOKUP($A25,'Deep Dive Investigation'!$A$2:$M$84,9,FALSE)),""))=TRUE,"",IFERROR(IFERROR(VLOOKUP($A25,'EPRR Core Standards'!$A$2:$M$84,9,FALSE),VLOOKUP($A25,'Deep Dive Investigation'!$A$2:$M$84,9,FALSE)),"")) ->  | I25: =IF(ISBLANK(IFERROR(IFERROR(VLOOKUP($A25,'EPRR Core Standards'!$A$2:$M$84,10,FALSE),VLOOKUP($A25,'Deep Dive Investigation'!$A$2:$M$84,10,FALSE)),""))=TRUE,"",IFERROR(IFERROR(VLOOKUP($A25,'EPRR Core Standards'!$A$2:$M$84,10,FALSE),VLOOKUP($A25,'Deep Dive Investigation'!$A$2:$M$84,10,FALSE)),"")) ->  | J25: =IF(ISBLANK(IFERROR(IFERROR(VLOOKUP($A25,'EPRR Core Standards'!$A$2:$M$84,11,FALSE),VLOOKUP($A25,'Deep Dive Investigation'!$A$2:$M$84,11,FALSE)),""))=TRUE,"",IFERROR(IFERROR(VLOOKUP($A25,'EPRR Core Standards'!$A$2:$M$84,11,FALSE),VLOOKUP($A25,'Deep Dive Investigation'!$A$2:$M$84,11,FALSE)),"")) ->  | K25: =IF(ISBLANK(IFERROR(IFERROR(VLOOKUP($A25,'EPRR Core Standards'!$A$2:$M$84,12,FALSE),VLOOKUP($A25,'Deep Dive Investigation'!$A$2:$M$84,12,FALSE)),""))=TRUE,"",IFERROR(IFERROR(VLOOKUP($A25,'EPRR Core Standards'!$A$2:$M$84,12,FALSE),VLOOKUP($A25,'Deep Dive Investigation'!$A$2:$M$84,12,FALSE)),"")) ->  | L25: =IF(ISBLANK(IFERROR(IFERROR(VLOOKUP($A25,'EPRR Core Standards'!$A$2:$M$84,13,FALSE),VLOOKUP($A25,'Deep Dive Investigation'!$A$2:$M$84,13,FALSE)),""))=TRUE,"",IFERROR(IFERROR(VLOOKUP($A25,'EPRR Core Standards'!$A$2:$M$84,13,FALSE),VLOOKUP($A25,'Deep Dive Investigation'!$A$2:$M$84,13,FALSE)),"")) -> 
A26: 24 | B26: =IFERROR(IFERROR(VLOOKUP($A26,'EPRR Core Standards'!$A$2:$M$84,3,FALSE),VLOOKUP($A26,'Deep Dive Investigation'!$A$2:$M$84,3,FALSE)),"") -> 33 | C26: =IFERROR(IFERROR(VLOOKUP($A26,'EPRR Core Standards'!$A$2:$M$84,4,FALSE),VLOOKUP($A26,'Deep Dive Investigation'!$A$2:$M$84,4,FALSE)),"") -> Warning and informing | D26: =IFERROR(IFERROR(VLOOKUP($A26,'EPRR Core Standards'!$A$2:$M$84,5,FALSE),VLOOKUP($A26,'Deep Dive Investigation'!$A$2:$M$84,5,FALSE)),"") -> Warning and informing | E26: =IFERROR(IFERROR(VLOOKUP($A26,'EPRR Core Standards'!$A$2:$M$84,6,FALSE),VLOOKUP($A26,'Deep Dive Investigation'!$A$2:$M$84,6,FALSE)),"") -> The organisation aligns communications planning and activity with the organisation’s EPRR planning and activity. | F26: =IFERROR(IFERROR(VLOOKUP($A26,'EPRR Core Standards'!$A$2:$M$84,7,FALSE),VLOOKUP($A26,'Deep Dive Investigation'!$A$2:$M$84,7,FALSE)),"") -> • Awareness within communications team of the organisation’s EPRR plan, and how to report potential incidents. • Measures are in place to ensure incidents are appropriately described and declared in line with the NHS EPRR Framework. • Out of hours communication system (24/7, year-round) is in place to allow access to trained comms support for senior leaders during an incident. This should include on call arrangements. • Having a process for being able to log incoming requests, track responses to these requests and to ensure that information related to incidents is stored effectively. This will allow organisations to provide evidence should it be required for an inquiry. | G26: =IF(ISBLANK(IFERROR(IFERROR(VLOOKUP($A26,'EPRR Core Standards'!$A$2:$M$84,8,FALSE),VLOOKUP($A26,'Deep Dive Investigation'!$A$2:$M$84,8,FALSE)),""))=TRUE,"",IFERROR(IFERROR(VLOOKUP($A26,'EPRR Core Standards'!$A$2:$M$84,8,FALSE),VLOOKUP($A26,'Deep Dive Investigation'!$A$2:$M$84,8,FALSE)),"")) -> EPRR policy. On call manual covers out of hours communication arrangements. | H26: =IF(ISBLANK(IFERROR(IFERROR(VLOOKUP($A26,'EPRR Core Standards'!$A$2:$M$84,9,FALSE),VLOOKUP($A26,'Deep Dive Investigation'!$A$2:$M$84,9,FALSE)),""))=TRUE,"",IFERROR(IFERROR(VLOOKUP($A26,'EPRR Core Standards'!$A$2:$M$84,9,FALSE),VLOOKUP($A26,'Deep Dive Investigation'!$A$2:$M$84,9,FALSE)),"")) -> Partially compliant | I26: =IF(ISBLANK(IFERROR(IFERROR(VLOOKUP($A26,'EPRR Core Standards'!$A$2:$M$84,10,FALSE),VLOOKUP($A26,'Deep Dive Investigation'!$A$2:$M$84,10,FALSE)),""))=TRUE,"",IFERROR(IFERROR(VLOOKUP($A26,'EPRR Core Standards'!$A$2:$M$84,10,FALSE),VLOOKUP($A26,'Deep Dive Investigation'!$A$2:$M$84,10,FALSE)),"")) -> Update comms pack to include a formal warning plan. | J26: =IF(ISBLANK(IFERROR(IFERROR(VLOOKUP($A26,'EPRR Core Standards'!$A$2:$M$84,11,FALSE),VLOOKUP($A26,'Deep Dive Investigation'!$A$2:$M$84,11,FALSE)),""))=TRUE,"",IFERROR(IFERROR(VLOOKUP($A26,'EPRR Core Standards'!$A$2:$M$84,11,FALSE),VLOOKUP($A26,'Deep Dive Investigation'!$A$2:$M$84,11,FALSE)),"")) -> Communications | K26: =IF(ISBLANK(IFERROR(IFERROR(VLOOKUP($A26,'EPRR Core Standards'!$A$2:$M$84,12,FALSE),VLOOKUP($A26,'Deep Dive Investigation'!$A$2:$M$84,12,FALSE)),""))=TRUE,"",IFERROR(IFERROR(VLOOKUP($A26,'EPRR Core Standards'!$A$2:$M$84,12,FALSE),VLOOKUP($A26,'Deep Dive Investigation'!$A$2:$M$84,12,FALSE)),"")) -> 45717 | L26: =IF(ISBLANK(IFERROR(IFERROR(VLOOKUP($A26,'EPRR Core Standards'!$A$2:$M$84,13,FALSE),VLOOKUP($A26,'Deep Dive Investigation'!$A$2:$M$84,13,FALSE)),""))=TRUE,"",IFERROR(IFERROR(VLOOKUP($A26,'EPRR Core Standards'!$A$2:$M$84,13,FALSE),VLOOKUP($A26,'Deep Dive Investigation'!$A$2:$M$84,13,FALSE)),"")) -> 
A27: 25 | B27: =IFERROR(IFERROR(VLOOKUP($A27,'EPRR Core Standards'!$A$2:$M$84,3,FALSE),VLOOKUP($A27,'Deep Dive Investigation'!$A$2:$M$84,3,FALSE)),"") -> 34 | C27: =IFERROR(IFERROR(VLOOKUP($A27,'EPRR Core Standards'!$A$2:$M$84,4,FALSE),VLOOKUP($A27,'Deep Dive Investigation'!$A$2:$M$84,4,FALSE)),"") -> Warning and informing | D27: =IFERROR(IFERROR(VLOOKUP($A27,'EPRR Core Standards'!$A$2:$M$84,5,FALSE),VLOOKUP($A27,'Deep Dive Investigation'!$A$2:$M$84,5,FALSE)),"") -> Incident Communication Plan | E27: =IFERROR(IFERROR(VLOOKUP($A27,'EPRR Core Standards'!$A$2:$M$84,6,FALSE),VLOOKUP($A27,'Deep Dive Investigation'!$A$2:$M$84,6,FALSE)),"") -> The organisation has a plan in place for communicating during an incident which can be enacted. | F27: =IFERROR(IFERROR(VLOOKUP($A27,'EPRR Core Standards'!$A$2:$M$84,7,FALSE),VLOOKUP($A27,'Deep Dive Investigation'!$A$2:$M$84,7,FALSE)),"") -> • An incident communications plan has been developed and is available to on call communications staff • The incident communications plan has been tested both in and out of hours • Action cards have been developed for communications roles • A requirement for briefing NHS England regional communications team has been established • The plan has been tested, both in and out of hours as part of an exercise. • Clarity on sign off for communications is included in the plan, noting the need to ensure communications are signed off by incident leads, as well as NHSE (if appropriate). | G27: =IF(ISBLANK(IFERROR(IFERROR(VLOOKUP($A27,'EPRR Core Standards'!$A$2:$M$84,8,FALSE),VLOOKUP($A27,'Deep Dive Investigation'!$A$2:$M$84,8,FALSE)),""))=TRUE,"",IFERROR(IFERROR(VLOOKUP($A27,'EPRR Core Standards'!$A$2:$M$84,8,FALSE),VLOOKUP($A27,'Deep Dive Investigation'!$A$2:$M$84,8,FALSE)),"")) -> Comms action cards/ pack | H27: =IF(ISBLANK(IFERROR(IFERROR(VLOOKUP($A27,'EPRR Core Standards'!$A$2:$M$84,9,FALSE),VLOOKUP($A27,'Deep Dive Investigation'!$A$2:$M$84,9,FALSE)),""))=TRUE,"",IFERROR(IFERROR(VLOOKUP($A27,'EPRR Core Standards'!$A$2:$M$84,9,FALSE),VLOOKUP($A27,'Deep Dive Investigation'!$A$2:$M$84,9,FALSE)),"")) -> Partially compliant | I27: =IF(ISBLANK(IFERROR(IFERROR(VLOOKUP($A27,'EPRR Core Standards'!$A$2:$M$84,10,FALSE),VLOOKUP($A27,'Deep Dive Investigation'!$A$2:$M$84,10,FALSE)),""))=TRUE,"",IFERROR(IFERROR(VLOOKUP($A27,'EPRR Core Standards'!$A$2:$M$84,10,FALSE),VLOOKUP($A27,'Deep Dive Investigation'!$A$2:$M$84,10,FALSE)),"")) -> Update Comms Pack | J27: =IF(ISBLANK(IFERROR(IFERROR(VLOOKUP($A27,'EPRR Core Standards'!$A$2:$M$84,11,FALSE),VLOOKUP($A27,'Deep Dive Investigation'!$A$2:$M$84,11,FALSE)),""))=TRUE,"",IFERROR(IFERROR(VLOOKUP($A27,'EPRR Core Standards'!$A$2:$M$84,11,FALSE),VLOOKUP($A27,'Deep Dive Investigation'!$A$2:$M$84,11,FALSE)),"")) -> Communications | K27: =IF(ISBLANK(IFERROR(IFERROR(VLOOKUP($A27,'EPRR Core Standards'!$A$2:$M$84,12,FALSE),VLOOKUP($A27,'Deep Dive Investigation'!$A$2:$M$84,12,FALSE)),""))=TRUE,"",IFERROR(IFERROR(VLOOKUP($A27,'EPRR Core Standards'!$A$2:$M$84,12,FALSE),VLOOKUP($A27,'Deep Dive Investigation'!$A$2:$M$84,12,FALSE)),"")) -> 45717 | L27: =IF(ISBLANK(IFERROR(IFERROR(VLOOKUP($A27,'EPRR Core Standards'!$A$2:$M$84,13,FALSE),VLOOKUP($A27,'Deep Dive Investigation'!$A$2:$M$84,13,FALSE)),""))=TRUE,"",IFERROR(IFERROR(VLOOKUP($A27,'EPRR Core Standards'!$A$2:$M$84,13,FALSE),VLOOKUP($A27,'Deep Dive Investigation'!$A$2:$M$84,13,FALSE)),"")) -> 
A28: 26 | B28: =IFERROR(IFERROR(VLOOKUP($A28,'EPRR Core Standards'!$A$2:$M$84,3,FALSE),VLOOKUP($A28,'Deep Dive Investigation'!$A$2:$M$84,3,FALSE)),"") -> 35 | C28: =IFERROR(IFERROR(VLOOKUP($A28,'EPRR Core Standards'!$A$2:$M$84,4,FALSE),VLOOKUP($A28,'Deep Dive Investigation'!$A$2:$M$84,4,FALSE)),"") -> Warning and informing | D28: =IFERROR(IFERROR(VLOOKUP($A28,'EPRR Core Standards'!$A$2:$M$84,5,FALSE),VLOOKUP($A28,'Deep Dive Investigation'!$A$2:$M$84,5,FALSE)),"") -> Communication with partners and stakeholders | E28: =IFERROR(IFERROR(VLOOKUP($A28,'EPRR Core Standards'!$A$2:$M$84,6,FALSE),VLOOKUP($A28,'Deep Dive Investigation'!$A$2:$M$84,6,FALSE)),"") -> The organisation has arrangements in place to communicate with patients, staff, partner organisations, stakeholders, and the public before, during and after a major incident, critical incident or business continuity incident. | F28: =IFERROR(IFERROR(VLOOKUP($A28,'EPRR Core Standards'!$A$2:$M$84,7,FALSE),VLOOKUP($A28,'Deep Dive Investigation'!$A$2:$M$84,7,FALSE)),"") -> • Established means of communicating with staff, at both short notice and for the duration of the incident, including out of hours communications • A developed list of contacts in partner organisations who are key to service delivery (local Council, LRF partners, neighbouring NHS organisations etc) and a means of warning and informing these organisations about an incident as well as sharing communications information with partner organisations to create consistent messages at a local, regional and national level. • A developed list of key local stakeholders (such as local elected officials, unions etc) and an established a process by which to brief local stakeholders during an incident • Appropriate channels for communicating with members of the public that can be used 24/7 if required • Identified sites within the organisation for displaying of important public information (such as main points of access) • Have in place a means of communicating with patients who have appointments booked or are receiving treatment. • Have in place a plan to communicate with inpatients and their families or care givers. • The organisation publicly states its readiness and preparedness activities in annual reports within the organisations own regulatory reporting requirements | G28: =IF(ISBLANK(IFERROR(IFERROR(VLOOKUP($A28,'EPRR Core Standards'!$A$2:$M$84,8,FALSE),VLOOKUP($A28,'Deep Dive Investigation'!$A$2:$M$84,8,FALSE)),""))=TRUE,"",IFERROR(IFERROR(VLOOKUP($A28,'EPRR Core Standards'!$A$2:$M$84,8,FALSE),VLOOKUP($A28,'Deep Dive Investigation'!$A$2:$M$84,8,FALSE)),"")) -> Comms action cards/ pack. Incident response plan. | H28: =IF(ISBLANK(IFERROR(IFERROR(VLOOKUP($A28,'EPRR Core Standards'!$A$2:$M$84,9,FALSE),VLOOKUP($A28,'Deep Dive Investigation'!$A$2:$M$84,9,FALSE)),""))=TRUE,"",IFERROR(IFERROR(VLOOKUP($A28,'EPRR Core Standards'!$A$2:$M$84,9,FALSE),VLOOKUP($A28,'Deep Dive Investigation'!$A$2:$M$84,9,FALSE)),"")) -> Partially compliant | I28: =IF(ISBLANK(IFERROR(IFERROR(VLOOKUP($A28,'EPRR Core Standards'!$A$2:$M$84,10,FALSE),VLOOKUP($A28,'Deep Dive Investigation'!$A$2:$M$84,10,FALSE)),""))=TRUE,"",IFERROR(IFERROR(VLOOKUP($A28,'EPRR Core Standards'!$A$2:$M$84,10,FALSE),VLOOKUP($A28,'Deep Dive Investigation'!$A$2:$M$84,10,FALSE)),"")) -> Update Comms Pack | J28: =IF(ISBLANK(IFERROR(IFERROR(VLOOKUP($A28,'EPRR Core Standards'!$A$2:$M$84,11,FALSE),VLOOKUP($A28,'Deep Dive Investigation'!$A$2:$M$84,11,FALSE)),""))=TRUE,"",IFERROR(IFERROR(VLOOKUP($A28,'EPRR Core Standards'!$A$2:$M$84,11,FALSE),VLOOKUP($A28,'Deep Dive Investigation'!$A$2:$M$84,11,FALSE)),"")) -> Communications | K28: =IF(ISBLANK(IFERROR(IFERROR(VLOOKUP($A28,'EPRR Core Standards'!$A$2:$M$84,12,FALSE),VLOOKUP($A28,'Deep Dive Investigation'!$A$2:$M$84,12,FALSE)),""))=TRUE,"",IFERROR(IFERROR(VLOOKUP($A28,'EPRR Core Standards'!$A$2:$M$84,12,FALSE),VLOOKUP($A28,'Deep Dive Investigation'!$A$2:$M$84,12,FALSE)),"")) -> 45717 | L28: =IF(ISBLANK(IFERROR(IFERROR(VLOOKUP($A28,'EPRR Core Standards'!$A$2:$M$84,13,FALSE),VLOOKUP($A28,'Deep Dive Investigation'!$A$2:$M$84,13,FALSE)),""))=TRUE,"",IFERROR(IFERROR(VLOOKUP($A28,'EPRR Core Standards'!$A$2:$M$84,13,FALSE),VLOOKUP($A28,'Deep Dive Investigation'!$A$2:$M$84,13,FALSE)),"")) -> 
A29: 27 | B29: =IFERROR(IFERROR(VLOOKUP($A29,'EPRR Core Standards'!$A$2:$M$84,3,FALSE),VLOOKUP($A29,'Deep Dive Investigation'!$A$2:$M$84,3,FALSE)),"") -> 36 | C29: =IFERROR(IFERROR(VLOOKUP($A29,'EPRR Core Standards'!$A$2:$M$84,4,FALSE),VLOOKUP($A29,'Deep Dive Investigation'!$A$2:$M$84,4,FALSE)),"") -> Warning and informing | D29: =IFERROR(IFERROR(VLOOKUP($A29,'EPRR Core Standards'!$A$2:$M$84,5,FALSE),VLOOKUP($A29,'Deep Dive Investigation'!$A$2:$M$84,5,FALSE)),"") -> Media strategy | E29: =IFERROR(IFERROR(VLOOKUP($A29,'EPRR Core Standards'!$A$2:$M$84,6,FALSE),VLOOKUP($A29,'Deep Dive Investigation'!$A$2:$M$84,6,FALSE)),"") -> The organisation has arrangements in place to enable rapid and structured communication via the media and social media | F29: =IFERROR(IFERROR(VLOOKUP($A29,'EPRR Core Standards'!$A$2:$M$84,7,FALSE),VLOOKUP($A29,'Deep Dive Investigation'!$A$2:$M$84,7,FALSE)),"") -> • Having an agreed media strategy and a plan for how this will be enacted during an incident. This will allow for timely distribution of information to warn and inform the media • Develop a pool of media spokespeople able to represent the organisation to the media at all times. • Social Media policy and monitoring in place to identify and track information on social media relating to incidents. • Setting up protocols for using social media to warn and inform • Specifying advice to senior staff to effectively use social media accounts whilst the organisation is in incident response | G29: =IF(ISBLANK(IFERROR(IFERROR(VLOOKUP($A29,'EPRR Core Standards'!$A$2:$M$84,8,FALSE),VLOOKUP($A29,'Deep Dive Investigation'!$A$2:$M$84,8,FALSE)),""))=TRUE,"",IFERROR(IFERROR(VLOOKUP($A29,'EPRR Core Standards'!$A$2:$M$84,8,FALSE),VLOOKUP($A29,'Deep Dive Investigation'!$A$2:$M$84,8,FALSE)),"")) -> Comms action cards/ pack. West Yorks comms and media guidance. | H29: =IF(ISBLANK(IFERROR(IFERROR(VLOOKUP($A29,'EPRR Core Standards'!$A$2:$M$84,9,FALSE),VLOOKUP($A29,'Deep Dive Investigation'!$A$2:$M$84,9,FALSE)),""))=TRUE,"",IFERROR(IFERROR(VLOOKUP($A29,'EPRR Core Standards'!$A$2:$M$84,9,FALSE),VLOOKUP($A29,'Deep Dive Investigation'!$A$2:$M$84,9,FALSE)),"")) -> Partially compliant | I29: =IF(ISBLANK(IFERROR(IFERROR(VLOOKUP($A29,'EPRR Core Standards'!$A$2:$M$84,10,FALSE),VLOOKUP($A29,'Deep Dive Investigation'!$A$2:$M$84,10,FALSE)),""))=TRUE,"",IFERROR(IFERROR(VLOOKUP($A29,'EPRR Core Standards'!$A$2:$M$84,10,FALSE),VLOOKUP($A29,'Deep Dive Investigation'!$A$2:$M$84,10,FALSE)),"")) -> Update comms pack | J29: =IF(ISBLANK(IFERROR(IFERROR(VLOOKUP($A29,'EPRR Core Standards'!$A$2:$M$84,11,FALSE),VLOOKUP($A29,'Deep Dive Investigation'!$A$2:$M$84,11,FALSE)),""))=TRUE,"",IFERROR(IFERROR(VLOOKUP($A29,'EPRR Core Standards'!$A$2:$M$84,11,FALSE),VLOOKUP($A29,'Deep Dive Investigation'!$A$2:$M$84,11,FALSE)),"")) -> Communications | K29: =IF(ISBLANK(IFERROR(IFERROR(VLOOKUP($A29,'EPRR Core Standards'!$A$2:$M$84,12,FALSE),VLOOKUP($A29,'Deep Dive Investigation'!$A$2:$M$84,12,FALSE)),""))=TRUE,"",IFERROR(IFERROR(VLOOKUP($A29,'EPRR Core Standards'!$A$2:$M$84,12,FALSE),VLOOKUP($A29,'Deep Dive Investigation'!$A$2:$M$84,12,FALSE)),"")) -> 45717 | L29: =IF(ISBLANK(IFERROR(IFERROR(VLOOKUP($A29,'EPRR Core Standards'!$A$2:$M$84,13,FALSE),VLOOKUP($A29,'Deep Dive Investigation'!$A$2:$M$84,13,FALSE)),""))=TRUE,"",IFERROR(IFERROR(VLOOKUP($A29,'EPRR Core Standards'!$A$2:$M$84,13,FALSE),VLOOKUP($A29,'Deep Dive Investigation'!$A$2:$M$84,13,FALSE)),"")) -> 
A30: 28 | B30: =IFERROR(IFERROR(VLOOKUP($A30,'EPRR Core Standards'!$A$2:$M$84,3,FALSE),VLOOKUP($A30,'Deep Dive Investigation'!$A$2:$M$84,3,FALSE)),"") -> Domain 8 - Cooperation | C30: =IFERROR(IFERROR(VLOOKUP($A30,'EPRR Core Standards'!$A$2:$M$84,4,FALSE),VLOOKUP($A30,'Deep Dive Investigation'!$A$2:$M$84,4,FALSE)),"") ->  | D30: =IFERROR(IFERROR(VLOOKUP($A30,'EPRR Core Standards'!$A$2:$M$84,5,FALSE),VLOOKUP($A30,'Deep Dive Investigation'!$A$2:$M$84,5,FALSE)),"") ->  | E30: =IFERROR(IFERROR(VLOOKUP($A30,'EPRR Core Standards'!$A$2:$M$84,6,FALSE),VLOOKUP($A30,'Deep Dive Investigation'!$A$2:$M$84,6,FALSE)),"") ->  | F30: =IFERROR(IFERROR(VLOOKUP($A30,'EPRR Core Standards'!$A$2:$M$84,7,FALSE),VLOOKUP($A30,'Deep Dive Investigation'!$A$2:$M$84,7,FALSE)),"") ->  | G30: =IF(ISBLANK(IFERROR(IFERROR(VLOOKUP($A30,'EPRR Core Standards'!$A$2:$M$84,8,FALSE),VLOOKUP($A30,'Deep Dive Investigation'!$A$2:$M$84,8,FALSE)),""))=TRUE,"",IFERROR(IFERROR(VLOOKUP($A30,'EPRR Core Standards'!$A$2:$M$84,8,FALSE),VLOOKUP($A30,'Deep Dive Investigation'!$A$2:$M$84,8,FALSE)),"")) ->  | H30: =IF(ISBLANK(IFERROR(IFERROR(VLOOKUP($A30,'EPRR Core Standards'!$A$2:$M$84,9,FALSE),VLOOKUP($A30,'Deep Dive Investigation'!$A$2:$M$84,9,FALSE)),""))=TRUE,"",IFERROR(IFERROR(VLOOKUP($A30,'EPRR Core Standards'!$A$2:$M$84,9,FALSE),VLOOKUP($A30,'Deep Dive Investigation'!$A$2:$M$84,9,FALSE)),"")) ->  | I30: =IF(ISBLANK(IFERROR(IFERROR(VLOOKUP($A30,'EPRR Core Standards'!$A$2:$M$84,10,FALSE),VLOOKUP($A30,'Deep Dive Investigation'!$A$2:$M$84,10,FALSE)),""))=TRUE,"",IFERROR(IFERROR(VLOOKUP($A30,'EPRR Core Standards'!$A$2:$M$84,10,FALSE),VLOOKUP($A30,'Deep Dive Investigation'!$A$2:$M$84,10,FALSE)),"")) ->  | J30: =IF(ISBLANK(IFERROR(IFERROR(VLOOKUP($A30,'EPRR Core Standards'!$A$2:$M$84,11,FALSE),VLOOKUP($A30,'Deep Dive Investigation'!$A$2:$M$84,11,FALSE)),""))=TRUE,"",IFERROR(IFERROR(VLOOKUP($A30,'EPRR Core Standards'!$A$2:$M$84,11,FALSE),VLOOKUP($A30,'Deep Dive Investigation'!$A$2:$M$84,11,FALSE)),"")) ->  | K30: =IF(ISBLANK(IFERROR(IFERROR(VLOOKUP($A30,'EPRR Core Standards'!$A$2:$M$84,12,FALSE),VLOOKUP($A30,'Deep Dive Investigation'!$A$2:$M$84,12,FALSE)),""))=TRUE,"",IFERROR(IFERROR(VLOOKUP($A30,'EPRR Core Standards'!$A$2:$M$84,12,FALSE),VLOOKUP($A30,'Deep Dive Investigation'!$A$2:$M$84,12,FALSE)),"")) ->  | L30: =IF(ISBLANK(IFERROR(IFERROR(VLOOKUP($A30,'EPRR Core Standards'!$A$2:$M$84,13,FALSE),VLOOKUP($A30,'Deep Dive Investigation'!$A$2:$M$84,13,FALSE)),""))=TRUE,"",IFERROR(IFERROR(VLOOKUP($A30,'EPRR Core Standards'!$A$2:$M$84,13,FALSE),VLOOKUP($A30,'Deep Dive Investigation'!$A$2:$M$84,13,FALSE)),"")) -> 
A31: 29 | B31: =IFERROR(IFERROR(VLOOKUP($A31,'EPRR Core Standards'!$A$2:$M$84,3,FALSE),VLOOKUP($A31,'Deep Dive Investigation'!$A$2:$M$84,3,FALSE)),"") -> 39 | C31: =IFERROR(IFERROR(VLOOKUP($A31,'EPRR Core Standards'!$A$2:$M$84,4,FALSE),VLOOKUP($A31,'Deep Dive Investigation'!$A$2:$M$84,4,FALSE)),"") -> Cooperation | D31: =IFERROR(IFERROR(VLOOKUP($A31,'EPRR Core Standards'!$A$2:$M$84,5,FALSE),VLOOKUP($A31,'Deep Dive Investigation'!$A$2:$M$84,5,FALSE)),"") -> Mutual aid arrangements | E31: =IFERROR(IFERROR(VLOOKUP($A31,'EPRR Core Standards'!$A$2:$M$84,6,FALSE),VLOOKUP($A31,'Deep Dive Investigation'!$A$2:$M$84,6,FALSE)),"") -> The organisation has agreed mutual aid arrangements in place outlining the process for requesting, coordinating and maintaining mutual aid resources. These arrangements may include staff, equipment, services and supplies. In line with current NHS guidance, these arrangements may be formal and should include the process for requesting Military Aid to Civil Authorities (MACA) via NHS England. | F31: =IFERROR(IFERROR(VLOOKUP($A31,'EPRR Core Standards'!$A$2:$M$84,7,FALSE),VLOOKUP($A31,'Deep Dive Investigation'!$A$2:$M$84,7,FALSE)),"") -> • Detailed documentation on the process for requesting, receiving and managing mutual aid requests • Templates and other required documentation is available in ICC or as appendices to IRP • Signed mutual aid agreements where appropriate | G31: =IF(ISBLANK(IFERROR(IFERROR(VLOOKUP($A31,'EPRR Core Standards'!$A$2:$M$84,8,FALSE),VLOOKUP($A31,'Deep Dive Investigation'!$A$2:$M$84,8,FALSE)),""))=TRUE,"",IFERROR(IFERROR(VLOOKUP($A31,'EPRR Core Standards'!$A$2:$M$84,8,FALSE),VLOOKUP($A31,'Deep Dive Investigation'!$A$2:$M$84,8,FALSE)),"")) -> MOU for EPRR advice. | H31: =IF(ISBLANK(IFERROR(IFERROR(VLOOKUP($A31,'EPRR Core Standards'!$A$2:$M$84,9,FALSE),VLOOKUP($A31,'Deep Dive Investigation'!$A$2:$M$84,9,FALSE)),""))=TRUE,"",IFERROR(IFERROR(VLOOKUP($A31,'EPRR Core Standards'!$A$2:$M$84,9,FALSE),VLOOKUP($A31,'Deep Dive Investigation'!$A$2:$M$84,9,FALSE)),"")) -> Partially compliant | I31: =IF(ISBLANK(IFERROR(IFERROR(VLOOKUP($A31,'EPRR Core Standards'!$A$2:$M$84,10,FALSE),VLOOKUP($A31,'Deep Dive Investigation'!$A$2:$M$84,10,FALSE)),""))=TRUE,"",IFERROR(IFERROR(VLOOKUP($A31,'EPRR Core Standards'!$A$2:$M$84,10,FALSE),VLOOKUP($A31,'Deep Dive Investigation'!$A$2:$M$84,10,FALSE)),"")) -> Advice required around the coordination and agreement of ICS and Place plans. Framework being developed by ICB. | J31: =IF(ISBLANK(IFERROR(IFERROR(VLOOKUP($A31,'EPRR Core Standards'!$A$2:$M$84,11,FALSE),VLOOKUP($A31,'Deep Dive Investigation'!$A$2:$M$84,11,FALSE)),""))=TRUE,"",IFERROR(IFERROR(VLOOKUP($A31,'EPRR Core Standards'!$A$2:$M$84,11,FALSE),VLOOKUP($A31,'Deep Dive Investigation'!$A$2:$M$84,11,FALSE)),"")) -> ICB | K31: =IF(ISBLANK(IFERROR(IFERROR(VLOOKUP($A31,'EPRR Core Standards'!$A$2:$M$84,12,FALSE),VLOOKUP($A31,'Deep Dive Investigation'!$A$2:$M$84,12,FALSE)),""))=TRUE,"",IFERROR(IFERROR(VLOOKUP($A31,'EPRR Core Standards'!$A$2:$M$84,12,FALSE),VLOOKUP($A31,'Deep Dive Investigation'!$A$2:$M$84,12,FALSE)),"")) -> TBC | L31: =IF(ISBLANK(IFERROR(IFERROR(VLOOKUP($A31,'EPRR Core Standards'!$A$2:$M$84,13,FALSE),VLOOKUP($A31,'Deep Dive Investigation'!$A$2:$M$84,13,FALSE)),""))=TRUE,"",IFERROR(IFERROR(VLOOKUP($A31,'EPRR Core Standards'!$A$2:$M$84,13,FALSE),VLOOKUP($A31,'Deep Dive Investigation'!$A$2:$M$84,13,FALSE)),"")) -> 
A32: 30 | B32: =IFERROR(IFERROR(VLOOKUP($A32,'EPRR Core Standards'!$A$2:$M$84,3,FALSE),VLOOKUP($A32,'Deep Dive Investigation'!$A$2:$M$84,3,FALSE)),"") -> Domain 9 - Business Continuity | C32: =IFERROR(IFERROR(VLOOKUP($A32,'EPRR Core Standards'!$A$2:$M$84,4,FALSE),VLOOKUP($A32,'Deep Dive Investigation'!$A$2:$M$84,4,FALSE)),"") ->  | D32: =IFERROR(IFERROR(VLOOKUP($A32,'EPRR Core Standards'!$A$2:$M$84,5,FALSE),VLOOKUP($A32,'Deep Dive Investigation'!$A$2:$M$84,5,FALSE)),"") ->  | E32: =IFERROR(IFERROR(VLOOKUP($A32,'EPRR Core Standards'!$A$2:$M$84,6,FALSE),VLOOKUP($A32,'Deep Dive Investigation'!$A$2:$M$84,6,FALSE)),"") ->  | F32: =IFERROR(IFERROR(VLOOKUP($A32,'EPRR Core Standards'!$A$2:$M$84,7,FALSE),VLOOKUP($A32,'Deep Dive Investigation'!$A$2:$M$84,7,FALSE)),"") ->  | G32: =IF(ISBLANK(IFERROR(IFERROR(VLOOKUP($A32,'EPRR Core Standards'!$A$2:$M$84,8,FALSE),VLOOKUP($A32,'Deep Dive Investigation'!$A$2:$M$84,8,FALSE)),""))=TRUE,"",IFERROR(IFERROR(VLOOKUP($A32,'EPRR Core Standards'!$A$2:$M$84,8,FALSE),VLOOKUP($A32,'Deep Dive Investigation'!$A$2:$M$84,8,FALSE)),"")) ->  | H32: =IF(ISBLANK(IFERROR(IFERROR(VLOOKUP($A32,'EPRR Core Standards'!$A$2:$M$84,9,FALSE),VLOOKUP($A32,'Deep Dive Investigation'!$A$2:$M$84,9,FALSE)),""))=TRUE,"",IFERROR(IFERROR(VLOOKUP($A32,'EPRR Core Standards'!$A$2:$M$84,9,FALSE),VLOOKUP($A32,'Deep Dive Investigation'!$A$2:$M$84,9,FALSE)),"")) ->  | I32: =IF(ISBLANK(IFERROR(IFERROR(VLOOKUP($A32,'EPRR Core Standards'!$A$2:$M$84,10,FALSE),VLOOKUP($A32,'Deep Dive Investigation'!$A$2:$M$84,10,FALSE)),""))=TRUE,"",IFERROR(IFERROR(VLOOKUP($A32,'EPRR Core Standards'!$A$2:$M$84,10,FALSE),VLOOKUP($A32,'Deep Dive Investigation'!$A$2:$M$84,10,FALSE)),"")) ->  | J32: =IF(ISBLANK(IFERROR(IFERROR(VLOOKUP($A32,'EPRR Core Standards'!$A$2:$M$84,11,FALSE),VLOOKUP($A32,'Deep Dive Investigation'!$A$2:$M$84,11,FALSE)),""))=TRUE,"",IFERROR(IFERROR(VLOOKUP($A32,'EPRR Core Standards'!$A$2:$M$84,11,FALSE),VLOOKUP($A32,'Deep Dive Investigation'!$A$2:$M$84,11,FALSE)),"")) ->  | K32: =IF(ISBLANK(IFERROR(IFERROR(VLOOKUP($A32,'EPRR Core Standards'!$A$2:$M$84,12,FALSE),VLOOKUP($A32,'Deep Dive Investigation'!$A$2:$M$84,12,FALSE)),""))=TRUE,"",IFERROR(IFERROR(VLOOKUP($A32,'EPRR Core Standards'!$A$2:$M$84,12,FALSE),VLOOKUP($A32,'Deep Dive Investigation'!$A$2:$M$84,12,FALSE)),"")) ->  | L32: =IF(ISBLANK(IFERROR(IFERROR(VLOOKUP($A32,'EPRR Core Standards'!$A$2:$M$84,13,FALSE),VLOOKUP($A32,'Deep Dive Investigation'!$A$2:$M$84,13,FALSE)),""))=TRUE,"",IFERROR(IFERROR(VLOOKUP($A32,'EPRR Core Standards'!$A$2:$M$84,13,FALSE),VLOOKUP($A32,'Deep Dive Investigation'!$A$2:$M$84,13,FALSE)),"")) -> 
A33: 31 | B33: =IFERROR(IFERROR(VLOOKUP($A33,'EPRR Core Standards'!$A$2:$M$84,3,FALSE),VLOOKUP($A33,'Deep Dive Investigation'!$A$2:$M$84,3,FALSE)),"") -> 44 | C33: =IFERROR(IFERROR(VLOOKUP($A33,'EPRR Core Standards'!$A$2:$M$84,4,FALSE),VLOOKUP($A33,'Deep Dive Investigation'!$A$2:$M$84,4,FALSE)),"") -> Business Continuity | D33: =IFERROR(IFERROR(VLOOKUP($A33,'EPRR Core Standards'!$A$2:$M$84,5,FALSE),VLOOKUP($A33,'Deep Dive Investigation'!$A$2:$M$84,5,FALSE)),"") -> BC policy statement | E33: =IFERROR(IFERROR(VLOOKUP($A33,'EPRR Core Standards'!$A$2:$M$84,6,FALSE),VLOOKUP($A33,'Deep Dive Investigation'!$A$2:$M$84,6,FALSE)),"") -> The organisation has in place a policy which includes a statement of intent to undertake business continuity. This includes the commitment to a Business Continuity Management System (BCMS) that aligns to the ISO standard 22301. | F33: =IFERROR(IFERROR(VLOOKUP($A33,'EPRR Core Standards'!$A$2:$M$84,7,FALSE),VLOOKUP($A33,'Deep Dive Investigation'!$A$2:$M$84,7,FALSE)),"") -> The organisation has in place a policy which includes intentions and direction as formally expressed by its top management. The BC Policy should: • Provide the strategic direction from which the business continuity programme is delivered. • Define the way in which the organisation will approach business continuity. • Show evidence of being supported, approved and owned by top management. • Be reflective of the organisation in terms of size, complexity and type of organisation. • Document any standards or guidelines that are used as a benchmark for the BC programme. • Consider short term and long term impacts on the organisation including climate change adaption planning | G33: =IF(ISBLANK(IFERROR(IFERROR(VLOOKUP($A33,'EPRR Core Standards'!$A$2:$M$84,8,FALSE),VLOOKUP($A33,'Deep Dive Investigation'!$A$2:$M$84,8,FALSE)),""))=TRUE,"",IFERROR(IFERROR(VLOOKUP($A33,'EPRR Core Standards'!$A$2:$M$84,8,FALSE),VLOOKUP($A33,'Deep Dive Investigation'!$A$2:$M$84,8,FALSE)),"")) -> Draft BCMS policy | H33: =IF(ISBLANK(IFERROR(IFERROR(VLOOKUP($A33,'EPRR Core Standards'!$A$2:$M$84,9,FALSE),VLOOKUP($A33,'Deep Dive Investigation'!$A$2:$M$84,9,FALSE)),""))=TRUE,"",IFERROR(IFERROR(VLOOKUP($A33,'EPRR Core Standards'!$A$2:$M$84,9,FALSE),VLOOKUP($A33,'Deep Dive Investigation'!$A$2:$M$84,9,FALSE)),"")) -> Partially compliant | I33: =IF(ISBLANK(IFERROR(IFERROR(VLOOKUP($A33,'EPRR Core Standards'!$A$2:$M$84,10,FALSE),VLOOKUP($A33,'Deep Dive Investigation'!$A$2:$M$84,10,FALSE)),""))=TRUE,"",IFERROR(IFERROR(VLOOKUP($A33,'EPRR Core Standards'!$A$2:$M$84,10,FALSE),VLOOKUP($A33,'Deep Dive Investigation'!$A$2:$M$84,10,FALSE)),"")) -> Final draft to be circulated and reviewed prior to BC approval | J33: =IF(ISBLANK(IFERROR(IFERROR(VLOOKUP($A33,'EPRR Core Standards'!$A$2:$M$84,11,FALSE),VLOOKUP($A33,'Deep Dive Investigation'!$A$2:$M$84,11,FALSE)),""))=TRUE,"",IFERROR(IFERROR(VLOOKUP($A33,'EPRR Core Standards'!$A$2:$M$84,11,FALSE),VLOOKUP($A33,'Deep Dive Investigation'!$A$2:$M$84,11,FALSE)),"")) ->  | K33: =IF(ISBLANK(IFERROR(IFERROR(VLOOKUP($A33,'EPRR Core Standards'!$A$2:$M$84,12,FALSE),VLOOKUP($A33,'Deep Dive Investigation'!$A$2:$M$84,12,FALSE)),""))=TRUE,"",IFERROR(IFERROR(VLOOKUP($A33,'EPRR Core Standards'!$A$2:$M$84,12,FALSE),VLOOKUP($A33,'Deep Dive Investigation'!$A$2:$M$84,12,FALSE)),"")) -> 45597 | L33: =IF(ISBLANK(IFERROR(IFERROR(VLOOKUP($A33,'EPRR Core Standards'!$A$2:$M$84,13,FALSE),VLOOKUP($A33,'Deep Dive Investigation'!$A$2:$M$84,13,FALSE)),""))=TRUE,"",IFERROR(IFERROR(VLOOKUP($A33,'EPRR Core Standards'!$A$2:$M$84,13,FALSE),VLOOKUP($A33,'Deep Dive Investigation'!$A$2:$M$84,13,FALSE)),"")) -> 
A34: 32 | B34: =IFERROR(IFERROR(VLOOKUP($A34,'EPRR Core Standards'!$A$2:$M$84,3,FALSE),VLOOKUP($A34,'Deep Dive Investigation'!$A$2:$M$84,3,FALSE)),"") -> 45 | C34: =IFERROR(IFERROR(VLOOKUP($A34,'EPRR Core Standards'!$A$2:$M$84,4,FALSE),VLOOKUP($A34,'Deep Dive Investigation'!$A$2:$M$84,4,FALSE)),"") -> Business Continuity | D34: =IFERROR(IFERROR(VLOOKUP($A34,'EPRR Core Standards'!$A$2:$M$84,5,FALSE),VLOOKUP($A34,'Deep Dive Investigation'!$A$2:$M$84,5,FALSE)),"") -> Business Continuity Management Systems (BCMS) scope and objectives | E34: =IFERROR(IFERROR(VLOOKUP($A34,'EPRR Core Standards'!$A$2:$M$84,6,FALSE),VLOOKUP($A34,'Deep Dive Investigation'!$A$2:$M$84,6,FALSE)),"") -> The organisation has established the scope and objectives of the BCMS in relation to the organisation, specifying the risk management process and how this will be documented. A definition of the scope of the programme ensures a clear understanding of which areas of the organisation are in and out of scope of the BC programme. | F34: =IFERROR(IFERROR(VLOOKUP($A34,'EPRR Core Standards'!$A$2:$M$84,7,FALSE),VLOOKUP($A34,'Deep Dive Investigation'!$A$2:$M$84,7,FALSE)),"") -> BCMS should detail: • Scope e.g. key products and services within the scope and exclusions from the scope • Objectives of the system • The requirement to undertake BC e.g. Statutory, Regulatory and contractual duties • Specific roles within the BCMS including responsibilities, competencies and authorities. • The risk management processes for the organisation i.e. how risk will be assessed and documented (e.g. Risk Register), the acceptable level of risk and risk review and monitoring process • Resource requirements • Communications strategy with all staff to ensure they are aware of their roles • alignment to the organisations strategy, objectives, operating environment and approach to risk. • the outsourced activities and suppliers of products and suppliers. • how the understanding of BC will be increased in the organisation | G34: =IF(ISBLANK(IFERROR(IFERROR(VLOOKUP($A34,'EPRR Core Standards'!$A$2:$M$84,8,FALSE),VLOOKUP($A34,'Deep Dive Investigation'!$A$2:$M$84,8,FALSE)),""))=TRUE,"",IFERROR(IFERROR(VLOOKUP($A34,'EPRR Core Standards'!$A$2:$M$84,8,FALSE),VLOOKUP($A34,'Deep Dive Investigation'!$A$2:$M$84,8,FALSE)),"")) -> Draft BCMS policy | H34: =IF(ISBLANK(IFERROR(IFERROR(VLOOKUP($A34,'EPRR Core Standards'!$A$2:$M$84,9,FALSE),VLOOKUP($A34,'Deep Dive Investigation'!$A$2:$M$84,9,FALSE)),""))=TRUE,"",IFERROR(IFERROR(VLOOKUP($A34,'EPRR Core Standards'!$A$2:$M$84,9,FALSE),VLOOKUP($A34,'Deep Dive Investigation'!$A$2:$M$84,9,FALSE)),"")) -> Partially compliant | I34: =IF(ISBLANK(IFERROR(IFERROR(VLOOKUP($A34,'EPRR Core Standards'!$A$2:$M$84,10,FALSE),VLOOKUP($A34,'Deep Dive Investigation'!$A$2:$M$84,10,FALSE)),""))=TRUE,"",IFERROR(IFERROR(VLOOKUP($A34,'EPRR Core Standards'!$A$2:$M$84,10,FALSE),VLOOKUP($A34,'Deep Dive Investigation'!$A$2:$M$84,10,FALSE)),"")) -> Final draft to be circulated and reviewed prior to BC approval | J34: =IF(ISBLANK(IFERROR(IFERROR(VLOOKUP($A34,'EPRR Core Standards'!$A$2:$M$84,11,FALSE),VLOOKUP($A34,'Deep Dive Investigation'!$A$2:$M$84,11,FALSE)),""))=TRUE,"",IFERROR(IFERROR(VLOOKUP($A34,'EPRR Core Standards'!$A$2:$M$84,11,FALSE),VLOOKUP($A34,'Deep Dive Investigation'!$A$2:$M$84,11,FALSE)),"")) -> EPRR Manager | K34: =IF(ISBLANK(IFERROR(IFERROR(VLOOKUP($A34,'EPRR Core Standards'!$A$2:$M$84,12,FALSE),VLOOKUP($A34,'Deep Dive Investigation'!$A$2:$M$84,12,FALSE)),""))=TRUE,"",IFERROR(IFERROR(VLOOKUP($A34,'EPRR Core Standards'!$A$2:$M$84,12,FALSE),VLOOKUP($A34,'Deep Dive Investigation'!$A$2:$M$84,12,FALSE)),"")) -> 45597 | L34: =IF(ISBLANK(IFERROR(IFERROR(VLOOKUP($A34,'EPRR Core Standards'!$A$2:$M$84,13,FALSE),VLOOKUP($A34,'Deep Dive Investigation'!$A$2:$M$84,13,FALSE)),""))=TRUE,"",IFERROR(IFERROR(VLOOKUP($A34,'EPRR Core Standards'!$A$2:$M$84,13,FALSE),VLOOKUP($A34,'Deep Dive Investigation'!$A$2:$M$84,13,FALSE)),"")) -> 
A35: 33 | B35: =IFERROR(IFERROR(VLOOKUP($A35,'EPRR Core Standards'!$A$2:$M$84,3,FALSE),VLOOKUP($A35,'Deep Dive Investigation'!$A$2:$M$84,3,FALSE)),"") -> 46 | C35: =IFERROR(IFERROR(VLOOKUP($A35,'EPRR Core Standards'!$A$2:$M$84,4,FALSE),VLOOKUP($A35,'Deep Dive Investigation'!$A$2:$M$84,4,FALSE)),"") -> Business Continuity | D35: =IFERROR(IFERROR(VLOOKUP($A35,'EPRR Core Standards'!$A$2:$M$84,5,FALSE),VLOOKUP($A35,'Deep Dive Investigation'!$A$2:$M$84,5,FALSE)),"") -> Business Impact Analysis/Assessment (BIA) | E35: =IFERROR(IFERROR(VLOOKUP($A35,'EPRR Core Standards'!$A$2:$M$84,6,FALSE),VLOOKUP($A35,'Deep Dive Investigation'!$A$2:$M$84,6,FALSE)),"") -> The organisation annually assesses and documents the impact of disruption to its services through Business Impact Analysis(es). | F35: =IFERROR(IFERROR(VLOOKUP($A35,'EPRR Core Standards'!$A$2:$M$84,7,FALSE),VLOOKUP($A35,'Deep Dive Investigation'!$A$2:$M$84,7,FALSE)),"") -> The organisation has identified prioritised activities by undertaking a strategic Business Impact Analysis/Assessments. Business Impact Analysis/Assessment is the key first stage in the development of a BCMS and is therefore critical to a business continuity programme. Documented process on how BIA will be conducted, including: • the method to be used • the frequency of review • how the information will be used to inform planning • how RA is used to support. The organisation should undertake a review of its critical function using a Business Impact Analysis/assessment. Without a Business Impact Analysis organisations are not able to assess/assure compliance without it. The following points should be considered when undertaking a BIA: • Determining impacts over time should demonstrate to top management how quickly the organisation needs to respond to a disruption. • A consistent approach to performing the BIA should be used throughout the organisation. • BIA method used should be robust enough to ensure the information is collected consistently and impartially. | G35: =IF(ISBLANK(IFERROR(IFERROR(VLOOKUP($A35,'EPRR Core Standards'!$A$2:$M$84,8,FALSE),VLOOKUP($A35,'Deep Dive Investigation'!$A$2:$M$84,8,FALSE)),""))=TRUE,"",IFERROR(IFERROR(VLOOKUP($A35,'EPRR Core Standards'!$A$2:$M$84,8,FALSE),VLOOKUP($A35,'Deep Dive Investigation'!$A$2:$M$84,8,FALSE)),"")) -> LCH BIA template | H35: =IF(ISBLANK(IFERROR(IFERROR(VLOOKUP($A35,'EPRR Core Standards'!$A$2:$M$84,9,FALSE),VLOOKUP($A35,'Deep Dive Investigation'!$A$2:$M$84,9,FALSE)),""))=TRUE,"",IFERROR(IFERROR(VLOOKUP($A35,'EPRR Core Standards'!$A$2:$M$84,9,FALSE),VLOOKUP($A35,'Deep Dive Investigation'!$A$2:$M$84,9,FALSE)),"")) -> Partially compliant | I35: =IF(ISBLANK(IFERROR(IFERROR(VLOOKUP($A35,'EPRR Core Standards'!$A$2:$M$84,10,FALSE),VLOOKUP($A35,'Deep Dive Investigation'!$A$2:$M$84,10,FALSE)),""))=TRUE,"",IFERROR(IFERROR(VLOOKUP($A35,'EPRR Core Standards'!$A$2:$M$84,10,FALSE),VLOOKUP($A35,'Deep Dive Investigation'!$A$2:$M$84,10,FALSE)),"")) -> Final draft to be circulated and reviewed prior to BC approval | J35: =IF(ISBLANK(IFERROR(IFERROR(VLOOKUP($A35,'EPRR Core Standards'!$A$2:$M$84,11,FALSE),VLOOKUP($A35,'Deep Dive Investigation'!$A$2:$M$84,11,FALSE)),""))=TRUE,"",IFERROR(IFERROR(VLOOKUP($A35,'EPRR Core Standards'!$A$2:$M$84,11,FALSE),VLOOKUP($A35,'Deep Dive Investigation'!$A$2:$M$84,11,FALSE)),"")) -> EPRR Manager | K35: =IF(ISBLANK(IFERROR(IFERROR(VLOOKUP($A35,'EPRR Core Standards'!$A$2:$M$84,12,FALSE),VLOOKUP($A35,'Deep Dive Investigation'!$A$2:$M$84,12,FALSE)),""))=TRUE,"",IFERROR(IFERROR(VLOOKUP($A35,'EPRR Core Standards'!$A$2:$M$84,12,FALSE),VLOOKUP($A35,'Deep Dive Investigation'!$A$2:$M$84,12,FALSE)),"")) -> 45597 | L35: =IF(ISBLANK(IFERROR(IFERROR(VLOOKUP($A35,'EPRR Core Standards'!$A$2:$M$84,13,FALSE),VLOOKUP($A35,'Deep Dive Investigation'!$A$2:$M$84,13,FALSE)),""))=TRUE,"",IFERROR(IFERROR(VLOOKUP($A35,'EPRR Core Standards'!$A$2:$M$84,13,FALSE),VLOOKUP($A35,'Deep Dive Investigation'!$A$2:$M$84,13,FALSE)),"")) -> 
A36: 34 | B36: =IFERROR(IFERROR(VLOOKUP($A36,'EPRR Core Standards'!$A$2:$M$84,3,FALSE),VLOOKUP($A36,'Deep Dive Investigation'!$A$2:$M$84,3,FALSE)),"") -> 48 | C36: =IFERROR(IFERROR(VLOOKUP($A36,'EPRR Core Standards'!$A$2:$M$84,4,FALSE),VLOOKUP($A36,'Deep Dive Investigation'!$A$2:$M$84,4,FALSE)),"") -> Business Continuity | D36: =IFERROR(IFERROR(VLOOKUP($A36,'EPRR Core Standards'!$A$2:$M$84,5,FALSE),VLOOKUP($A36,'Deep Dive Investigation'!$A$2:$M$84,5,FALSE)),"") -> Testing and Exercising | E36: =IFERROR(IFERROR(VLOOKUP($A36,'EPRR Core Standards'!$A$2:$M$84,6,FALSE),VLOOKUP($A36,'Deep Dive Investigation'!$A$2:$M$84,6,FALSE)),"") -> The organisation has in place a procedure whereby testing and exercising of Business Continuity plans is undertaken on a yearly basis as a minimum, following organisational change or as a result of learning from other business continuity incidents. | F36: =IFERROR(IFERROR(VLOOKUP($A36,'EPRR Core Standards'!$A$2:$M$84,7,FALSE),VLOOKUP($A36,'Deep Dive Investigation'!$A$2:$M$84,7,FALSE)),"") -> Confirm the type of exercise the organisation has undertaken to meet this sub standard: • Discussion based exercise • Scenario Exercises • Simulation Exercises • Live exercise • Test • Undertake a debrief Evidence Post exercise/ testing reports and action plans | G36: =IF(ISBLANK(IFERROR(IFERROR(VLOOKUP($A36,'EPRR Core Standards'!$A$2:$M$84,8,FALSE),VLOOKUP($A36,'Deep Dive Investigation'!$A$2:$M$84,8,FALSE)),""))=TRUE,"",IFERROR(IFERROR(VLOOKUP($A36,'EPRR Core Standards'!$A$2:$M$84,8,FALSE),VLOOKUP($A36,'Deep Dive Investigation'!$A$2:$M$84,8,FALSE)),"")) -> Annual exercise | H36: =IF(ISBLANK(IFERROR(IFERROR(VLOOKUP($A36,'EPRR Core Standards'!$A$2:$M$84,9,FALSE),VLOOKUP($A36,'Deep Dive Investigation'!$A$2:$M$84,9,FALSE)),""))=TRUE,"",IFERROR(IFERROR(VLOOKUP($A36,'EPRR Core Standards'!$A$2:$M$84,9,FALSE),VLOOKUP($A36,'Deep Dive Investigation'!$A$2:$M$84,9,FALSE)),"")) -> Partially compliant | I36: =IF(ISBLANK(IFERROR(IFERROR(VLOOKUP($A36,'EPRR Core Standards'!$A$2:$M$84,10,FALSE),VLOOKUP($A36,'Deep Dive Investigation'!$A$2:$M$84,10,FALSE)),""))=TRUE,"",IFERROR(IFERROR(VLOOKUP($A36,'EPRR Core Standards'!$A$2:$M$84,10,FALSE),VLOOKUP($A36,'Deep Dive Investigation'!$A$2:$M$84,10,FALSE)),"")) -> Internal audit review of service business continuity plans | J36: =IF(ISBLANK(IFERROR(IFERROR(VLOOKUP($A36,'EPRR Core Standards'!$A$2:$M$84,11,FALSE),VLOOKUP($A36,'Deep Dive Investigation'!$A$2:$M$84,11,FALSE)),""))=TRUE,"",IFERROR(IFERROR(VLOOKUP($A36,'EPRR Core Standards'!$A$2:$M$84,11,FALSE),VLOOKUP($A36,'Deep Dive Investigation'!$A$2:$M$84,11,FALSE)),"")) -> Internal Audit | K36: =IF(ISBLANK(IFERROR(IFERROR(VLOOKUP($A36,'EPRR Core Standards'!$A$2:$M$84,12,FALSE),VLOOKUP($A36,'Deep Dive Investigation'!$A$2:$M$84,12,FALSE)),""))=TRUE,"",IFERROR(IFERROR(VLOOKUP($A36,'EPRR Core Standards'!$A$2:$M$84,12,FALSE),VLOOKUP($A36,'Deep Dive Investigation'!$A$2:$M$84,12,FALSE)),"")) -> 45658 | L36: =IF(ISBLANK(IFERROR(IFERROR(VLOOKUP($A36,'EPRR Core Standards'!$A$2:$M$84,13,FALSE),VLOOKUP($A36,'Deep Dive Investigation'!$A$2:$M$84,13,FALSE)),""))=TRUE,"",IFERROR(IFERROR(VLOOKUP($A36,'EPRR Core Standards'!$A$2:$M$84,13,FALSE),VLOOKUP($A36,'Deep Dive Investigation'!$A$2:$M$84,13,FALSE)),"")) -> 
A37: 35 | B37: =IFERROR(IFERROR(VLOOKUP($A37,'EPRR Core Standards'!$A$2:$M$84,3,FALSE),VLOOKUP($A37,'Deep Dive Investigation'!$A$2:$M$84,3,FALSE)),"") -> 50 | C37: =IFERROR(IFERROR(VLOOKUP($A37,'EPRR Core Standards'!$A$2:$M$84,4,FALSE),VLOOKUP($A37,'Deep Dive Investigation'!$A$2:$M$84,4,FALSE)),"") -> Business Continuity | D37: =IFERROR(IFERROR(VLOOKUP($A37,'EPRR Core Standards'!$A$2:$M$84,5,FALSE),VLOOKUP($A37,'Deep Dive Investigation'!$A$2:$M$84,5,FALSE)),"") -> BCMS monitoring and evaluation | E37: =IFERROR(IFERROR(VLOOKUP($A37,'EPRR Core Standards'!$A$2:$M$84,6,FALSE),VLOOKUP($A37,'Deep Dive Investigation'!$A$2:$M$84,6,FALSE)),"") -> The organisation's BCMS is monitored, measured and evaluated against established Key Performance Indicators. Reports on these and the outcome of any exercises, and status of any corrective action are annually reported to the board. | F37: =IFERROR(IFERROR(VLOOKUP($A37,'EPRR Core Standards'!$A$2:$M$84,7,FALSE),VLOOKUP($A37,'Deep Dive Investigation'!$A$2:$M$84,7,FALSE)),"") -> • Business continuity policy • BCMS • performance reporting • Board papers | G37: =IF(ISBLANK(IFERROR(IFERROR(VLOOKUP($A37,'EPRR Core Standards'!$A$2:$M$84,8,FALSE),VLOOKUP($A37,'Deep Dive Investigation'!$A$2:$M$84,8,FALSE)),""))=TRUE,"",IFERROR(IFERROR(VLOOKUP($A37,'EPRR Core Standards'!$A$2:$M$84,8,FALSE),VLOOKUP($A37,'Deep Dive Investigation'!$A$2:$M$84,8,FALSE)),"")) -> BCMS policy | H37: =IF(ISBLANK(IFERROR(IFERROR(VLOOKUP($A37,'EPRR Core Standards'!$A$2:$M$84,9,FALSE),VLOOKUP($A37,'Deep Dive Investigation'!$A$2:$M$84,9,FALSE)),""))=TRUE,"",IFERROR(IFERROR(VLOOKUP($A37,'EPRR Core Standards'!$A$2:$M$84,9,FALSE),VLOOKUP($A37,'Deep Dive Investigation'!$A$2:$M$84,9,FALSE)),"")) -> Partially compliant | I37: =IF(ISBLANK(IFERROR(IFERROR(VLOOKUP($A37,'EPRR Core Standards'!$A$2:$M$84,10,FALSE),VLOOKUP($A37,'Deep Dive Investigation'!$A$2:$M$84,10,FALSE)),""))=TRUE,"",IFERROR(IFERROR(VLOOKUP($A37,'EPRR Core Standards'!$A$2:$M$84,10,FALSE),VLOOKUP($A37,'Deep Dive Investigation'!$A$2:$M$84,10,FALSE)),"")) -> System to monitor performance/ kpi's and report to Board | J37: =IF(ISBLANK(IFERROR(IFERROR(VLOOKUP($A37,'EPRR Core Standards'!$A$2:$M$84,11,FALSE),VLOOKUP($A37,'Deep Dive Investigation'!$A$2:$M$84,11,FALSE)),""))=TRUE,"",IFERROR(IFERROR(VLOOKUP($A37,'EPRR Core Standards'!$A$2:$M$84,11,FALSE),VLOOKUP($A37,'Deep Dive Investigation'!$A$2:$M$84,11,FALSE)),"")) -> EPRR/ Business intelligence | K37: =IF(ISBLANK(IFERROR(IFERROR(VLOOKUP($A37,'EPRR Core Standards'!$A$2:$M$84,12,FALSE),VLOOKUP($A37,'Deep Dive Investigation'!$A$2:$M$84,12,FALSE)),""))=TRUE,"",IFERROR(IFERROR(VLOOKUP($A37,'EPRR Core Standards'!$A$2:$M$84,12,FALSE),VLOOKUP($A37,'Deep Dive Investigation'!$A$2:$M$84,12,FALSE)),"")) -> 45809 | L37: =IF(ISBLANK(IFERROR(IFERROR(VLOOKUP($A37,'EPRR Core Standards'!$A$2:$M$84,13,FALSE),VLOOKUP($A37,'Deep Dive Investigation'!$A$2:$M$84,13,FALSE)),""))=TRUE,"",IFERROR(IFERROR(VLOOKUP($A37,'EPRR Core Standards'!$A$2:$M$84,13,FALSE),VLOOKUP($A37,'Deep Dive Investigation'!$A$2:$M$84,13,FALSE)),"")) -> 
A38: 36 | B38: =IFERROR(IFERROR(VLOOKUP($A38,'EPRR Core Standards'!$A$2:$M$84,3,FALSE),VLOOKUP($A38,'Deep Dive Investigation'!$A$2:$M$84,3,FALSE)),"") -> 51 | C38: =IFERROR(IFERROR(VLOOKUP($A38,'EPRR Core Standards'!$A$2:$M$84,4,FALSE),VLOOKUP($A38,'Deep Dive Investigation'!$A$2:$M$84,4,FALSE)),"") -> Business Continuity | D38: =IFERROR(IFERROR(VLOOKUP($A38,'EPRR Core Standards'!$A$2:$M$84,5,FALSE),VLOOKUP($A38,'Deep Dive Investigation'!$A$2:$M$84,5,FALSE)),"") -> BC audit | E38: =IFERROR(IFERROR(VLOOKUP($A38,'EPRR Core Standards'!$A$2:$M$84,6,FALSE),VLOOKUP($A38,'Deep Dive Investigation'!$A$2:$M$84,6,FALSE)),"") -> The organisation has a process for internal audit, and outcomes are included in the report to the board. The organisation has conducted audits at planned intervals to confirm they are conforming with its own business continuity programme. | F38: =IFERROR(IFERROR(VLOOKUP($A38,'EPRR Core Standards'!$A$2:$M$84,7,FALSE),VLOOKUP($A38,'Deep Dive Investigation'!$A$2:$M$84,7,FALSE)),"") -> • process documented in EPRR policy/Business continuity policy or BCMS aligned to the audit programme for the organisation • Board papers • Audit reports • Remedial action plan that is agreed by top management. • An independent business continuity management audit report. • Internal audits should be undertaken as agreed by the organisation's audit planning schedule on a rolling cycle. • External audits should be undertaken in alignment with the organisations audit programme | G38: =IF(ISBLANK(IFERROR(IFERROR(VLOOKUP($A38,'EPRR Core Standards'!$A$2:$M$84,8,FALSE),VLOOKUP($A38,'Deep Dive Investigation'!$A$2:$M$84,8,FALSE)),""))=TRUE,"",IFERROR(IFERROR(VLOOKUP($A38,'EPRR Core Standards'!$A$2:$M$84,8,FALSE),VLOOKUP($A38,'Deep Dive Investigation'!$A$2:$M$84,8,FALSE)),"")) -> Internal audit review planned for January. Audit spreadshheet. | H38: =IF(ISBLANK(IFERROR(IFERROR(VLOOKUP($A38,'EPRR Core Standards'!$A$2:$M$84,9,FALSE),VLOOKUP($A38,'Deep Dive Investigation'!$A$2:$M$84,9,FALSE)),""))=TRUE,"",IFERROR(IFERROR(VLOOKUP($A38,'EPRR Core Standards'!$A$2:$M$84,9,FALSE),VLOOKUP($A38,'Deep Dive Investigation'!$A$2:$M$84,9,FALSE)),"")) -> Partially compliant | I38: =IF(ISBLANK(IFERROR(IFERROR(VLOOKUP($A38,'EPRR Core Standards'!$A$2:$M$84,10,FALSE),VLOOKUP($A38,'Deep Dive Investigation'!$A$2:$M$84,10,FALSE)),""))=TRUE,"",IFERROR(IFERROR(VLOOKUP($A38,'EPRR Core Standards'!$A$2:$M$84,10,FALSE),VLOOKUP($A38,'Deep Dive Investigation'!$A$2:$M$84,10,FALSE)),"")) -> Audit overdue | J38: =IF(ISBLANK(IFERROR(IFERROR(VLOOKUP($A38,'EPRR Core Standards'!$A$2:$M$84,11,FALSE),VLOOKUP($A38,'Deep Dive Investigation'!$A$2:$M$84,11,FALSE)),""))=TRUE,"",IFERROR(IFERROR(VLOOKUP($A38,'EPRR Core Standards'!$A$2:$M$84,11,FALSE),VLOOKUP($A38,'Deep Dive Investigation'!$A$2:$M$84,11,FALSE)),"")) -> EPRR manager/ internal audit | K38: =IF(ISBLANK(IFERROR(IFERROR(VLOOKUP($A38,'EPRR Core Standards'!$A$2:$M$84,12,FALSE),VLOOKUP($A38,'Deep Dive Investigation'!$A$2:$M$84,12,FALSE)),""))=TRUE,"",IFERROR(IFERROR(VLOOKUP($A38,'EPRR Core Standards'!$A$2:$M$84,12,FALSE),VLOOKUP($A38,'Deep Dive Investigation'!$A$2:$M$84,12,FALSE)),"")) -> 45658 | L38: =IF(ISBLANK(IFERROR(IFERROR(VLOOKUP($A38,'EPRR Core Standards'!$A$2:$M$84,13,FALSE),VLOOKUP($A38,'Deep Dive Investigation'!$A$2:$M$84,13,FALSE)),""))=TRUE,"",IFERROR(IFERROR(VLOOKUP($A38,'EPRR Core Standards'!$A$2:$M$84,13,FALSE),VLOOKUP($A38,'Deep Dive Investigation'!$A$2:$M$84,13,FALSE)),"")) -> 
A39: 37 | B39: =IFERROR(IFERROR(VLOOKUP($A39,'EPRR Core Standards'!$A$2:$M$84,3,FALSE),VLOOKUP($A39,'Deep Dive Investigation'!$A$2:$M$84,3,FALSE)),"") -> 52 | C39: =IFERROR(IFERROR(VLOOKUP($A39,'EPRR Core Standards'!$A$2:$M$84,4,FALSE),VLOOKUP($A39,'Deep Dive Investigation'!$A$2:$M$84,4,FALSE)),"") -> Business Continuity | D39: =IFERROR(IFERROR(VLOOKUP($A39,'EPRR Core Standards'!$A$2:$M$84,5,FALSE),VLOOKUP($A39,'Deep Dive Investigation'!$A$2:$M$84,5,FALSE)),"") -> BCMS continuous improvement process | E39: =IFERROR(IFERROR(VLOOKUP($A39,'EPRR Core Standards'!$A$2:$M$84,6,FALSE),VLOOKUP($A39,'Deep Dive Investigation'!$A$2:$M$84,6,FALSE)),"") -> There is a process in place to assess the effectiveness of the BCMS and take corrective action to ensure continual improvement to the BCMS. | F39: =IFERROR(IFERROR(VLOOKUP($A39,'EPRR Core Standards'!$A$2:$M$84,7,FALSE),VLOOKUP($A39,'Deep Dive Investigation'!$A$2:$M$84,7,FALSE)),"") -> • process documented in the EPRR policy/Business continuity policy or BCMS • Board papers showing evidence of improvement • Action plans following exercising, training and incidents • Improvement plans following internal or external auditing •Changes to suppliers or contracts following assessment of suitability Continuous Improvement can be identified via the following routes: • Lessons learned through exercising. • Changes to the organisations structure, products and services, infrastructure, processes or activities. • Changes to the environment in which the organisation operates. • A review or audit. • Changes or updates to the business continuity management lifecycle, such as the BIA or continuity solutions. • Self assessment • Quality assurance • Performance appraisal • Supplier performance • Management review • Debriefs • After action reviews • Lessons learned through exercising or live incidents | G39: =IF(ISBLANK(IFERROR(IFERROR(VLOOKUP($A39,'EPRR Core Standards'!$A$2:$M$84,8,FALSE),VLOOKUP($A39,'Deep Dive Investigation'!$A$2:$M$84,8,FALSE)),""))=TRUE,"",IFERROR(IFERROR(VLOOKUP($A39,'EPRR Core Standards'!$A$2:$M$84,8,FALSE),VLOOKUP($A39,'Deep Dive Investigation'!$A$2:$M$84,8,FALSE)),"")) -> Debriefs from exercises. Improvement plan. BCMS. | H39: =IF(ISBLANK(IFERROR(IFERROR(VLOOKUP($A39,'EPRR Core Standards'!$A$2:$M$84,9,FALSE),VLOOKUP($A39,'Deep Dive Investigation'!$A$2:$M$84,9,FALSE)),""))=TRUE,"",IFERROR(IFERROR(VLOOKUP($A39,'EPRR Core Standards'!$A$2:$M$84,9,FALSE),VLOOKUP($A39,'Deep Dive Investigation'!$A$2:$M$84,9,FALSE)),"")) -> Partially compliant | I39: =IF(ISBLANK(IFERROR(IFERROR(VLOOKUP($A39,'EPRR Core Standards'!$A$2:$M$84,10,FALSE),VLOOKUP($A39,'Deep Dive Investigation'!$A$2:$M$84,10,FALSE)),""))=TRUE,"",IFERROR(IFERROR(VLOOKUP($A39,'EPRR Core Standards'!$A$2:$M$84,10,FALSE),VLOOKUP($A39,'Deep Dive Investigation'!$A$2:$M$84,10,FALSE)),"")) -> Establish learning and exercising Group Write Terms of Reference Develop testing programme | J39: =IF(ISBLANK(IFERROR(IFERROR(VLOOKUP($A39,'EPRR Core Standards'!$A$2:$M$84,11,FALSE),VLOOKUP($A39,'Deep Dive Investigation'!$A$2:$M$84,11,FALSE)),""))=TRUE,"",IFERROR(IFERROR(VLOOKUP($A39,'EPRR Core Standards'!$A$2:$M$84,11,FALSE),VLOOKUP($A39,'Deep Dive Investigation'!$A$2:$M$84,11,FALSE)),"")) -> EPRR Manager | K39: =IF(ISBLANK(IFERROR(IFERROR(VLOOKUP($A39,'EPRR Core Standards'!$A$2:$M$84,12,FALSE),VLOOKUP($A39,'Deep Dive Investigation'!$A$2:$M$84,12,FALSE)),""))=TRUE,"",IFERROR(IFERROR(VLOOKUP($A39,'EPRR Core Standards'!$A$2:$M$84,12,FALSE),VLOOKUP($A39,'Deep Dive Investigation'!$A$2:$M$84,12,FALSE)),"")) -> 45658 | L39: =IF(ISBLANK(IFERROR(IFERROR(VLOOKUP($A39,'EPRR Core Standards'!$A$2:$M$84,13,FALSE),VLOOKUP($A39,'Deep Dive Investigation'!$A$2:$M$84,13,FALSE)),""))=TRUE,"",IFERROR(IFERROR(VLOOKUP($A39,'EPRR Core Standards'!$A$2:$M$84,13,FALSE),VLOOKUP($A39,'Deep Dive Investigation'!$A$2:$M$84,13,FALSE)),"")) -> 
A40: 38 | B40: =IFERROR(IFERROR(VLOOKUP($A40,'EPRR Core Standards'!$A$2:$M$84,3,FALSE),VLOOKUP($A40,'Deep Dive Investigation'!$A$2:$M$84,3,FALSE)),"") -> 53 | C40: =IFERROR(IFERROR(VLOOKUP($A40,'EPRR Core Standards'!$A$2:$M$84,4,FALSE),VLOOKUP($A40,'Deep Dive Investigation'!$A$2:$M$84,4,FALSE)),"") -> Business Continuity | D40: =IFERROR(IFERROR(VLOOKUP($A40,'EPRR Core Standards'!$A$2:$M$84,5,FALSE),VLOOKUP($A40,'Deep Dive Investigation'!$A$2:$M$84,5,FALSE)),"") -> Assurance of commissioned providers / suppliers BCPs | E40: =IFERROR(IFERROR(VLOOKUP($A40,'EPRR Core Standards'!$A$2:$M$84,6,FALSE),VLOOKUP($A40,'Deep Dive Investigation'!$A$2:$M$84,6,FALSE)),"") -> The organisation has in place a system to assess the business continuity plans of commissioned providers or suppliers; and are assured that these providers business continuity arrangements align and are interoperable with their own. | F40: =IFERROR(IFERROR(VLOOKUP($A40,'EPRR Core Standards'!$A$2:$M$84,7,FALSE),VLOOKUP($A40,'Deep Dive Investigation'!$A$2:$M$84,7,FALSE)),"") -> • EPRR policy/Business continuity policy or BCMS outlines the process to be used and how suppliers will be identified for assurance • Provider/supplier assurance framework • Provider/supplier business continuity arrangements This may be supported by the organisations procurement or commercial teams (where trained in BC) at tender phase and at set intervals for critical and/or high value suppliers | G40: =IF(ISBLANK(IFERROR(IFERROR(VLOOKUP($A40,'EPRR Core Standards'!$A$2:$M$84,8,FALSE),VLOOKUP($A40,'Deep Dive Investigation'!$A$2:$M$84,8,FALSE)),""))=TRUE,"",IFERROR(IFERROR(VLOOKUP($A40,'EPRR Core Standards'!$A$2:$M$84,8,FALSE),VLOOKUP($A40,'Deep Dive Investigation'!$A$2:$M$84,8,FALSE)),"")) -> IT supplier assurance | H40: =IF(ISBLANK(IFERROR(IFERROR(VLOOKUP($A40,'EPRR Core Standards'!$A$2:$M$84,9,FALSE),VLOOKUP($A40,'Deep Dive Investigation'!$A$2:$M$84,9,FALSE)),""))=TRUE,"",IFERROR(IFERROR(VLOOKUP($A40,'EPRR Core Standards'!$A$2:$M$84,9,FALSE),VLOOKUP($A40,'Deep Dive Investigation'!$A$2:$M$84,9,FALSE)),"")) -> Partially compliant | I40: =IF(ISBLANK(IFERROR(IFERROR(VLOOKUP($A40,'EPRR Core Standards'!$A$2:$M$84,10,FALSE),VLOOKUP($A40,'Deep Dive Investigation'!$A$2:$M$84,10,FALSE)),""))=TRUE,"",IFERROR(IFERROR(VLOOKUP($A40,'EPRR Core Standards'!$A$2:$M$84,10,FALSE),VLOOKUP($A40,'Deep Dive Investigation'!$A$2:$M$84,10,FALSE)),"")) -> Agreement on what level of assurance is required from suppliers | J40: =IF(ISBLANK(IFERROR(IFERROR(VLOOKUP($A40,'EPRR Core Standards'!$A$2:$M$84,11,FALSE),VLOOKUP($A40,'Deep Dive Investigation'!$A$2:$M$84,11,FALSE)),""))=TRUE,"",IFERROR(IFERROR(VLOOKUP($A40,'EPRR Core Standards'!$A$2:$M$84,11,FALSE),VLOOKUP($A40,'Deep Dive Investigation'!$A$2:$M$84,11,FALSE)),"")) -> Senior Leadership Team | K40: =IF(ISBLANK(IFERROR(IFERROR(VLOOKUP($A40,'EPRR Core Standards'!$A$2:$M$84,12,FALSE),VLOOKUP($A40,'Deep Dive Investigation'!$A$2:$M$84,12,FALSE)),""))=TRUE,"",IFERROR(IFERROR(VLOOKUP($A40,'EPRR Core Standards'!$A$2:$M$84,12,FALSE),VLOOKUP($A40,'Deep Dive Investigation'!$A$2:$M$84,12,FALSE)),"")) -> 45658 | L40: =IF(ISBLANK(IFERROR(IFERROR(VLOOKUP($A40,'EPRR Core Standards'!$A$2:$M$84,13,FALSE),VLOOKUP($A40,'Deep Dive Investigation'!$A$2:$M$84,13,FALSE)),""))=TRUE,"",IFERROR(IFERROR(VLOOKUP($A40,'EPRR Core Standards'!$A$2:$M$84,13,FALSE),VLOOKUP($A40,'Deep Dive Investigation'!$A$2:$M$84,13,FALSE)),"")) -> 
A41: 39 | B41: =IFERROR(IFERROR(VLOOKUP($A41,'EPRR Core Standards'!$A$2:$M$84,3,FALSE),VLOOKUP($A41,'Deep Dive Investigation'!$A$2:$M$84,3,FALSE)),"") -> Domain 10 - CBRN | C41: =IFERROR(IFERROR(VLOOKUP($A41,'EPRR Core Standards'!$A$2:$M$84,4,FALSE),VLOOKUP($A41,'Deep Dive Investigation'!$A$2:$M$84,4,FALSE)),"") ->  | D41: =IFERROR(IFERROR(VLOOKUP($A41,'EPRR Core Standards'!$A$2:$M$84,5,FALSE),VLOOKUP($A41,'Deep Dive Investigation'!$A$2:$M$84,5,FALSE)),"") ->  | E41: =IFERROR(IFERROR(VLOOKUP($A41,'EPRR Core Standards'!$A$2:$M$84,6,FALSE),VLOOKUP($A41,'Deep Dive Investigation'!$A$2:$M$84,6,FALSE)),"") ->  | F41: =IFERROR(IFERROR(VLOOKUP($A41,'EPRR Core Standards'!$A$2:$M$84,7,FALSE),VLOOKUP($A41,'Deep Dive Investigation'!$A$2:$M$84,7,FALSE)),"") ->  | G41: =IF(ISBLANK(IFERROR(IFERROR(VLOOKUP($A41,'EPRR Core Standards'!$A$2:$M$84,8,FALSE),VLOOKUP($A41,'Deep Dive Investigation'!$A$2:$M$84,8,FALSE)),""))=TRUE,"",IFERROR(IFERROR(VLOOKUP($A41,'EPRR Core Standards'!$A$2:$M$84,8,FALSE),VLOOKUP($A41,'Deep Dive Investigation'!$A$2:$M$84,8,FALSE)),"")) ->  | H41: =IF(ISBLANK(IFERROR(IFERROR(VLOOKUP($A41,'EPRR Core Standards'!$A$2:$M$84,9,FALSE),VLOOKUP($A41,'Deep Dive Investigation'!$A$2:$M$84,9,FALSE)),""))=TRUE,"",IFERROR(IFERROR(VLOOKUP($A41,'EPRR Core Standards'!$A$2:$M$84,9,FALSE),VLOOKUP($A41,'Deep Dive Investigation'!$A$2:$M$84,9,FALSE)),"")) ->  | I41: =IF(ISBLANK(IFERROR(IFERROR(VLOOKUP($A41,'EPRR Core Standards'!$A$2:$M$84,10,FALSE),VLOOKUP($A41,'Deep Dive Investigation'!$A$2:$M$84,10,FALSE)),""))=TRUE,"",IFERROR(IFERROR(VLOOKUP($A41,'EPRR Core Standards'!$A$2:$M$84,10,FALSE),VLOOKUP($A41,'Deep Dive Investigation'!$A$2:$M$84,10,FALSE)),"")) ->  | J41: =IF(ISBLANK(IFERROR(IFERROR(VLOOKUP($A41,'EPRR Core Standards'!$A$2:$M$84,11,FALSE),VLOOKUP($A41,'Deep Dive Investigation'!$A$2:$M$84,11,FALSE)),""))=TRUE,"",IFERROR(IFERROR(VLOOKUP($A41,'EPRR Core Standards'!$A$2:$M$84,11,FALSE),VLOOKUP($A41,'Deep Dive Investigation'!$A$2:$M$84,11,FALSE)),"")) ->  | K41: =IF(ISBLANK(IFERROR(IFERROR(VLOOKUP($A41,'EPRR Core Standards'!$A$2:$M$84,12,FALSE),VLOOKUP($A41,'Deep Dive Investigation'!$A$2:$M$84,12,FALSE)),""))=TRUE,"",IFERROR(IFERROR(VLOOKUP($A41,'EPRR Core Standards'!$A$2:$M$84,12,FALSE),VLOOKUP($A41,'Deep Dive Investigation'!$A$2:$M$84,12,FALSE)),"")) ->  | L41: =IF(ISBLANK(IFERROR(IFERROR(VLOOKUP($A41,'EPRR Core Standards'!$A$2:$M$84,13,FALSE),VLOOKUP($A41,'Deep Dive Investigation'!$A$2:$M$84,13,FALSE)),""))=TRUE,"",IFERROR(IFERROR(VLOOKUP($A41,'EPRR Core Standards'!$A$2:$M$84,13,FALSE),VLOOKUP($A41,'Deep Dive Investigation'!$A$2:$M$84,13,FALSE)),"")) -> 
A42: 40 | B42: =IFERROR(IFERROR(VLOOKUP($A42,'EPRR Core Standards'!$A$2:$M$84,3,FALSE),VLOOKUP($A42,'Deep Dive Investigation'!$A$2:$M$84,3,FALSE)),"") -> 63 | C42: =IFERROR(IFERROR(VLOOKUP($A42,'EPRR Core Standards'!$A$2:$M$84,4,FALSE),VLOOKUP($A42,'Deep Dive Investigation'!$A$2:$M$84,4,FALSE)),"") -> Hazmat/CBRN | D42: =IFERROR(IFERROR(VLOOKUP($A42,'EPRR Core Standards'!$A$2:$M$84,5,FALSE),VLOOKUP($A42,'Deep Dive Investigation'!$A$2:$M$84,5,FALSE)),"") -> Hazmat/CBRN training resource | E42: =IFERROR(IFERROR(VLOOKUP($A42,'EPRR Core Standards'!$A$2:$M$84,6,FALSE),VLOOKUP($A42,'Deep Dive Investigation'!$A$2:$M$84,6,FALSE)),"") -> The organisation must have an adequate training resource to deliver Hazmat/CBRN training which is aligned to the organisational Hazmat/CBRN plan and associated risk assessments | F42: =IFERROR(IFERROR(VLOOKUP($A42,'EPRR Core Standards'!$A$2:$M$84,7,FALSE),VLOOKUP($A42,'Deep Dive Investigation'!$A$2:$M$84,7,FALSE)),"") -> Identified minimum training standards within the organisation's Hazmat/CBRN plans (or EPRR training policy) Staff training needs analysis (TNA) appropriate to the organisation type - related to the need for decontamination Documented evidence of training records for Hazmat/CBRN training - including for: - trust trainers - with dates of their attendance at an appropriate 'train the trainer' session (or update) - trust staff - with dates of the training that that they have undertaken Developed training programme to deliver capability against the risk assessment | G42: =IF(ISBLANK(IFERROR(IFERROR(VLOOKUP($A42,'EPRR Core Standards'!$A$2:$M$84,8,FALSE),VLOOKUP($A42,'Deep Dive Investigation'!$A$2:$M$84,8,FALSE)),""))=TRUE,"",IFERROR(IFERROR(VLOOKUP($A42,'EPRR Core Standards'!$A$2:$M$84,8,FALSE),VLOOKUP($A42,'Deep Dive Investigation'!$A$2:$M$84,8,FALSE)),"")) -> Hazmat/ CBRN plan/ IOR resource/ guidance | H42: =IF(ISBLANK(IFERROR(IFERROR(VLOOKUP($A42,'EPRR Core Standards'!$A$2:$M$84,9,FALSE),VLOOKUP($A42,'Deep Dive Investigation'!$A$2:$M$84,9,FALSE)),""))=TRUE,"",IFERROR(IFERROR(VLOOKUP($A42,'EPRR Core Standards'!$A$2:$M$84,9,FALSE),VLOOKUP($A42,'Deep Dive Investigation'!$A$2:$M$84,9,FALSE)),"")) -> Partially compliant | I42: =IF(ISBLANK(IFERROR(IFERROR(VLOOKUP($A42,'EPRR Core Standards'!$A$2:$M$84,10,FALSE),VLOOKUP($A42,'Deep Dive Investigation'!$A$2:$M$84,10,FALSE)),""))=TRUE,"",IFERROR(IFERROR(VLOOKUP($A42,'EPRR Core Standards'!$A$2:$M$84,10,FALSE),VLOOKUP($A42,'Deep Dive Investigation'!$A$2:$M$84,10,FALSE)),"")) -> Train the Trainer courses being run by YAS to be rolled out | J42: =IF(ISBLANK(IFERROR(IFERROR(VLOOKUP($A42,'EPRR Core Standards'!$A$2:$M$84,11,FALSE),VLOOKUP($A42,'Deep Dive Investigation'!$A$2:$M$84,11,FALSE)),""))=TRUE,"",IFERROR(IFERROR(VLOOKUP($A42,'EPRR Core Standards'!$A$2:$M$84,11,FALSE),VLOOKUP($A42,'Deep Dive Investigation'!$A$2:$M$84,11,FALSE)),"")) -> EPRR Manager | K42: =IF(ISBLANK(IFERROR(IFERROR(VLOOKUP($A42,'EPRR Core Standards'!$A$2:$M$84,12,FALSE),VLOOKUP($A42,'Deep Dive Investigation'!$A$2:$M$84,12,FALSE)),""))=TRUE,"",IFERROR(IFERROR(VLOOKUP($A42,'EPRR Core Standards'!$A$2:$M$84,12,FALSE),VLOOKUP($A42,'Deep Dive Investigation'!$A$2:$M$84,12,FALSE)),"")) -> 45658 | L42: =IF(ISBLANK(IFERROR(IFERROR(VLOOKUP($A42,'EPRR Core Standards'!$A$2:$M$84,13,FALSE),VLOOKUP($A42,'Deep Dive Investigation'!$A$2:$M$84,13,FALSE)),""))=TRUE,"",IFERROR(IFERROR(VLOOKUP($A42,'EPRR Core Standards'!$A$2:$M$84,13,FALSE),VLOOKUP($A42,'Deep Dive Investigation'!$A$2:$M$84,13,FALSE)),"")) -> 
A43: 41 | B43: =IFERROR(IFERROR(VLOOKUP($A43,'EPRR Core Standards'!$A$2:$M$84,3,FALSE),VLOOKUP($A43,'Deep Dive Investigation'!$A$2:$M$84,3,FALSE)),"") -> 64 | C43: =IFERROR(IFERROR(VLOOKUP($A43,'EPRR Core Standards'!$A$2:$M$84,4,FALSE),VLOOKUP($A43,'Deep Dive Investigation'!$A$2:$M$84,4,FALSE)),"") -> Hazmat/CBRN | D43: =IFERROR(IFERROR(VLOOKUP($A43,'EPRR Core Standards'!$A$2:$M$84,5,FALSE),VLOOKUP($A43,'Deep Dive Investigation'!$A$2:$M$84,5,FALSE)),"") -> Staff training - recognition and decontamination | E43: =IFERROR(IFERROR(VLOOKUP($A43,'EPRR Core Standards'!$A$2:$M$84,6,FALSE),VLOOKUP($A43,'Deep Dive Investigation'!$A$2:$M$84,6,FALSE)),"") -> The organisation undertakes training for all staff who are most likely to come into contact with potentially contaminated patients and patients requiring decontamination. Staff that may make contact with a potentially contaminated patients, whether in person or over the phone, are sufficiently trained in Initial Operational Response (IOR) principles and isolation when necessary. (This includes (but is not limited to) acute, community, mental health and primary care settings such as minor injury units and urgent treatment centres) Staff undertaking patient decontamination are sufficiently trained to ensure a safe system of work can be implemented | F43: =IFERROR(IFERROR(VLOOKUP($A43,'EPRR Core Standards'!$A$2:$M$84,7,FALSE),VLOOKUP($A43,'Deep Dive Investigation'!$A$2:$M$84,7,FALSE)),"") -> Evidence of trust training slides/programme and designated audience Evidence that the trust training includes reference to the relevant current guidance (where necessary) Staff competency records | G43: =IF(ISBLANK(IFERROR(IFERROR(VLOOKUP($A43,'EPRR Core Standards'!$A$2:$M$84,8,FALSE),VLOOKUP($A43,'Deep Dive Investigation'!$A$2:$M$84,8,FALSE)),""))=TRUE,"",IFERROR(IFERROR(VLOOKUP($A43,'EPRR Core Standards'!$A$2:$M$84,8,FALSE),VLOOKUP($A43,'Deep Dive Investigation'!$A$2:$M$84,8,FALSE)),"")) -> Training records | H43: =IF(ISBLANK(IFERROR(IFERROR(VLOOKUP($A43,'EPRR Core Standards'!$A$2:$M$84,9,FALSE),VLOOKUP($A43,'Deep Dive Investigation'!$A$2:$M$84,9,FALSE)),""))=TRUE,"",IFERROR(IFERROR(VLOOKUP($A43,'EPRR Core Standards'!$A$2:$M$84,9,FALSE),VLOOKUP($A43,'Deep Dive Investigation'!$A$2:$M$84,9,FALSE)),"")) -> Partially compliant | I43: =IF(ISBLANK(IFERROR(IFERROR(VLOOKUP($A43,'EPRR Core Standards'!$A$2:$M$84,10,FALSE),VLOOKUP($A43,'Deep Dive Investigation'!$A$2:$M$84,10,FALSE)),""))=TRUE,"",IFERROR(IFERROR(VLOOKUP($A43,'EPRR Core Standards'!$A$2:$M$84,10,FALSE),VLOOKUP($A43,'Deep Dive Investigation'!$A$2:$M$84,10,FALSE)),"")) -> EPRR to receive training records from Front of House | J43: =IF(ISBLANK(IFERROR(IFERROR(VLOOKUP($A43,'EPRR Core Standards'!$A$2:$M$84,11,FALSE),VLOOKUP($A43,'Deep Dive Investigation'!$A$2:$M$84,11,FALSE)),""))=TRUE,"",IFERROR(IFERROR(VLOOKUP($A43,'EPRR Core Standards'!$A$2:$M$84,11,FALSE),VLOOKUP($A43,'Deep Dive Investigation'!$A$2:$M$84,11,FALSE)),"")) -> EPRR Manager \ Admin Team Leaders | K43: =IF(ISBLANK(IFERROR(IFERROR(VLOOKUP($A43,'EPRR Core Standards'!$A$2:$M$84,12,FALSE),VLOOKUP($A43,'Deep Dive Investigation'!$A$2:$M$84,12,FALSE)),""))=TRUE,"",IFERROR(IFERROR(VLOOKUP($A43,'EPRR Core Standards'!$A$2:$M$84,12,FALSE),VLOOKUP($A43,'Deep Dive Investigation'!$A$2:$M$84,12,FALSE)),"")) -> 45658 | L43: =IF(ISBLANK(IFERROR(IFERROR(VLOOKUP($A43,'EPRR Core Standards'!$A$2:$M$84,13,FALSE),VLOOKUP($A43,'Deep Dive Investigation'!$A$2:$M$84,13,FALSE)),""))=TRUE,"",IFERROR(IFERROR(VLOOKUP($A43,'EPRR Core Standards'!$A$2:$M$84,13,FALSE),VLOOKUP($A43,'Deep Dive Investigation'!$A$2:$M$84,13,FALSE)),"")) -> 
A44: 42 | B44: =IFERROR(IFERROR(VLOOKUP($A44,'EPRR Core Standards'!$A$2:$M$84,3,FALSE),VLOOKUP($A44,'Deep Dive Investigation'!$A$2:$M$84,3,FALSE)),"") -> Deep Dive - Cyber Security and IT related incident response (NOT INCLUDED WITHIN THE ORGANISATION'S OVERALL EPRR ASSURANCE RATING) | C44: =IFERROR(IFERROR(VLOOKUP($A44,'EPRR Core Standards'!$A$2:$M$84,4,FALSE),VLOOKUP($A44,'Deep Dive Investigation'!$A$2:$M$84,4,FALSE)),"") -> 0 | D44: =IFERROR(IFERROR(VLOOKUP($A44,'EPRR Core Standards'!$A$2:$M$84,5,FALSE),VLOOKUP($A44,'Deep Dive Investigation'!$A$2:$M$84,5,FALSE)),"") -> 0 | E44: =IFERROR(IFERROR(VLOOKUP($A44,'EPRR Core Standards'!$A$2:$M$84,6,FALSE),VLOOKUP($A44,'Deep Dive Investigation'!$A$2:$M$84,6,FALSE)),"") -> 0 | F44: =IFERROR(IFERROR(VLOOKUP($A44,'EPRR Core Standards'!$A$2:$M$84,7,FALSE),VLOOKUP($A44,'Deep Dive Investigation'!$A$2:$M$84,7,FALSE)),"") -> 0 | G44: =IF(ISBLANK(IFERROR(IFERROR(VLOOKUP($A44,'EPRR Core Standards'!$A$2:$M$84,8,FALSE),VLOOKUP($A44,'Deep Dive Investigation'!$A$2:$M$84,8,FALSE)),""))=TRUE,"",IFERROR(IFERROR(VLOOKUP($A44,'EPRR Core Standards'!$A$2:$M$84,8,FALSE),VLOOKUP($A44,'Deep Dive Investigation'!$A$2:$M$84,8,FALSE)),"")) ->  | H44: =IF(ISBLANK(IFERROR(IFERROR(VLOOKUP($A44,'EPRR Core Standards'!$A$2:$M$84,9,FALSE),VLOOKUP($A44,'Deep Dive Investigation'!$A$2:$M$84,9,FALSE)),""))=TRUE,"",IFERROR(IFERROR(VLOOKUP($A44,'EPRR Core Standards'!$A$2:$M$84,9,FALSE),VLOOKUP($A44,'Deep Dive Investigation'!$A$2:$M$84,9,FALSE)),"")) ->  | I44: =IF(ISBLANK(IFERROR(IFERROR(VLOOKUP($A44,'EPRR Core Standards'!$A$2:$M$84,10,FALSE),VLOOKUP($A44,'Deep Dive Investigation'!$A$2:$M$84,10,FALSE)),""))=TRUE,"",IFERROR(IFERROR(VLOOKUP($A44,'EPRR Core Standards'!$A$2:$M$84,10,FALSE),VLOOKUP($A44,'Deep Dive Investigation'!$A$2:$M$84,10,FALSE)),"")) ->  | J44: =IF(ISBLANK(IFERROR(IFERROR(VLOOKUP($A44,'EPRR Core Standards'!$A$2:$M$84,11,FALSE),VLOOKUP($A44,'Deep Dive Investigation'!$A$2:$M$84,11,FALSE)),""))=TRUE,"",IFERROR(IFERROR(VLOOKUP($A44,'EPRR Core Standards'!$A$2:$M$84,11,FALSE),VLOOKUP($A44,'Deep Dive Investigation'!$A$2:$M$84,11,FALSE)),"")) ->  | K44: =IF(ISBLANK(IFERROR(IFERROR(VLOOKUP($A44,'EPRR Core Standards'!$A$2:$M$84,12,FALSE),VLOOKUP($A44,'Deep Dive Investigation'!$A$2:$M$84,12,FALSE)),""))=TRUE,"",IFERROR(IFERROR(VLOOKUP($A44,'EPRR Core Standards'!$A$2:$M$84,12,FALSE),VLOOKUP($A44,'Deep Dive Investigation'!$A$2:$M$84,12,FALSE)),"")) ->  | L44: =IF(ISBLANK(IFERROR(IFERROR(VLOOKUP($A44,'EPRR Core Standards'!$A$2:$M$84,13,FALSE),VLOOKUP($A44,'Deep Dive Investigation'!$A$2:$M$84,13,FALSE)),""))=TRUE,"",IFERROR(IFERROR(VLOOKUP($A44,'EPRR Core Standards'!$A$2:$M$84,13,FALSE),VLOOKUP($A44,'Deep Dive Investigation'!$A$2:$M$84,13,FALSE)),"")) -> 
A45: 43 | B45: =IFERROR(IFERROR(VLOOKUP($A45,'EPRR Core Standards'!$A$2:$M$84,3,FALSE),VLOOKUP($A45,'Deep Dive Investigation'!$A$2:$M$84,3,FALSE)),"") -> DD3 | C45: =IFERROR(IFERROR(VLOOKUP($A45,'EPRR Core Standards'!$A$2:$M$84,4,FALSE),VLOOKUP($A45,'Deep Dive Investigation'!$A$2:$M$84,4,FALSE)),"") -> Deep Dive Cyber Security | D45: =IFERROR(IFERROR(VLOOKUP($A45,'EPRR Core Standards'!$A$2:$M$84,5,FALSE),VLOOKUP($A45,'Deep Dive Investigation'!$A$2:$M$84,5,FALSE)),"") -> Resilient Communication during Cyber Security & IT related incidents | E45: =IFERROR(IFERROR(VLOOKUP($A45,'EPRR Core Standards'!$A$2:$M$84,6,FALSE),VLOOKUP($A45,'Deep Dive Investigation'!$A$2:$M$84,6,FALSE)),"") -> The organisation has arrangements in place for communicating with partners and stakeholders during cyber security and IT related incidents. | F45: =IFERROR(IFERROR(VLOOKUP($A45,'EPRR Core Standards'!$A$2:$M$84,7,FALSE),VLOOKUP($A45,'Deep Dive Investigation'!$A$2:$M$84,7,FALSE)),"") -> Arrangements should consider the generic principles for enhancing communications resilience: 1. look beyond the technical solutions at processes and organisational arrangements 2. identify and review the critical communication activities that underpin your response arrangements 3. ensure diversity of technical solutions 4. adopt layered fall-back arrangements 5. plan for appropriate interoperability https://www.england.nhs.uk/wp-content/uploads/2019/03/national-resilient-telecommunications-guidance.pdf | G45: =IF(ISBLANK(IFERROR(IFERROR(VLOOKUP($A45,'EPRR Core Standards'!$A$2:$M$84,8,FALSE),VLOOKUP($A45,'Deep Dive Investigation'!$A$2:$M$84,8,FALSE)),""))=TRUE,"",IFERROR(IFERROR(VLOOKUP($A45,'EPRR Core Standards'!$A$2:$M$84,8,FALSE),VLOOKUP($A45,'Deep Dive Investigation'!$A$2:$M$84,8,FALSE)),"")) -> Cyber Incident Response Plan references Stakeholders ie TPP\NHSD\NHS Cyber Trust IRP contains EPRR contact details for partner organisations\Trusts Comms Action Cards | H45: =IF(ISBLANK(IFERROR(IFERROR(VLOOKUP($A45,'EPRR Core Standards'!$A$2:$M$84,9,FALSE),VLOOKUP($A45,'Deep Dive Investigation'!$A$2:$M$84,9,FALSE)),""))=TRUE,"",IFERROR(IFERROR(VLOOKUP($A45,'EPRR Core Standards'!$A$2:$M$84,9,FALSE),VLOOKUP($A45,'Deep Dive Investigation'!$A$2:$M$84,9,FALSE)),"")) -> Partially compliant | I45: =IF(ISBLANK(IFERROR(IFERROR(VLOOKUP($A45,'EPRR Core Standards'!$A$2:$M$84,10,FALSE),VLOOKUP($A45,'Deep Dive Investigation'!$A$2:$M$84,10,FALSE)),""))=TRUE,"",IFERROR(IFERROR(VLOOKUP($A45,'EPRR Core Standards'!$A$2:$M$84,10,FALSE),VLOOKUP($A45,'Deep Dive Investigation'!$A$2:$M$84,10,FALSE)),"")) -> Update Comms Pack | J45: =IF(ISBLANK(IFERROR(IFERROR(VLOOKUP($A45,'EPRR Core Standards'!$A$2:$M$84,11,FALSE),VLOOKUP($A45,'Deep Dive Investigation'!$A$2:$M$84,11,FALSE)),""))=TRUE,"",IFERROR(IFERROR(VLOOKUP($A45,'EPRR Core Standards'!$A$2:$M$84,11,FALSE),VLOOKUP($A45,'Deep Dive Investigation'!$A$2:$M$84,11,FALSE)),"")) -> Communications | K45: =IF(ISBLANK(IFERROR(IFERROR(VLOOKUP($A45,'EPRR Core Standards'!$A$2:$M$84,12,FALSE),VLOOKUP($A45,'Deep Dive Investigation'!$A$2:$M$84,12,FALSE)),""))=TRUE,"",IFERROR(IFERROR(VLOOKUP($A45,'EPRR Core Standards'!$A$2:$M$84,12,FALSE),VLOOKUP($A45,'Deep Dive Investigation'!$A$2:$M$84,12,FALSE)),"")) -> 45566 | L45: =IF(ISBLANK(IFERROR(IFERROR(VLOOKUP($A45,'EPRR Core Standards'!$A$2:$M$84,13,FALSE),VLOOKUP($A45,'Deep Dive Investigation'!$A$2:$M$84,13,FALSE)),""))=TRUE,"",IFERROR(IFERROR(VLOOKUP($A45,'EPRR Core Standards'!$A$2:$M$84,13,FALSE),VLOOKUP($A45,'Deep Dive Investigation'!$A$2:$M$84,13,FALSE)),"")) -> 
A46: 44 | B46: =IFERROR(IFERROR(VLOOKUP($A46,'EPRR Core Standards'!$A$2:$M$84,3,FALSE),VLOOKUP($A46,'Deep Dive Investigation'!$A$2:$M$84,3,FALSE)),"") -> DD4 | C46: =IFERROR(IFERROR(VLOOKUP($A46,'EPRR Core Standards'!$A$2:$M$84,4,FALSE),VLOOKUP($A46,'Deep Dive Investigation'!$A$2:$M$84,4,FALSE)),"") -> Deep Dive Cyber Security | D46: =IFERROR(IFERROR(VLOOKUP($A46,'EPRR Core Standards'!$A$2:$M$84,5,FALSE),VLOOKUP($A46,'Deep Dive Investigation'!$A$2:$M$84,5,FALSE)),"") -> Media Strategy | E46: =IFERROR(IFERROR(VLOOKUP($A46,'EPRR Core Standards'!$A$2:$M$84,6,FALSE),VLOOKUP($A46,'Deep Dive Investigation'!$A$2:$M$84,6,FALSE)),"") -> The organisation has Incident communication plans and media strategies that include arrangements to agree media lines and the use of corporate and personal social media accounts during cyber security and IT related incidents | F46: =IFERROR(IFERROR(VLOOKUP($A46,'EPRR Core Standards'!$A$2:$M$84,7,FALSE),VLOOKUP($A46,'Deep Dive Investigation'!$A$2:$M$84,7,FALSE)),"") -> - Incident communications plans and media strategy give consideration to cyber security incidents activities as well as clinical and operational impacts. - Agreed sign off processes for media and press releases in relation to Cyber security and IT related incidents. - Documented process for communications to regional and national teams - Incident communications plan and media strategy provides guidance for staff on providing comment, commentary or advice during an incident or where sensitive information is generated. | G46: =IF(ISBLANK(IFERROR(IFERROR(VLOOKUP($A46,'EPRR Core Standards'!$A$2:$M$84,8,FALSE),VLOOKUP($A46,'Deep Dive Investigation'!$A$2:$M$84,8,FALSE)),""))=TRUE,"",IFERROR(IFERROR(VLOOKUP($A46,'EPRR Core Standards'!$A$2:$M$84,8,FALSE),VLOOKUP($A46,'Deep Dive Investigation'!$A$2:$M$84,8,FALSE)),"")) -> Comms Pack \ Action Cards | H46: =IF(ISBLANK(IFERROR(IFERROR(VLOOKUP($A46,'EPRR Core Standards'!$A$2:$M$84,9,FALSE),VLOOKUP($A46,'Deep Dive Investigation'!$A$2:$M$84,9,FALSE)),""))=TRUE,"",IFERROR(IFERROR(VLOOKUP($A46,'EPRR Core Standards'!$A$2:$M$84,9,FALSE),VLOOKUP($A46,'Deep Dive Investigation'!$A$2:$M$84,9,FALSE)),"")) -> Partially compliant | I46: =IF(ISBLANK(IFERROR(IFERROR(VLOOKUP($A46,'EPRR Core Standards'!$A$2:$M$84,10,FALSE),VLOOKUP($A46,'Deep Dive Investigation'!$A$2:$M$84,10,FALSE)),""))=TRUE,"",IFERROR(IFERROR(VLOOKUP($A46,'EPRR Core Standards'!$A$2:$M$84,10,FALSE),VLOOKUP($A46,'Deep Dive Investigation'!$A$2:$M$84,10,FALSE)),"")) -> Update Comms Pack | J46: =IF(ISBLANK(IFERROR(IFERROR(VLOOKUP($A46,'EPRR Core Standards'!$A$2:$M$84,11,FALSE),VLOOKUP($A46,'Deep Dive Investigation'!$A$2:$M$84,11,FALSE)),""))=TRUE,"",IFERROR(IFERROR(VLOOKUP($A46,'EPRR Core Standards'!$A$2:$M$84,11,FALSE),VLOOKUP($A46,'Deep Dive Investigation'!$A$2:$M$84,11,FALSE)),"")) -> Communications | K46: =IF(ISBLANK(IFERROR(IFERROR(VLOOKUP($A46,'EPRR Core Standards'!$A$2:$M$84,12,FALSE),VLOOKUP($A46,'Deep Dive Investigation'!$A$2:$M$84,12,FALSE)),""))=TRUE,"",IFERROR(IFERROR(VLOOKUP($A46,'EPRR Core Standards'!$A$2:$M$84,12,FALSE),VLOOKUP($A46,'Deep Dive Investigation'!$A$2:$M$84,12,FALSE)),"")) -> 45566 | L46: =IF(ISBLANK(IFERROR(IFERROR(VLOOKUP($A46,'EPRR Core Standards'!$A$2:$M$84,13,FALSE),VLOOKUP($A46,'Deep Dive Investigation'!$A$2:$M$84,13,FALSE)),""))=TRUE,"",IFERROR(IFERROR(VLOOKUP($A46,'EPRR Core Standards'!$A$2:$M$84,13,FALSE),VLOOKUP($A46,'Deep Dive Investigation'!$A$2:$M$84,13,FALSE)),"")) -> 
A47: 45 | B47: =IFERROR(IFERROR(VLOOKUP($A47,'EPRR Core Standards'!$A$2:$M$84,3,FALSE),VLOOKUP($A47,'Deep Dive Investigation'!$A$2:$M$84,3,FALSE)),"") -> DD7 | C47: =IFERROR(IFERROR(VLOOKUP($A47,'EPRR Core Standards'!$A$2:$M$84,4,FALSE),VLOOKUP($A47,'Deep Dive Investigation'!$A$2:$M$84,4,FALSE)),"") -> Deep Dive Cyber Security | D47: =IFERROR(IFERROR(VLOOKUP($A47,'EPRR Core Standards'!$A$2:$M$84,5,FALSE),VLOOKUP($A47,'Deep Dive Investigation'!$A$2:$M$84,5,FALSE)),"") -> Training Needs Analysis (TNA) | E47: =IFERROR(IFERROR(VLOOKUP($A47,'EPRR Core Standards'!$A$2:$M$84,6,FALSE),VLOOKUP($A47,'Deep Dive Investigation'!$A$2:$M$84,6,FALSE)),"") -> Cyber security and IT related incident response roles are included in an organisation's TNA. | F47: =IFERROR(IFERROR(VLOOKUP($A47,'EPRR Core Standards'!$A$2:$M$84,7,FALSE),VLOOKUP($A47,'Deep Dive Investigation'!$A$2:$M$84,7,FALSE)),"") -> - TNA includes Cyber security and IT related incident response roles - Attendance/participant lists showing cybersecurity and IT colleagues taking part in incident response training. | G47: =IF(ISBLANK(IFERROR(IFERROR(VLOOKUP($A47,'EPRR Core Standards'!$A$2:$M$84,8,FALSE),VLOOKUP($A47,'Deep Dive Investigation'!$A$2:$M$84,8,FALSE)),""))=TRUE,"",IFERROR(IFERROR(VLOOKUP($A47,'EPRR Core Standards'!$A$2:$M$84,8,FALSE),VLOOKUP($A47,'Deep Dive Investigation'!$A$2:$M$84,8,FALSE)),"")) ->  | H47: =IF(ISBLANK(IFERROR(IFERROR(VLOOKUP($A47,'EPRR Core Standards'!$A$2:$M$84,9,FALSE),VLOOKUP($A47,'Deep Dive Investigation'!$A$2:$M$84,9,FALSE)),""))=TRUE,"",IFERROR(IFERROR(VLOOKUP($A47,'EPRR Core Standards'!$A$2:$M$84,9,FALSE),VLOOKUP($A47,'Deep Dive Investigation'!$A$2:$M$84,9,FALSE)),"")) -> Partially compliant | I47: =IF(ISBLANK(IFERROR(IFERROR(VLOOKUP($A47,'EPRR Core Standards'!$A$2:$M$84,10,FALSE),VLOOKUP($A47,'Deep Dive Investigation'!$A$2:$M$84,10,FALSE)),""))=TRUE,"",IFERROR(IFERROR(VLOOKUP($A47,'EPRR Core Standards'!$A$2:$M$84,10,FALSE),VLOOKUP($A47,'Deep Dive Investigation'!$A$2:$M$84,10,FALSE)),"")) -> No TNA in place | J47: =IF(ISBLANK(IFERROR(IFERROR(VLOOKUP($A47,'EPRR Core Standards'!$A$2:$M$84,11,FALSE),VLOOKUP($A47,'Deep Dive Investigation'!$A$2:$M$84,11,FALSE)),""))=TRUE,"",IFERROR(IFERROR(VLOOKUP($A47,'EPRR Core Standards'!$A$2:$M$84,11,FALSE),VLOOKUP($A47,'Deep Dive Investigation'!$A$2:$M$84,11,FALSE)),"")) ->  | K47: =IF(ISBLANK(IFERROR(IFERROR(VLOOKUP($A47,'EPRR Core Standards'!$A$2:$M$84,12,FALSE),VLOOKUP($A47,'Deep Dive Investigation'!$A$2:$M$84,12,FALSE)),""))=TRUE,"",IFERROR(IFERROR(VLOOKUP($A47,'EPRR Core Standards'!$A$2:$M$84,12,FALSE),VLOOKUP($A47,'Deep Dive Investigation'!$A$2:$M$84,12,FALSE)),"")) ->  | L47: =IF(ISBLANK(IFERROR(IFERROR(VLOOKUP($A47,'EPRR Core Standards'!$A$2:$M$84,13,FALSE),VLOOKUP($A47,'Deep Dive Investigation'!$A$2:$M$84,13,FALSE)),""))=TRUE,"",IFERROR(IFERROR(VLOOKUP($A47,'EPRR Core Standards'!$A$2:$M$84,13,FALSE),VLOOKUP($A47,'Deep Dive Investigation'!$A$2:$M$84,13,FALSE)),"")) -> 
A48: 46 | B48: =IFERROR(IFERROR(VLOOKUP($A48,'EPRR Core Standards'!$A$2:$M$84,3,FALSE),VLOOKUP($A48,'Deep Dive Investigation'!$A$2:$M$84,3,FALSE)),"") ->  | C48: =IFERROR(IFERROR(VLOOKUP($A48,'EPRR Core Standards'!$A$2:$M$84,4,FALSE),VLOOKUP($A48,'Deep Dive Investigation'!$A$2:$M$84,4,FALSE)),"") ->  | D48: =IFERROR(IFERROR(VLOOKUP($A48,'EPRR Core Standards'!$A$2:$M$84,5,FALSE),VLOOKUP($A48,'Deep Dive Investigation'!$A$2:$M$84,5,FALSE)),"") ->  | E48: =IFERROR(IFERROR(VLOOKUP($A48,'EPRR Core Standards'!$A$2:$M$84,6,FALSE),VLOOKUP($A48,'Deep Dive Investigation'!$A$2:$M$84,6,FALSE)),"") ->  | F48: =IFERROR(IFERROR(VLOOKUP($A48,'EPRR Core Standards'!$A$2:$M$84,7,FALSE),VLOOKUP($A48,'Deep Dive Investigation'!$A$2:$M$84,7,FALSE)),"") ->  | G48: =IF(ISBLANK(IFERROR(IFERROR(VLOOKUP($A48,'EPRR Core Standards'!$A$2:$M$84,8,FALSE),VLOOKUP($A48,'Deep Dive Investigation'!$A$2:$M$84,8,FALSE)),""))=TRUE,"",IFERROR(IFERROR(VLOOKUP($A48,'EPRR Core Standards'!$A$2:$M$84,8,FALSE),VLOOKUP($A48,'Deep Dive Investigation'!$A$2:$M$84,8,FALSE)),"")) ->  | H48: =IF(ISBLANK(IFERROR(IFERROR(VLOOKUP($A48,'EPRR Core Standards'!$A$2:$M$84,9,FALSE),VLOOKUP($A48,'Deep Dive Investigation'!$A$2:$M$84,9,FALSE)),""))=TRUE,"",IFERROR(IFERROR(VLOOKUP($A48,'EPRR Core Standards'!$A$2:$M$84,9,FALSE),VLOOKUP($A48,'Deep Dive Investigation'!$A$2:$M$84,9,FALSE)),"")) ->  | I48: =IF(ISBLANK(IFERROR(IFERROR(VLOOKUP($A48,'EPRR Core Standards'!$A$2:$M$84,10,FALSE),VLOOKUP($A48,'Deep Dive Investigation'!$A$2:$M$84,10,FALSE)),""))=TRUE,"",IFERROR(IFERROR(VLOOKUP($A48,'EPRR Core Standards'!$A$2:$M$84,10,FALSE),VLOOKUP($A48,'Deep Dive Investigation'!$A$2:$M$84,10,FALSE)),"")) ->  | J48: =IF(ISBLANK(IFERROR(IFERROR(VLOOKUP($A48,'EPRR Core Standards'!$A$2:$M$84,11,FALSE),VLOOKUP($A48,'Deep Dive Investigation'!$A$2:$M$84,11,FALSE)),""))=TRUE,"",IFERROR(IFERROR(VLOOKUP($A48,'EPRR Core Standards'!$A$2:$M$84,11,FALSE),VLOOKUP($A48,'Deep Dive Investigation'!$A$2:$M$84,11,FALSE)),"")) ->  | K48: =IF(ISBLANK(IFERROR(IFERROR(VLOOKUP($A48,'EPRR Core Standards'!$A$2:$M$84,12,FALSE),VLOOKUP($A48,'Deep Dive Investigation'!$A$2:$M$84,12,FALSE)),""))=TRUE,"",IFERROR(IFERROR(VLOOKUP($A48,'EPRR Core Standards'!$A$2:$M$84,12,FALSE),VLOOKUP($A48,'Deep Dive Investigation'!$A$2:$M$84,12,FALSE)),"")) ->  | L48: =IF(ISBLANK(IFERROR(IFERROR(VLOOKUP($A48,'EPRR Core Standards'!$A$2:$M$84,13,FALSE),VLOOKUP($A48,'Deep Dive Investigation'!$A$2:$M$84,13,FALSE)),""))=TRUE,"",IFERROR(IFERROR(VLOOKUP($A48,'EPRR Core Standards'!$A$2:$M$84,13,FALSE),VLOOKUP($A48,'Deep Dive Investigation'!$A$2:$M$84,13,FALSE)),"")) -> 
A49: 47 | B49: =IFERROR(IFERROR(VLOOKUP($A49,'EPRR Core Standards'!$A$2:$M$84,3,FALSE),VLOOKUP($A49,'Deep Dive Investigation'!$A$2:$M$84,3,FALSE)),"") ->  | C49: =IFERROR(IFERROR(VLOOKUP($A49,'EPRR Core Standards'!$A$2:$M$84,4,FALSE),VLOOKUP($A49,'Deep Dive Investigation'!$A$2:$M$84,4,FALSE)),"") ->  | D49: =IFERROR(IFERROR(VLOOKUP($A49,'EPRR Core Standards'!$A$2:$M$84,5,FALSE),VLOOKUP($A49,'Deep Dive Investigation'!$A$2:$M$84,5,FALSE)),"") ->  | E49: =IFERROR(IFERROR(VLOOKUP($A49,'EPRR Core Standards'!$A$2:$M$84,6,FALSE),VLOOKUP($A49,'Deep Dive Investigation'!$A$2:$M$84,6,FALSE)),"") ->  | F49: =IFERROR(IFERROR(VLOOKUP($A49,'EPRR Core Standards'!$A$2:$M$84,7,FALSE),VLOOKUP($A49,'Deep Dive Investigation'!$A$2:$M$84,7,FALSE)),"") ->  | G49: =IF(ISBLANK(IFERROR(IFERROR(VLOOKUP($A49,'EPRR Core Standards'!$A$2:$M$84,8,FALSE),VLOOKUP($A49,'Deep Dive Investigation'!$A$2:$M$84,8,FALSE)),""))=TRUE,"",IFERROR(IFERROR(VLOOKUP($A49,'EPRR Core Standards'!$A$2:$M$84,8,FALSE),VLOOKUP($A49,'Deep Dive Investigation'!$A$2:$M$84,8,FALSE)),"")) ->  | H49: =IF(ISBLANK(IFERROR(IFERROR(VLOOKUP($A49,'EPRR Core Standards'!$A$2:$M$84,9,FALSE),VLOOKUP($A49,'Deep Dive Investigation'!$A$2:$M$84,9,FALSE)),""))=TRUE,"",IFERROR(IFERROR(VLOOKUP($A49,'EPRR Core Standards'!$A$2:$M$84,9,FALSE),VLOOKUP($A49,'Deep Dive Investigation'!$A$2:$M$84,9,FALSE)),"")) ->  | I49: =IF(ISBLANK(IFERROR(IFERROR(VLOOKUP($A49,'EPRR Core Standards'!$A$2:$M$84,10,FALSE),VLOOKUP($A49,'Deep Dive Investigation'!$A$2:$M$84,10,FALSE)),""))=TRUE,"",IFERROR(IFERROR(VLOOKUP($A49,'EPRR Core Standards'!$A$2:$M$84,10,FALSE),VLOOKUP($A49,'Deep Dive Investigation'!$A$2:$M$84,10,FALSE)),"")) ->  | J49: =IF(ISBLANK(IFERROR(IFERROR(VLOOKUP($A49,'EPRR Core Standards'!$A$2:$M$84,11,FALSE),VLOOKUP($A49,'Deep Dive Investigation'!$A$2:$M$84,11,FALSE)),""))=TRUE,"",IFERROR(IFERROR(VLOOKUP($A49,'EPRR Core Standards'!$A$2:$M$84,11,FALSE),VLOOKUP($A49,'Deep Dive Investigation'!$A$2:$M$84,11,FALSE)),"")) ->  | K49: =IF(ISBLANK(IFERROR(IFERROR(VLOOKUP($A49,'EPRR Core Standards'!$A$2:$M$84,12,FALSE),VLOOKUP($A49,'Deep Dive Investigation'!$A$2:$M$84,12,FALSE)),""))=TRUE,"",IFERROR(IFERROR(VLOOKUP($A49,'EPRR Core Standards'!$A$2:$M$84,12,FALSE),VLOOKUP($A49,'Deep Dive Investigation'!$A$2:$M$84,12,FALSE)),"")) ->  | L49: =IF(ISBLANK(IFERROR(IFERROR(VLOOKUP($A49,'EPRR Core Standards'!$A$2:$M$84,13,FALSE),VLOOKUP($A49,'Deep Dive Investigation'!$A$2:$M$84,13,FALSE)),""))=TRUE,"",IFERROR(IFERROR(VLOOKUP($A49,'EPRR Core Standards'!$A$2:$M$84,13,FALSE),VLOOKUP($A49,'Deep Dive Investigation'!$A$2:$M$84,13,FALSE)),"")) -> 
